Workbook

Sheet Jahr
A1: Auswahl
B4: Aktuelles Jahr: | D4: =YEAR(TODAY()) -> 2021
B6: Einstellung zur Abschreibung
B7: Einem land- und forstwirtschaftlichen Betrieb stehen für bereits abgeschriebene Anlagen zwei Möglichkeiten zur Verfügung, nämlich die Abschreibung auf den Erinnerungswert (= 1,- €) einerseits und wenn ein Anlagenverzeichnis geführt wird, die Abschreibung auf Null (0,-€) andererseits. Du musst dich daher an dieser Stelle entscheiden, welche dieser beiden Varianten du auswählen möchtest!
B8: x | C8: Abschreibung auf den Erinnerungswert (= 1,- €) | D8: =IF(B8="x",1,0) -> 1
B10: =IF(B8="","x","") ->  | C10: Abschreibung auf Null (= 0,- €)
B13: Anlagevermögen | E13: :
B15: ë | C15: Grundverbesserung | E15: Baukostenrichtsatz (indiziert)
B17: ë | C17: Gebäude und bauliche Anlagen
B19: ë | C19: Maschinen und Geräte
B21: Umlaufvermögen
B23: ë | C23: Vieh und Vorräte
B25: ë | C25: Pflanzenbestände
B27: ë | C27: Geldbestände
A29: © Mag. Wolfgang Harasleben | F29: Version 2021.09.30.076
A32: Operatoren | C32: Operanden | D32: Reduktionsfaktoren | H32: 1 | I32: 2 | J32: 3 | K32: 4 | L32: 5 | M32: 6 | N32: 7 | O32: 8 | P32: 9 | Q32: 10 | R32: 11 | S32: 12 | T32: 13 | W32: Jahr
A33: + | C33: ½ Dachstuhlhöhe | D33: -0.1 | H33: =sverweis(d1;GL; | I33: 1 | J33: ein | K33: einen | L33: der | M33: den | N33: errichteten | O33: errichteter | P33: genommenen | Q33: genommener | R33: sein | T33: einem | W33: =YEAR(TODAY())-2 -> 2019
A34: – | C34: 1. Teil Investitionszuschuss | D34: -0.2 | I34: 2 | J34: eine | K34: eine | L34: die | M34: die | N34: errichtete | O34: errichtete | P34: genommene | Q34: genommene | R34: ihr | T34: einer | W34: =W33+1 -> 2020
A35: • | C35: 2. Teil Investitionszuschuss | D35: -0.33 | I35: 3 | J35: ein | K35: ein | L35: das | M35: das | N35: errichtetes | O35: errichtete | P35: genommenes | Q35: genommene | R35: sein | T35: einem | W35: =W34+1 -> 2021
A36: : | C36: 3. Teil Investitionszuschuss | H36: Anbindestall | I36: 1 | J36: =IF($I36=1,J$33,IF($I36=2,J$34,IF($I36=3,J$35,""))) -> ein | K36: einen | L36: der | M36: den | N36: errichteten | O36: errichteter | P36: genommenen | Q36: genommener | R36: sein | S36: m³ | T36: =IF($I36=1,T$33,IF($I36=2,T$34,IF($I36=3,T$35,""))) -> einem | W36: 2022
C37: Abgang | D37: Reduktion auf | H37: Aufstallung | I37: 2 | J37: eine | K37: eine | L37: die | M37: die | N37: errichtete | O37: errichtete | P37: genommene | Q37: genommene | R37: ihr | S37: Stk. | T37: einer | W37: 2023
C38: Abschreibungsbasis | D38: 0.9 | H38: Backstube | I38: 2 | J38: eine | K38: eine | L38: die | M38: die | N38: errichtete | O38: errichtete | P38: genommene | Q38: genommene | R38: ihr | S38: m³ | T38: einer | W38: 2024
C39: Alter | D39: 0.8 | H39: Bauernladen | I39: 1 | J39: ein | K39: einen | L39: der | M39: den | N39: errichteten | O39: errichteter | P39: genommenen | Q39: genommener | R39: sein | S39: m³ | T39: einem | W39: 2025
C40: Anschaffungsjahr | D40: 0.67 | H40: Bewässerungsanlage | I40: 2 | J40: eine | K40: eine | L40: die | M40: die | N40: errichtete | O40: errichtete | P40: genommene | Q40: genommene | R40: ihr | S40: lfm | T40: einer | W40: 2026
C41: Anschaffungswert | H41: Bienenhaus | I41: 3 | J41: ein | K41: ein | L41: das | M41: das | N41: errichtetes | O41: errichtete | P41: genommenes | Q41: genommene | R41: sein | S41: m³ | T41: einem | W41: 2027
C42: Baukostenrichtsatz | D42: Ankreuzen | H42: Bienenstock | I42: 1 | J42: ein | K42: einen | L42: der | M42: den | N42: errichteten | O42: errichteter | P42: genommenen | Q42: genommener | R42: sein | S42: Stk. | T42: einem | W42: 2028
C43: Betriebsgewöhnliche ND | D43: x | H43: Brücke | I43: 2 | J43: eine | K43: eine | L43: die | M43: die | N43: errichtete | O43: errichtete | P43: genommene | Q43: genommene | R43: ihr | S43: lfm | T43: einer
C44: Bisherige Afa | H44: Düngerplatte | I44: 2 | J44: eine | K44: eine | L44: die | M44: die | N44: errichtete | O44: errichtete | P44: genommene | Q44: genommene | R44: ihr | S44: m² | T44: einer
C45: Breite | H45: Düngestätte | I45: 2 | J45: eine | K45: eine | L45: die | M45: die | N45: errichtete | O45: errichtete | P45: genommene | Q45: genommene | R45: ihr | S45: m² | T45: einer
C46: Gebäudehöhe | H46: Erdäpfelkeller | I46: 1 | J46: ein | K46: einen | L46: der | M46: den | N46: errichteten | O46: errichteter | P46: genommenen | Q46: genommener | R46: sein | S46: m³ | T46: einem
C47: Gesamt | H47: Fahrsilo | I47: 1 | J47: ein | K47: einen | L47: der | M47: den | N47: errichteten | O47: errichteter | P47: genommenen | Q47: genommener | R47: sein | S47: m³ | T47: einem
C48: =IF('G9'!D11="","1. Nutzung",'G9'!D11) -> Rinderstall | H48: Ferkelstall | I48: 1 | J48: ein | K48: einen | L48: der | M48: den | N48: errichteten | O48: errichteter | P48: genommenen | Q48: genommener | R48: sein | S48: m³ | T48: einem
C49: =IF('G9'!P11="","2. Nutzung",'G9'!P11) -> Schweinestall | H49: Fleischverarbeitungsraum | I49: 1 | J49: ein | K49: einen | L49: der | M49: den | N49: errichteten | O49: errichteter | P49: genommenen | Q49: genommener | R49: sein | S49: m³ | T49: einem
C50: Größe | H50: Fohlenstall | I50: 1 | J50: ein | K50: einen | L50: der | M50: den | N50: errichteten | O50: errichteter | P50: genommenen | Q50: genommener | R50: sein | S50: m³ | T50: einem
C51: Herstellungswert | H51: Folientunnel | I51: 1 | J51: ein | K51: einen | L51: der | M51: den | N51: errichteten | O51: errichteter | P51: genommenen | Q51: genommener | R51: sein | S51: m³ | T51: einem
C52: Heuer | H52: Frühstücksraum | I52: 1 | J52: ein | K52: einen | L52: der | M52: den | N52: errichteten | O52: errichteter | P52: genommenen | Q52: genommener | R52: sein | S52: m³ | T52: einem
C53: Höhe | H53: Futterlager | I53: 3 | J53: ein | K53: ein | L53: das | M53: das | N53: errichtetes | O53: errichtete | P53: genommenes | Q53: genommene | R53: sein | S53: m³ | T53: einem
C54: Investitionszuschuss | H54: Garage | I54: 2 | J54: eine | K54: eine | L54: die | M54: die | N54: errichtete | O54: errichtete | P54: genommene | Q54: genommene | R54: ihr | S54: m³ | T54: einer
C55: Jährliche Afa | H55: Gästezimmer (UaB) | I55: 3 | J55: ein | K55: ein | L55: das | M55: das | N55: errichtetes | O55: errichtete | P55: genommenes | Q55: genommene | R55: sein | S55: m³ | T55: einem
C56: Jährliche Afa neu | H56: Getreidelager | I56: 3 | J56: ein | K56: ein | L56: das | M56: das | N56: errichtetes | O56: errichtete | P56: genommenes | Q56: genommene | R56: sein | S56: m³ | T56: einem
C57: Länge | H57: Gewächshaus | I57: 3 | J57: ein | K57: ein | L57: das | M57: das | N57: errichtetes | O57: errichtete | P57: genommenes | Q57: genommene | R57: sein | S57: m³ | T57: einem
C58: Neuwert | H58: Glashaus | I58: 3 | J58: ein | K58: ein | L58: das | M58: das | N58: errichtetes | O58: errichtete | P58: genommenes | Q58: genommene | R58: sein | S58: m³ | T58: einem
C59: Nutzungsdauer | H59: Güllegrube | I59: 2 | J59: eine | K59: eine | L59: die | M59: die | N59: errichtete | O59: errichtete | P59: genommene | Q59: genommene | R59: ihr | S59: m³ | T59: einer
C60: Nutzungsdauer neu | H60: Hagelnetz | I60: 3 | J60: ein | K60: ein | L60: das | M60: das | N60: errichtetes | O60: errichtete | P60: genommenes | Q60: genommene | R60: sein | S60: m² | T60: einem
C61: Nutzungsdauerverlängerung | H61: Halle | I61: 2 | J61: eine | K61: eine | L61: die | M61: die | N61: errichtete | O61: errichtete | P61: genommene | Q61: genommene | R61: ihr | S61: m³ | T61: einer
C62: Reduktionsfaktor | H62: Heulager | I62: 3 | J62: ein | K62: ein | L62: das | M62: das | N62: errichtetes | O62: errichtete | P62: genommenes | Q62: genommene | R62: sein | S62: m³ | T62: einem
C63: Reduzierter Baukostenrichtsatz | H63: Heustadel | I63: 1 | J63: ein | K63: einen | L63: der | M63: den | N63: errichteten | O63: errichteter | P63: genommenen | Q63: genommener | R63: sein | S63: m³ | T63: einem
C64: Restnutzungsdauer | H64: Heustock | I64: 1 | J64: ein | K64: einen | L64: der | M64: =IF($I64=1,M$33,IF($I64=2,M$34,IF($I64=3,M$35,""))) -> den | N64: errichteten | O64: errichteter | P64: genommenen | Q64: genommener | R64: sein | S64: m³ | T64: einem
C65: Umbauter Raum (m³) | H65: Hochsilo | I65: 1 | J65: =IF($I65=1,J$33,IF($I65=2,J$34,IF($I65=3,J$35,""))) -> ein | K65: einen | L65: der | M65: den | N65: errichteten | O65: errichteter | P65: genommenen | Q65: genommener | R65: sein | S65: m³ | T65: einem
C66: Verbaute Fläche (m²) | H66: Hofladen | I66: 1 | J66: ein | K66: einen | L66: der | M66: den | N66: errichteten | O66: errichteter | P66: genommenen | Q66: genommener | R66: sein | S66: m³ | T66: einem
C67: Wert der Erweiterung | H67: Holzlager | I67: 3 | J67: ein | K67: ein | L67: das | M67: das | N67: errichtetes | O67: errichtete | P67: genommenes | Q67: genommene | R67: sein | S67: m³ | T67: einem
C68: Wert der Generalreparatur | H68: Holzsilo | I68: 1 | J68: ein | K68: einen | L68: der | M68: den | N68: errichteten | O68: errichteter | P68: genommenen | Q68: genommener | R68: sein | S68: m³ | T68: einem
C69: Wert der Umnutzung | H69: Hühnerstall | I69: 1 | J69: ein | K69: einen | L69: der | M69: den | N69: errichteten | O69: errichteter | P69: genommenen | Q69: genommener | R69: sein | S69: m³ | T69: einem
C70: Wiederbeschaffungswert | H70: Jauchegrube | I70: 2 | J70: eine | K70: eine | L70: die | M70: die | N70: errichtete | O70: errichtete | P70: genommene | Q70: genommene | R70: ihr | S70: m³ | T70: einer
C71: Zeitwert 1.1. | H71: Kälberstall | I71: 1 | J71: ein | K71: einen | L71: der | M71: den | N71: errichteten | O71: errichteter | P71: genommenen | Q71: genommener | R71: sein | S71: m³ | T71: einem
C72: Zeitwert 31.12. | H72: Kanalisation | I72: 2 | J72: eine | K72: eine | L72: die | M72: die | N72: errichtete | O72: errichtete | P72: genommene | Q72: genommene | R72: ihr | S72: m³ | T72: einer
C73: Zeitwert nach Erweiterung | H73: Kartoffelkeller | I73: 1 | J73: ein | K73: einen | L73: der | M73: den | N73: errichteten | O73: errichteter | P73: genommenen | Q73: genommener | R73: sein | S73: m³ | T73: einem
C74: Zeitwert vor Erweiterung | H74: Kartoffellager | I74: 3 | J74: ein | K74: ein | L74: das | M74: das | N74: errichtetes | O74: errichtete | P74: genommenes | Q74: genommene | R74: sein | S74: m³ | T74: einem
C75: Zeitwert nach Generalreparatur | H75: Käselager | I75: 3 | J75: ein | K75: ein | L75: das | M75: das | N75: errichtetes | O75: errichtete | P75: genommenes | Q75: genommene | R75: sein | S75: m³ | T75: einem
C76: Zeitwert vor Generalreparatur | H76: Keller | I76: 1 | J76: ein | K76: einen | L76: der | M76: den | N76: errichteten | O76: errichteter | P76: genommenen | Q76: genommener | R76: sein | S76: m³ | T76: einem
C77: Zeitwert nach Umnutzung | H77: Kühlraum | I77: 1 | J77: ein | K77: einen | L77: der | M77: den | N77: errichteten | O77: errichteter | P77: genommenen | Q77: genommener | R77: sein | S77: m³ | T77: einem
C78: Zeitwert vor Umnutzung | H78: Lagerraum | I78: 1 | J78: ein | K78: einen | L78: der | M78: den | N78: errichteten | O78: errichteter | P78: genommenen | Q78: genommener | R78: sein | S78: m³ | T78: einem
C79: Zugang | H79: Lämmerstall | I79: 1 | J79: ein | K79: einen | L79: der | M79: den | N79: errichteten | O79: errichteter | P79: genommenen | Q79: genommener | R79: sein | S79: m³ | T79: einem
H80: Laufstall | I80: 1 | J80: ein | K80: einen | L80: der | M80: den | N80: errichteten | O80: errichteter | P80: genommenen | Q80: genommener | R80: sein | S80: m³ | T80: einem
H81: Maschinenhalle | I81: 2 | J81: eine | K81: eine | L81: die | M81: die | N81: errichtete | O81: errichtete | P81: genommene | Q81: genommene | R81: ihr | S81: m³ | T81: einer
H82: Maschinenschuppen | I82: 1 | J82: ein | K82: einen | L82: der | M82: den | N82: errichteten | O82: errichteter | P82: genommenen | Q82: genommener | R82: sein | S82: m³ | T82: einem
H83: Mastrinderstall | I83: 1 | J83: ein | K83: einen | L83: der | M83: den | N83: errichteten | O83: errichteter | P83: genommenen | Q83: genommener | R83: sein | S83: m³ | T83: einem
H84: Mehrnutzungsgebäude | I84: 3 | J84: ein | K84: ein | L84: das | M84: das | N84: errichtetes | O84: errichtete | P84: genommenes | Q84: genommene | R84: sein | S84: m² | T84: einem
H85: Melkkarusell | I85: 3 | J85: ein | K85: ein | L85: das | M85: das | N85: errichtetes | O85: errichtete | P85: genommenes | Q85: genommene | R85: sein | S85: Stk. | T85: einem
H86: Melkstand | I86: 1 | J86: ein | K86: einen | L86: der | M86: den | N86: errichteten | O86: errichteter | P86: genommenen | Q86: genommener | R86: sein | S86: Stk. | T86: einem
H87: Milchkammer | I87: 2 | J87: eine | K87: eine | L87: die | M87: die | N87: errichtete | O87: errichtete | P87: genommene | Q87: genommene | R87: ihr | S87: m³ | T87: einer
H88: Milchverarbeitungsraum | I88: 1 | J88: ein | K88: einen | L88: der | M88: den | N88: errichteten | O88: errichteter | P88: genommenen | Q88: genommener | R88: sein | S88: m³ | T88: einem
H89: Milchviehstall | I89: 1 | J89: ein | K89: einen | L89: der | M89: den | N89: errichteten | O89: errichteter | P89: genommenen | Q89: genommener | R89: sein | S89: m³ | T89: einem
H90: Misthaufen | I90: 1 | J90: ein | K90: einen | L90: der | M90: den | N90: errichteten | O90: errichteter | P90: genommenen | Q90: genommener | R90: sein | S90: m² | T90: einem
H91: Mistlege | I91: 2 | J91: eine | K91: eine | L91: die | M91: die | N91: errichtete | O91: errichtete | P91: genommene | Q91: genommene | R91: ihr | S91: m² | T91: einer
H92: Obstkeller | I92: 1 | J92: ein | K92: einen | L92: der | M92: den | N92: errichteten | O92: errichteter | P92: genommenen | Q92: genommener | R92: sein | S92: m³ | T92: einem
H93: Obstlager | I93: 3 | J93: ein | K93: ein | L93: das | M93: das | N93: errichtetes | O93: errichtete | P93: genommenes | Q93: genommene | R93: sein | S93: m³ | T93: einem
H94: Pferdekoppel | I94: 2 | J94: eine | K94: eine | L94: die | M94: die | N94: errichtete | O94: errichtete | P94: genommene | Q94: genommene | R94: ihr | S94: m² | T94: einer
H95: Pferdestall | I95: 1 | J95: ein | K95: einen | L95: der | M95: den | N95: errichteten | O95: errichteter | P95: genommenen | Q95: genommener | R95: sein | S95: m³ | T95: einem
H96: Räucherkammer | I96: 2 | J96: eine | K96: eine | L96: =IF($I96=1,L$33,IF($I96=2,L$34,IF($I96=3,L$35,""))) -> die | M96: die | N96: errichtete | O96: errichtete | P96: genommene | Q96: genommene | R96: ihr | S96: m³ | T96: einer
H97: Rinderstall | I97: 1 | J97: ein | K97: einen | L97: der | M97: den | N97: errichteten | O97: errichteter | P97: genommenen | Q97: genommener | R97: sein | S97: m³ | T97: einem
H98: Schafstall | I98: 1 | J98: ein | K98: einen | L98: der | M98: den | N98: errichteten | O98: errichteter | P98: genommenen | Q98: genommener | R98: sein | S98: m³ | T98: einem
H99: Schankraum | I99: 1 | J99: ein | K99: einen | L99: der | M99: den | N99: errichteten | O99: errichteter | P99: genommenen | Q99: genommener | R99: sein | S99: m³ | T99: einem
H100: Scheune | I100: 2 | J100: eine | K100: eine | L100: die | M100: die | N100: errichtete | O100: errichtete | P100: genommene | Q100: genommene | R100: ihr | S100: m³ | T100: einer
H101: Schlachtraum | I101: 1 | J101: ein | K101: einen | L101: der | M101: den | N101: errichteten | O101: errichteter | P101: genommenen | Q101: genommener | R101: sein | S101: m³ | T101: einem
H102: Schuppen | I102: 1 | J102: ein | K102: einen | L102: der | M102: den | N102: errichteten | O102: errichteter | P102: genommenen | Q102: genommener | R102: sein | S102: m³ | T102: einem
H103: Schweinestall | I103: 1 | J103: ein | K103: einen | L103: der | M103: den | N103: errichteten | O103: errichteter | P103: genommenen | Q103: genommener | R103: sein | S103: m³ | T103: einem
H104: Selch | I104: 2 | J104: eine | K104: eine | L104: die | M104: die | N104: errichtete | O104: errichtete | P104: genommene | Q104: genommene | R104: ihr | S104: m³ | T104: einer
H105: Silo | I105: 1 | J105: ein | K105: einen | L105: der | M105: den | N105: errichteten | O105: errichteter | P105: genommenen | Q105: genommener | R105: sein | S105: m³ | T105: einem
H106: Speiseraum | I106: 1 | J106: ein | K106: einen | L106: der | M106: den | N106: errichteten | O106: errichteter | P106: genommenen | Q106: genommener | R106: sein | S106: m³ | T106: einem
H107: Stadel | I107: 1 | J107: ein | K107: einen | L107: der | M107: den | N107: errichteten | O107: errichteter | P107: genommenen | Q107: genommener | R107: sein | S107: m³ | T107: einem
H108: Stall | I108: 1 | J108: ein | K108: einen | L108: der | M108: den | N108: errichteten | O108: errichteter | P108: genommenen | Q108: genommener | R108: sein | S108: m³ | T108: einem
H109: Stallgebäude | I109: 3 | J109: ein | K109: ein | L109: das | M109: das | N109: errichtetes | O109: errichtete | P109: genommenes | Q109: genommene | R109: sein | S109: m³ | T109: einem
H110: Straße | I110: 2 | J110: eine | K110: eine | L110: die | M110: die | N110: errichtete | O110: errichtete | P110: genommene | Q110: genommene | R110: ihr | S110: lfm | T110: einer
H111: Strohlager | I111: 3 | J111: ein | K111: ein | L111: das | M111: das | N111: errichtetes | O111: errichtete | P111: genommenes | Q111: genommene | R111: sein | S111: m³ | T111: einem
H112: Traunsteinsilo | I112: 1 | J112: ein | K112: einen | L112: der | M112: den | N112: errichteten | O112: errichteter | P112: genommenen | Q112: genommener | R112: sein | S112: m³ | T112: einem
H113: Trockenraum | I113: 1 | J113: ein | K113: einen | L113: der | M113: den | N113: errichteten | O113: errichteter | P113: genommenen | Q113: genommener | R113: sein | S113: m³ | T113: einem
H114: Verarbeitungsraum | I114: 1 | J114: ein | K114: einen | L114: der | M114: den | N114: errichteten | O114: errichteter | P114: genommenen | Q114: genommener | R114: sein | S114: m³ | T114: einem
H115: Waschplatz | I115: 1 | J115: ein | K115: einen | L115: der | M115: den | N115: errichteten | O115: errichteter | P115: genommenen | Q115: genommener | R115: sein | S115: m² | T115: einem
H116: Weg | I116: 1 | J116: ein | K116: einen | L116: der | M116: den | N116: errichteten | O116: errichteter | P116: genommenen | Q116: genommener | R116: sein | S116: lfm | T116: einem
H117: Weidezaun | I117: 1 | J117: ein | K117: einen | L117: der | M117: den | N117: errichteten | O117: errichteter | P117: genommenen | Q117: genommener | R117: sein | S117: lfm | T117: einem
H118: Weinkeller | I118: 1 | J118: ein | K118: einen | L118: der | M118: den | N118: errichteten | O118: errichteter | P118: genommenen | Q118: genommener | R118: sein | S118: m³ | T118: einem
H119: Werkstatt | I119: 2 | J119: eine | K119: eine | L119: die | M119: die | N119: errichtete | O119: errichtete | P119: genommene | Q119: genommene | R119: ihr | S119: m³ | T119: einer
H120: Wirtschaftsgebäude | I120: 3 | J120: =IF($I120=1,J$33,IF($I120=2,J$34,IF($I120=3,J$35,""))) -> ein | K120: ein | L120: das | M120: das | N120: errichtetes | O120: errichtete | P120: genommenes | Q120: genommene | R120: sein | S120: m³ | T120: einem
H121: Ziegenstall | I121: 1 | J121: =IF($I121=1,J$33,IF($I121=2,J$34,IF($I121=3,J$35,""))) -> ein | K121: einen | L121: der | M121: den | N121: errichteten | O121: errichteter | P121: genommenen | Q121: genommener | R121: sein | S121: m³ | T121: einem
H123: =H36&" (Erweiterung)" -> Anbindestall (Erweiterung) | I123: =I36 -> 1 | J123: =J36 -> ein | K123: einen | L123: der | M123: den | N123: errichteten | O123: errichteter | P123: genommenen | Q123: genommener | R123: sein | S123: m³ | T123: einem
H124: Aufstallung (Erweiterung) | I124: =I37 -> 2 | J124: eine | K124: eine | L124: die | M124: die | N124: errichtete | O124: errichtete | P124: genommene | Q124: genommene | R124: ihr | S124: Stk. | T124: einer
H125: Backstube (Erweiterung) | I125: 2 | J125: eine | K125: eine | L125: die | M125: die | N125: errichtete | O125: errichtete | P125: genommene | Q125: genommene | R125: ihr | S125: m³ | T125: einer
H126: Bauernladen (Erweiterung) | I126: 1 | J126: ein | K126: einen | L126: der | M126: den | N126: errichteten | O126: errichteter | P126: genommenen | Q126: genommener | R126: sein | S126: m³ | T126: einem
H127: Bewässerungsanlage (Erweiterung) | I127: 2 | J127: eine | K127: eine | L127: die | M127: die | N127: errichtete | O127: errichtete | P127: genommene | Q127: genommene | R127: ihr | S127: lfm | T127: einer
H128: Bienenhaus (Erweiterung) | I128: 3 | J128: ein | K128: ein | L128: das | M128: das | N128: errichtetes | O128: errichtete | P128: genommenes | Q128: genommene | R128: sein | S128: m³ | T128: einem
H129: Bienenstock (Erweiterung) | I129: 1 | J129: ein | K129: einen | L129: der | M129: den | N129: errichteten | O129: errichteter | P129: genommenen | Q129: genommener | R129: sein | S129: Stk. | T129: einem
H130: Brücke (Erweiterung) | I130: 2 | J130: eine | K130: eine | L130: die | M130: die | N130: errichtete | O130: errichtete | P130: genommene | Q130: genommene | R130: ihr | S130: lfm | T130: einer
H131: Düngerplatte (Erweiterung) | I131: 2 | J131: eine | K131: eine | L131: die | M131: die | N131: errichtete | O131: errichtete | P131: genommene | Q131: genommene | R131: ihr | S131: m² | T131: einer
H132: Düngestätte (Erweiterung) | I132: 2 | J132: eine | K132: eine | L132: die | M132: die | N132: errichtete | O132: errichtete | P132: genommene | Q132: genommene | R132: ihr | S132: m² | T132: einer
H133: Erdäpfelkeller (Erweiterung) | I133: 1 | J133: ein | K133: einen | L133: der | M133: den | N133: errichteten | O133: errichteter | P133: genommenen | Q133: genommener | R133: sein | S133: m³ | T133: einem
H134: Fahrsilo (Erweiterung) | I134: 1 | J134: ein | K134: einen | L134: der | M134: den | N134: errichteten | O134: errichteter | P134: genommenen | Q134: genommener | R134: sein | S134: m³ | T134: einem
H135: Ferkelstall (Erweiterung) | I135: 1 | J135: ein | K135: einen | L135: der | M135: den | N135: errichteten | O135: errichteter | P135: genommenen | Q135: genommener | R135: sein | S135: m³ | T135: einem
H136: Fleischverarbeitungsraum (Erweiterung) | I136: 1 | J136: ein | K136: einen | L136: der | M136: den | N136: errichteten | O136: errichteter | P136: genommenen | Q136: genommener | R136: sein | S136: m³ | T136: einem
H137: Fohlenstall (Erweiterung) | I137: 1 | J137: ein | K137: einen | L137: der | M137: den | N137: errichteten | O137: errichteter | P137: genommenen | Q137: genommener | R137: sein | S137: m³ | T137: einem
H138: Folientunnel (Erweiterung) | I138: 1 | J138: ein | K138: einen | L138: der | M138: den | N138: errichteten | O138: errichteter | P138: genommenen | Q138: genommener | R138: sein | S138: m³ | T138: einem
H139: Frühstücksraum (Erweiterung) | I139: 1 | J139: ein | K139: einen | L139: der | M139: den | N139: errichteten | O139: errichteter | P139: genommenen | Q139: genommener | R139: sein | S139: m³ | T139: einem
H140: Futterlager (Erweiterung) | I140: =I53 -> 3 | J140: ein | K140: ein | L140: das | M140: das | N140: errichtetes | O140: errichtete | P140: genommenes | Q140: genommene | R140: sein | S140: m³ | T140: einem
H141: Garage (Erweiterung) | I141: 2 | J141: eine | K141: eine | L141: die | M141: die | N141: errichtete | O141: errichtete | P141: genommene | Q141: genommene | R141: ihr | S141: m³ | T141: einer
H142: Gästezimmer (UaB) (Erweiterung) | I142: 3 | J142: ein | K142: ein | L142: das | M142: das | N142: errichtetes | O142: errichtete | P142: genommenes | Q142: genommene | R142: sein | S142: m³ | T142: einem
H143: Getreidelager (Erweiterung) | I143: 3 | J143: ein | K143: ein | L143: das | M143: das | N143: errichtetes | O143: errichtete | P143: genommenes | Q143: genommene | R143: sein | S143: m³ | T143: einem
H144: Gewächshaus (Erweiterung) | I144: 3 | J144: ein | K144: ein | L144: das | M144: das | N144: errichtetes | O144: errichtete | P144: genommenes | Q144: genommene | R144: sein | S144: m³ | T144: einem
H145: Glashaus (Erweiterung) | I145: 3 | J145: ein | K145: ein | L145: das | M145: das | N145: errichtetes | O145: errichtete | P145: genommenes | Q145: genommene | R145: sein | S145: m³ | T145: einem
H146: Güllegrube (Erweiterung) | I146: 2 | J146: eine | K146: eine | L146: die | M146: die | N146: errichtete | O146: errichtete | P146: genommene | Q146: genommene | R146: ihr | S146: m³ | T146: einer
H147: Hagelnetz (Erweiterung) | I147: 3 | J147: ein | K147: ein | L147: das | M147: das | N147: errichtetes | O147: errichtete | P147: genommenes | Q147: genommene | R147: sein | S147: m² | T147: einem
H148: Halle (Erweiterung) | I148: 2 | J148: eine | K148: eine | L148: die | M148: die | N148: errichtete | O148: errichtete | P148: genommene | Q148: genommene | R148: ihr | S148: m³ | T148: einer
H149: Heulager (Erweiterung) | I149: 3 | J149: ein | K149: ein | L149: das | M149: das | N149: errichtetes | O149: errichtete | P149: genommenes | Q149: genommene | R149: sein | S149: m³ | T149: einem
H150: Heustadel (Erweiterung) | I150: 1 | J150: ein | K150: einen | L150: der | M150: den | N150: errichteten | O150: errichteter | P150: genommenen | Q150: genommener | R150: sein | S150: m³ | T150: einem
H151: Heustock (Erweiterung) | I151: 1 | J151: ein | K151: einen | L151: der | M151: den | N151: errichteten | O151: errichteter | P151: genommenen | Q151: genommener | R151: sein | S151: m³ | T151: einem
H152: Hochsilo (Erweiterung) | I152: 1 | J152: ein | K152: einen | L152: der | M152: den | N152: errichteten | O152: errichteter | P152: genommenen | Q152: genommener | R152: sein | S152: m³ | T152: einem
H153: Hofladen (Erweiterung) | I153: 1 | J153: ein | K153: einen | L153: der | M153: den | N153: errichteten | O153: errichteter | P153: genommenen | Q153: genommener | R153: sein | S153: m³ | T153: einem
H154: Holzlager (Erweiterung) | I154: 3 | J154: ein | K154: ein | L154: das | M154: das | N154: errichtetes | O154: errichtete | P154: genommenes | Q154: genommene | R154: sein | S154: m³ | T154: einem
H155: Holzsilo (Erweiterung) | I155: 1 | J155: ein | K155: einen | L155: der | M155: den | N155: errichteten | O155: errichteter | P155: genommenen | Q155: genommener | R155: sein | S155: m³ | T155: einem
H156: Hühnerstall (Erweiterung) | I156: =I69 -> 1 | J156: ein | K156: einen | L156: der | M156: den | N156: errichteten | O156: errichteter | P156: genommenen | Q156: genommener | R156: sein | S156: m³ | T156: einem
H157: Jauchegrube (Erweiterung) | I157: 2 | J157: eine | K157: eine | L157: die | M157: die | N157: errichtete | O157: errichtete | P157: genommene | Q157: genommene | R157: ihr | S157: m³ | T157: einer
H158: Kälberstall (Erweiterung) | I158: 1 | J158: ein | K158: einen | L158: der | M158: den | N158: errichteten | O158: errichteter | P158: genommenen | Q158: genommener | R158: sein | S158: m³ | T158: einem
H159: Kanalisation (Erweiterung) | I159: 2 | J159: eine | K159: eine | L159: die | M159: die | N159: errichtete | O159: errichtete | P159: genommene | Q159: genommene | R159: ihr | S159: m³ | T159: einer
H160: Kartoffelkeller (Erweiterung) | I160: 1 | J160: ein | K160: einen | L160: der | M160: den | N160: errichteten | O160: errichteter | P160: genommenen | Q160: genommener | R160: sein | S160: m³ | T160: einem
H161: Kartoffellager (Erweiterung) | I161: 3 | J161: ein | K161: ein | L161: das | M161: das | N161: errichtetes | O161: errichtete | P161: genommenes | Q161: genommene | R161: sein | S161: m³ | T161: einem
H162: Käselager (Erweiterung) | I162: 3 | J162: ein | K162: ein | L162: das | M162: das | N162: errichtetes | O162: errichtete | P162: genommenes | Q162: genommene | R162: sein | S162: m³ | T162: einem
H163: Keller (Erweiterung) | I163: 1 | J163: ein | K163: einen | L163: der | M163: den | N163: errichteten | O163: errichteter | P163: genommenen | Q163: genommener | R163: sein | S163: m³ | T163: einem
H164: Kühlraum (Erweiterung) | I164: 1 | J164: ein | K164: einen | L164: der | M164: den | N164: errichteten | O164: errichteter | P164: genommenen | Q164: genommener | R164: sein | S164: m³ | T164: einem
H165: Lagerraum (Erweiterung) | I165: 1 | J165: ein | K165: einen | L165: der | M165: den | N165: errichteten | O165: errichteter | P165: genommenen | Q165: genommener | R165: sein | S165: m³ | T165: einem
H166: Lämmerstall (Erweiterung) | I166: 1 | J166: ein | K166: einen | L166: der | M166: den | N166: errichteten | O166: errichteter | P166: genommenen | Q166: genommener | R166: sein | S166: m³ | T166: einem
H167: Laufstall (Erweiterung) | I167: 1 | J167: ein | K167: einen | L167: der | M167: den | N167: errichteten | O167: errichteter | P167: genommenen | Q167: genommener | R167: sein | S167: m³ | T167: einem
H168: Maschinenhalle (Erweiterung) | I168: 2 | J168: eine | K168: eine | L168: die | M168: die | N168: errichtete | O168: errichtete | P168: genommene | Q168: genommene | R168: ihr | S168: m³ | T168: einer
H169: Maschinenschuppen (Erweiterung) | I169: 1 | J169: ein | K169: einen | L169: der | M169: den | N169: errichteten | O169: errichteter | P169: genommenen | Q169: genommener | R169: sein | S169: m³ | T169: einem
H170: Mastrinderstall (Erweiterung) | I170: 1 | J170: ein | K170: einen | L170: der | M170: den | N170: errichteten | O170: errichteter | P170: genommenen | Q170: genommener | R170: sein | S170: m³ | T170: einem
H171: Mehrnutzungsgebäude (Erweiterung) | I171: 3 | J171: ein | K171: ein | L171: das | M171: das | N171: errichtetes | O171: errichtete | P171: genommenes | Q171: genommene | R171: sein | S171: m² | T171: einem
H172: Melkkarusell (Erweiterung) | I172: =I85 -> 3 | J172: ein | K172: ein | L172: das | M172: das | N172: errichtetes | O172: errichtete | P172: genommenes | Q172: genommene | R172: sein | S172: Stk. | T172: einem
H173: Melkstand (Erweiterung) | I173: 1 | J173: ein | K173: einen | L173: der | M173: den | N173: errichteten | O173: errichteter | P173: genommenen | Q173: genommener | R173: sein | S173: Stk. | T173: einem
H174: Milchkammer (Erweiterung) | I174: 2 | J174: eine | K174: eine | L174: die | M174: die | N174: errichtete | O174: errichtete | P174: genommene | Q174: genommene | R174: ihr | S174: m³ | T174: einer
H175: Milchverarbeitungsraum (Erweiterung) | I175: 1 | J175: ein | K175: einen | L175: der | M175: den | N175: errichteten | O175: errichteter | P175: genommenen | Q175: genommener | R175: sein | S175: m³ | T175: einem
H176: Milchviehstall (Erweiterung) | I176: 1 | J176: ein | K176: einen | L176: der | M176: den | N176: errichteten | O176: errichteter | P176: genommenen | Q176: genommener | R176: sein | S176: m³ | T176: einem
H177: Misthaufen (Erweiterung) | I177: 1 | J177: ein | K177: einen | L177: der | M177: den | N177: errichteten | O177: errichteter | P177: genommenen | Q177: genommener | R177: sein | S177: m² | T177: einem
H178: Mistlege (Erweiterung) | I178: 2 | J178: eine | K178: eine | L178: die | M178: die | N178: errichtete | O178: errichtete | P178: genommene | Q178: genommene | R178: ihr | S178: m² | T178: einer
H179: Obstkeller (Erweiterung) | I179: 1 | J179: ein | K179: einen | L179: der | M179: den | N179: errichteten | O179: errichteter | P179: genommenen | Q179: genommener | R179: sein | S179: m³ | T179: einem
H180: Obstlager (Erweiterung) | I180: 3 | J180: ein | K180: ein | L180: das | M180: das | N180: errichtetes | O180: errichtete | P180: genommenes | Q180: genommene | R180: sein | S180: m³ | T180: einem
H181: Pferdekoppel (Erweiterung) | I181: 2 | J181: eine | K181: eine | L181: die | M181: die | N181: errichtete | O181: errichtete | P181: genommene | Q181: genommene | R181: ihr | S181: m² | T181: einer
H182: Pferdestall (Erweiterung) | I182: 1 | J182: ein | K182: einen | L182: der | M182: den | N182: errichteten | O182: errichteter | P182: genommenen | Q182: genommener | R182: sein | S182: m³ | T182: einem
H183: Räucherkammer (Erweiterung) | I183: 2 | J183: eine | K183: eine | L183: die | M183: die | N183: errichtete | O183: errichtete | P183: genommene | Q183: genommene | R183: ihr | S183: m³ | T183: einer
H184: Rinderstall (Erweiterung) | I184: 1 | J184: ein | K184: einen | L184: der | M184: den | N184: errichteten | O184: errichteter | P184: genommenen | Q184: genommener | R184: sein | S184: m³ | T184: einem
H185: Schafstall (Erweiterung) | I185: 1 | J185: ein | K185: einen | L185: der | M185: den | N185: errichteten | O185: errichteter | P185: genommenen | Q185: genommener | R185: sein | S185: m³ | T185: einem
H186: Schankraum (Erweiterung) | I186: 1 | J186: ein | K186: einen | L186: der | M186: den | N186: errichteten | O186: errichteter | P186: genommenen | Q186: genommener | R186: sein | S186: m³ | T186: einem
H187: =H100&" (Erweiterung)" -> Scheune (Erweiterung) | I187: 2 | J187: eine | K187: eine | L187: die | M187: die | N187: errichtete | O187: errichtete | P187: genommene | Q187: genommene | R187: ihr | S187: m³ | T187: einer
H188: Schlachtraum (Erweiterung) | I188: =I101 -> 1 | J188: ein | K188: einen | L188: der | M188: den | N188: errichteten | O188: errichteter | P188: genommenen | Q188: genommener | R188: sein | S188: m³ | T188: einem
H189: Schuppen (Erweiterung) | I189: 1 | J189: ein | K189: einen | L189: der | M189: den | N189: errichteten | O189: errichteter | P189: genommenen | Q189: genommener | R189: sein | S189: m³ | T189: einem
H190: Schweinestall (Erweiterung) | I190: 1 | J190: ein | K190: einen | L190: der | M190: den | N190: errichteten | O190: errichteter | P190: genommenen | Q190: genommener | R190: sein | S190: m³ | T190: einem
H191: Selch (Erweiterung) | I191: 2 | J191: eine | K191: eine | L191: die | M191: die | N191: errichtete | O191: errichtete | P191: genommene | Q191: genommene | R191: ihr | S191: m³ | T191: einer
H192: Silo (Erweiterung) | I192: 1 | J192: ein | K192: einen | L192: der | M192: den | N192: errichteten | O192: errichteter | P192: genommenen | Q192: genommener | R192: sein | S192: m³ | T192: einem
H193: Speiseraum (Erweiterung) | I193: 1 | J193: ein | K193: einen | L193: der | M193: den | N193: errichteten | O193: errichteter | P193: genommenen | Q193: genommener | R193: sein | S193: m³ | T193: einem
H194: Stadel (Erweiterung) | I194: 1 | J194: ein | K194: einen | L194: der | M194: den | N194: errichteten | O194: errichteter | P194: genommenen | Q194: genommener | R194: sein | S194: m³ | T194: einem
H195: Stall (Erweiterung) | I195: 1 | J195: ein | K195: einen | L195: der | M195: den | N195: errichteten | O195: errichteter | P195: genommenen | Q195: genommener | R195: sein | S195: m³ | T195: einem
H196: Stallgebäude (Erweiterung) | I196: 3 | J196: ein | K196: ein | L196: das | M196: das | N196: errichtetes | O196: errichtete | P196: genommenes | Q196: genommene | R196: sein | S196: m³ | T196: einem
H197: Straße (Erweiterung) | I197: 2 | J197: eine | K197: eine | L197: die | M197: die | N197: errichtete | O197: errichtete | P197: genommene | Q197: genommene | R197: ihr | S197: lfm | T197: einer
H198: Strohlager (Erweiterung) | I198: 3 | J198: ein | K198: ein | L198: das | M198: das | N198: errichtetes | O198: errichtete | P198: genommenes | Q198: genommene | R198: sein | S198: m³ | T198: einem
H199: Traunsteinsilo (Erweiterung) | I199: 1 | J199: ein | K199: einen | L199: der | M199: den | N199: errichteten | O199: errichteter | P199: genommenen | Q199: genommener | R199: sein | S199: m³ | T199: einem
H200: Trockenraum (Erweiterung) | I200: 1 | J200: ein | K200: einen | L200: der | M200: den | N200: errichteten | O200: errichteter | P200: genommenen | Q200: genommener | R200: sein | S200: m³ | T200: einem
H201: Verarbeitungsraum (Erweiterung) | I201: 1 | J201: ein | K201: einen | L201: der | M201: den | N201: errichteten | O201: errichteter | P201: genommenen | Q201: genommener | R201: sein | S201: m³ | T201: einem
H202: Waschplatz (Erweiterung) | I202: 1 | J202: ein | K202: einen | L202: der | M202: den | N202: errichteten | O202: errichteter | P202: genommenen | Q202: genommener | R202: sein | S202: m² | T202: einem
H203: Weg (Erweiterung) | I203: 1 | J203: ein | K203: einen | L203: der | M203: den | N203: errichteten | O203: errichteter | P203: genommenen | Q203: genommener | R203: sein | S203: lfm | T203: einem
H204: Weidezaun (Erweiterung) | I204: =I117 -> 1 | J204: ein | K204: einen | L204: der | M204: den | N204: errichteten | O204: errichteter | P204: genommenen | Q204: genommener | R204: sein | S204: lfm | T204: einem
H205: Weinkeller (Erweiterung) | I205: 1 | J205: ein | K205: einen | L205: der | M205: den | N205: errichteten | O205: errichteter | P205: genommenen | Q205: genommener | R205: sein | S205: m³ | T205: einem
H206: Werkstatt (Erweiterung) | I206: 2 | J206: eine | K206: eine | L206: die | M206: die | N206: errichtete | O206: errichtete | P206: genommene | Q206: genommene | R206: ihr | S206: m³ | T206: einer
H207: Wirtschaftsgebäude (Erweiterung) | I207: 3 | J207: ein | K207: ein | L207: das | M207: das | N207: errichtetes | O207: errichtete | P207: genommenes | Q207: genommene | R207: sein | S207: m³ | T207: einem
H208: Ziegenstall (Erweiterung) | I208: 1 | J208: ein | K208: einen | L208: der | M208: den | N208: errichteten | O208: errichteter | P208: genommenen | Q208: genommener | R208: sein | S208: m³ | T208: einem
H210: =H36&" (Generalreparatur)" -> Anbindestall (Generalreparatur) | I210: =I36 -> 1 | J210: ein | K210: einen | L210: der | M210: den | N210: errichteten | O210: errichteter | P210: genommenen | Q210: genommener | R210: sein | S210: m³ | T210: einem
H211: Aufstallung (Generalreparatur) | I211: 2 | J211: eine | K211: eine | L211: die | M211: die | N211: errichtete | O211: errichtete | P211: genommene | Q211: genommene | R211: ihr | S211: Stk. | T211: einer
H212: Backstube (Generalreparatur) | I212: 2 | J212: eine | K212: eine | L212: die | M212: die | N212: errichtete | O212: errichtete | P212: genommene | Q212: genommene | R212: ihr | S212: m³ | T212: einer
H213: Bauernladen (Generalreparatur) | I213: 1 | J213: ein | K213: einen | L213: der | M213: den | N213: errichteten | O213: errichteter | P213: genommenen | Q213: genommener | R213: sein | S213: m³ | T213: einem
H214: Bewässerungsanlage (Generalreparatur) | I214: 2 | J214: eine | K214: eine | L214: die | M214: die | N214: errichtete | O214: errichtete | P214: genommene | Q214: genommene | R214: ihr | S214: lfm | T214: einer
H215: Bienenhaus (Generalreparatur) | I215: 3 | J215: ein | K215: ein | L215: das | M215: das | N215: errichtetes | O215: errichtete | P215: genommenes | Q215: genommene | R215: sein | S215: m³ | T215: einem
H216: Bienenstock (Generalreparatur) | I216: 1 | J216: ein | K216: einen | L216: der | M216: den | N216: errichteten | O216: errichteter | P216: genommenen | Q216: genommener | R216: sein | S216: Stk. | T216: einem
H217: Brücke (Generalreparatur) | I217: 2 | J217: eine | K217: eine | L217: die | M217: die | N217: errichtete | O217: errichtete | P217: genommene | Q217: genommene | R217: ihr | S217: lfm | T217: einer
H218: Düngerplatte (Generalreparatur) | I218: 2 | J218: eine | K218: eine | L218: die | M218: die | N218: errichtete | O218: errichtete | P218: genommene | Q218: genommene | R218: ihr | S218: m² | T218: einer
... 77 more rows

Sheet BKRS indiziert
B1: Ermittlung des indizierten Baukostenrichtsatzes
C4: Aktuelles Jahr: | F4: =IF(Jahr!D4>2021,2021,Jahr!D4) -> 2021
C6: 2008 | F6: =VLOOKUP(C6,BPIgesamt,2,0) -> 253.2 | G6: 1) Baukostenrichtsätze aus dem Jahr 2008!
C8: =AktJAHR -> 2021 | F8: =VLOOKUP(C8,BPIgesamt,2,0) -> 361.1
C10: Baukostenrichtsatz (2008) | E10: €/m³ | F10: 156
C12: ="Indizierter Baukostenrichtsatz ("&AktJAHR&")" -> Indizierter Baukostenrichtsatz (2021) | E12: €/m³ | F12: =IF(OR(F10="",$F$6="",$F$8=""),"",ROUND(F10/$F$6*$F$8,0)) -> 222
C14: Anlagevermögen
C16: ë | D16: Grundverbesserung
C18: ë | D18: Gebäude und bauliche Anlagen
B20: © Mag. Wolfgang Harasleben

Sheet GV
A1: Grundverbesserungen
B3: Definition = sind mit dem Boden fest verbunden und = vermehren seinen Wert = d.h. ● sie erhöhen die Ertragsfähigkeit oder ● erleichtern die Produktion Wir unterscheiden ● einmalige Grundverbesserungen (werden nicht bewertet) ● abnutzbare Grundverbesserungen oder Meliorationen (Bewertung nach Anschaffungs- bzw. Herstellungswert)
B5: ë | C5: Herstellungswert bekannt, Errichtung und Inbetriebnahme im Aufzeichnungsjahr, kein Investitionszuschuss
C6: =IF('GV1'!A1="","",MID('GV1'!A1,1,1)&MID('GV1'!A1,4,2))&" "&IF('GV1'!C1="","",'GV1'!C1)&": "&IF('GV1'!D1="","",'GV1'!D1) -> Bsp 1: Rohrdrainage - Sumpfwiese
B9: ë | C9: Herstellungswert bekannt, Errichtungsjahr bekannt, kein Investitionszuschuss
C10: =IF('GV2'!A1="","",MID('GV2'!A1,1,1)&MID('GV2'!A1,4,2))&" "&IF('GV2'!C1="","",'GV2'!C1)&": "&IF('GV2'!D1="","",'GV2'!D1) -> Bsp 2: Maulwurfsdrainage - Hofacker
B13: ë | C13: Herstellungswert nicht bekannt, Errichtungsjahr bekannt, kein Investitionszuschuss
C14: =IF('GV3'!A1="","",MID('GV3'!A1,1,1)&MID('GV3'!A1,4,2))&" "&IF('GV3'!C1="","",'GV3'!C1)&": "&IF('GV3'!D1="","",'GV3'!D1) -> Bsp 3: Drainage
A16: © Mag. Wolfgang Harasleben

Sheet GV1
A1: Beispiel | C1: 1 | D1: Rohrdrainage - Sumpfwiese
A3: ■ Herstellungswert bekannt
A4: ■ Errichtung und Inbetriebnahme im Aufzeichnungsjahr
A5: ■ kein Investitionszuschuss | S5: Punkte
A7: ="Der Neuwert (Herstellungswert) für die im ersten Halbjahr "&C11&" errichtete und in Betrieb genommene '"&UPPER(D1)&"' beträgt laut Rechnung "&DOLLAR(H9,2)&". Die Nutzungsdauer wird mit "&H11&" Jahren festgelegt." -> Der Neuwert (Herstellungswert) für die im ersten Halbjahr 2021 errichtete und in Betrieb genommene 'ROHRDRAINAGE - SUMPFWIESE' beträgt laut Rechnung € 4 304,00. Die Nutzungsdauer wird mit 20 Jahren festgelegt. | R7: Anzeigen!
B9: Heuer = | C9: =IF(Jahr!D4="","",Jahr!D4) -> 2021 | G9: Anschaffungswert = | H9: 4304 | I9: €
B11: Anschaffungsjahr = | C11: =IF(Jahr!D4="","",Jahr!D4) -> 2021 | G11: Nutzungsdauer = | H11: 20 | I11: Jahre
R12: PKT | S12: / | T12: GES | W12: Ergebnisse | AC12: Hilfe | AI12: Formelprüfung | AO12: Punkte
A24: 1. | B24: Alter = | K24: jAfa ………. Jährliche Afa (Abschreibung) | R24: =IF(AND(C24="",F24="",H24=""),"",SUM(AO24:AS24)) ->  | S24: / | T24: =COUNTA(AC24:AG24) -> 3 | W24: =IF(C24="","",C24) ->  | Y24: =IF(F24="","",F24) ->  | AA24: =IF(H24="","",H24) ->  | AB24: / | AC24: =IF(GV1L!C24="","",GV1L!C24) -> Heuer | AE24: =IF(GV1L!F24="","",GV1L!F24) -> – | AG24: =IF(GV1L!H24="","",GV1L!H24) -> Anschaffungsjahr | AO24: =IF(W24="","",IF(W24=AC24,1,IF(W24=AI24,0.5,0))) ->  | AP24: =IF(X24="","",IF(X24=AD24,1,IF(X24=AJ24,0.5,0))) -> 
B26: Alter = | F26: =IF(F24="","",F24) ->  | K26: bAfa ………. Bisherige Afa (Abschreibung) | R26: =IF(AND(C26="",F26="",H26=""),"",SUM(AO26:AS26)) ->  | S26: / | T26: =COUNTA(AC26:AG26) -> 2 | W26: =IF(C26="","",C26) ->  | AA26: =IF(H26="","",H26) ->  | AB26: / | AC26: =IF(GV1L!C26="","",GV1L!C26) -> 2021 | AG26: =IF(GV1L!H26="","",GV1L!H26) -> 2021 | AO26: =IF(W26="","",IF(W26=AC26,1,IF(W26=AI26,0.5,0))) -> 
F27: ,
B28: Alter = | F28: Jahre | K28: ZW1.1. ………. Zeitwert am 1.1. | R28: =IF(AND(C28=""),"",SUM(AO28:AS28)) ->  | S28: / | T28: =COUNTA(AC28:AG28) -> 1 | W28: =IF(C28="","",C28) ->  | AB28: / | AC28: =IF(GV1L!C28="","",GV1L!C28) -> 0 | AH28: - | AI28: =IF(C28="","",C26-H26) ->  | AO28: =IF(W28="","",IF(W28=AC28,1,IF(W28=AI28,0.5,0))) -> 
K29: ZW31.12. ………. Zeitwert am 31.12. | AC29: Anschaffungswert
A30: 2. | B30: jAfa = | R30: =IF(AND(C30="",F30="",H30=""),"",SUM(AO30:AS30)) ->  | S30: / | T30: =COUNTA(AC30:AG30) -> 1 | W30: =IF(C30="","",C30) ->  | AB30: / | AC30: =IF(GV1L!C30="","",GV1L!C30) -> Herstellungswert | AO30: =IF(W30="","",IF(COUNTIF($AC29:$AC30,W30)>0,1/COUNTIF($W30,W30),IF(COUNTIF($AI30,W30)>0,0.5/COUNTIF($W30,W30),0))) ->  | AP30: =IF(X30="","",IF(X30=AD30,1,IF(X30=AJ30,0.5,0))) -> 
R31: =IF(AND(C31="",F31="",H31=""),"",SUM(AO31:AS31)) ->  | S31: / | T31: =COUNTA(AC31:AG31) -> 1 | W31: =IF(C31="","",C31) ->  | AB31: / | AC31: =IF(GV1L!C31="","",GV1L!C31) -> Nutzungsdauer | AO31: =IF(W31="","",IF(W31=AC31,1,IF(W31=AI31,0.5,0))) -> 
AO32: =IF(W32="","",IF(W32=AC32,1,IF(W32=#REF!,1,IF(W32=AI32,0.5,IF(W32=#REF!,0.5,0))))) ->  | AP32: =IF(X32="","",IF(X32=AD32,1,IF(X32=#REF!,1,IF(X32=AJ32,0.5,IF(X32=#REF!,0.5,0))))) ->  | AQ32: =IF(Y32="","",IF(Y32=AE32,1,IF(Y32=#REF!,1,IF(Y32=AK32,0.5,IF(Y32=#REF!,0.5,0))))) ->  | AR32: =IF(Z32="","",IF(Z32=AF32,1,IF(Z32=#REF!,1,IF(Z32=AL32,0.5,IF(Z32=#REF!,0.5,0))))) ->  | AS32: =IF(AA32="","",IF(AA32=AG32,1,IF(AA32=#REF!,1,IF(AA32=AM32,0.5,IF(AA32=#REF!,0.5,0))))) -> 
B33: jAfa = | R33: =IF(AND(C33="",F33="",H33=""),"",SUM(AO33:AS33)) ->  | S33: / | T33: =COUNTA(AC33:AG33) -> 1 | W33: =IF(C33="","",C33) ->  | AB33: / | AC33: =IF(GV1L!C33="","",GV1L!C33) -> 4304 | AO33: =IF(W33="","",IF(W33=AC33,1,IF(W33=AI33,0.5,0))) ->  | AP33: =IF(X33="","",IF(X33=AD33,1,IF(X33=AJ33,0.5,0))) -> 
R34: =IF(AND(C34="",F34="",H34=""),"",SUM(AO34:AS34)) ->  | S34: / | T34: =COUNTA(AC34:AG34) -> 1 | W34: =IF(C34="","",C34) ->  | AB34: / | AC34: =IF(GV1L!C34="","",GV1L!C34) -> 20 | AO34: =IF(W34="","",IF(W34=AC34,1,IF(W34=AI34,0.5,0))) -> 
B36: jAfa = | F36: € | H36: =IF(C28>=H11,"ACHTUNG: Keine Afa mehr!","") ->  | R36: =IF(AND(C36=""),"",SUM(AO36:AS36)) ->  | S36: / | T36: =COUNTA(AC36:AG36) -> 1 | W36: =IF(C36="","",C36) ->  | AB36: / | AC36: =IF(GV1L!C36="","",GV1L!C36) -> 215.2 | AH36: - | AI36: =IF(C36="","",C33/C34) ->  | AO36: =IF(W36="","",IF(W36=AC36,1,IF(W36=AI36,0.5,0))) ->  | AP36: =IF(X36="","",IF(X36=AD36,1,IF(X36=AJ36,0.5,0))) -> 
A38: 3. | B38: bAfa = | R38: =IF(AND(C38="",F38="",H38=""),"",SUM(AO38:AS38)) ->  | S38: / | T38: =COUNTA(AC38:AG38) -> 3 | W38: =IF(C38="","",C38) ->  | Y38: =IF(F38="","",F38) ->  | AA38: =IF(H38="","",H38) ->  | AB38: / | AC38: =IF(GV1L!C38="","",GV1L!C38) -> Alter | AE38: =IF(GV1L!F38="","",GV1L!F38) -> • | AG38: =IF(GV1L!H38="","",GV1L!H38) -> Jährliche Afa | AO38: =IF(W38="","",IF(COUNTIF($AC38:$AG38,W38)>0,1/COUNTIF($W38:$AA38,W38),IF(COUNTIF($AI38:$AM38,W38)>0,0.5/COUNTIF($W38:$AA38,W38),0))) ->  | AP38: =IF(X38="","",IF(COUNTIF($AC38:$AG38,X38)>0,1/COUNTIF($W38:$AA38,X38),IF(COUNTIF($AI38:$AM38,X38)>0,0.5/COUNTIF($W38:$AA38,X38),0))) -> 
B40: bAfa = | F40: =IF(F38="","",F38) ->  | R40: =IF(AND(C40="",F40="",H40=""),"",SUM(AO40:AS40)) ->  | S40: / | T40: =COUNTA(AC40:AG40) -> 2 | W40: =IF(C40="","",C40) ->  | AA40: =IF(H40="","",H40) ->  | AB40: / | AC40: =IF(GV1L!C40="","",GV1L!C40) -> 0 | AG40: =IF(GV1L!H40="","",GV1L!H40) -> 215.2 | AH40: - | AI40: =IF(C40="","",C36) ->  | AM40: =IF(H40="","",C28) ->  | AO40: =IF(W40="","",IF(COUNTIF($AC40:$AG40,W40)>0,1/COUNTIF($W40:$AA40,W40),IF(COUNTIF($AI40:$AM40,W40)>0,0.5/COUNTIF($W40:$AA40,W40),0))) ->  | AP40: =IF(X40="","",IF(COUNTIF($AC40:$AG40,X40)>0,1/COUNTIF($W40:$AA40,X40),IF(COUNTIF($AI40:$AM40,X40)>0,0.5/COUNTIF($W40:$AA40,X40),0))) -> 
B42: bAfa = | F42: € | R42: =IF(AND(C42=""),"",SUM(AO42:AS42)) ->  | S42: / | T42: =COUNTA(AC42:AG42) -> 1 | W42: =IF(C42="","",C42) ->  | AB42: / | AC42: =IF(GV1L!C42="","",GV1L!C42) -> 0 | AH42: - | AI42: =IF(C42="","",C40*H40) ->  | AO42: =IF(W42="","",IF(COUNTIF($AC42:$AG42,W42)>0,1/COUNTIF($W42:$AA42,W42),IF(COUNTIF($AI42:$AM42,W42)>0,0.5/COUNTIF($W42:$AA42,W42),0))) ->  | AP42: =IF(X42="","",IF(COUNTIF($AC42:$AG42,X42)>0,1/COUNTIF($W42:$AA42,X42),IF(COUNTIF($AI42:$AM42,X42)>0,0.5/COUNTIF($W42:$AA42,X42),0))) -> 
AC43: Anschaffungswert
A44: 4. | B44: ZW1.1. = | R44: =IF(AND(C44="",F44="",H44=""),"",SUM(AO44:AS44)) ->  | S44: / | T44: =COUNTA(AC44:AG44) -> 3 | W44: =IF(C44="","",C44) ->  | Y44: =IF(F44="","",F44) ->  | AA44: =IF(H44="","",H44) ->  | AB44: / | AC44: =IF(GV1L!C44="","",GV1L!C44) -> Herstellungswert | AE44: =IF(GV1L!F44="","",GV1L!F44) -> – | AG44: =IF(GV1L!H44="","",GV1L!H44) -> Bisherige Afa | AO44: =IF(W44="","",IF(COUNTIF($AC43:$AC44,W44)>0,1/COUNTIF($W44,W44),IF(COUNTIF($AI44,W44)>0,0.5/COUNTIF($W44,W44),0))) ->  | AP44: =IF(X44="","",IF(X44=AD44,1,IF(X44=AJ44,0.5,0))) -> 
B46: ZW1.1. = | F46: =IF(F44="","",F44) ->  | R46: =IF(AND(C46="",F46="",H46=""),"",SUM(AO46:AS46)) ->  | S46: / | T46: =COUNTA(AC46:AG46) -> 2 | W46: =IF(C46="","",C46) ->  | AA46: =IF(H46="","",H46) ->  | AB46: / | AC46: =IF(GV1L!C46="","",GV1L!C46) -> 4304 | AG46: =IF(GV1L!H46="","",GV1L!H46) -> 0 | AH46: - | AI46: =IF(C46="","",H9) ->  | AM46: =IF(H46="","",C42) ->  | AO46: =IF(W46="","",IF(W46=AC46,1,IF(W46=AI46,0.5,0))) -> 
B48: ZW1.1. = | F48: € | H48: =IF(C28>=H11,"Erinnerungswert!",IF(C48=H9,"ACHTUNG: Zeitwert 1.1. bleibt leer! "&DOLLAR(H9,2)&" kommt in die Spalte 'Zugang'","")) ->  | R48: =IF(AND(C48=""),"",SUM(AO48:AS48)) ->  | S48: / | T48: =COUNTA(AC48:AG48) -> 1 | W48: =IF(C48="","",C48) ->  | AB48: / | AC48: =IF(GV1L!C48="","",GV1L!C48) -> 4304 | AH48: - | AI48: =IF(C48="","",C46-H46) ->  | AO48: =IF(W48="","",IF(W48=AC48,1,IF(W48=AI48,0.5,0))) -> 
A50: 5. | B50: ZW31.12. = | R50: =IF(AND(C50="",F50="",H50=""),"",SUM(AO50:AS50)) ->  | S50: / | T50: =COUNTA(AC50:AG50) -> 3 | W50: =IF(C50="","",C50) ->  | Y50: =IF(F50="","",F50) ->  | AA50: =IF(H50="","",H50) ->  | AB50: / | AC50: =IF(GV1L!C50="","",GV1L!C50) -> Zeitwert 1.1. | AE50: =IF(GV1L!F50="","",GV1L!F50) -> – | AG50: =IF(GV1L!H50="","",GV1L!H50) -> Jährliche Afa | AO50: =IF(W50="","",IF(W50=AC50,1,IF(W50=AI50,0.5,0))) ->  | AP50: =IF(X50="","",IF(X50=AD50,1,IF(X50=AJ50,0.5,0))) -> 
B52: ZW31.12. = | F52: =IF(F50="","",F50) ->  | R52: =IF(AND(C52="",F52="",H52=""),"",SUM(AO52:AS52)) ->  | S52: / | T52: =COUNTA(AC52:AG52) -> 2 | W52: =IF(C52="","",C52) ->  | AA52: =IF(H52="","",H52) ->  | AB52: / | AC52: =IF(GV1L!C52="","",GV1L!C52) -> 4304 | AG52: =IF(GV1L!H52="","",GV1L!H52) -> 215.2 | AH52: - | AI52: =IF(C52="","",C48) ->  | AM52: =IF(AND(H52="",C36=""),"",W36) ->  | AO52: =IF(W52="","",IF(W52=AC52,1,IF(W52=AI52,0.5,0))) -> 
B54: ZW31.12. = | F54: € | H54: =IF(C54="","",IF(C48<=C36,"Erinnerungswert!","")) ->  | R54: =IF(AND(C54=""),"",SUM(AO54:AS54)) ->  | S54: / | T54: =COUNTA(AC54:AG54) -> 1 | W54: =IF(C54="","",C54) ->  | AB54: / | AC54: =IF(GV1L!C54="","",GV1L!C54) -> 4088.8 | AH54: - | AI54: =IF(C54="","",C52-H52) ->  | AO54: =IF(W54="","",IF(W54=AC54,1,IF(W54=AI54,0.5,0))) -> 
A56: Bezeichnung | C56: Baujahr | D56: Größe | E56: reduzierter | H56: Neuwert | I56: ND | J56: AfA | K56: Wert am | L56: Zugang | M56: Abgang | N56: AfA | O56: Wert am
D57: ha, lfm, m² | E57: Richtsatz | H57: in | I57: in | J57: in | K57: ="1.1."&Jahr!F4 -> 1.1. | L57: in | M57: in | N57: in | O57: ="31.12."&Jahr!F4 -> 31.12.
D58: m³, … | E58: je ha, … | H58: € | I58: Jahren | J58: €/Jahr | K58: € | L58: € | M58: € | N58: € | O58: €
A59: =IF(D1="","",D1) -> Rohrdrainage - Sumpfwiese | C59: =IF(C11="","",C11) -> 2021 | H59: =IF(H9="","",H9) -> 4304 | I59: =IF(H11="","",H11) -> 20 | J59: =IF(C36="","",C36) ->  | R59: =IF(AND(K59="",N59="",O59=""),"",SUM(AO59:AS59)) ->  | S59: / | T59: =COUNT(AC59:AG59) -> 3 | W59: =IF(AND(K59="",L59="",M59="",N59="",O59=""),"",IF(K59="","",K59)) ->  | X59: =IF(AND(K59="",L59="",M59="",N59="",O59=""),"",IF(L59="","",L59)) ->  | Y59: =IF(AND(K59="",L59="",M59="",N59="",O59=""),"",IF(M59="","",M59)) ->  | Z59: =IF(AND(K59="",L59="",M59="",N59="",O59=""),"",IF(N59="","",N59)) ->  | AA59: =IF(AND(K59="",L59="",M59="",N59="",O59=""),"",IF(O59="","",O59)) ->  | AB59: / | AC59: =IF(GV1L!K59="","-",GV1L!K59) -> - | AD59: =IF(GV1L!L59="","-",GV1L!L59) -> 4304 | AE59: =IF(GV1L!M59="","-",GV1L!M59) -> - | AF59: =IF(GV1L!N59="","-",GV1L!N59) -> 215.2 | AG59: =IF(GV1L!O59="","-",GV1L!O59) -> 4088.8 | AH59: - | AI59: =IF(C48="","",IF(W28=0,"",C48)) ->  | AJ59: =IF(C48="","",IF(W28<>0,"",C48)) ->  | AK59: - | AL59: =IF(C36="","",C36) ->  | AM59: =IF(C54="","",C54) ->  | AO59: =IF(W59="","",IF(AND(W59<>"",OR(AC59="",AC59="-")),-1,IF(W59=AC59,1,IF(W59=AI59,0.5,0)))) ->  | AP59: =IF(X59="","",IF(AND(X59<>"",OR(AD59="",AD59="-")),-1,IF(X59=AD59,1,IF(X59=AJ59,0.5,0)))) -> 
A60: Summe | K60: =IF(SUM(K59)=0,"",SUM(K59)) ->  | L60: =IF(SUM(L59)=0,"",SUM(L59)) ->  | M60: =IF(SUM(M59)=0,"",SUM(M59)) ->  | N60: =IF(SUM(N59)=0,"",SUM(N59)) ->  | O60: =IF(SUM(O59)=0,"",SUM(O59)) ->  | W60: Korrektur trotz "Nicht anzeigen" anzeigen! | AF60: "Anschaffungswert": | AG60: =COUNTIF(AC12:AG59,"Anschaffungswert") -> 2
Q61: Gsamtpunkte: | R61: =SUM(R12:R60) -> 0 | S61: / | T61: =SUM(T12:T60) -> 32 | W61: =COUNTBLANK(W12:AA59) -> 239 | AC61: =SUM(COUNTBLANK(AC12:AG59),AG60:AG61) -> 207 | AF61: "-": | AG61: =COUNTIF(AC12:AG59,"-") -> 2

Sheet GV1L
A1: Beispiel | C1: =IF('GV1'!C1="","",'GV1'!C1) -> 1 | D1: =IF('GV1'!D1="","",'GV1'!D1) -> Rohrdrainage - Sumpfwiese
A3: =IF('GV1'!A3="","",'GV1'!A3) -> ■ Herstellungswert bekannt
A4: =IF('GV1'!A4="","",'GV1'!A4) -> ■ Errichtung und Inbetriebnahme im Aufzeichnungsjahr
A5: =IF('GV1'!A5="","",'GV1'!A5) -> ■ kein Investitionszuschuss
A7: =IF('GV1'!A7="","",'GV1'!A7) -> Der Neuwert (Herstellungswert) für die im ersten Halbjahr 2021 errichtete und in Betrieb genommene 'ROHRDRAINAGE - SUMPFWIESE' beträgt laut Rechnung € 4 304,00. Die Nutzungsdauer wird mit 20 Jahren festgelegt. | B7: =IF('GV1'!B7="","",'GV1'!B7) ->  | C7: =IF('GV1'!C7="","",'GV1'!C7) ->  | D7: =IF('GV1'!D7="","",'GV1'!D7) ->  | E7: =IF('GV1'!E7="","",'GV1'!E7) ->  | F7: =IF('GV1'!F7="","",'GV1'!F7) ->  | G7: =IF('GV1'!G7="","",'GV1'!G7) ->  | H7: =IF('GV1'!H7="","",'GV1'!H7) ->  | I7: =IF('GV1'!I7="","",'GV1'!I7) ->  | J7: =IF('GV1'!J7="","",'GV1'!J7) ->  | K7: =IF('GV1'!K7="","",'GV1'!K7) ->  | L7: =IF('GV1'!L7="","",'GV1'!L7) ->  | M7: =IF('GV1'!M7="","",'GV1'!M7) ->  | N7: =IF('GV1'!N7="","",'GV1'!N7) ->  | O7: =IF('GV1'!O7="","",'GV1'!O7) -> 
B9: =IF('GV1'!B9="","",'GV1'!B9) -> Heuer = | C9: =IF('GV1'!C9="","",'GV1'!C9) -> 2021 | G9: =IF('GV1'!G9="","",'GV1'!G9) -> Anschaffungswert = | H9: =IF('GV1'!H9="","",'GV1'!H9) -> 4304 | I9: =IF('GV1'!I9="","",'GV1'!I9) -> €
B11: =IF('GV1'!B11="","",'GV1'!B11) -> Anschaffungsjahr = | C11: =IF('GV1'!C11="","",'GV1'!C11) -> 2021 | G11: =IF('GV1'!G11="","",'GV1'!G11) -> Nutzungsdauer = | H11: =IF('GV1'!H11="","",'GV1'!H11) -> 20 | I11: =IF('GV1'!I11="","",'GV1'!I11) -> Jahre
A24: 1. | B24: Alter = | C24: Heuer | F24: – | H24: Anschaffungsjahr | K24: jAfa ………. Jährliche Afa (Abschreibung)
B26: Alter = | C26: =C9 -> 2021 | F26: =IF(F24="","",F24) -> – | H26: =C11 -> 2021 | K26: bAfa ………. Bisherige Afa (Abschreibung)
F27: ,
B28: Alter = | C28: =C26-H26 -> 0 | F28: Jahre | K28: ZW1.1. ………. Zeitwert am 1.1.
K29: ZW31.12. ………. Zeitwert am 31.12.
A30: 2. | B30: jAfa = | C30: Herstellungswert
C31: Nutzungsdauer
B33: jAfa = | C33: =H9 -> 4304
C34: =H11 -> 20
B36: jAfa = | C36: =C33/C34 -> 215.2 | F36: € | H36: =IF(C28>=H11,"ACHTUNG: Keine Afa mehr!","") -> 
A38: 3. | B38: bAfa = | C38: Alter | F38: • | H38: Jährliche Afa
B40: bAfa = | C40: =C28 -> 0 | F40: =IF(F38="","",F38) -> • | H40: =C36 -> 215.2
B42: bAfa = | C42: =C40*H40 -> 0 | F42: €
A44: 4. | B44: ZW1.1. = | C44: Herstellungswert | F44: – | H44: Bisherige Afa
B46: ZW1.1. = | C46: =H9 -> 4304 | F46: =IF(F44="","",F44) -> – | H46: =C42 -> 0
B48: ZW1.1. = | C48: =IF(C28>=H11,Jahr!D8,C46-H46) -> 4304 | F48: € | H48: =IF(C28>=H11,"Erinnerungswert!",IF(C48=H9,"ACHTUNG: Zeitwert 1.1. bleibt leer! "&DOLLAR(H9,2)&" kommt in die Spalte 'Zugang'","")) -> ACHTUNG: Zeitwert 1.1. bleibt leer! € 4 304,00 kommt in die Spalte 'Zugang'
A50: 5. | B50: ZW31.12. = | C50: Zeitwert 1.1. | F50: – | H50: Jährliche Afa
B52: ZW31.12. = | C52: =C48 -> 4304 | F52: =IF(F50="","",F50) -> – | H52: =IF(C28>=H11,0,C36) -> 215.2
B54: ZW31.12. = | C54: =IF(C48<=C36,Jahr!D8,C52-H52) -> 4088.8 | F54: € | H54: =IF(C48<=C36,"Erinnerungswert!","") -> 
A56: Bezeichnung | C56: Baujahr | D56: Größe | E56: reduzierter | H56: Neuwert | I56: ND | J56: AfA | K56: Wert am | L56: Zugang | M56: Abgang | N56: AfA | O56: Wert am
D57: ha, lfm, m² | E57: Richtsatz | H57: in | I57: in | J57: in | K57: ="1.1."&Jahr!F4 -> 1.1. | L57: in | M57: in | N57: in | O57: ="31.12."&Jahr!F4 -> 31.12.
D58: m³, … | E58: je ha, … | H58: € | I58: Jahren | J58: €/Jahr | K58: € | L58: € | M58: € | N58: € | O58: €
A59: =IF(D1="","",D1) -> Rohrdrainage - Sumpfwiese | C59: =IF(C11="","",C11) -> 2021 | H59: =IF(H9="","",H9) -> 4304 | I59: =IF(H11="","",H11) -> 20 | J59: =IF(C36="","",C36) -> 215.2 | K59: =IF(H48="ACHTUNG: Zeitwert 1.1. bleibt leer! "&DOLLAR(H9,2)&" kommt in die Spalte 'Zugang'","",IF(C48="","",C48)) ->  | L59: =IF(H48="ACHTUNG: Zeitwert 1.1. bleibt leer! "&DOLLAR(H9,2)&" kommt in die Spalte 'Zugang'",H9,"") -> 4304 | N59: =IF(K59=Jahr!D8,"",J59) -> 215.2 | O59: =IF(C54="","",C54) -> 4088.8
A60: Summe | K60: =IF(SUM(K59)=0,"",SUM(K59)) ->  | L60: =IF(SUM(L59)=0,"",SUM(L59)) -> 4304 | M60: =IF(SUM(M59)=0,"",SUM(M59)) ->  | N60: =IF(SUM(N59)=0,"",SUM(N59)) -> 215.2 | O60: =IF(SUM(O59)=0,"",SUM(O59)) -> 4088.8

Sheet GV2
A1: Beispiel | C1: 2 | D1: Maulwurfsdrainage - Hofacker
A3: ■ Herstellungswert bekannt
A4: ■ Errichtungsjahr bekannt
A5: ■ kein Investitionszuschuss | S5: Punkte
A7: ="Der Neuwert (Herstellungswert) für die im ersten Halbjahr "&C11&" errichtete und in Betrieb genommene '"&UPPER(D1)&"' beträgt laut Rechnung "&DOLLAR(H9,2)&". Die Nutzungsdauer wird mit "&H11&" Jahren festgelegt." -> Der Neuwert (Herstellungswert) für die im ersten Halbjahr 2012 errichtete und in Betrieb genommene 'MAULWURFSDRAINAGE - HOFACKER' beträgt laut Rechnung € 11 760,00. Die Nutzungsdauer wird mit 10 Jahren festgelegt. | R7: Anzeigen!
B9: Heuer = | C9: =IF(Jahr!D4="","",Jahr!D4) -> 2021 | G9: Anschaffungswert = | H9: 11760 | I9: €
B11: Anschaffungsjahr = | C11: =C9-H11+ROUND(H11/8,0) -> 2012 | G11: Nutzungsdauer = | H11: 10 | I11: Jahre
R12: PKT | S12: / | T12: GES | W12: Ergebnisse | AC12: Hilfe | AI12: Formelprüfung | AO12: Punkte
A24: 1. | B24: Alter = | K24: jAfa ………. Jährliche Afa (Abschreibung) | R24: =IF(AND(C24="",F24="",H24=""),"",SUM(AO24:AS24)) ->  | S24: / | T24: =COUNTA(AC24:AG24) -> 3 | W24: =IF(C24="","",C24) ->  | Y24: =IF(F24="","",F24) ->  | AA24: =IF(H24="","",H24) ->  | AB24: / | AC24: =IF(GV2L!C24="","",GV2L!C24) -> Heuer | AE24: =IF(GV2L!F24="","",GV2L!F24) -> – | AG24: =IF(GV2L!H24="","",GV2L!H24) -> Anschaffungsjahr | AO24: =IF(W24="","",IF(W24=AC24,1,IF(W24=AI24,0.5,0))) ->  | AP24: =IF(X24="","",IF(X24=AD24,1,IF(X24=AJ24,0.5,0))) -> 
B26: Alter = | F26: =IF(F24="","",F24) ->  | K26: bAfa ………. Bisherige Afa (Abschreibung) | R26: =IF(AND(C26="",F26="",H26=""),"",SUM(AO26:AS26)) ->  | S26: / | T26: =COUNTA(AC26:AG26) -> 2 | W26: =IF(C26="","",C26) ->  | AA26: =IF(H26="","",H26) ->  | AB26: / | AC26: =IF(GV2L!C26="","",GV2L!C26) -> 2021 | AG26: =IF(GV2L!H26="","",GV2L!H26) -> 2012 | AO26: =IF(W26="","",IF(W26=AC26,1,IF(W26=AI26,0.5,0))) -> 
F27: ,
B28: Alter = | F28: Jahre | K28: ZW1.1. ………. Zeitwert am 1.1. | R28: =IF(AND(C28=""),"",SUM(AO28:AS28)) ->  | S28: / | T28: =COUNTA(AC28:AG28) -> 1 | W28: =IF(C28="","",C28) ->  | AB28: / | AC28: =IF(GV2L!C28="","",GV2L!C28) -> 9 | AH28: - | AI28: =IF(C28="","",C26-H26) ->  | AO28: =IF(W28="","",IF(W28=AC28,1,IF(W28=AI28,0.5,0))) -> 
K29: ZW31.12. ………. Zeitwert am 31.12. | AC29: Anschaffungswert
A30: 2. | B30: jAfa = | R30: =IF(AND(C30="",F30="",H30=""),"",SUM(AO30:AS30)) ->  | S30: / | T30: =COUNTA(AC30:AG30) -> 1 | W30: =IF(C30="","",C30) ->  | AB30: / | AC30: =IF(GV2L!C30="","",GV2L!C30) -> Herstellungswert | AO30: =IF(W30="","",IF(COUNTIF($AC29:$AC30,W30)>0,1/COUNTIF($W30,W30),IF(COUNTIF($AI30,W30)>0,0.5/COUNTIF($W30,W30),0))) ->  | AP30: =IF(X30="","",IF(X30=AD30,1,IF(X30=AJ30,0.5,0))) -> 
R31: =IF(AND(C31="",F31="",H31=""),"",SUM(AO31:AS31)) ->  | S31: / | T31: =COUNTA(AC31:AG31) -> 1 | W31: =IF(C31="","",C31) ->  | AB31: / | AC31: =IF(GV2L!C31="","",GV2L!C31) -> Nutzungsdauer | AO31: =IF(W31="","",IF(W31=AC31,1,IF(W31=AI31,0.5,0))) -> 
AO32: =IF(W32="","",IF(W32=AC32,1,IF(W32=#REF!,1,IF(W32=AI32,0.5,IF(W32=#REF!,0.5,0))))) ->  | AP32: =IF(X32="","",IF(X32=AD32,1,IF(X32=#REF!,1,IF(X32=AJ32,0.5,IF(X32=#REF!,0.5,0))))) ->  | AQ32: =IF(Y32="","",IF(Y32=AE32,1,IF(Y32=#REF!,1,IF(Y32=AK32,0.5,IF(Y32=#REF!,0.5,0))))) ->  | AR32: =IF(Z32="","",IF(Z32=AF32,1,IF(Z32=#REF!,1,IF(Z32=AL32,0.5,IF(Z32=#REF!,0.5,0))))) ->  | AS32: =IF(AA32="","",IF(AA32=AG32,1,IF(AA32=#REF!,1,IF(AA32=AM32,0.5,IF(AA32=#REF!,0.5,0))))) -> 
B33: jAfa = | R33: =IF(AND(C33="",F33="",H33=""),"",SUM(AO33:AS33)) ->  | S33: / | T33: =COUNTA(AC33:AG33) -> 1 | W33: =IF(C33="","",C33) ->  | AB33: / | AC33: =IF(GV2L!C33="","",GV2L!C33) -> 11760 | AO33: =IF(W33="","",IF(W33=AC33,1,IF(W33=AI33,0.5,0))) ->  | AP33: =IF(X33="","",IF(X33=AD33,1,IF(X33=AJ33,0.5,0))) -> 
R34: =IF(AND(C34="",F34="",H34=""),"",SUM(AO34:AS34)) ->  | S34: / | T34: =COUNTA(AC34:AG34) -> 1 | W34: =IF(C34="","",C34) ->  | AB34: / | AC34: =IF(GV2L!C34="","",GV2L!C34) -> 10 | AO34: =IF(W34="","",IF(W34=AC34,1,IF(W34=AI34,0.5,0))) -> 
B36: jAfa = | F36: € | H36: =IF(C28>=H11,"ACHTUNG: Keine Afa mehr!","") ->  | R36: =IF(AND(C36=""),"",SUM(AO36:AS36)) ->  | S36: / | T36: =COUNTA(AC36:AG36) -> 1 | W36: =IF(C36="","",C36) ->  | AB36: / | AC36: =IF(GV2L!C36="","",GV2L!C36) -> 1176 | AH36: - | AI36: =IF(C36="","",C33/C34) ->  | AO36: =IF(W36="","",IF(W36=AC36,1,IF(W36=AI36,0.5,0))) ->  | AP36: =IF(X36="","",IF(X36=AD36,1,IF(X36=AJ36,0.5,0))) -> 
A38: 3. | B38: bAfa = | R38: =IF(AND(C38="",F38="",H38=""),"",SUM(AO38:AS38)) ->  | S38: / | T38: =COUNTA(AC38:AG38) -> 3 | W38: =IF(C38="","",C38) ->  | Y38: =IF(F38="","",F38) ->  | AA38: =IF(H38="","",H38) ->  | AB38: / | AC38: =IF(GV2L!C38="","",GV2L!C38) -> Alter | AE38: =IF(GV2L!F38="","",GV2L!F38) -> • | AG38: =IF(GV2L!H38="","",GV2L!H38) -> Jährliche Afa | AO38: =IF(W38="","",IF(COUNTIF($AC38:$AG38,W38)>0,1/COUNTIF($W38:$AA38,W38),IF(COUNTIF($AI38:$AM38,W38)>0,0.5/COUNTIF($W38:$AA38,W38),0))) ->  | AP38: =IF(X38="","",IF(COUNTIF($AC38:$AG38,X38)>0,1/COUNTIF($W38:$AA38,X38),IF(COUNTIF($AI38:$AM38,X38)>0,0.5/COUNTIF($W38:$AA38,X38),0))) -> 
B40: bAfa = | F40: =IF(F38="","",F38) ->  | R40: =IF(AND(C40="",F40="",H40=""),"",SUM(AO40:AS40)) ->  | S40: / | T40: =COUNTA(AC40:AG40) -> 2 | W40: =IF(C40="","",C40) ->  | AA40: =IF(H40="","",H40) ->  | AB40: / | AC40: =IF(GV2L!C40="","",GV2L!C40) -> 9 | AG40: =IF(GV2L!H40="","",GV2L!H40) -> 1176 | AH40: - | AI40: =IF(C40="","",C36) ->  | AM40: =IF(H40="","",C28) ->  | AO40: =IF(W40="","",IF(COUNTIF($AC40:$AG40,W40)>0,1/COUNTIF($W40:$AA40,W40),IF(COUNTIF($AI40:$AM40,W40)>0,0.5/COUNTIF($W40:$AA40,W40),0))) ->  | AP40: =IF(X40="","",IF(COUNTIF($AC40:$AG40,X40)>0,1/COUNTIF($W40:$AA40,X40),IF(COUNTIF($AI40:$AM40,X40)>0,0.5/COUNTIF($W40:$AA40,X40),0))) -> 
B42: bAfa = | F42: € | R42: =IF(AND(C42=""),"",SUM(AO42:AS42)) ->  | S42: / | T42: =COUNTA(AC42:AG42) -> 1 | W42: =IF(C42="","",C42) ->  | AB42: / | AC42: =IF(GV2L!C42="","",GV2L!C42) -> 10584 | AH42: - | AI42: =IF(C42="","",C40*H40) ->  | AO42: =IF(W42="","",IF(COUNTIF($AC42:$AG42,W42)>0,1/COUNTIF($W42:$AA42,W42),IF(COUNTIF($AI42:$AM42,W42)>0,0.5/COUNTIF($W42:$AA42,W42),0))) ->  | AP42: =IF(X42="","",IF(COUNTIF($AC42:$AG42,X42)>0,1/COUNTIF($W42:$AA42,X42),IF(COUNTIF($AI42:$AM42,X42)>0,0.5/COUNTIF($W42:$AA42,X42),0))) -> 
AC43: Anschaffungswert
A44: 4. | B44: ZW1.1. = | R44: =IF(AND(C44="",F44="",H44=""),"",SUM(AO44:AS44)) ->  | S44: / | T44: =COUNTA(AC44:AG44) -> 3 | W44: =IF(C44="","",C44) ->  | Y44: =IF(F44="","",F44) ->  | AA44: =IF(H44="","",H44) ->  | AB44: / | AC44: =IF(GV2L!C44="","",GV2L!C44) -> Herstellungswert | AE44: =IF(GV2L!F44="","",GV2L!F44) -> – | AG44: =IF(GV2L!H44="","",GV2L!H44) -> Bisherige Afa | AO44: =IF(W44="","",IF(COUNTIF($AC43:$AC44,W44)>0,1/COUNTIF($W44,W44),IF(COUNTIF($AI44,W44)>0,0.5/COUNTIF($W44,W44),0))) ->  | AP44: =IF(X44="","",IF(X44=AD44,1,IF(X44=AJ44,0.5,0))) -> 
B46: ZW1.1. = | F46: =IF(F44="","",F44) ->  | R46: =IF(AND(C46="",F46="",H46=""),"",SUM(AO46:AS46)) ->  | S46: / | T46: =COUNTA(AC46:AG46) -> 2 | W46: =IF(C46="","",C46) ->  | AA46: =IF(H46="","",H46) ->  | AB46: / | AC46: =IF(GV2L!C46="","",GV2L!C46) -> 11760 | AG46: =IF(GV2L!H46="","",GV2L!H46) -> 10584 | AH46: - | AI46: =IF(C46="","",H9) ->  | AM46: =IF(H46="","",C42) ->  | AO46: =IF(W46="","",IF(W46=AC46,1,IF(W46=AI46,0.5,0))) -> 
B48: ZW1.1. = | F48: € | H48: =IF(C28>=H11,"Erinnerungswert!",IF(C48=H9,"ACHTUNG: Zeitwert 1.1. bleibt leer! "&DOLLAR(H9,2)&" kommt in die Spalte 'Zugang'","")) ->  | R48: =IF(AND(C48=""),"",SUM(AO48:AS48)) ->  | S48: / | T48: =COUNTA(AC48:AG48) -> 1 | W48: =IF(C48="","",C48) ->  | AB48: / | AC48: =IF(GV2L!C48="","",GV2L!C48) -> 1176 | AH48: - | AI48: =IF(C48="","",C46-H46) ->  | AO48: =IF(W48="","",IF(W48=AC48,1,IF(W48=AI48,0.5,0))) -> 
A50: 5. | B50: ZW31.12. = | R50: =IF(AND(C50="",F50="",H50=""),"",SUM(AO50:AS50)) ->  | S50: / | T50: =COUNTA(AC50:AG50) -> 3 | W50: =IF(C50="","",C50) ->  | Y50: =IF(F50="","",F50) ->  | AA50: =IF(H50="","",H50) ->  | AB50: / | AC50: =IF(GV2L!C50="","",GV2L!C50) -> Zeitwert 1.1. | AE50: =IF(GV2L!F50="","",GV2L!F50) -> – | AG50: =IF(GV2L!H50="","",GV2L!H50) -> Jährliche Afa | AO50: =IF(W50="","",IF(W50=AC50,1,IF(W50=AI50,0.5,0))) ->  | AP50: =IF(X50="","",IF(X50=AD50,1,IF(X50=AJ50,0.5,0))) -> 
B52: ZW31.12. = | F52: =IF(F50="","",F50) ->  | R52: =IF(AND(C52="",F52="",H52=""),"",SUM(AO52:AS52)) ->  | S52: / | T52: =COUNTA(AC52:AG52) -> 2 | W52: =IF(C52="","",C52) ->  | AA52: =IF(H52="","",H52) ->  | AB52: / | AC52: =IF(GV2L!C52="","",GV2L!C52) -> 1176 | AG52: =IF(GV2L!H52="","",GV2L!H52) -> 1176 | AH52: - | AI52: =IF(C52="","",C48) ->  | AM52: =IF(AND(H52="",C36=""),"",W36) ->  | AO52: =IF(W52="","",IF(W52=AC52,1,IF(W52=AI52,0.5,0))) -> 
B54: ZW31.12. = | F54: € | H54: =IF(C54="","",IF(C48<=C36,"Erinnerungswert!","")) ->  | R54: =IF(AND(C54=""),"",SUM(AO54:AS54)) ->  | S54: / | T54: =COUNTA(AC54:AG54) -> 1 | W54: =IF(C54="","",C54) ->  | AB54: / | AC54: =IF(GV2L!C54="","",GV2L!C54) -> 1 | AH54: - | AI54: =IF(C54="","",C52-H52) ->  | AO54: =IF(W54="","",IF(W54=AC54,1,IF(W54=AI54,0.5,0))) -> 
A56: Bezeichnung | C56: Baujahr | D56: Größe | E56: reduzierter | H56: Neuwert | I56: ND | J56: AfA | K56: Wert am | L56: Zugang | M56: Abgang | N56: AfA | O56: Wert am
D57: ha, lfm, m² | E57: Richtsatz | H57: in | I57: in | J57: in | K57: ="1.1."&Jahr!F4 -> 1.1. | L57: in | M57: in | N57: in | O57: ="31.12."&Jahr!F4 -> 31.12.
D58: m³, … | E58: je ha, … | H58: € | I58: Jahren | J58: €/Jahr | K58: € | L58: € | M58: € | N58: € | O58: €
A59: =IF(D1="","",D1) -> Maulwurfsdrainage - Hofacker | C59: =IF(C11="","",C11) -> 2012 | H59: =IF(H9="","",H9) -> 11760 | I59: =IF(H11="","",H11) -> 10 | J59: =IF(C36="","",C36) ->  | R59: =IF(AND(K59="",N59="",O59=""),"",SUM(AO59:AS59)) ->  | S59: / | T59: =COUNT(AC59:AG59) -> 3 | W59: =IF(AND(K59="",L59="",M59="",N59="",O59=""),"",IF(K59="","",K59)) ->  | X59: =IF(AND(K59="",L59="",M59="",N59="",O59=""),"",IF(L59="","",L59)) ->  | Y59: =IF(AND(K59="",L59="",M59="",N59="",O59=""),"",IF(M59="","",M59)) ->  | Z59: =IF(AND(K59="",L59="",M59="",N59="",O59=""),"",IF(N59="","",N59)) ->  | AA59: =IF(AND(K59="",L59="",M59="",N59="",O59=""),"",IF(O59="","",O59)) ->  | AB59: / | AC59: =IF(GV2L!K59="","-",GV2L!K59) -> 1176 | AD59: =IF(GV2L!L59="","-",GV2L!L59) -> - | AE59: =IF(GV2L!M59="","-",GV2L!M59) -> - | AF59: =IF(GV2L!N59="","-",GV2L!N59) -> 1176 | AG59: =IF(GV2L!O59="","-",GV2L!O59) -> 1 | AH59: - | AI59: =IF(C48="","",IF(W28=0,"",C48)) ->  | AJ59: =IF(C48="","",IF(W28<>0,"",C48)) ->  | AK59: - | AL59: =IF(C36="","",C36) ->  | AM59: =IF(C54="","",C54) ->  | AO59: =IF(W59="","",IF(AND(W59<>"",OR(AC59="",AC59="-")),-1,IF(W59=AC59,1,IF(W59=AI59,0.5,0)))) ->  | AP59: =IF(X59="","",IF(AND(X59<>"",OR(AD59="",AD59="-")),-1,IF(X59=AD59,1,IF(X59=AJ59,0.5,0)))) -> 
A60: Summe | K60: =IF(SUM(K59)=0,"",SUM(K59)) ->  | L60: =IF(SUM(L59)=0,"",SUM(L59)) ->  | M60: =IF(SUM(M59)=0,"",SUM(M59)) ->  | N60: =IF(SUM(N59)=0,"",SUM(N59)) ->  | O60: =IF(SUM(O59)=0,"",SUM(O59)) ->  | W60: Korrektur trotz "Nicht anzeigen" anzeigen! | AF60: "Anschaffungswert": | AG60: =COUNTIF(AC12:AG59,"Anschaffungswert") -> 2
Q61: Gsamtpunkte: | R61: =SUM(R12:R60) -> 0 | S61: / | T61: =SUM(T12:T60) -> 32 | W61: =COUNTBLANK(W12:AA59) -> 239 | AC61: =SUM(COUNTBLANK(AC12:AG59),AG60:AG61) -> 207 | AF61: "-": | AG61: =COUNTIF(AC12:AG59,"-") -> 2

Sheet GV2L
A1: Beispiel | C1: =IF('GV2'!C1="","",'GV2'!C1) -> 2 | D1: =IF('GV2'!D1="","",'GV2'!D1) -> Maulwurfsdrainage - Hofacker
A3: =IF('GV2'!A3="","",'GV2'!A3) -> ■ Herstellungswert bekannt
A4: =IF('GV2'!A4="","",'GV2'!A4) -> ■ Errichtungsjahr bekannt
A5: =IF('GV2'!A5="","",'GV2'!A5) -> ■ kein Investitionszuschuss
A7: =IF('GV2'!A7="","",'GV2'!A7) -> Der Neuwert (Herstellungswert) für die im ersten Halbjahr 2012 errichtete und in Betrieb genommene 'MAULWURFSDRAINAGE - HOFACKER' beträgt laut Rechnung € 11 760,00. Die Nutzungsdauer wird mit 10 Jahren festgelegt. | B7: =IF('GV2'!B7="","",'GV2'!B7) ->  | C7: =IF('GV2'!C7="","",'GV2'!C7) ->  | D7: =IF('GV2'!D7="","",'GV2'!D7) ->  | E7: =IF('GV2'!E7="","",'GV2'!E7) ->  | F7: =IF('GV2'!F7="","",'GV2'!F7) ->  | G7: =IF('GV2'!G7="","",'GV2'!G7) ->  | H7: =IF('GV2'!H7="","",'GV2'!H7) ->  | I7: =IF('GV2'!I7="","",'GV2'!I7) ->  | J7: =IF('GV2'!J7="","",'GV2'!J7) ->  | K7: =IF('GV2'!K7="","",'GV2'!K7) ->  | L7: =IF('GV2'!L7="","",'GV2'!L7) ->  | M7: =IF('GV2'!M7="","",'GV2'!M7) ->  | N7: =IF('GV2'!N7="","",'GV2'!N7) ->  | O7: =IF('GV2'!O7="","",'GV2'!O7) -> 
B9: =IF('GV2'!B9="","",'GV2'!B9) -> Heuer = | C9: =IF('GV2'!C9="","",'GV2'!C9) -> 2021 | G9: =IF('GV2'!G9="","",'GV2'!G9) -> Anschaffungswert = | H9: =IF('GV2'!H9="","",'GV2'!H9) -> 11760 | I9: =IF('GV2'!I9="","",'GV2'!I9) -> €
B11: =IF('GV2'!B11="","",'GV2'!B11) -> Anschaffungsjahr = | C11: =IF('GV2'!C11="","",'GV2'!C11) -> 2012 | G11: =IF('GV2'!G11="","",'GV2'!G11) -> Nutzungsdauer = | H11: =IF('GV2'!H11="","",'GV2'!H11) -> 10 | I11: =IF('GV2'!I11="","",'GV2'!I11) -> Jahre
A24: 1. | B24: Alter = | C24: Heuer | F24: – | H24: Anschaffungsjahr | K24: jAfa ………. Jährliche Afa (Abschreibung)
B26: Alter = | C26: =C9 -> 2021 | F26: =IF(F24="","",F24) -> – | H26: =C11 -> 2012 | K26: bAfa ………. Bisherige Afa (Abschreibung)
F27: ,
B28: Alter = | C28: =C26-H26 -> 9 | F28: Jahre | K28: ZW1.1. ………. Zeitwert am 1.1.
K29: ZW31.12. ………. Zeitwert am 31.12.
A30: 2. | B30: jAfa = | C30: Herstellungswert
C31: Nutzungsdauer
B33: jAfa = | C33: =H9 -> 11760
C34: =H11 -> 10
B36: jAfa = | C36: =C33/C34 -> 1176 | F36: € | H36: =IF(C28>=H11,"ACHTUNG: Keine Afa mehr!","") -> 
A38: 3. | B38: bAfa = | C38: Alter | F38: • | H38: Jährliche Afa
B40: bAfa = | C40: =C28 -> 9 | F40: =IF(F38="","",F38) -> • | H40: =C36 -> 1176
B42: bAfa = | C42: =C40*H40 -> 10584 | F42: €
A44: 4. | B44: ZW1.1. = | C44: Herstellungswert | F44: – | H44: Bisherige Afa
B46: ZW1.1. = | C46: =H9 -> 11760 | F46: =IF(F44="","",F44) -> – | H46: =C42 -> 10584
B48: ZW1.1. = | C48: =IF(C28>=H11,Jahr!D8,C46-H46) -> 1176 | F48: € | H48: =IF(C28>=H11,"Erinnerungswert!",IF(C48=H9,"ACHTUNG: Zeitwert 1.1. bleibt leer! "&DOLLAR(H9,2)&" kommt in die Spalte 'Zugang'","")) -> 
A50: 5. | B50: ZW31.12. = | C50: Zeitwert 1.1. | F50: – | H50: Jährliche Afa
B52: ZW31.12. = | C52: =C48 -> 1176 | F52: =IF(F50="","",F50) -> – | H52: =IF(C28>=H11,0,C36) -> 1176
B54: ZW31.12. = | C54: =IF(C48<=C36,Jahr!D8,C52-H52) -> 1 | F54: € | H54: =IF(C48<=C36,"Erinnerungswert!","") -> Erinnerungswert!
A56: Bezeichnung | C56: Baujahr | D56: Größe | E56: reduzierter | H56: Neuwert | I56: ND | J56: AfA | K56: Wert am | L56: Zugang | M56: Abgang | N56: AfA | O56: Wert am
D57: ha, lfm, m² | E57: Richtsatz | H57: in | I57: in | J57: in | K57: ="1.1."&Jahr!F4 -> 1.1. | L57: in | M57: in | N57: in | O57: ="31.12."&Jahr!F4 -> 31.12.
D58: m³, … | E58: je ha, … | H58: € | I58: Jahren | J58: €/Jahr | K58: € | L58: € | M58: € | N58: € | O58: €
A59: =IF(D1="","",D1) -> Maulwurfsdrainage - Hofacker | C59: =IF(C11="","",C11) -> 2012 | H59: =IF(H9="","",H9) -> 11760 | I59: =IF(H11="","",H11) -> 10 | J59: =IF(C36="","",C36) -> 1176 | K59: =IF(H48="ACHTUNG: Zeitwert 1.1. bleibt leer! "&DOLLAR(H9,2)&" kommt in die Spalte 'Zugang'","",IF(C48="","",C48)) -> 1176 | L59: =IF(H48="ACHTUNG: Zeitwert 1.1. bleibt leer! "&DOLLAR(H9,2)&" kommt in die Spalte 'Zugang'",H9,"") ->  | N59: =IF(K59=Jahr!D8,"",J59) -> 1176 | O59: =IF(C54="","",C54) -> 1
A60: Summe | K60: =IF(SUM(K59)=0,"",SUM(K59)) -> 1176 | L60: =IF(SUM(L59)=0,"",SUM(L59)) ->  | M60: =IF(SUM(M59)=0,"",SUM(M59)) ->  | N60: =IF(SUM(N59)=0,"",SUM(N59)) -> 1176 | O60: =IF(SUM(O59)=0,"",SUM(O59)) -> 1

Sheet GV3
A1: Beispiel | C1: 3 | D1: Drainage
A3: ■ Herstellungswert unbekannt
A4: ■ Errichtungsjahr bekannt
A5: ■ kein Investitionszuschuss | S5: Punkte
A7: ="Der Neuwert (Herstellungswert) für die im ersten Halbjahr "&C11&" errichtete und in Betrieb genommene '"&UPPER(D1)&"' ist nicht bekannt. Die Größe der "&D1&" beträgt "&L9&M9&" und der Baukostenrichtsatz liegt laut Tabelle bei "&DOLLAR(L11,2)&". Die Nutzungsdauer wird mit "&H11&" Jahren festgelegt." -> Der Neuwert (Herstellungswert) für die im ersten Halbjahr 2010 errichtete und in Betrieb genommene 'DRAINAGE' ist nicht bekannt. Die Größe der Drainage beträgt 360 lfm und der Baukostenrichtsatz liegt laut Tabelle bei € 62,00. Die Nutzungsdauer wird mit 33 Jahren festgelegt. | R7: Anzeigen!
B9: Heuer = | C9: =IF(Jahr!D4="","",Jahr!D4) -> 2021 | K9: Größe = | L9: 360 | M9: lfm
B11: Anschaffungsjahr = | C11: =C9-H11+ROUND(H11/1.5,0) -> 2010 | G11: Nutzungsdauer = | H11: 33 | I11: Jahre | K11: Baukostenrichtsatz = | L11: 62 | M11: €
R12: PKT | S12: / | T12: GES | W12: Ergebnisse | AC12: Hilfe | AI12: Formelprüfung | AO12: Punkte
A24: 1. | B24: Alter = | K24: Alter < ¼ der Nutzungsdauer → Reduktion um 10% (auf 90%) | R24: =IF(AND(C24="",F24="",H24=""),"",SUM(AO24:AS24)) ->  | S24: / | T24: =COUNTA(AC24:AG24) -> 3 | W24: =IF(C24="","",C24) ->  | Y24: =IF(F24="","",F24) ->  | AA24: =IF(H24="","",H24) ->  | AB24: / | AC24: =IF(GV3L!C24="","",GV3L!C24) -> Heuer | AE24: =IF(GV3L!F24="","",GV3L!F24) -> – | AG24: =IF(GV3L!H24="","",GV3L!H24) -> Anschaffungsjahr | AO24: =IF(W24="","",IF(W24=AC24,1,IF(W24=AI24,0.5,0))) ->  | AP24: =IF(X24="","",IF(X24=AD24,1,IF(X24=AJ24,0.5,0))) -> 
B26: Alter = | F26: =IF(F24="","",F24) ->  | K26: Alter > ¼ und < ½ der Nutzungsdauer → Reduktion um 20% (auf 80%) | R26: =IF(AND(C26="",F26="",H26=""),"",SUM(AO26:AS26)) ->  | S26: / | T26: =COUNTA(AC26:AG26) -> 2 | W26: =IF(C26="","",C26) ->  | AA26: =IF(H26="","",H26) ->  | AB26: / | AC26: =IF(GV3L!C26="","",GV3L!C26) -> 2021 | AG26: =IF(GV3L!H26="","",GV3L!H26) -> 2010 | AO26: =IF(W26="","",IF(W26=AC26,1,IF(W26=AI26,0.5,0))) -> 
F27: ,
B28: Alter = | F28: Jahre | K28: Alter > ½ Nutzungsdauer → Reduktion um 33% (auf 67%) | R28: =IF(AND(C28=""),"",SUM(AO28:AS28)) ->  | S28: / | T28: =COUNTA(AC28:AG28) -> 1 | W28: =IF(C28="","",C28) ->  | AB28: / | AC28: =IF(GV3L!C28="","",GV3L!C28) -> 11 | AH28: - | AI28: =IF(C28="","",C26-H26) ->  | AO28: =IF(W28="","",IF(W28=AC28,1,IF(W28=AI28,0.5,0))) -> 
A30: 2. | F30: ="Baukostenrichtsatz = "&DOLLAR(L11,2)&"/"&MID(M9,2,6) -> Baukostenrichtsatz = € 62,00/lfm | H30: …..…..… | I30: 1 | K30: WW ………. Wiederbeschaffungswert
F32: ="Reduzierter Baukostenrichtsatz = x €/"&MID(M9,2,6) -> Reduzierter Baukostenrichtsatz = x €/lfm | H32: …..…..… | K32: jAfa ………. Jährliche Afa (Abschreibung) | R32: =IF(AND(I32=""),"",SUM(AO32:AS32)) ->  | S32: / | T32: =COUNTA(AC32:AG32) -> 1 | W32: =IF(I32="","",I32) ->  | AB32: / | AC32: =IF(GV3L!I32="","",GV3L!I32) -> 0.8 | AO32: =IF(W32="","",IF(W32=AC32,1,IF(W32=AI32,0.5,0))) ->  | AP32: =IF(X32="","",IF(X32=AD32,1,IF(X32=AJ32,0.5,0))) ->  | AQ32: =IF(Y32="","",IF(Y32=AE32,1,IF(Y32=AK32,0.5,0))) ->  | AR32: =IF(Z32="","",IF(Z32=AF32,1,IF(Z32=AL32,0.5,0))) ->  | AS32: =IF(AA32="","",IF(AA32=AG32,1,IF(AA32=AM32,0.5,0))) -> 
K33: bAfa ………. Bisherige Afa (Abschreibung)
B34: x = | C34: =IF(I32="","",DOLLAR(L11,2)) ->  | E34: =IF(I32="",""," ") ->  | F34: =IF(I32="","","•") ->  | G34: =IF(I32="",""," ") ->  | H34: =IF(I32="","",FIXED(I32,2)*100) ->  | J34: =IF(I32="","",C34*H34/C35) ->  | K34: ZW1.1. ………. Zeitwert am 1.1.
C35: =IF(I32="","",FIXED(I30,2)*100) ->  | K35: ZW31.12. ………. Zeitwert am 31.12.
A37: 2. | B37: WW = | R37: =IF(AND(C37="",F37="",H37=""),"",SUM(AO37:AS37)) ->  | S37: / | T37: =COUNTA(AC37:AG37) -> 3 | W37: =IF(C37="","",C37) ->  | Y37: =IF(F37="","",F37) ->  | AA37: =IF(H37="","",H37) ->  | AB37: / | AC37: =IF(GV3L!C37="","",GV3L!C37) -> Größe | AE37: =IF(GV3L!F37="","",GV3L!F37) -> • | AG37: =IF(GV3L!H37="","",GV3L!H37) -> Reduzierter Baukostenrichtsatz | AO37: =IF(W37="","",IF(COUNTIF($AC37:$AG37,W37)>0,1/COUNTIF($W37:$AA37,W37),IF(COUNTIF($AI37:$AM37,W37)>0,0.5/COUNTIF($W37:$AA37,W37),0))) ->  | AP37: =IF(X37="","",IF(COUNTIF($AC37:$AG37,X37)>0,1/COUNTIF($W37:$AA37,X37),IF(COUNTIF($AI37:$AM37,X37)>0,0.5/COUNTIF($W37:$AA37,X37),0))) -> 
B39: WW = | F39: =IF(F37="","",F37) ->  | R39: =IF(AND(C39="",F39="",H39=""),"",SUM(AO39:AS39)) ->  | S39: / | T39: =COUNTA(AC39:AG39) -> 2 | W39: =IF(C39="","",C39) ->  | AA39: =IF(H39="","",H39) ->  | AB39: / | AC39: =IF(GV3L!C39="","",GV3L!C39) -> 360 | AG39: =IF(GV3L!H39="","",GV3L!H39) -> 49.6 | AH39: - | AI39: =IF(C39="","",L9) ->  | AM39: =IF(H39="","",J34) ->  | AO39: =IF(W39="","",IF(COUNTIF($AC39:$AG39,W39)>0,1/COUNTIF($W39:$AA39,W39),IF(COUNTIF($AI39:$AM39,W39)>0,0.5/COUNTIF($W39:$AA39,W39),0))) ->  | AP39: =IF(X39="","",IF(COUNTIF($AC39:$AG39,X39)>0,1/COUNTIF($W39:$AA39,X39),IF(COUNTIF($AI39:$AM39,X39)>0,0.5/COUNTIF($W39:$AA39,X39),0))) -> 
F40: ,
B41: WW = | F41: € | R41: =IF(AND(C41=""),"",SUM(AO41:AS41)) ->  | S41: / | T41: =COUNTA(AC41:AG41) -> 1 | W41: =IF(C41="","",C41) ->  | AB41: / | AC41: =IF(GV3L!C41="","",GV3L!C41) -> 17856 | AH41: - | AI41: =IF(C41="","",C39*H39) ->  | AO41: =IF(W41="","",IF(COUNTIF($AC41:$AG41,W41)>0,1/COUNTIF($W41:$AA41,W41),IF(COUNTIF($AI41:$AM41,W41)>0,0.5/COUNTIF($W41:$AA41,W41),0))) ->  | AP41: =IF(X41="","",IF(COUNTIF($AC41:$AG41,X41)>0,1/COUNTIF($W41:$AA41,X41),IF(COUNTIF($AI41:$AM41,X41)>0,0.5/COUNTIF($W41:$AA41,X41),0))) -> 
AC42: Anschaffungswert
A43: 3. | B43: jAfa = | R43: =IF(AND(C43="",F43="",H43=""),"",SUM(AO43:AS43)) ->  | S43: / | T43: =COUNTA(AC43:AG43) -> 1 | W43: =IF(C43="","",C43) ->  | AB43: / | AC43: =IF(GV3L!C43="","",GV3L!C43) -> Wiederbeschaffungswert | AO43: =IF(W43="","",IF(COUNTIF($AC42:$AC43,W43)>0,1/COUNTIF($W43,W43),IF(COUNTIF($AI43,W43)>0,0.5/COUNTIF($W43,W43),0))) ->  | AP43: =IF(X43="","",IF(X43=AD43,1,IF(X43=AJ43,0.5,0))) -> 
R44: =IF(AND(C44="",F44="",H44=""),"",SUM(AO44:AS44)) ->  | S44: / | T44: =COUNTA(AC44:AG44) -> 1 | W44: =IF(C44="","",C44) ->  | AB44: / | AC44: =IF(GV3L!C44="","",GV3L!C44) -> Nutzungsdauer | AO44: =IF(W44="","",IF(W44=AC44,1,IF(W44=AI44,0.5,0))) -> 
AO45: =IF(W45="","",IF(W45=AC45,1,IF(W45=#REF!,1,IF(W45=AI45,0.5,IF(W45=#REF!,0.5,0))))) ->  | AP45: =IF(X45="","",IF(X45=AD45,1,IF(X45=#REF!,1,IF(X45=AJ45,0.5,IF(X45=#REF!,0.5,0))))) ->  | AQ45: =IF(Y45="","",IF(Y45=AE45,1,IF(Y45=#REF!,1,IF(Y45=AK45,0.5,IF(Y45=#REF!,0.5,0))))) ->  | AR45: =IF(Z45="","",IF(Z45=AF45,1,IF(Z45=#REF!,1,IF(Z45=AL45,0.5,IF(Z45=#REF!,0.5,0))))) ->  | AS45: =IF(AA45="","",IF(AA45=AG45,1,IF(AA45=#REF!,1,IF(AA45=AM45,0.5,IF(AA45=#REF!,0.5,0))))) -> 
B46: jAfa = | R46: =IF(AND(C46="",F46="",H46=""),"",SUM(AO46:AS46)) ->  | S46: / | T46: =COUNTA(AC46:AG46) -> 1 | W46: =IF(C46="","",C46) ->  | AB46: / | AC46: =IF(GV3L!C46="","",GV3L!C46) -> 17856 | AO46: =IF(W46="","",IF(W46=AC46,1,IF(W46=AI46,0.5,0))) ->  | AP46: =IF(X46="","",IF(X46=AD46,1,IF(X46=AJ46,0.5,0))) -> 
R47: =IF(AND(C47="",F47="",H47=""),"",SUM(AO47:AS47)) ->  | S47: / | T47: =COUNTA(AC47:AG47) -> 1 | W47: =IF(C47="","",C47) ->  | AB47: / | AC47: =IF(GV3L!C47="","",GV3L!C47) -> 33 | AO47: =IF(W47="","",IF(W47=AC47,1,IF(W47=AI47,0.5,0))) -> 
H48: ……..…
B49: jAfa = | F49: € | H49: =IF(C28>=H11,"ACHTUNG: Keine Afa mehr!","") ->  | R49: =IF(AND(C49=""),"",SUM(AO49:AS49)) ->  | S49: / | T49: =COUNTA(AC49:AG49) -> 1 | W49: =IF(C49="","",C49) ->  | AB49: / | AC49: =IF(GV3L!C49="","",GV3L!C49) -> 541.0909091 | AH49: - | AI49: =IF(C49="","",C46/C47) ->  | AO49: =IF(W49="","",IF(W49=AC49,1,IF(W49=AI49,0.5,0))) ->  | AP49: =IF(X49="","",IF(X49=AD49,1,IF(X49=AJ49,0.5,0))) -> 
A51: 4. | B51: bAfa = | R51: =IF(AND(C51="",F51="",H51=""),"",SUM(AO51:AS51)) ->  | S51: / | T51: =COUNTA(AC51:AG51) -> 3 | W51: =IF(C51="","",C51) ->  | Y51: =IF(F51="","",F51) ->  | AA51: =IF(H51="","",H51) ->  | AB51: / | AC51: =IF(GV3L!C51="","",GV3L!C51) -> Alter | AE51: =IF(GV3L!F51="","",GV3L!F51) -> • | AG51: =IF(GV3L!H51="","",GV3L!H51) -> Jährliche Afa | AO51: =IF(W51="","",IF(COUNTIF($AC51:$AG51,W51)>0,1/COUNTIF($W51:$AA51,W51),IF(COUNTIF($AI51:$AM51,W51)>0,0.5/COUNTIF($W51:$AA51,W51),0))) ->  | AP51: =IF(X51="","",IF(COUNTIF($AC51:$AG51,X51)>0,1/COUNTIF($W51:$AA51,X51),IF(COUNTIF($AI51:$AM51,X51)>0,0.5/COUNTIF($W51:$AA51,X51),0))) -> 
B53: bAfa = | F53: =IF(F51="","",F51) ->  | R53: =IF(AND(C53="",F53="",H53=""),"",SUM(AO53:AS53)) ->  | S53: / | T53: =COUNTA(AC53:AG53) -> 2 | W53: =IF(C53="","",C53) ->  | AA53: =IF(H53="","",H53) ->  | AB53: / | AC53: =IF(GV3L!C53="","",GV3L!C53) -> 11 | AG53: =IF(GV3L!H53="","",GV3L!H53) -> 541.0909091 | AH53: - | AI53: =IF(C53="","",C49) ->  | AM53: =IF(H53="","",C28) ->  | AO53: =IF(W53="","",IF(COUNTIF($AC53:$AG53,W53)>0,1/COUNTIF($W53:$AA53,W53),IF(COUNTIF($AI53:$AM53,W53)>0,0.5/COUNTIF($W53:$AA53,W53),0))) ->  | AP53: =IF(X53="","",IF(COUNTIF($AC53:$AG53,X53)>0,1/COUNTIF($W53:$AA53,X53),IF(COUNTIF($AI53:$AM53,X53)>0,0.5/COUNTIF($W53:$AA53,X53),0))) -> 
B55: bAfa = | F55: € | R55: =IF(AND(C55=""),"",SUM(AO55:AS55)) ->  | S55: / | T55: =COUNTA(AC55:AG55) -> 1 | W55: =IF(C55="","",C55) ->  | AB55: / | AC55: =IF(GV3L!C55="","",GV3L!C55) -> 5952 | AH55: - | AI55: =IF(C55="","",C53*H53) ->  | AO55: =IF(W55="","",IF(COUNTIF($AC55:$AG55,W55)>0,1/COUNTIF($W55:$AA55,W55),IF(COUNTIF($AI55:$AM55,W55)>0,0.5/COUNTIF($W55:$AA55,W55),0))) ->  | AP55: =IF(X55="","",IF(COUNTIF($AC55:$AG55,X55)>0,1/COUNTIF($W55:$AA55,X55),IF(COUNTIF($AI55:$AM55,X55)>0,0.5/COUNTIF($W55:$AA55,X55),0))) -> 
AC56: Anschaffungswert
A57: 5. | B57: ZW1.1. = | R57: =IF(AND(C57="",F57="",H57=""),"",SUM(AO57:AS57)) ->  | S57: / | T57: =COUNTA(AC57:AG57) -> 3 | W57: =IF(C57="","",C57) ->  | Y57: =IF(F57="","",F57) ->  | AA57: =IF(H57="","",H57) ->  | AB57: / | AC57: =IF(GV3L!C57="","",GV3L!C57) -> Wiederbeschaffungswert | AE57: =IF(GV3L!F57="","",GV3L!F57) -> – | AG57: =IF(GV3L!H57="","",GV3L!H57) -> Bisherige Afa | AO57: =IF(W57="","",IF(COUNTIF($AC56:$AC57,W57)>0,1/COUNTIF($W57,W57),IF(COUNTIF($AI57,W57)>0,0.5/COUNTIF($W57,W57),0))) ->  | AP57: =IF(X57="","",IF(X57=AD57,1,IF(X57=AJ57,0.5,0))) -> 
B59: ZW1.1. = | F59: =IF(F57="","",F57) ->  | R59: =IF(AND(C59="",F59="",H59=""),"",SUM(AO59:AS59)) ->  | S59: / | T59: =COUNTA(AC59:AG59) -> 2 | W59: =IF(C59="","",C59) ->  | AA59: =IF(H59="","",H59) ->  | AB59: / | AC59: =IF(GV3L!C59="","",GV3L!C59) -> 17856 | AG59: =IF(GV3L!H59="","",GV3L!H59) -> 5952 | AH59: - | AI59: =IF(C59="","",H9) ->  | AM59: =IF(H59="","",C55) ->  | AO59: =IF(W59="","",IF(W59=AC59,1,IF(W59=AI59,0.5,0))) -> 
B61: ZW1.1. = | F61: € | H61: =IF(C41="","",IF(C28>=H11,"Erinnerungswert!",IF(C61=C41,"ACHTUNG: Zeitwert 1.1. bleibt leer! "&DOLLAR(H9,2)&" kommt in die Spalte 'Zugang'",""))) ->  | R61: =IF(AND(C61=""),"",SUM(AO61:AS61)) ->  | S61: / | T61: =COUNTA(AC61:AG61) -> 1 | W61: =IF(C61="","",C61) ->  | AB61: / | AC61: =IF(GV3L!C61="","",GV3L!C61) -> 11904 | AH61: - | AI61: =IF(C61="","",C59-H59) ->  | AO61: =IF(W61="","",IF(W61=AC61,1,IF(W61=AI61,0.5,0))) -> 
A63: 6. | B63: ZW31.12. = | R63: =IF(AND(C63="",F63="",H63=""),"",SUM(AO63:AS63)) ->  | S63: / | T63: =COUNTA(AC63:AG63) -> 3 | W63: =IF(C63="","",C63) ->  | Y63: =IF(F63="","",F63) ->  | AA63: =IF(H63="","",H63) ->  | AB63: / | AC63: =IF(GV3L!C63="","",GV3L!C63) -> Zeitwert 1.1. | AE63: =IF(GV3L!F63="","",GV3L!F63) -> – | AG63: =IF(GV3L!H63="","",GV3L!H63) -> Jährliche Afa | AO63: =IF(W63="","",IF(W63=AC63,1,IF(W63=AI63,0.5,0))) ->  | AP63: =IF(X63="","",IF(X63=AD63,1,IF(X63=AJ63,0.5,0))) -> 
B65: ZW31.12. = | F65: =IF(F63="","",F63) ->  | R65: =IF(AND(C65="",F65="",H65=""),"",SUM(AO65:AS65)) ->  | S65: / | T65: =COUNTA(AC65:AG65) -> 2 | W65: =IF(C65="","",C65) ->  | AA65: =IF(H65="","",H65) ->  | AB65: / | AC65: =IF(GV3L!C65="","",GV3L!C65) -> 11904 | AG65: =IF(GV3L!H65="","",GV3L!H65) -> 541.0909091 | AH65: - | AI65: =IF(C65="","",C61) ->  | AM65: =IF(AND(H65="",C49=""),"",W49) ->  | AO65: =IF(W65="","",IF(W65=AC65,1,IF(W65=AI65,0.5,0))) -> 
B67: ZW31.12. = | F67: € | H67: =IF(C67="","",IF(C61<=C49,"Erinnerungswert!","")) ->  | R67: =IF(AND(C67=""),"",SUM(AO67:AS67)) ->  | S67: / | T67: =COUNTA(AC67:AG67) -> 1 | W67: =IF(C67="","",C67) ->  | AB67: / | AC67: =IF(GV3L!C67="","",GV3L!C67) -> 11362.90909 | AH67: - | AI67: =IF(C67="","",C65-H65) ->  | AO67: =IF(W67="","",IF(W67=AC67,1,IF(W67=AI67,0.5,0))) -> 
A69: Bezeichnung | C69: Baujahr | D69: Größe | E69: reduzierter | H69: Neuwert | I69: ND | J69: AfA | K69: Wert am | L69: Zugang | M69: Abgang | N69: AfA | O69: Wert am
D70: ha, lfm, m² | E70: Richtsatz | H70: in | I70: in | J70: in | K70: ="1.1."&Jahr!F4 -> 1.1. | L70: in | M70: in | N70: in | O70: ="31.12."&Jahr!F4 -> 31.12.
D71: m³, … | E71: je ha, … | H71: € | I71: Jahren | J71: €/Jahr | K71: € | L71: € | M71: € | N71: € | O71: €
A72: =IF(D1="","",D1) -> Drainage | C72: =IF(C11="","",C11) -> 2010 | D72: =IF(L9="","",L9) -> 360 | E72: =IF(L11="","",L11) -> 62 | H72: =IF(C41="","",C41) ->  | I72: =IF(H11="","",H11) -> 33 | J72: =IF(C49="","",C49) ->  | R72: =IF(AND(K72="",N72="",O72=""),"",SUM(AO72:AS72)) ->  | S72: / | T72: =COUNT(AC72:AG72) -> 3 | W72: =IF(AND(K72="",L72="",M72="",N72="",O72=""),"",IF(K72="","",K72)) ->  | X72: =IF(AND(K72="",L72="",M72="",N72="",O72=""),"",IF(L72="","",L72)) ->  | Y72: =IF(AND(K72="",L72="",M72="",N72="",O72=""),"",IF(M72="","",M72)) ->  | Z72: =IF(AND(K72="",L72="",M72="",N72="",O72=""),"",IF(N72="","",N72)) ->  | AA72: =IF(AND(K72="",L72="",M72="",N72="",O72=""),"",IF(O72="","",O72)) ->  | AB72: / | AC72: =IF(GV3L!K72="","-",GV3L!K72) -> 11904 | AD72: =IF(GV3L!L72="","-",GV3L!L72) -> - | AE72: =IF(GV3L!M72="","-",GV3L!M72) -> - | AF72: =IF(GV3L!N72="","-",GV3L!N72) -> 541.0909091 | AG72: =IF(GV3L!O72="","-",GV3L!O72) -> 11362.90909 | AH72: - | AI72: =IF(C61="","",IF(W28=0,"",C61)) ->  | AJ72: =IF(C61="","",IF(W28<>0,"",C61)) ->  | AK72: - | AL72: =IF(C49="","",C49) ->  | AM72: =IF(C67="","",C67) ->  | AO72: =IF(W72="","",IF(AND(W72<>"",OR(AC72="",AC72="-")),-1,IF(W72=AC72,1,IF(W72=AI72,0.5,0)))) ->  | AP72: =IF(X72="","",IF(AND(X72<>"",OR(AD72="",AD72="-")),-1,IF(X72=AD72,1,IF(X72=AJ72,0.5,0)))) -> 
A73: Summe | K73: =IF(SUM(K72)=0,"",SUM(K72)) ->  | L73: =IF(SUM(L72)=0,"",SUM(L72)) ->  | M73: =IF(SUM(M72)=0,"",SUM(M72)) ->  | N73: =IF(SUM(N72)=0,"",SUM(N72)) ->  | O73: =IF(SUM(O72)=0,"",SUM(O72)) ->  | W73: Korrektur trotz "Nicht anzeigen" anzeigen! | AF73: "Anschaffungswert": | AG73: =COUNTIF(AC25:AG72,"Anschaffungswert") -> 2
Q74: Gsamtpunkte: | R74: =SUM(R12:R73) -> 0 | S74: / | T74: =SUM(T12:T73) -> 39 | W74: =COUNTBLANK(W12:AA72) -> 304 | AC74: =SUM(COUNTBLANK(AC12:AG72),AG73:AG74) -> 265 | AF74: "-": | AG74: =COUNTIF(AC25:AG72,"-") -> 2

Sheet GV3L
A1: Beispiel | C1: =IF('GV3'!C1="","",'GV3'!C1) -> 3 | D1: =IF('GV3'!D1="","",'GV3'!D1) -> Drainage
A3: =IF('GV3'!A3="","",'GV3'!A3) -> ■ Herstellungswert unbekannt
A4: =IF('GV3'!A4="","",'GV3'!A4) -> ■ Errichtungsjahr bekannt
A5: =IF('GV3'!A5="","",'GV3'!A5) -> ■ kein Investitionszuschuss
A7: =IF('GV3'!A7="","",'GV3'!A7) -> Der Neuwert (Herstellungswert) für die im ersten Halbjahr 2010 errichtete und in Betrieb genommene 'DRAINAGE' ist nicht bekannt. Die Größe der Drainage beträgt 360 lfm und der Baukostenrichtsatz liegt laut Tabelle bei € 62,00. Die Nutzungsdauer wird mit 33 Jahren festgelegt. | B7: =IF('GV3'!B7="","",'GV3'!B7) ->  | C7: =IF('GV3'!C7="","",'GV3'!C7) ->  | D7: =IF('GV3'!D7="","",'GV3'!D7) ->  | E7: =IF('GV3'!E7="","",'GV3'!E7) ->  | F7: =IF('GV3'!F7="","",'GV3'!F7) ->  | G7: =IF('GV3'!G7="","",'GV3'!G7) ->  | H7: =IF('GV3'!H7="","",'GV3'!H7) ->  | I7: =IF('GV3'!I7="","",'GV3'!I7) ->  | J7: =IF('GV3'!J7="","",'GV3'!J7) ->  | K7: =IF('GV3'!K7="","",'GV3'!K7) ->  | L7: =IF('GV3'!L7="","",'GV3'!L7) ->  | M7: =IF('GV3'!M7="","",'GV3'!M7) ->  | N7: =IF('GV3'!N7="","",'GV3'!N7) ->  | O7: =IF('GV3'!O7="","",'GV3'!O7) -> 
B9: =IF('GV3'!B9="","",'GV3'!B9) -> Heuer = | C9: =IF('GV3'!C9="","",'GV3'!C9) -> 2021 | K9: =IF('GV3'!K9="","",'GV3'!K9) -> Größe = | L9: =IF('GV3'!L9="","",'GV3'!L9) -> 360 | M9: =IF('GV3'!M9="","",'GV3'!M9) -> lfm
B11: =IF('GV3'!B11="","",'GV3'!B11) -> Anschaffungsjahr = | C11: =IF('GV3'!C11="","",'GV3'!C11) -> 2010 | G11: =IF('GV3'!G11="","",'GV3'!G11) -> Nutzungsdauer = | H11: =IF('GV3'!H11="","",'GV3'!H11) -> 33 | I11: =IF('GV3'!I11="","",'GV3'!I11) -> Jahre | K11: =IF('GV3'!K11="","",'GV3'!K11) -> Baukostenrichtsatz = | L11: =IF('GV3'!L11="","",'GV3'!L11) -> 62 | M11: =IF('GV3'!M11="","",'GV3'!M11) -> €
A24: 1. | B24: Alter = | C24: Heuer | F24: – | H24: Anschaffungsjahr | K24: Alter < ¼ der Nutzungsdauer → Reduktion um 10% (auf 90%)
B26: Alter = | C26: =C9 -> 2021 | F26: =IF(F24="","",F24) -> – | H26: =C11 -> 2010 | K26: Alter > ¼ und < ½ der Nutzungsdauer → Reduktion um 20% (auf 80%)
F27: ,
B28: Alter = | C28: =C26-H26 -> 11 | F28: Jahre | K28: Alter > ½ Nutzungsdauer → Reduktion um 33% (auf 67%)
A30: 2. | F30: ="Baukostenrichtsatz = "&DOLLAR(L11,2)&"/"&MID(M9,2,6) -> Baukostenrichtsatz = € 62,00/lfm | H30: …..…..… | I30: 1 | K30: WW ………. Wiederbeschaffungswert
F32: ="Reduzierter Baukostenrichtsatz = x €/"&MID(M9,2,6) -> Reduzierter Baukostenrichtsatz = x €/lfm | H32: …..…..… | I32: =IF(C28<(H11/4),90%,IF(AND(C28>=(H11/4),C28<(H11/2)),80%,IF(C28>=(H11/2),67%,""))) -> 0.8 | K32: jAfa ………. Jährliche Afa (Abschreibung)
K33: bAfa ………. Bisherige Afa (Abschreibung)
B34: x = | C34: =IF(I32="","",DOLLAR(L11,2)) -> € 62,00 | E34: =IF(I32="",""," ") ->  | F34: =IF(I32="","","•") -> • | G34: =IF(I32="",""," ") ->  | H34: =IF(I32="","",FIXED(I32,2)*100) -> 80 | J34: =IF(I32="",""," = "&DOLLAR(C34*H34/C35,2)) -> = € 49,60 | K34: ZW1.1. ………. Zeitwert am 1.1.
C35: =IF(I32="","",FIXED(I30,2)*100) -> 100 | K35: ZW31.12. ………. Zeitwert am 31.12.
A37: 2. | B37: WW = | C37: Größe | F37: • | H37: Reduzierter Baukostenrichtsatz
B39: WW = | C39: =IF(L9="","",L9) -> 360 | F39: =IF(F37="","",F37) -> • | H39: =IF(J34="","",C34*H34/C35) -> 49.6
F40: ,
B41: WW = | C41: =C39*H39 -> 17856 | F41: €
A43: 3. | B43: jAfa = | C43: Wiederbeschaffungswert
C44: Nutzungsdauer
B46: jAfa = | C46: =IF(C41="","",C41) -> 17856
C47: =H11 -> 33
H48: ……..…
B49: jAfa = | C49: =C46/C47 -> 541.0909091 | F49: € | H49: =IF(C28>=H11,"ACHTUNG: Keine Afa mehr!","") -> 
A51: 4. | B51: bAfa = | C51: Alter | F51: • | H51: Jährliche Afa
B53: bAfa = | C53: =C28 -> 11 | F53: =IF(F51="","",F51) -> • | H53: =C49 -> 541.0909091
B55: bAfa = | C55: =C53*H53 -> 5952 | F55: €
A57: 5. | B57: ZW1.1. = | C57: Wiederbeschaffungswert | F57: – | H57: Bisherige Afa
B59: ZW1.1. = | C59: =IF(C41="","",C41) -> 17856 | F59: =IF(F57="","",F57) -> – | H59: =C55 -> 5952
B61: ZW1.1. = | C61: =IF(C28>=H11,Jahr!D8,C59-H59) -> 11904 | F61: € | H61: =IF(C28>=H11,"Erinnerungswert!",IF(C61=H9,"ACHTUNG: Zeitwert 1.1. bleibt leer! "&DOLLAR(H9,2)&" kommt in die Spalte 'Zugang'","")) -> 
A63: 6. | B63: ZW31.12. = | C63: Zeitwert 1.1. | F63: – | H63: Jährliche Afa
B65: ZW31.12. = | C65: =C61 -> 11904 | F65: =IF(F63="","",F63) -> – | H65: =IF(C28>=H11,0,C49) -> 541.0909091
B67: ZW31.12. = | C67: =IF(C61<=C49,Jahr!D8,C65-H65) -> 11362.90909 | F67: € | H67: =IF(C61<=C49,"Erinnerungswert!","") -> 
A69: Bezeichnung | C69: Baujahr | D69: Größe | E69: reduzierter | H69: Neuwert | I69: ND | J69: AfA | K69: Wert am | L69: Zugang | M69: Abgang | N69: AfA | O69: Wert am
D70: ha, lfm, m² | E70: Richtsatz | H70: in | I70: in | J70: in | K70: ="1.1."&Jahr!F4 -> 1.1. | L70: in | M70: in | N70: in | O70: ="31.12."&Jahr!F4 -> 31.12.
D71: m³, … | E71: je ha, … | H71: € | I71: Jahren | J71: €/Jahr | K71: € | L71: € | M71: € | N71: € | O71: €
A72: =IF(D1="","",D1) -> Drainage | C72: =IF(C11="","",C11) -> 2010 | D72: =IF(L9="","",L9) -> 360 | E72: =IF(L11="","",L11) -> 62 | H72: =IF(C41="","",C41) -> 17856 | I72: =IF(H11="","",H11) -> 33 | J72: =IF(C49="","",C49) -> 541.0909091 | K72: =IF(H61="ACHTUNG: Zeitwert 1.1. bleibt leer! "&DOLLAR(H9,2)&" kommt in die Spalte 'Zugang'","",IF(C61="","",C61)) -> 11904 | L72: =IF(H61="ACHTUNG: Zeitwert 1.1. bleibt leer! "&DOLLAR(H9,2)&" kommt in die Spalte 'Zugang'",H9,"") ->  | N72: =IF(K72=Jahr!D8,"",J72) -> 541.0909091 | O72: =IF(C67="","",C67) -> 11362.90909
A73: Summe | K73: =IF(SUM(K72)=0,"",SUM(K72)) -> 11904 | L73: =IF(SUM(L72)=0,"",SUM(L72)) ->  | M73: =IF(SUM(M72)=0,"",SUM(M72)) ->  | N73: =IF(SUM(N72)=0,"",SUM(N72)) -> 541.0909091 | O73: =IF(SUM(O72)=0,"",SUM(O72)) -> 11362.90909

Sheet G
A1: Gebäude und bauliche Anlagen
B4: Definition = mit dem Boden = mehr oder weniger fest verbunden = unterliegen einer Abnutzung und = unterstützen die Produktion Bewertung nach Ankaufs- bzw. Herstellungswert
F5: ND | J5: < ¼ ND | L5: Reduktion: | N5: gesamte Nutzungsdauer
F6: 40 | H6: =IF(F6="","",ROUND(F6/4,2)) -> 10 | L6: um 10% → auf 90%
J8: ≥ ¼ ND < ½ ND | L8: Reduktion:
F9: AJ | H9: =IF(F6="","",ROUND(F6/2,2)) -> 20 | L9: um 20% → auf 80%
F11: 2010 | J11: ≥ ½ ND
F13: Alter | L13: Reduktion:
F14: =IF(F11="","",Jahr!D4-F11) -> 11 | L14: um 33% → auf 67%
B19: ë | C19: Herstellungswert bekannt, Errichtung und Inbetriebnahme im Aufzeichnungsjahr, kein Investitionszuschuss
C20: =IF('G4'!A1="","",MID('G4'!A1,1,1))&MID('G4'!A1,4,2)&" "&IF('G4'!C1="","",'G4'!C1)&": "&IF('G4'!D1="","",'G4'!D1) -> Bsp 4: Melkstand
B23: ë | C23: Herstellungswert bekannt, Errichtungsjahr bekannt, kein Investitionszuschuss (Standardverfahren für Afa und Zeitwert)
C24: =IF('G5'!A1="","",MID('G5'!A1,1,1)&MID('G5'!A1,4,2))&" "&IF('G5'!C1="","",'G5'!C1)&": "&IF('G5'!D1="","",'G5'!D1) -> Bsp 5: Garage
B27: ë | C27: Herstellungswert nicht bekannt, Errichtungsjahr bekannt, kein Investitionszuschuss
C28: =IF('G6'!A1="","",MID('G6'!A1,1,1)&MID('G6'!A1,4,2))&" "&IF('G6'!C1="","",'G6'!C1)&": "&IF('G6'!D1="","",'G6'!D1) -> Bsp 6: Silo
C29: =IF('G6.1'!A1="","",MID('G6.1'!A1,1,1)&MID('G6.1'!A1,4,2))&" "&IF('G6.1'!C1="","",'G6.1'!C1)&": "&IF('G6.1'!D1="","",'G6.1'!D1) -> Bsp 6.1: Pferdestall
C30: =IF('G6.2'!A1="","",MID('G6.2'!A1,1,1)&MID('G6.2'!A1,4,2))&" "&IF('G6.2'!C1="","",'G6.2'!C1)&": "&IF('G6.2'!D1="","",'G6.2'!D1) -> Bsp 6.2: Schankraum
B33: ë | C33: Herstellungswert nicht bekannt, Errichtung in mehreren Bauetappen, Investitionszuschuss gewährt
C34: =IF('G7'!A1="","",MID('G7'!A1,1,1))&MID('G7'!A1,4,2)&" "&IF('G7'!C1="","",'G7'!C1)&": "&IF('G7'!D1="","",'G7'!D1) -> Bsp 7: Laufstall
B37: ë | C37: Herstellungswert nicht bekannt, Errichtungsjahr unbekannt (bzw. betriebsgewöhnlich Nutzungsdauer überschritten!), kein Investitionszuschuss
C38: =IF('G8'!A1="","",MID('G8'!A1,1,1)&MID('G8'!A1,4,2))&" "&IF('G8'!C1="","",'G8'!C1)&": "&IF('G8'!D1="","",'G8'!D1) -> Bsp 8: Kälberstall
B41: ë | C41: Herstellungswert nicht bekannt, Errichtungsjahr bekannt, kein Investitionszuschuss; Zweinutzungsgebäude
C42: =IF('G9'!A1="","",MID('G9'!A1,1,1)&MID('G9'!A1,4,2))&" "&IF('G9'!D1="","",'G9'!D1)&": "&IF('G9'!E1="","",'G9'!E1) -> Bsp 9: Zweinutzungsgebäude
B45: ë | C45: Herstellungswert bekannt, Errichtungsjahr bekannt, kein Investitionszuschuss, Generalreparatur, Um- bzw. Zubau im Aufzeichnungsjahr
C46: =IF('G10'!A1="","",MID('G10'!A1,1,1)&MID('G10'!A1,4,2))&" "&IF('G10'!C1="","",'G10'!C1)&": "&IF('G10'!D1="","",'G10'!D1) -> Bsp 10: Maschinenschuppen (Generalreparatur)
C47: =IF('G11'!A1="","",MID('G11'!A1,1,1)&MID('G11'!A1,4,2))&" "&IF('G11'!C1="","",'G11'!C1)&": "&IF('G11'!D1="","",'G11'!D1&IF('G11'!C3="",""," ("&MID('G11'!C3,1,14)&" "&IF('G11'!D3="","",'G11'!D3&")"))) -> Bsp 11: Scheune (Umbau zu einer Mastrinderstall)
C48: =IF('G12'!A1="","",MID('G12'!A1,1,1)&MID('G12'!A1,4,2))&" "&IF('G12'!C1="","",'G12'!C1)&": "&IF('G12'!D1="","",'G12'!D1) -> Bsp 12: Schafstall (Erweiterung)
A50: © Mag. Wolfgang Harasleben

Sheet G4
A1: Beispiel | C1: 4 | D1: Melkstand
A3: ■ Herstellungswert bekannt
A4: ■ Errichtung und Inbetriebnahme im Aufzeichnungsjahr
A5: ■ kein Investitionszuschuss | S5: Punkte
A7: ="Der Neuwert (Herstellungswert) für "&VLOOKUP($D$1,GL,4,0)&" im ersten Halbjahr "&C11&" "&VLOOKUP($D$1,GL,7,0)&" und in Betrieb "&VLOOKUP($D$1,GL,9,0)&" '"&UPPER(D1)&"' beträgt laut Rechnung "&DOLLAR(H9,2)&". Die Nutzungsdauer wird mit "&H11&" Jahren festgelegt." -> Der Neuwert (Herstellungswert) für einen im ersten Halbjahr 2021 errichteten und in Betrieb genommenen 'MELKSTAND' beträgt laut Rechnung € 36 400,00. Die Nutzungsdauer wird mit 15 Jahren festgelegt. | R7: Anzeigen!
B9: Heuer = | C9: =IF(Jahr!D4="","",Jahr!D4) -> 2021 | G9: Anschaffungswert = | H9: 36400 | I9: €
B11: Anschaffungsjahr = | C11: =IF(Jahr!D4="","",Jahr!D4) -> 2021 | G11: Nutzungsdauer = | H11: 15 | I11: Jahre
R12: PKT | S12: / | T12: GES | W12: Ergebnisse | AC12: Hilfe | AI12: Formelprüfung | AO12: Punkte
A24: 1. | B24: Alter = | R24: =IF(AND(C24="",F24="",H24=""),"",SUM(AO24:AS24)) ->  | S24: / | T24: =COUNTA(AC24:AG24) -> 3 | W24: =IF(C24="","",C24) ->  | Y24: =IF(F24="","",F24) ->  | AA24: =IF(H24="","",H24) ->  | AB24: / | AC24: =IF(G4L!C24="","",G4L!C24) -> Heuer | AE24: =IF(G4L!F24="","",G4L!F24) -> – | AG24: =IF(G4L!H24="","",G4L!H24) -> Anschaffungsjahr | AO24: =IF(W24="","",IF(W24=AC24,1,IF(W24=AI24,0.5,0))) ->  | AP24: =IF(X24="","",IF(X24=AD24,1,IF(X24=AJ24,0.5,0))) -> 
B26: Alter = | F26: =IF(F24="","",F24) ->  | R26: =IF(AND(C26="",F26="",H26=""),"",SUM(AO26:AS26)) ->  | S26: / | T26: =COUNTA(AC26:AG26) -> 2 | W26: =IF(C26="","",C26) ->  | AA26: =IF(H26="","",H26) ->  | AB26: / | AC26: =IF(G4L!C26="","",G4L!C26) -> 2021 | AG26: =IF(G4L!H26="","",G4L!H26) -> 2021 | AO26: =IF(W26="","",IF(W26=AC26,1,IF(W26=AI26,0.5,0))) ->  | AP26: =IF(X26="","",IF(X26=AD26,1,IF(X26=AJ26,0.5,0))) ->  | AQ26: =IF(Y26="","",IF(Y26=AE26,1,IF(Y26=AK26,0.5,0))) ->  | AR26: =IF(Z26="","",IF(Z26=AF26,1,IF(Z26=AL26,0.5,0))) ->  | AS26: =IF(AA26="","",IF(AA26=AG26,1,IF(AA26=AM26,0.5,0))) -> 
F27: ,
B28: Alter = | F28: Jahre | R28: =IF(AND(C28=""),"",SUM(AO28:AS28)) ->  | S28: / | T28: =COUNTA(AC28:AG28) -> 1 | W28: =IF(C28="","",C28) ->  | AB28: / | AC28: =IF(G4L!C28="","",G4L!C28) -> 0 | AH28: - | AI28: =IF(C28="","",C26-H26) ->  | AO28: =IF(W28="","",IF(W28=AC28,1,IF(W28=AI28,0.5,0))) ->  | AP28: =IF(X28="","",IF(X28=AD28,1,IF(X28=AJ28,0.5,0))) ->  | AQ28: =IF(Y28="","",IF(Y28=AE28,1,IF(Y28=AK28,0.5,0))) ->  | AR28: =IF(Z28="","",IF(Z28=AF28,1,IF(Z28=AL28,0.5,0))) ->  | AS28: =IF(AA28="","",IF(AA28=AG28,1,IF(AA28=AM28,0.5,0))) -> 
AC29: Anschaffungswert
A30: 2. | B30: jAfa = | R30: =IF(AND(C30="",F30="",H30=""),"",SUM(AO30:AS30)) ->  | S30: / | T30: =COUNTA(AC30:AG30) -> 1 | W30: =IF(C30="","",C30) ->  | AB30: / | AC30: =IF(G4L!C30="","",G4L!C30) -> Herstellungswert | AO30: =IF(W30="","",IF(COUNTIF($AC29:$AC30,W30)>0,1/COUNTIF($W30,W30),IF(COUNTIF($AI30,W30)>0,0.5/COUNTIF($W30,W30),0))) ->  | AP30: =IF(X30="","",IF(X30=AD30,1,IF(X30=AJ30,0.5,0))) -> 
R31: =IF(AND(C31="",F31="",H31=""),"",SUM(AO31:AS31)) ->  | S31: / | T31: =COUNTA(AC31:AG31) -> 1 | W31: =IF(C31="","",C31) ->  | AB31: / | AC31: =IF(G4L!C31="","",G4L!C31) -> Nutzungsdauer | AO31: =IF(W31="","",IF(W31=AC31,1,IF(W31=AI31,0.5,0))) ->  | AP31: =IF(X31="","",IF(X31=AD31,1,IF(X31=AJ31,0.5,0))) ->  | AQ31: =IF(Y31="","",IF(Y31=AE31,1,IF(Y31=AK31,0.5,0))) ->  | AR31: =IF(Z31="","",IF(Z31=AF31,1,IF(Z31=AL31,0.5,0))) ->  | AS31: =IF(AA31="","",IF(AA31=AG31,1,IF(AA31=AM31,0.5,0))) -> 
AO32: =IF(W32="","",IF(W32=AC32,1,IF(W32=#REF!,1,IF(W32=AI32,0.5,IF(W32=#REF!,0.5,0))))) ->  | AP32: =IF(X32="","",IF(X32=AD32,1,IF(X32=#REF!,1,IF(X32=AJ32,0.5,IF(X32=#REF!,0.5,0))))) ->  | AQ32: =IF(Y32="","",IF(Y32=AE32,1,IF(Y32=#REF!,1,IF(Y32=AK32,0.5,IF(Y32=#REF!,0.5,0))))) ->  | AR32: =IF(Z32="","",IF(Z32=AF32,1,IF(Z32=#REF!,1,IF(Z32=AL32,0.5,IF(Z32=#REF!,0.5,0))))) ->  | AS32: =IF(AA32="","",IF(AA32=AG32,1,IF(AA32=#REF!,1,IF(AA32=AM32,0.5,IF(AA32=#REF!,0.5,0))))) -> 
B33: jAfa = | R33: =IF(AND(C33="",F33="",H33=""),"",SUM(AO33:AS33)) ->  | S33: / | T33: =COUNTA(AC33:AG33) -> 1 | W33: =IF(C33="","",C33) ->  | AB33: / | AC33: =IF(G4L!C33="","",G4L!C33) -> 36400 | AO33: =IF(W33="","",IF(W33=AC33,1,IF(W33=AI33,0.5,0))) ->  | AP33: =IF(X33="","",IF(X33=AD33,1,IF(X33=AJ33,0.5,0))) ->  | AQ33: =IF(Y33="","",IF(Y33=AE33,1,IF(Y33=AK33,0.5,0))) ->  | AR33: =IF(Z33="","",IF(Z33=AF33,1,IF(Z33=AL33,0.5,0))) ->  | AS33: =IF(AA33="","",IF(AA33=AG33,1,IF(AA33=AM33,0.5,0))) -> 
R34: =IF(AND(C34="",F34="",H34=""),"",SUM(AO34:AS34)) ->  | S34: / | T34: =COUNTA(AC34:AG34) -> 1 | W34: =IF(C34="","",C34) ->  | AB34: / | AC34: =IF(G4L!C34="","",G4L!C34) -> 15 | AO34: =IF(W34="","",IF(W34=AC34,1,IF(W34=AI34,0.5,0))) -> 
B36: jAfa = | F36: € | H36: =IF(C36="","",IF(C28>=H11,"ACHTUNG: Keine Afa mehr!","")) ->  | R36: =IF(AND(C36=""),"",SUM(AO36:AS36)) ->  | S36: / | T36: =COUNTA(AC36:AG36) -> 1 | W36: =IF(C36="","",C36) ->  | AB36: / | AC36: =IF(G4L!C36="","",G4L!C36) -> 2426.666667 | AH36: - | AI36: =IF(C36="","",C33/C34) ->  | AO36: =IF(W36="","",IF(W36=AC36,1,IF(W36=AI36,0.5,0))) ->  | AP36: =IF(X36="","",IF(X36=AD36,1,IF(X36=AJ36,0.5,0))) ->  | AQ36: =IF(Y36="","",IF(Y36=AE36,1,IF(Y36=AK36,0.5,0))) ->  | AR36: =IF(Z36="","",IF(Z36=AF36,1,IF(Z36=AL36,0.5,0))) ->  | AS36: =IF(AA36="","",IF(AA36=AG36,1,IF(AA36=AM36,0.5,0))) -> 
A38: 3. | B38: bAfa = | R38: =IF(AND(C38="",F38="",H38=""),"",SUM(AO38:AS38)) ->  | S38: / | T38: =COUNTA(AC38:AG38) -> 3 | W38: =IF(C38="","",C38) ->  | Y38: =IF(F38="","",F38) ->  | AA38: =IF(H38="","",H38) ->  | AB38: / | AC38: =IF(G4L!C38="","",G4L!C38) -> Alter | AE38: =IF(G4L!F38="","",G4L!F38) -> • | AG38: =IF(G4L!H38="","",G4L!H38) -> Jährliche Afa | AO38: =IF(W38="","",IF(COUNTIF($AC38:$AG38,W38)>0,1/COUNTIF($W38:$AA38,W38),IF(COUNTIF($AI38:$AM38,W38)>0,0.5/COUNTIF($W38:$AA38,W38),0))) ->  | AP38: =IF(X38="","",IF(COUNTIF($AC38:$AG38,X38)>0,1/COUNTIF($W38:$AA38,X38),IF(COUNTIF($AI38:$AM38,X38)>0,0.5/COUNTIF($W38:$AA38,X38),0))) -> 
B40: bAfa = | F40: =IF(F38="","",F38) ->  | R40: =IF(AND(C40="",F40="",H40=""),"",SUM(AO40:AS40)) ->  | S40: / | T40: =COUNTA(AC40:AG40) -> 2 | W40: =IF(C40="","",C40) ->  | AA40: =IF(H40="","",H40) ->  | AB40: / | AC40: =IF(G4L!C40="","",G4L!C40) -> 0 | AG40: =IF(G4L!H40="","",G4L!H40) -> 2426.666667 | AH40: - | AI40: =IF(C40="","",C36) ->  | AM40: =IF(H40="","",C28) ->  | AO40: =IF(W40="","",IF(COUNTIF($AC40:$AG40,W40)>0,1/COUNTIF($W40:$AA40,W40),IF(COUNTIF($AI40:$AM40,W40)>0,0.5/COUNTIF($W40:$AA40,W40),0))) ->  | AP40: =IF(X40="","",IF(COUNTIF($AC40:$AG40,X40)>0,1/COUNTIF($W40:$AA40,X40),IF(COUNTIF($AI40:$AM40,X40)>0,0.5/COUNTIF($W40:$AA40,X40),0))) ->  | AQ40: =IF(Y40="","",IF(COUNTIF($AC40:$AG40,Y40)>0,1/COUNTIF($W40:$AA40,Y40),IF(COUNTIF($AI40:$AM40,Y40)>0,0.5/COUNTIF($W40:$AA40,Y40),0))) ->  | AR40: =IF(Z40="","",IF(COUNTIF($AC40:$AG40,Z40)>0,1/COUNTIF($W40:$AA40,Z40),IF(COUNTIF($AI40:$AM40,Z40)>0,0.5/COUNTIF($W40:$AA40,Z40),0))) ->  | AS40: =IF(AA40="","",IF(COUNTIF($AC40:$AG40,AA40)>0,1/COUNTIF($W40:$AA40,AA40),IF(COUNTIF($AI40:$AM40,AA40)>0,0.5/COUNTIF($W40:$AA40,AA40),0))) -> 
B42: bAfa = | F42: € | R42: =IF(AND(C42=""),"",SUM(AO42:AS42)) ->  | S42: / | T42: =COUNTA(AC42:AG42) -> 1 | W42: =IF(C42="","",C42) ->  | AB42: / | AC42: =IF(G4L!C42="","",G4L!C42) -> 0 | AH42: - | AI42: =IF(C42="","",C40*H40) ->  | AO42: =IF(W42="","",IF(COUNTIF($AC42:$AG42,W42)>0,1/COUNTIF($W42:$AA42,W42),IF(COUNTIF($AI42:$AM42,W42)>0,0.5/COUNTIF($W42:$AA42,W42),0))) ->  | AP42: =IF(X42="","",IF(COUNTIF($AC42:$AG42,X42)>0,1/COUNTIF($W42:$AA42,X42),IF(COUNTIF($AI42:$AM42,X42)>0,0.5/COUNTIF($W42:$AA42,X42),0))) ->  | AQ42: =IF(Y42="","",IF(COUNTIF($AC42:$AG42,Y42)>0,1/COUNTIF($W42:$AA42,Y42),IF(COUNTIF($AI42:$AM42,Y42)>0,0.5/COUNTIF($W42:$AA42,Y42),0))) ->  | AR42: =IF(Z42="","",IF(COUNTIF($AC42:$AG42,Z42)>0,1/COUNTIF($W42:$AA42,Z42),IF(COUNTIF($AI42:$AM42,Z42)>0,0.5/COUNTIF($W42:$AA42,Z42),0))) ->  | AS42: =IF(AA42="","",IF(COUNTIF($AC42:$AG42,AA42)>0,1/COUNTIF($W42:$AA42,AA42),IF(COUNTIF($AI42:$AM42,AA42)>0,0.5/COUNTIF($W42:$AA42,AA42),0))) -> 
AC43: Anschaffungswert
A44: 4. | B44: ZW1.1. = | R44: =IF(AND(C44="",F44="",H44=""),"",SUM(AO44:AS44)) ->  | S44: / | T44: =COUNTA(AC44:AG44) -> 3 | W44: =IF(C44="","",C44) ->  | Y44: =IF(F44="","",F44) ->  | AA44: =IF(H44="","",H44) ->  | AB44: / | AC44: =IF(G4L!C44="","",G4L!C44) -> Herstellungswert | AE44: =IF(G4L!F44="","",G4L!F44) -> – | AG44: =IF(G4L!H44="","",G4L!H44) -> Bisherige Afa | AO44: =IF(W44="","",IF(COUNTIF($AC43:$AC44,W44)>0,1/COUNTIF($W44,W44),IF(COUNTIF($AI44,W44)>0,0.5/COUNTIF($W44,W44),0))) ->  | AP44: =IF(X44="","",IF(X44=AD44,1,IF(X44=AJ44,0.5,0))) ->  | AQ44: =IF(Y44="","",IF(Y44=AE44,1,IF(Y44=AK44,0.5,0))) ->  | AR44: =IF(Z44="","",IF(Z44=AF44,1,IF(Z44=AL44,0.5,0))) ->  | AS44: =IF(AA44="","",IF(AA44=AG44,1,IF(AA44=AM44,0.5,0))) -> 
B46: ZW1.1. = | F46: =IF(F44="","",F44) ->  | R46: =IF(AND(C46="",F46="",H46=""),"",SUM(AO46:AS46)) ->  | S46: / | T46: =COUNTA(AC46:AG46) -> 2 | W46: =IF(C46="","",C46) ->  | AA46: =IF(H46="","",H46) ->  | AB46: / | AC46: =IF(G4L!C46="","",G4L!C46) -> 36400 | AG46: =IF(G4L!H46="","",G4L!H46) -> 0 | AH46: - | AI46: =IF(C46="","",H9) ->  | AM46: =IF(H46="","",C42) ->  | AO46: =IF(W46="","",IF(W46=AC46,1,IF(W46=AI46,0.5,0))) ->  | AP46: =IF(X46="","",IF(X46=AD46,1,IF(X46=AJ46,0.5,0))) ->  | AQ46: =IF(Y46="","",IF(Y46=AE46,1,IF(Y46=AK46,0.5,0))) ->  | AR46: =IF(Z46="","",IF(Z46=AF46,1,IF(Z46=AL46,0.5,0))) ->  | AS46: =IF(AA46="","",IF(AA46=AG46,1,IF(AA46=AM46,0.5,0))) -> 
B48: ZW1.1. = | F48: € | H48: =IF(C48="","",IF(C28>=H11,"Erinnerungswert!",IF(C48=H9,"ACHTUNG: Zeitwert 1.1. bleibt leer! "&DOLLAR(H9,2)&" kommt in die Spalte 'Zugang'",""))) ->  | R48: =IF(AND(C48=""),"",SUM(AO48:AS48)) ->  | S48: / | T48: =COUNTA(AC48:AG48) -> 1 | W48: =IF(C48="","",C48) ->  | AB48: / | AC48: =IF(G4L!C48="","",G4L!C48) -> 36400 | AH48: - | AI48: =IF(C48="","",C46-H46) ->  | AO48: =IF(W48="","",IF(W48=AC48,1,IF(W48=AI48,0.5,0))) ->  | AP48: =IF(X48="","",IF(X48=AD48,1,IF(X48=AJ48,0.5,0))) ->  | AQ48: =IF(Y48="","",IF(Y48=AE48,1,IF(Y48=AK48,0.5,0))) ->  | AR48: =IF(Z48="","",IF(Z48=AF48,1,IF(Z48=AL48,0.5,0))) ->  | AS48: =IF(AA48="","",IF(AA48=AG48,1,IF(AA48=AM48,0.5,0))) -> 
A50: 5. | B50: ZW31.12. = | R50: =IF(AND(C50="",F50="",H50=""),"",SUM(AO50:AS50)) ->  | S50: / | T50: =COUNTA(AC50:AG50) -> 3 | W50: =IF(C50="","",C50) ->  | Y50: =IF(F50="","",F50) ->  | AA50: =IF(H50="","",H50) ->  | AB50: / | AC50: =IF(G4L!C50="","",G4L!C50) -> Zeitwert 1.1. | AE50: =IF(G4L!F50="","",G4L!F50) -> – | AG50: =IF(G4L!H50="","",G4L!H50) -> Jährliche Afa | AO50: =IF(W50="","",IF(W50=AC50,1,IF(W50=AI50,0.5,0))) ->  | AP50: =IF(X50="","",IF(X50=AD50,1,IF(X50=AJ50,0.5,0))) ->  | AQ50: =IF(Y50="","",IF(Y50=AE50,1,IF(Y50=AK50,0.5,0))) ->  | AR50: =IF(Z50="","",IF(Z50=AF50,1,IF(Z50=AL50,0.5,0))) ->  | AS50: =IF(AA50="","",IF(AA50=AG50,1,IF(AA50=AM50,0.5,0))) -> 
B52: ZW31.12. = | F52: =IF(F50="","",F50) ->  | R52: =IF(AND(C52="",F52="",H52=""),"",SUM(AO52:AS52)) ->  | S52: / | T52: =COUNTA(AC52:AG52) -> 2 | W52: =IF(C52="","",C52) ->  | AA52: =IF(H52="","",H52) ->  | AB52: / | AC52: =IF(G4L!C52="","",G4L!C52) -> 36400 | AG52: =IF(G4L!H52="","",G4L!H52) -> 2426.666667 | AH52: - | AI52: =IF(C52="","",C48) ->  | AM52: =IF(AND(H52="",C36=""),"",W36) ->  | AO52: =IF(W52="","",IF(W52=AC52,1,IF(W52=AI52,0.5,0))) ->  | AP52: =IF(X52="","",IF(X52=AD52,1,IF(X52=AJ52,0.5,0))) ->  | AQ52: =IF(Y52="","",IF(Y52=AE52,1,IF(Y52=AK52,0.5,0))) ->  | AR52: =IF(Z52="","",IF(Z52=AF52,1,IF(Z52=AL52,0.5,0))) ->  | AS52: =IF(AA52="","",IF(AA52=AG52,1,IF(AA52=AM52,0.5,0))) -> 
B54: ZW31.12. = | F54: € | H54: =IF(C54="","",IF(C54="","",IF(C48<=C36,"Erinnerungswert!",""))) ->  | R54: =IF(AND(C54=""),"",SUM(AO54:AS54)) ->  | S54: / | T54: =COUNTA(AC54:AG54) -> 1 | W54: =IF(C54="","",C54) ->  | AB54: / | AC54: =IF(G4L!C54="","",G4L!C54) -> 33973.33333 | AH54: - | AI54: =IF(C54="","",C52-H52) ->  | AO54: =IF(W54="","",IF(W54=AC54,1,IF(W54=AI54,0.5,0))) ->  | AP54: =IF(X54="","",IF(X54=AD54,1,IF(X54=AJ54,0.5,0))) ->  | AQ54: =IF(Y54="","",IF(Y54=AE54,1,IF(Y54=AK54,0.5,0))) ->  | AR54: =IF(Z54="","",IF(Z54=AF54,1,IF(Z54=AL54,0.5,0))) ->  | AS54: =IF(AA54="","",IF(AA54=AG54,1,IF(AA54=AM54,0.5,0))) -> 
A56: Bezeichnung | C56: Baujahr | D56: Größe | E56: reduzierter | H56: Neuwert | I56: ND | J56: AfA | K56: Wert am | L56: Zugang | M56: Abgang | N56: AfA | O56: Wert am
D57: ha, lfm, m² | E57: Richtsatz | H57: in | I57: in | J57: in | K57: ="1.1."&Jahr!F4 -> 1.1. | L57: in | M57: in | N57: in | O57: ="31.12."&Jahr!F4 -> 31.12.
D58: m³, … | E58: je ha, … | H58: € | I58: Jahren | J58: €/Jahr | K58: € | L58: € | M58: € | N58: € | O58: €
A59: =IF(D1="","",D1) -> Melkstand | C59: =IF(C11="","",C11) -> 2021 | H59: =IF(H9="","",H9) -> 36400 | I59: =IF(H11="","",H11) -> 15 | J59: =IF(C36="","",C36) ->  | R59: =IF(AND(C59="",F59="",H59=""),"",SUM(AO59:AS59)) -> 0 | S59: / | T59: =COUNT(AC59:AG59) -> 3 | W59: =IF(AND(K59="",L59="",M59="",N59="",O59=""),"",IF(K59="","",K59)) ->  | X59: =IF(AND(K59="",L59="",M59="",N59="",O59=""),"",IF(L59="","",L59)) ->  | Y59: =IF(AND(K59="",L59="",M59="",N59="",O59=""),"",IF(M59="","",M59)) ->  | Z59: =IF(AND(K59="",L59="",M59="",N59="",O59=""),"",IF(N59="","",N59)) ->  | AA59: =IF(AND(K59="",L59="",M59="",N59="",O59=""),"",IF(O59="","",O59)) ->  | AB59: / | AC59: =IF(G4L!K59="","-",G4L!K59) -> - | AD59: =IF(G4L!L59="","-",G4L!L59) -> 36400 | AE59: =IF(G4L!M59="","-",G4L!M59) -> - | AF59: =IF(G4L!N59="","-",G4L!N59) -> 2426.666667 | AG59: =IF(G4L!O59="","-",G4L!O59) -> 33973.33333 | AH59: - | AI59: =IF(C48="","",IF(W28=0,"",C48)) ->  | AJ59: =IF(C48="","",IF(W28<>0,"",C48)) ->  | AL59: =IF(C36="","",C36) ->  | AM59: =IF(C54="","",C54) ->  | AO59: =IF(W59="","",IF(AND(W59<>"",OR(AC59="",AC59="-")),-1,IF(W59=AC59,1,IF(W59=AI59,0.5,0)))) ->  | AP59: =IF(X59="","",IF(AND(X59<>"",OR(AD59="",AD59="-")),-1,IF(X59=AD59,1,IF(X59=AJ59,0.5,0)))) -> 
A60: Summe | K60: =IF(SUM(K59)=0,"",SUM(K59)) ->  | L60: =IF(SUM(L59)=0,"",SUM(L59)) ->  | M60: =IF(SUM(M59)=0,"",SUM(M59)) ->  | N60: =IF(SUM(N59)=0,"",SUM(N59)) ->  | O60: =IF(SUM(O59)=0,"",SUM(O59)) ->  | W60: Korrektur trotz "Nicht anzeigen" anzeigen! | AF60: "Anschaffungswert": | AG60: =COUNTIF(AC12:AG59,"Anschaffungswert") -> 2
Q61: Gsamtpunkte: | R61: =SUM(R12:R60) -> 0 | S61: / | T61: =SUM(T12:T60) -> 32 | W61: =COUNTBLANK(W12:AA59) -> 239 | AC61: =SUM(COUNTBLANK(AC12:AG59),AG60:AG61) -> 207 | AF61: "-": | AG61: =COUNTIF(AC12:AG59,"-") -> 2

Sheet G4L
A1: Beispiel | C1: =IF('G4'!C1="","",'G4'!C1) -> 4 | D1: =IF('G4'!D1="","",'G4'!D1) -> Melkstand
A3: =IF('G4'!A3="","",'G4'!A3) -> ■ Herstellungswert bekannt
A4: =IF('G4'!A4="","",'G4'!A4) -> ■ Errichtung und Inbetriebnahme im Aufzeichnungsjahr
A5: =IF('G4'!A5="","",'G4'!A5) -> ■ kein Investitionszuschuss
A7: =IF('G4'!A7="","",'G4'!A7) -> Der Neuwert (Herstellungswert) für einen im ersten Halbjahr 2021 errichteten und in Betrieb genommenen 'MELKSTAND' beträgt laut Rechnung € 36 400,00. Die Nutzungsdauer wird mit 15 Jahren festgelegt. | B7: =IF('G4'!B7="","",'G4'!B7) ->  | C7: =IF('G4'!C7="","",'G4'!C7) ->  | D7: =IF('G4'!D7="","",'G4'!D7) ->  | E7: =IF('G4'!E7="","",'G4'!E7) ->  | F7: =IF('G4'!F7="","",'G4'!F7) ->  | G7: =IF('G4'!G7="","",'G4'!G7) ->  | H7: =IF('G4'!H7="","",'G4'!H7) ->  | I7: =IF('G4'!I7="","",'G4'!I7) ->  | J7: =IF('G4'!J7="","",'G4'!J7) ->  | K7: =IF('G4'!K7="","",'G4'!K7) ->  | L7: =IF('G4'!L7="","",'G4'!L7) ->  | M7: =IF('G4'!M7="","",'G4'!M7) ->  | N7: =IF('G4'!N7="","",'G4'!N7) ->  | O7: =IF('G4'!O7="","",'G4'!O7) -> 
B9: =IF('G4'!B9="","",'G4'!B9) -> Heuer = | C9: =IF('G4'!C9="","",'G4'!C9) -> 2021 | G9: =IF('G4'!G9="","",'G4'!G9) -> Anschaffungswert = | H9: =IF('G4'!H9="","",'G4'!H9) -> 36400 | I9: =IF('G4'!I9="","",'G4'!I9) -> €
B11: =IF('G4'!B11="","",'G4'!B11) -> Anschaffungsjahr = | C11: =IF('G4'!C11="","",'G4'!C11) -> 2021 | G11: =IF('G4'!G11="","",'G4'!G11) -> Nutzungsdauer = | H11: =IF('G4'!H11="","",'G4'!H11) -> 15 | I11: =IF('G4'!I11="","",'G4'!I11) -> Jahre
A24: 1. | B24: Alter = | C24: Heuer | F24: – | H24: Anschaffungsjahr
B26: Alter = | C26: =C9 -> 2021 | F26: =IF(F24="","",F24) -> – | H26: =C11 -> 2021
F27: ,
B28: Alter = | C28: =C26-H26 -> 0 | F28: Jahre
A30: 2. | B30: jAfa = | C30: Herstellungswert
C31: Nutzungsdauer
B33: jAfa = | C33: =H9 -> 36400
C34: =H11 -> 15
B36: jAfa = | C36: =C33/C34 -> 2426.666667 | F36: € | H36: =IF(C28>=H11,"ACHTUNG: Keine Afa mehr!","") -> 
A38: 3. | B38: bAfa = | C38: Alter | F38: • | H38: Jährliche Afa
B40: bAfa = | C40: =C28 -> 0 | F40: =IF(F38="","",F38) -> • | H40: =C36 -> 2426.666667
H41: ……..…
B42: bAfa = | C42: =C40*H40 -> 0 | F42: €
A44: 4. | B44: ZW1.1. = | C44: Herstellungswert | F44: – | H44: Bisherige Afa
B46: ZW1.1. = | C46: =H9 -> 36400 | F46: =IF(F44="","",F44) -> – | H46: =C42 -> 0
B48: ZW1.1. = | C48: =IF(C28>=H11,Jahr!D8,C46-H46) -> 36400 | F48: € | H48: =IF(C28>=H11,"Erinnerungswert!",IF(C48=H9,"ACHTUNG: Zeitwert 1.1. bleibt leer! "&DOLLAR(H9,2)&" kommt in die Spalte 'Zugang'","")) -> ACHTUNG: Zeitwert 1.1. bleibt leer! € 36 400,00 kommt in die Spalte 'Zugang'
A50: 5. | B50: ZW31.12. = | C50: Zeitwert 1.1. | F50: – | H50: Jährliche Afa
B52: ZW31.12. = | C52: =C48 -> 36400 | F52: =IF(F50="","",F50) -> – | H52: =IF(C28>=H11,0,C36) -> 2426.666667
B54: ZW31.12. = | C54: =IF(C48<=C36,Jahr!D8,C52-H52) -> 33973.33333 | F54: € | H54: =IF(C48<=C36,"Erinnerungswert!","") -> 
A56: Bezeichnung | C56: Baujahr | D56: Größe | E56: reduzierter | H56: Neuwert | I56: ND | J56: AfA | K56: Wert am | L56: Zugang | M56: Abgang | N56: AfA | O56: Wert am
D57: ha, lfm, m² | E57: Richtsatz | H57: in | I57: in | J57: in | K57: ="1.1."&Jahr!F4 -> 1.1. | L57: in | M57: in | N57: in | O57: ="31.12."&Jahr!F4 -> 31.12.
D58: m³, … | E58: je ha, … | H58: € | I58: Jahren | J58: €/Jahr | K58: € | L58: € | M58: € | N58: € | O58: €
A59: =IF(D1="","",D1) -> Melkstand | C59: =IF(C11="","",C11) -> 2021 | H59: =IF(H9="","",H9) -> 36400 | I59: =IF(H11="","",H11) -> 15 | J59: =IF(C36="","",C36) -> 2426.666667 | K59: =IF(H48="ACHTUNG: Zeitwert 1.1. bleibt leer! "&DOLLAR(H9,2)&" kommt in die Spalte 'Zugang'","",IF(C48="","",C48)) ->  | L59: =IF(H48="ACHTUNG: Zeitwert 1.1. bleibt leer! "&DOLLAR(H9,2)&" kommt in die Spalte 'Zugang'",H9,"") -> 36400 | N59: =IF(K59=Jahr!D8,"",J59) -> 2426.666667 | O59: =IF(C54="","",C54) -> 33973.33333
A60: Summe | K60: =IF(SUM(K59)=0,"",SUM(K59)) ->  | L60: =IF(SUM(L59)=0,"",SUM(L59)) -> 36400 | M60: =IF(SUM(M59)=0,"",SUM(M59)) ->  | N60: =IF(SUM(N59)=0,"",SUM(N59)) -> 2426.666667 | O60: =IF(SUM(O59)=0,"",SUM(O59)) -> 33973.33333

Sheet G5
A1: Beispiel | C1: 5 | D1: Garage
A3: ■ Herstellungswert bekannt
A4: ■ Errichtungsjahr bekannt
A5: ■ kein Investitionszuschuss | S5: Punkte
A7: ="Der Neuwert (Herstellungswert) für "&VLOOKUP($D$1,GL,4,0)&" im ersten Halbjahr "&C11&" "&VLOOKUP($D$1,GL,7,0)&" und in Betrieb "&VLOOKUP($D$1,GL,9,0)&" '"&UPPER(D1)&"' beträgt laut Rechnung "&DOLLAR(H9,2)&". Die Nutzungsdauer wird mit "&H11&" Jahren festgelegt." -> Der Neuwert (Herstellungswert) für eine im ersten Halbjahr 1994 errichtete und in Betrieb genommene 'GARAGE' beträgt laut Rechnung € 6 980,00. Die Nutzungsdauer wird mit 40 Jahren festgelegt. | R7: Anzeigen!
B9: Heuer = | C9: =IF(Jahr!D4="","",Jahr!D4) -> 2021 | G9: Anschaffungswert = | H9: 6980 | I9: €
B11: Anschaffungsjahr = | C11: =C9-H11+ROUND(H11/3,0) -> 1994 | G11: Nutzungsdauer = | H11: 40 | I11: Jahre
R12: PKT | S12: / | T12: GES | W12: Ergebnisse | AC12: Hilfe | AI12: Formelprüfung | AO12: Punkte
A24: 1. | B24: Alter = | R24: =IF(AND(C24="",F24="",H24=""),"",SUM(AO24:AS24)) ->  | S24: / | T24: =COUNTA(AC24:AG24) -> 3 | W24: =IF(C24="","",C24) ->  | Y24: =IF(F24="","",F24) ->  | AA24: =IF(H24="","",H24) ->  | AB24: / | AC24: =IF(G5L!C24="","",G5L!C24) -> Heuer | AE24: =IF(G5L!F24="","",G5L!F24) -> – | AG24: =IF(G5L!H24="","",G5L!H24) -> Anschaffungsjahr | AO24: =IF(W24="","",IF(W24=AC24,1,IF(W24=AI24,0.5,0))) ->  | AP24: =IF(X24="","",IF(X24=AD24,1,IF(X24=AJ24,0.5,0))) -> 
B26: Alter = | F26: =IF(F24="","",F24) ->  | R26: =IF(AND(C26="",F26="",H26=""),"",SUM(AO26:AS26)) ->  | S26: / | T26: =COUNTA(AC26:AG26) -> 2 | W26: =IF(C26="","",C26) ->  | AA26: =IF(H26="","",H26) ->  | AB26: / | AC26: =IF(G5L!C26="","",G5L!C26) -> 2021 | AG26: =IF(G5L!H26="","",G5L!H26) -> 1994 | AO26: =IF(W26="","",IF(W26=AC26,1,IF(W26=AI26,0.5,0))) -> 
F27: ,
B28: Alter = | F28: Jahre | R28: =IF(AND(C28=""),"",SUM(AO28:AS28)) ->  | S28: / | T28: =COUNTA(AC28:AG28) -> 1 | W28: =IF(C28="","",C28) ->  | AB28: / | AC28: =IF(G5L!C28="","",G5L!C28) -> 27 | AH28: - | AI28: =IF(C28="","",C26-H26) ->  | AO28: =IF(W28="","",IF(W28=AC28,1,IF(W28=AI28,0.5,0))) -> 
AC29: Anschaffungswert
A30: 2. | B30: jAfa = | R30: =IF(AND(C30="",F30="",H30=""),"",SUM(AO30:AS30)) ->  | S30: / | T30: =COUNTA(AC30:AG30) -> 1 | W30: =IF(C30="","",C30) ->  | AB30: / | AC30: =IF(G5L!C30="","",G5L!C30) -> Herstellungswert | AO30: =IF(W30="","",IF(COUNTIF($AC29:$AC30,W30)>0,1/COUNTIF($W30,W30),IF(COUNTIF($AI30,W30)>0,0.5/COUNTIF($W30,W30),0))) ->  | AP30: =IF(X30="","",IF(X30=AD30,1,IF(X30=AJ30,0.5,0))) -> 
R31: =IF(AND(C31="",F31="",H31=""),"",SUM(AO31:AS31)) ->  | S31: / | T31: =COUNTA(AC31:AG31) -> 1 | W31: =IF(C31="","",C31) ->  | AB31: / | AC31: =IF(G5L!C31="","",G5L!C31) -> Nutzungsdauer | AO31: =IF(W31="","",IF(W31=AC31,1,IF(W31=AI31,0.5,0))) -> 
AO32: =IF(W32="","",IF(W32=AC32,1,IF(W32=#REF!,1,IF(W32=AI32,0.5,IF(W32=#REF!,0.5,0))))) ->  | AP32: =IF(X32="","",IF(X32=AD32,1,IF(X32=#REF!,1,IF(X32=AJ32,0.5,IF(X32=#REF!,0.5,0))))) ->  | AQ32: =IF(Y32="","",IF(Y32=AE32,1,IF(Y32=#REF!,1,IF(Y32=AK32,0.5,IF(Y32=#REF!,0.5,0))))) ->  | AR32: =IF(Z32="","",IF(Z32=AF32,1,IF(Z32=#REF!,1,IF(Z32=AL32,0.5,IF(Z32=#REF!,0.5,0))))) ->  | AS32: =IF(AA32="","",IF(AA32=AG32,1,IF(AA32=#REF!,1,IF(AA32=AM32,0.5,IF(AA32=#REF!,0.5,0))))) -> 
B33: jAfa = | R33: =IF(AND(C33="",F33="",H33=""),"",SUM(AO33:AS33)) ->  | S33: / | T33: =COUNTA(AC33:AG33) -> 1 | W33: =IF(C33="","",C33) ->  | AB33: / | AC33: =IF(G5L!C33="","",G5L!C33) -> 6980 | AO33: =IF(W33="","",IF(W33=AC33,1,IF(W33=AI33,0.5,0))) ->  | AP33: =IF(X33="","",IF(X33=AD33,1,IF(X33=AJ33,0.5,0))) -> 
R34: =IF(AND(C34="",F34="",H34=""),"",SUM(AO34:AS34)) ->  | S34: / | T34: =COUNTA(AC34:AG34) -> 1 | W34: =IF(C34="","",C34) ->  | AB34: / | AC34: =IF(G5L!C34="","",G5L!C34) -> 40 | AO34: =IF(W34="","",IF(W34=AC34,1,IF(W34=AI34,0.5,0))) -> 
B36: jAfa = | F36: € | H36: =IF(C36="","",IF(C28>=H11,"ACHTUNG: Keine Afa mehr!","")) ->  | R36: =IF(AND(C36=""),"",SUM(AO36:AS36)) ->  | S36: / | T36: =COUNTA(AC36:AG36) -> 1 | W36: =IF(C36="","",C36) ->  | AB36: / | AC36: =IF(G5L!C36="","",G5L!C36) -> 174.5 | AH36: - | AI36: =IF(C36="","",C33/C34) ->  | AO36: =IF(W36="","",IF(W36=AC36,1,IF(W36=AI36,0.5,0))) ->  | AP36: =IF(X36="","",IF(X36=AD36,1,IF(X36=AJ36,0.5,0))) -> 
A38: 3. | B38: bAfa = | R38: =IF(AND(C38="",F38="",H38=""),"",SUM(AO38:AS38)) ->  | S38: / | T38: =COUNTA(AC38:AG38) -> 3 | W38: =IF(C38="","",C38) ->  | Y38: =IF(F38="","",F38) ->  | AA38: =IF(H38="","",H38) ->  | AB38: / | AC38: =IF(G5L!C38="","",G5L!C38) -> Alter | AE38: =IF(G5L!F38="","",G5L!F38) -> • | AG38: =IF(G5L!H38="","",G5L!H38) -> Jährliche Afa | AO38: =IF(W38="","",IF(COUNTIF($AC38:$AG38,W38)>0,1/COUNTIF($W38:$AA38,W38),IF(COUNTIF($AI38:$AM38,W38)>0,0.5/COUNTIF($W38:$AA38,W38),0))) ->  | AP38: =IF(X38="","",IF(COUNTIF($AC38:$AG38,X38)>0,1/COUNTIF($W38:$AA38,X38),IF(COUNTIF($AI38:$AM38,X38)>0,0.5/COUNTIF($W38:$AA38,X38),0))) -> 
B40: bAfa = | F40: =IF(F38="","",F38) ->  | R40: =IF(AND(C40="",F40="",H40=""),"",SUM(AO40:AS40)) ->  | S40: / | T40: =COUNTA(AC40:AG40) -> 2 | W40: =IF(C40="","",C40) ->  | AA40: =IF(H40="","",H40) ->  | AB40: / | AC40: =IF(G5L!C40="","",G5L!C40) -> 27 | AG40: =IF(G5L!H40="","",G5L!H40) -> 174.5 | AH40: - | AI40: =IF(C40="","",C36) ->  | AM40: =IF(H40="","",C28) ->  | AO40: =IF(W40="","",IF(COUNTIF($AC40:$AG40,W40)>0,1/COUNTIF($W40:$AA40,W40),IF(COUNTIF($AI40:$AM40,W40)>0,0.5/COUNTIF($W40:$AA40,W40),0))) ->  | AP40: =IF(X40="","",IF(COUNTIF($AC40:$AG40,X40)>0,1/COUNTIF($W40:$AA40,X40),IF(COUNTIF($AI40:$AM40,X40)>0,0.5/COUNTIF($W40:$AA40,X40),0))) -> 
H41: ……..…
B42: bAfa = | F42: € | R42: =IF(AND(C42=""),"",SUM(AO42:AS42)) ->  | S42: / | T42: =COUNTA(AC42:AG42) -> 1 | W42: =IF(C42="","",C42) ->  | AB42: / | AC42: =IF(G5L!C42="","",G5L!C42) -> 4711.5 | AH42: - | AI42: =IF(C42="","",C40*H40) ->  | AO42: =IF(W42="","",IF(COUNTIF($AC42:$AG42,W42)>0,1/COUNTIF($W42:$AA42,W42),IF(COUNTIF($AI42:$AM42,W42)>0,0.5/COUNTIF($W42:$AA42,W42),0))) ->  | AP42: =IF(X42="","",IF(COUNTIF($AC42:$AG42,X42)>0,1/COUNTIF($W42:$AA42,X42),IF(COUNTIF($AI42:$AM42,X42)>0,0.5/COUNTIF($W42:$AA42,X42),0))) -> 
AC43: Anschaffungswert
A44: 4. | B44: ZW1.1. = | R44: =IF(AND(C44="",F44="",H44=""),"",SUM(AO44:AS44)) ->  | S44: / | T44: =COUNTA(AC44:AG44) -> 3 | W44: =IF(C44="","",C44) ->  | Y44: =IF(F44="","",F44) ->  | AA44: =IF(H44="","",H44) ->  | AB44: / | AC44: =IF(G5L!C44="","",G5L!C44) -> Herstellungswert | AE44: =IF(G5L!F44="","",G5L!F44) -> – | AG44: =IF(G5L!H44="","",G5L!H44) -> Bisherige Afa | AO44: =IF(W44="","",IF(COUNTIF($AC43:$AC44,W44)>0,1/COUNTIF($W44,W44),IF(COUNTIF($AI44,W44)>0,0.5/COUNTIF($W44,W44),0))) ->  | AP44: =IF(X44="","",IF(X44=AD44,1,IF(X44=AJ44,0.5,0))) -> 
B46: ZW1.1. = | F46: =IF(F44="","",F44) ->  | R46: =IF(AND(C46="",F46="",H46=""),"",SUM(AO46:AS46)) ->  | S46: / | T46: =COUNTA(AC46:AG46) -> 2 | W46: =IF(C46="","",C46) ->  | AA46: =IF(H46="","",H46) ->  | AB46: / | AC46: =IF(G5L!C46="","",G5L!C46) -> 6980 | AG46: =IF(G5L!H46="","",G5L!H46) -> 4711.5 | AH46: - | AI46: =IF(C46="","",H9) ->  | AM46: =IF(H46="","",C42) ->  | AO46: =IF(W46="","",IF(W46=AC46,1,IF(W46=AI46,0.5,0))) -> 
B48: ZW1.1. = | F48: € | H48: =IF(C48="","",IF(C28>=H11,"Erinnerungswert!",IF(C48=H9,"ACHTUNG: Zeitwert 1.1. bleibt leer! "&DOLLAR(H9,2)&" kommt in die Spalte 'Zugang'",""))) ->  | R48: =IF(AND(C48=""),"",SUM(AO48:AS48)) ->  | S48: / | T48: =COUNTA(AC48:AG48) -> 1 | W48: =IF(C48="","",C48) ->  | AB48: / | AC48: =IF(G5L!C48="","",G5L!C48) -> 2268.5 | AH48: - | AI48: =IF(C48="","",C46-H46) ->  | AO48: =IF(W48="","",IF(W48=AC48,1,IF(W48=AI48,0.5,0))) -> 
A50: 5. | B50: ZW31.12. = | R50: =IF(AND(C50="",F50="",H50=""),"",SUM(AO50:AS50)) ->  | S50: / | T50: =COUNTA(AC50:AG50) -> 3 | W50: =IF(C50="","",C50) ->  | Y50: =IF(F50="","",F50) ->  | AA50: =IF(H50="","",H50) ->  | AB50: / | AC50: =IF(G5L!C50="","",G5L!C50) -> Zeitwert 1.1. | AE50: =IF(G5L!F50="","",G5L!F50) -> – | AG50: =IF(G5L!H50="","",G5L!H50) -> Jährliche Afa | AO50: =IF(W50="","",IF(W50=AC50,1,IF(W50=AI50,0.5,0))) ->  | AP50: =IF(X50="","",IF(X50=AD50,1,IF(X50=AJ50,0.5,0))) -> 
B52: ZW31.12. = | F52: =IF(F50="","",F50) ->  | R52: =IF(AND(C52="",F52="",H52=""),"",SUM(AO52:AS52)) ->  | S52: / | T52: =COUNTA(AC52:AG52) -> 2 | W52: =IF(C52="","",C52) ->  | AA52: =IF(H52="","",H52) ->  | AB52: / | AC52: =IF(G5L!C52="","",G5L!C52) -> 2268.5 | AG52: =IF(G5L!H52="","",G5L!H52) -> 174.5 | AH52: - | AI52: =IF(C52="","",C48) ->  | AM52: =IF(AND(H52="",C36=""),"",W36) ->  | AO52: =IF(W52="","",IF(W52=AC52,1,IF(W52=AI52,0.5,0))) -> 
B54: ZW31.12. = | F54: € | H54: =IF(C54="","",IF(C48<=C36,"Erinnerungswert!","")) ->  | R54: =IF(AND(C54=""),"",SUM(AO54:AS54)) ->  | S54: / | T54: =COUNTA(AC54:AG54) -> 1 | W54: =IF(C54="","",C54) ->  | AB54: / | AC54: =IF(G5L!C54="","",G5L!C54) -> 2094 | AH54: - | AI54: =IF(C54="","",C52-H52) ->  | AO54: =IF(W54="","",IF(W54=AC54,1,IF(W54=AI54,0.5,0))) -> 
A56: Bezeichnung | C56: Baujahr | D56: Größe | E56: reduzierter | H56: Neuwert | I56: ND | J56: AfA | K56: Wert am | L56: Zugang | M56: Abgang | N56: AfA | O56: Wert am
D57: ha, lfm, m² | E57: Richtsatz | H57: in | I57: in | J57: in | K57: ="1.1."&Jahr!F4 -> 1.1. | L57: in | M57: in | N57: in | O57: ="31.12."&Jahr!F4 -> 31.12.
D58: m³, … | E58: je ha, … | H58: € | I58: Jahren | J58: €/Jahr | K58: € | L58: € | M58: € | N58: € | O58: €
A59: =IF(D1="","",D1) -> Garage | C59: =IF(C11="","",C11) -> 1994 | H59: =IF(H9="","",H9) -> 6980 | I59: =IF(H11="","",H11) -> 40 | J59: =IF(C36="","",C36) ->  | R59: =IF(AND(C59="",F59="",H59=""),"",SUM(AO59:AS59)) -> 0 | S59: / | T59: =COUNT(AC59:AG59) -> 3 | W59: =IF(AND(K59="",L59="",M59="",N59="",O59=""),"",IF(K59="","",K59)) ->  | X59: =IF(AND(K59="",L59="",M59="",N59="",O59=""),"",IF(L59="","",L59)) ->  | Y59: =IF(AND(K59="",L59="",M59="",N59="",O59=""),"",IF(M59="","",M59)) ->  | Z59: =IF(AND(K59="",L59="",M59="",N59="",O59=""),"",IF(N59="","",N59)) ->  | AA59: =IF(AND(K59="",L59="",M59="",N59="",O59=""),"",IF(O59="","",O59)) ->  | AB59: / | AC59: =IF(G5L!K59="","-",G5L!K59) -> 2268.5 | AD59: =IF(G5L!L59="","-",G5L!L59) -> - | AE59: =IF(G5L!M59="","-",G5L!M59) -> - | AF59: =IF(G5L!N59="","-",G5L!N59) -> 174.5 | AG59: =IF(G5L!O59="","-",G5L!O59) -> 2094 | AH59: - | AI59: =IF(C48="","",IF(W28=0,"",C48)) ->  | AJ59: =IF(C48="","",IF(W28<>0,"",C48)) ->  | AK59: - | AL59: =IF(C36="","",C36) ->  | AM59: =IF(C54="","",C54) ->  | AO59: =IF(W59="","",IF(AND(W59<>"",OR(AC59="",AC59="-")),-1,IF(W59=AC59,1,IF(W59=AI59,0.5,0)))) ->  | AP59: =IF(X59="","",IF(AND(X59<>"",OR(AD59="",AD59="-")),-1,IF(X59=AD59,1,IF(X59=AJ59,0.5,0)))) -> 
A60: Summe | K60: =IF(SUM(K59)=0,"",SUM(K59)) ->  | L60: =IF(SUM(L59)=0,"",SUM(L59)) ->  | M60: =IF(SUM(M59)=0,"",SUM(M59)) ->  | N60: =IF(SUM(N59)=0,"",SUM(N59)) ->  | O60: =IF(SUM(O59)=0,"",SUM(O59)) ->  | W60: Korrektur trotz "Nicht anzeigen" anzeigen! | AF60: "Anschaffungswert": | AG60: =COUNTIF(AC12:AG59,"Anschaffungswert") -> 2
Q61: Gsamtpunkte: | R61: =SUM(R12:R60) -> 0 | S61: / | T61: =SUM(T12:T60) -> 32 | W61: =COUNTBLANK(W12:AA59) -> 239 | AC61: =SUM(COUNTBLANK(AC12:AG59),AG60:AG61) -> 207 | AF61: "-": | AG61: =COUNTIF(AC12:AG59,"-") -> 2

Sheet G5L
A1: Beispiel | C1: =IF('G5'!C1="","",'G5'!C1) -> 5 | D1: =IF('G5'!D1="","",'G5'!D1) -> Garage
A3: =IF('G5'!A3="","",'G5'!A3) -> ■ Herstellungswert bekannt
A4: =IF('G5'!A4="","",'G5'!A4) -> ■ Errichtungsjahr bekannt
A5: =IF('G5'!A5="","",'G5'!A5) -> ■ kein Investitionszuschuss
A7: =IF('G5'!A7="","",'G5'!A7) -> Der Neuwert (Herstellungswert) für eine im ersten Halbjahr 1994 errichtete und in Betrieb genommene 'GARAGE' beträgt laut Rechnung € 6 980,00. Die Nutzungsdauer wird mit 40 Jahren festgelegt. | B7: =IF('G5'!B7="","",'G5'!B7) ->  | C7: =IF('G5'!C7="","",'G5'!C7) ->  | D7: =IF('G5'!D7="","",'G5'!D7) ->  | E7: =IF('G5'!E7="","",'G5'!E7) ->  | F7: =IF('G5'!F7="","",'G5'!F7) ->  | G7: =IF('G5'!G7="","",'G5'!G7) ->  | H7: =IF('G5'!H7="","",'G5'!H7) ->  | I7: =IF('G5'!I7="","",'G5'!I7) ->  | J7: =IF('G5'!J7="","",'G5'!J7) ->  | K7: =IF('G5'!K7="","",'G5'!K7) ->  | L7: =IF('G5'!L7="","",'G5'!L7) ->  | M7: =IF('G5'!M7="","",'G5'!M7) ->  | N7: =IF('G5'!N7="","",'G5'!N7) ->  | O7: =IF('G5'!O7="","",'G5'!O7) -> 
B9: =IF('G5'!B9="","",'G5'!B9) -> Heuer = | C9: =IF('G5'!C9="","",'G5'!C9) -> 2021 | G9: =IF('G5'!G9="","",'G5'!G9) -> Anschaffungswert = | H9: =IF('G5'!H9="","",'G5'!H9) -> 6980 | I9: =IF('G5'!I9="","",'G5'!I9) -> €
B11: =IF('G5'!B11="","",'G5'!B11) -> Anschaffungsjahr = | C11: =IF('G5'!C11="","",'G5'!C11) -> 1994 | G11: =IF('G5'!G11="","",'G5'!G11) -> Nutzungsdauer = | H11: =IF('G5'!H11="","",'G5'!H11) -> 40 | I11: =IF('G5'!I11="","",'G5'!I11) -> Jahre
A24: 1. | B24: Alter = | C24: Heuer | F24: – | H24: Anschaffungsjahr
B26: Alter = | C26: =C9 -> 2021 | F26: =IF(F24="","",F24) -> – | H26: =C11 -> 1994
F27: ,
B28: Alter = | C28: =C26-H26 -> 27 | F28: Jahre
A30: 2. | B30: jAfa = | C30: Herstellungswert
C31: Nutzungsdauer
B33: jAfa = | C33: =H9 -> 6980
C34: =H11 -> 40
B36: jAfa = | C36: =C33/C34 -> 174.5 | F36: € | H36: =IF(C28>=H11,"ACHTUNG: Keine Afa mehr!","") -> 
A38: 3. | B38: bAfa = | C38: Alter | F38: • | H38: Jährliche Afa
B40: bAfa = | C40: =C28 -> 27 | F40: =IF(F38="","",F38) -> • | H40: =C36 -> 174.5
H41: ……..…
B42: bAfa = | C42: =C40*H40 -> 4711.5 | F42: €
A44: 4. | B44: ZW1.1. = | C44: Herstellungswert | F44: – | H44: Bisherige Afa
B46: ZW1.1. = | C46: =H9 -> 6980 | F46: =IF(F44="","",F44) -> – | H46: =C42 -> 4711.5
B48: ZW1.1. = | C48: =IF(C28>=H11,Jahr!D8,C46-H46) -> 2268.5 | F48: € | H48: =IF(C28>=H11,"Erinnerungswert!",IF(C48=H9,"ACHTUNG: Zeitwert 1.1. bleibt leer! "&DOLLAR(H9,2)&" kommt in die Spalte 'Zugang'","")) -> 
A50: 5. | B50: ZW31.12. = | C50: Zeitwert 1.1. | F50: – | H50: Jährliche Afa
B52: ZW31.12. = | C52: =C48 -> 2268.5 | F52: =IF(F50="","",F50) -> – | H52: =IF(C28>=H11,0,C36) -> 174.5
B54: ZW31.12. = | C54: =IF(C48<=C36,Jahr!D8,C52-H52) -> 2094 | F54: € | H54: =IF(C48<=C36,"Erinnerungswert!","") -> 
A56: Bezeichnung | C56: Baujahr | D56: Größe | E56: reduzierter | H56: Neuwert | I56: ND | J56: AfA | K56: Wert am | L56: Zugang | M56: Abgang | N56: AfA | O56: Wert am
D57: ha, lfm, m² | E57: Richtsatz | H57: in | I57: in | J57: in | K57: ="1.1."&Jahr!F4 -> 1.1. | L57: in | M57: in | N57: in | O57: ="31.12."&Jahr!F4 -> 31.12.
D58: m³, … | E58: je ha, … | H58: € | I58: Jahren | J58: €/Jahr | K58: € | L58: € | M58: € | N58: € | O58: €
A59: =IF(D1="","",D1) -> Garage | C59: =IF(C11="","",C11) -> 1994 | H59: =IF(H9="","",H9) -> 6980 | I59: =IF(H11="","",H11) -> 40 | J59: =IF(C36="","",C36) -> 174.5 | K59: =IF(H48="ACHTUNG: Zeitwert 1.1. bleibt leer! "&DOLLAR(H9,2)&" kommt in die Spalte 'Zugang'","",IF(C48="","",C48)) -> 2268.5 | L59: =IF(H48="ACHTUNG: Zeitwert 1.1. bleibt leer! "&DOLLAR(H9,2)&" kommt in die Spalte 'Zugang'",H9,"") ->  | N59: =IF(K59=Jahr!D8,"",J59) -> 174.5 | O59: =IF(C54="","",C54) -> 2094
A60: Summe | K60: =IF(SUM(K59)=0,"",SUM(K59)) -> 2268.5 | L60: =IF(SUM(L59)=0,"",SUM(L59)) ->  | M60: =IF(SUM(M59)=0,"",SUM(M59)) ->  | N60: =IF(SUM(N59)=0,"",SUM(N59)) -> 174.5 | O60: =IF(SUM(O59)=0,"",SUM(O59)) -> 2094

Sheet G6
A1: Beispiel | C1: 6 | D1: Silo
A3: ■ Herstellungswert unbekannt
A4: ■ Errichtungsjahr bekannt
A5: ■ kein Investitionszuschuss | S5: Punkte
A7: ="Der Neuwert (Herstellungswert) für "&VLOOKUP($D$1,GL,4,0)&" im ersten Halbjahr "&C11&" "&VLOOKUP($D$1,GL,7,0)&" und in Betrieb "&VLOOKUP($D$1,GL,9,0)&" '"&UPPER(D1)&"' ist unbekannt. "&PROPER(VLOOKUP($D$1,GL,11,0))&"e Größe beträgt: "&L9&M9&". Der Baukostenrichtsatz liegt bei "&DOLLAR(L11,2)&". Die Nutzungsdauer wird mit "&H11&" Jahren festgelegt." -> Der Neuwert (Herstellungswert) für einen im ersten Halbjahr 2012 errichteten und in Betrieb genommenen 'SILO' ist unbekannt. Seine Größe beträgt: 640 m³. Der Baukostenrichtsatz liegt bei € 102,00. Die Nutzungsdauer wird mit 40 Jahren festgelegt. | R7: Anzeigen!
B9: Heuer = | C9: =IF(Jahr!D4="","",Jahr!D4) -> 2021 | K9: Größe = | L9: 640 | M9: =" "&VLOOKUP(D1,GL,12,0) -> m³
B11: Anschaffungsjahr = | C11: =C9-H11+ROUND(H11/1.3,0) -> 2012 | G11: Nutzungsdauer = | H11: 40 | I11: Jahre | K11: Baukostenrichtsatz = | L11: 102 | M11: €
R12: PKT | S12: / | T12: GES | W12: Ergebnisse | AC12: Hilfe | AI12: Formelprüfung | AO12: Punkte
A24: 1. | B24: Alter = | K24: Alter < ¼ der Nutzungsdauer → Reduktion um 10% (auf 90%) | R24: =IF(AND(C24="",F24="",H24=""),"",SUM(AO24:AS24)) ->  | S24: / | T24: =COUNTA(AC24:AG24) -> 3 | W24: =IF(C24="","",C24) ->  | Y24: =IF(F24="","",F24) ->  | AA24: =IF(H24="","",H24) ->  | AB24: / | AC24: =IF(G6L!C24="","",G6L!C24) -> Heuer | AE24: =IF(G6L!F24="","",G6L!F24) -> – | AG24: =IF(G6L!H24="","",G6L!H24) -> Anschaffungsjahr | AO24: =IF(W24="","",IF(W24=AC24,1,IF(W24=AI24,0.5,0))) ->  | AP24: =IF(X24="","",IF(X24=AD24,1,IF(X24=AJ24,0.5,0))) -> 
B26: Alter = | F26: =IF(F24="","",F24) ->  | K26: Alter > ¼ und < ½ der Nutzungsdauer → Reduktion um 20% (auf 80%) | R26: =IF(AND(C26="",F26="",H26=""),"",SUM(AO26:AS26)) ->  | S26: / | T26: =COUNTA(AC26:AG26) -> 2 | W26: =IF(C26="","",C26) ->  | AA26: =IF(H26="","",H26) ->  | AB26: / | AC26: =IF(G6L!C26="","",G6L!C26) -> 2021 | AG26: =IF(G6L!H26="","",G6L!H26) -> 2012 | AO26: =IF(W26="","",IF(W26=AC26,1,IF(W26=AI26,0.5,0))) ->  | AP26: =IF(X26="","",IF(X26=AD26,1,IF(X26=AJ26,0.5,0))) ->  | AQ26: =IF(Y26="","",IF(Y26=AE26,1,IF(Y26=AK26,0.5,0))) ->  | AR26: =IF(Z26="","",IF(Z26=AF26,1,IF(Z26=AL26,0.5,0))) ->  | AS26: =IF(AA26="","",IF(AA26=AG26,1,IF(AA26=AM26,0.5,0))) -> 
F27: ,
B28: Alter = | F28: Jahre | K28: Alter > ½ Nutzungsdauer → Reduktion um 33% (auf 67%) | R28: =IF(AND(C28=""),"",SUM(AO28:AS28)) ->  | S28: / | T28: =COUNTA(AC28:AG28) -> 1 | W28: =IF(C28="","",C28) ->  | AB28: / | AC28: =IF(G6L!C28="","",G6L!C28) -> 9 | AH28: - | AI28: =IF(C28="","",C26-H26) ->  | AO28: =IF(W28="","",IF(W28=AC28,1,IF(W28=AI28,0.5,0))) ->  | AP28: =IF(X28="","",IF(X28=AD28,1,IF(X28=AJ28,0.5,0))) ->  | AQ28: =IF(Y28="","",IF(Y28=AE28,1,IF(Y28=AK28,0.5,0))) ->  | AR28: =IF(Z28="","",IF(Z28=AF28,1,IF(Z28=AL28,0.5,0))) ->  | AS28: =IF(AA28="","",IF(AA28=AG28,1,IF(AA28=AM28,0.5,0))) -> 
A30: 2. | F30: ="Baukostenrichtsatz = "&DOLLAR(L11,2)&"/"&MID(M9,2,6) -> Baukostenrichtsatz = € 102,00/m³ | H30: …..…..… | I30: 1
F32: ="Reduzierter Baukostenrichtsatz = x €/"&MID(M9,2,6) -> Reduzierter Baukostenrichtsatz = x €/m³ | H32: …..…..… | R32: =IF(AND(I32=""),"",SUM(AO32:AS32)) ->  | S32: / | T32: =COUNTA(AC32:AG32) -> 1 | W32: =IF(I32="","",I32) ->  | AB32: / | AC32: =IF(G6L!I32="","",G6L!I32) -> 0.9 | AO32: =IF(W32="","",IF(W32=AC32,1,IF(W32=AI32,0.5,0))) ->  | AP32: =IF(X32="","",IF(X32=AD32,1,IF(X32=AJ32,0.5,0))) ->  | AQ32: =IF(Y32="","",IF(Y32=AE32,1,IF(Y32=AK32,0.5,0))) ->  | AR32: =IF(Z32="","",IF(Z32=AF32,1,IF(Z32=AL32,0.5,0))) ->  | AS32: =IF(AA32="","",IF(AA32=AG32,1,IF(AA32=AM32,0.5,0))) -> 
B34: x = | C34: =IF(I32="","",DOLLAR(L11,2)) ->  | E34: =IF(I32="",""," ") ->  | F34: =IF(I32="","","•") ->  | G34: =IF(I32="",""," ") ->  | H34: =IF(I32="","",FIXED(I32,2)*100) ->  | J34: =IF(I32="","",C34*H34/C35) -> 
C35: =IF(I32="","",FIXED(I30,2)*100) -> 
A37: 3. | B37: WW = | R37: =IF(AND(C37="",F37="",H37=""),"",SUM(AO37:AS37)) ->  | S37: / | T37: =COUNTA(AC37:AG37) -> 3 | W37: =IF(C37="","",C37) ->  | Y37: =IF(F37="","",F37) ->  | AA37: =IF(H37="","",H37) ->  | AB37: / | AC37: =IF(G6L!C37="","",G6L!C37) -> Größe | AE37: =IF(G6L!F37="","",G6L!F37) -> • | AG37: =IF(G6L!H37="","",G6L!H37) -> Reduzierter Baukostenrichtsatz | AO37: =IF(W37="","",IF(COUNTIF($AC37:$AG37,W37)>0,1/COUNTIF($W37:$AA37,W37),IF(COUNTIF($AI37:$AM37,W37)>0,0.5/COUNTIF($W37:$AA37,W37),0))) ->  | AP37: =IF(X37="","",IF(COUNTIF($AC37:$AG37,X37)>0,1/COUNTIF($W37:$AA37,X37),IF(COUNTIF($AI37:$AM37,X37)>0,0.5/COUNTIF($W37:$AA37,X37),0))) -> 
B39: WW = | F39: =IF(F37="","",F37) ->  | R39: =IF(AND(C39="",F39="",H39=""),"",SUM(AO39:AS39)) ->  | S39: / | T39: =COUNTA(AC39:AG39) -> 2 | W39: =IF(C39="","",C39) ->  | AA39: =IF(H39="","",H39) ->  | AB39: / | AC39: =IF(G6L!C39="","",G6L!C39) -> 640 | AG39: =IF(G6L!H39="","",G6L!H39) -> 91.8 | AH39: - | AI39: =IF(C39="","",L9) ->  | AM39: =IF(H39="","",J34) ->  | AO39: =IF(W39="","",IF(COUNTIF($AC39:$AG39,W39)>0,1/COUNTIF($W39:$AA39,W39),IF(COUNTIF($AI39:$AM39,W39)>0,0.5/COUNTIF($W39:$AA39,W39),0))) ->  | AP39: =IF(X39="","",IF(COUNTIF($AC39:$AG39,X39)>0,1/COUNTIF($W39:$AA39,X39),IF(COUNTIF($AI39:$AM39,X39)>0,0.5/COUNTIF($W39:$AA39,X39),0))) ->  | AQ39: =IF(Y39="","",IF(COUNTIF($AC39:$AG39,Y39)>0,1/COUNTIF($W39:$AA39,Y39),IF(COUNTIF($AI39:$AM39,Y39)>0,0.5/COUNTIF($W39:$AA39,Y39),0))) ->  | AR39: =IF(Z39="","",IF(COUNTIF($AC39:$AG39,Z39)>0,1/COUNTIF($W39:$AA39,Z39),IF(COUNTIF($AI39:$AM39,Z39)>0,0.5/COUNTIF($W39:$AA39,Z39),0))) ->  | AS39: =IF(AA39="","",IF(COUNTIF($AC39:$AG39,AA39)>0,1/COUNTIF($W39:$AA39,AA39),IF(COUNTIF($AI39:$AM39,AA39)>0,0.5/COUNTIF($W39:$AA39,AA39),0))) -> 
F40: ,
B41: WW = | F41: € | R41: =IF(AND(C41=""),"",SUM(AO41:AS41)) ->  | S41: / | T41: =COUNTA(AC41:AG41) -> 1 | W41: =IF(C41="","",C41) ->  | AB41: / | AC41: =IF(G6L!C41="","",G6L!C41) -> 58752 | AH41: - | AI41: =IF(C41="","",C39*H39) ->  | AO41: =IF(W41="","",IF(COUNTIF($AC41:$AG41,W41)>0,1/COUNTIF($W41:$AA41,W41),IF(COUNTIF($AI41:$AM41,W41)>0,0.5/COUNTIF($W41:$AA41,W41),0))) ->  | AP41: =IF(X41="","",IF(COUNTIF($AC41:$AG41,X41)>0,1/COUNTIF($W41:$AA41,X41),IF(COUNTIF($AI41:$AM41,X41)>0,0.5/COUNTIF($W41:$AA41,X41),0))) ->  | AQ41: =IF(Y41="","",IF(COUNTIF($AC41:$AG41,Y41)>0,1/COUNTIF($W41:$AA41,Y41),IF(COUNTIF($AI41:$AM41,Y41)>0,0.5/COUNTIF($W41:$AA41,Y41),0))) ->  | AR41: =IF(Z41="","",IF(COUNTIF($AC41:$AG41,Z41)>0,1/COUNTIF($W41:$AA41,Z41),IF(COUNTIF($AI41:$AM41,Z41)>0,0.5/COUNTIF($W41:$AA41,Z41),0))) ->  | AS41: =IF(AA41="","",IF(COUNTIF($AC41:$AG41,AA41)>0,1/COUNTIF($W41:$AA41,AA41),IF(COUNTIF($AI41:$AM41,AA41)>0,0.5/COUNTIF($W41:$AA41,AA41),0))) -> 
AC42: Anschaffungswert
A43: 4. | B43: jAfa = | R43: =IF(AND(C43="",F43="",H43=""),"",SUM(AO43:AS43)) ->  | S43: / | T43: =COUNTA(AC43:AG43) -> 1 | W43: =IF(C43="","",C43) ->  | AB43: / | AC43: =IF(G6L!C43="","",G6L!C43) -> Wiederbeschaffungswert | AO43: =IF(W43="","",IF(COUNTIF($AC42:$AC43,W43)>0,1/COUNTIF($W43,W43),IF(COUNTIF($AI43,W43)>0,0.5/COUNTIF($W43,W43),0))) ->  | AP43: =IF(X43="","",IF(X43=AD43,1,IF(X43=AJ43,0.5,0))) ->  | AQ43: =IF(Y43="","",IF(Y43=AE43,1,IF(Y43=AK43,0.5,0))) ->  | AR43: =IF(Z43="","",IF(Z43=AF43,1,IF(Z43=AL43,0.5,0))) ->  | AS43: =IF(AA43="","",IF(AA43=AG43,1,IF(AA43=AM43,0.5,0))) -> 
R44: =IF(AND(C44="",F44="",H44=""),"",SUM(AO44:AS44)) ->  | S44: / | T44: =COUNTA(AC44:AG44) -> 1 | W44: =IF(C44="","",C44) ->  | AB44: / | AC44: =IF(G6L!C44="","",G6L!C44) -> Nutzungsdauer | AO44: =IF(W44="","",IF(W44=AC44,1,IF(W44=AI44,0.5,0))) -> 
AO45: =IF(W45="","",IF(W45=AC45,1,IF(W45=#REF!,1,IF(W45=AI45,0.5,IF(W45=#REF!,0.5,0))))) ->  | AP45: =IF(X45="","",IF(X45=AD45,1,IF(X45=#REF!,1,IF(X45=AJ45,0.5,IF(X45=#REF!,0.5,0))))) ->  | AQ45: =IF(Y45="","",IF(Y45=AE45,1,IF(Y45=#REF!,1,IF(Y45=AK45,0.5,IF(Y45=#REF!,0.5,0))))) ->  | AR45: =IF(Z45="","",IF(Z45=AF45,1,IF(Z45=#REF!,1,IF(Z45=AL45,0.5,IF(Z45=#REF!,0.5,0))))) ->  | AS45: =IF(AA45="","",IF(AA45=AG45,1,IF(AA45=#REF!,1,IF(AA45=AM45,0.5,IF(AA45=#REF!,0.5,0))))) -> 
B46: jAfa = | R46: =IF(AND(C46="",F46="",H46=""),"",SUM(AO46:AS46)) ->  | S46: / | T46: =COUNTA(AC46:AG46) -> 1 | W46: =IF(C46="","",C46) ->  | AB46: / | AC46: =IF(G6L!C46="","",G6L!C46) -> 58752 | AO46: =IF(W46="","",IF(W46=AC46,1,IF(W46=AI46,0.5,0))) ->  | AP46: =IF(X46="","",IF(X46=AD46,1,IF(X46=AJ46,0.5,0))) ->  | AQ46: =IF(Y46="","",IF(Y46=AE46,1,IF(Y46=AK46,0.5,0))) ->  | AR46: =IF(Z46="","",IF(Z46=AF46,1,IF(Z46=AL46,0.5,0))) ->  | AS46: =IF(AA46="","",IF(AA46=AG46,1,IF(AA46=AM46,0.5,0))) -> 
R47: =IF(AND(C47="",F47="",H47=""),"",SUM(AO47:AS47)) ->  | S47: / | T47: =COUNTA(AC47:AG47) -> 1 | W47: =IF(C47="","",C47) ->  | AB47: / | AC47: =IF(G6L!C47="","",G6L!C47) -> 40 | AO47: =IF(W47="","",IF(W47=AC47,1,IF(W47=AI47,0.5,0))) -> 
B49: jAfa = | F49: € | H49: =IF(C49="","",IF(C28>=H11,"ACHTUNG: Keine Afa mehr!","")) ->  | R49: =IF(AND(C49=""),"",SUM(AO49:AS49)) ->  | S49: / | T49: =COUNTA(AC49:AG49) -> 1 | W49: =IF(C49="","",C49) ->  | AB49: / | AC49: =IF(G6L!C49="","",G6L!C49) -> 1468.8 | AH49: - | AI49: =IF(C49="","",C46/C47) ->  | AO49: =IF(W49="","",IF(W49=AC49,1,IF(W49=AI49,0.5,0))) ->  | AP49: =IF(X49="","",IF(X49=AD49,1,IF(X49=AJ49,0.5,0))) ->  | AQ49: =IF(Y49="","",IF(Y49=AE49,1,IF(Y49=AK49,0.5,0))) ->  | AR49: =IF(Z49="","",IF(Z49=AF49,1,IF(Z49=AL49,0.5,0))) ->  | AS49: =IF(AA49="","",IF(AA49=AG49,1,IF(AA49=AM49,0.5,0))) -> 
A51: 5. | B51: bAfa = | R51: =IF(AND(C51="",F51="",H51=""),"",SUM(AO51:AS51)) ->  | S51: / | T51: =COUNTA(AC51:AG51) -> 3 | W51: =IF(C51="","",C51) ->  | Y51: =IF(F51="","",F51) ->  | AA51: =IF(H51="","",H51) ->  | AB51: / | AC51: =IF(G6L!C51="","",G6L!C51) -> Alter | AE51: =IF(G6L!F51="","",G6L!F51) -> • | AG51: =IF(G6L!H51="","",G6L!H51) -> Jährliche Afa | AO51: =IF(W51="","",IF(COUNTIF($AC51:$AG51,W51)>0,1/COUNTIF($W51:$AA51,W51),IF(COUNTIF($AI51:$AM51,W51)>0,0.5/COUNTIF($W51:$AA51,W51),0))) ->  | AP51: =IF(X51="","",IF(COUNTIF($AC51:$AG51,X51)>0,1/COUNTIF($W51:$AA51,X51),IF(COUNTIF($AI51:$AM51,X51)>0,0.5/COUNTIF($W51:$AA51,X51),0))) -> 
B53: bAfa = | F53: =IF(F51="","",F51) ->  | R53: =IF(AND(C53="",F53="",H53=""),"",SUM(AO53:AS53)) ->  | S53: / | T53: =COUNTA(AC53:AG53) -> 2 | W53: =IF(C53="","",C53) ->  | AA53: =IF(H53="","",H53) ->  | AB53: / | AC53: =IF(G6L!C53="","",G6L!C53) -> 9 | AG53: =IF(G6L!H53="","",G6L!H53) -> 1468.8 | AH53: - | AI53: =IF(C53="","",C49) ->  | AM53: =IF(H53="","",C28) ->  | AO53: =IF(W53="","",IF(COUNTIF($AC53:$AG53,W53)>0,1/COUNTIF($W53:$AA53,W53),IF(COUNTIF($AI53:$AM53,W53)>0,0.5/COUNTIF($W53:$AA53,W53),0))) ->  | AP53: =IF(X53="","",IF(COUNTIF($AC53:$AG53,X53)>0,1/COUNTIF($W53:$AA53,X53),IF(COUNTIF($AI53:$AM53,X53)>0,0.5/COUNTIF($W53:$AA53,X53),0))) ->  | AQ53: =IF(Y53="","",IF(COUNTIF($AC53:$AG53,Y53)>0,1/COUNTIF($W53:$AA53,Y53),IF(COUNTIF($AI53:$AM53,Y53)>0,0.5/COUNTIF($W53:$AA53,Y53),0))) ->  | AR53: =IF(Z53="","",IF(COUNTIF($AC53:$AG53,Z53)>0,1/COUNTIF($W53:$AA53,Z53),IF(COUNTIF($AI53:$AM53,Z53)>0,0.5/COUNTIF($W53:$AA53,Z53),0))) ->  | AS53: =IF(AA53="","",IF(COUNTIF($AC53:$AG53,AA53)>0,1/COUNTIF($W53:$AA53,AA53),IF(COUNTIF($AI53:$AM53,AA53)>0,0.5/COUNTIF($W53:$AA53,AA53),0))) -> 
B55: bAfa = | F55: € | R55: =IF(AND(C55=""),"",SUM(AO55:AS55)) ->  | S55: / | T55: =COUNTA(AC55:AG55) -> 1 | W55: =IF(C55="","",C55) ->  | AB55: / | AC55: =IF(G6L!C55="","",G6L!C55) -> 13219.2 | AH55: - | AI55: =IF(C55="","",C53*H53) ->  | AO55: =IF(W55="","",IF(COUNTIF($AC55:$AG55,W55)>0,1/COUNTIF($W55:$AA55,W55),IF(COUNTIF($AI55:$AM55,W55)>0,0.5/COUNTIF($W55:$AA55,W55),0))) ->  | AP55: =IF(X55="","",IF(COUNTIF($AC55:$AG55,X55)>0,1/COUNTIF($W55:$AA55,X55),IF(COUNTIF($AI55:$AM55,X55)>0,0.5/COUNTIF($W55:$AA55,X55),0))) ->  | AQ55: =IF(Y55="","",IF(COUNTIF($AC55:$AG55,Y55)>0,1/COUNTIF($W55:$AA55,Y55),IF(COUNTIF($AI55:$AM55,Y55)>0,0.5/COUNTIF($W55:$AA55,Y55),0))) ->  | AR55: =IF(Z55="","",IF(COUNTIF($AC55:$AG55,Z55)>0,1/COUNTIF($W55:$AA55,Z55),IF(COUNTIF($AI55:$AM55,Z55)>0,0.5/COUNTIF($W55:$AA55,Z55),0))) ->  | AS55: =IF(AA55="","",IF(COUNTIF($AC55:$AG55,AA55)>0,1/COUNTIF($W55:$AA55,AA55),IF(COUNTIF($AI55:$AM55,AA55)>0,0.5/COUNTIF($W55:$AA55,AA55),0))) -> 
AC56: Anschaffungswert
A57: 6. | B57: ZW1.1. = | R57: =IF(AND(C57="",F57="",H57=""),"",SUM(AO57:AS57)) ->  | S57: / | T57: =COUNTA(AC57:AG57) -> 3 | W57: =IF(C57="","",C57) ->  | Y57: =IF(F57="","",F57) ->  | AA57: =IF(H57="","",H57) ->  | AB57: / | AC57: =IF(G6L!C57="","",G6L!C57) -> Wiederbeschaffungswert | AE57: =IF(G6L!F57="","",G6L!F57) -> – | AG57: =IF(G6L!H57="","",G6L!H57) -> Bisherige Afa | AO57: =IF(W57="","",IF(COUNTIF($AC56:$AC57,W57)>0,1/COUNTIF($W57,W57),IF(COUNTIF($AI57,W57)>0,0.5/COUNTIF($W57,W57),0))) ->  | AP57: =IF(X57="","",IF(X57=AD57,1,IF(X57=AJ57,0.5,0))) ->  | AQ57: =IF(Y57="","",IF(Y57=AE57,1,IF(Y57=AK57,0.5,0))) ->  | AR57: =IF(Z57="","",IF(Z57=AF57,1,IF(Z57=AL57,0.5,0))) ->  | AS57: =IF(AA57="","",IF(AA57=AG57,1,IF(AA57=AM57,0.5,0))) -> 
B59: ZW1.1. = | F59: =IF(F57="","",F57) ->  | R59: =IF(AND(C59="",F59="",H59=""),"",SUM(AO59:AS59)) ->  | S59: / | T59: =COUNTA(AC59:AG59) -> 2 | W59: =IF(C59="","",C59) ->  | AA59: =IF(H59="","",H59) ->  | AB59: / | AC59: =IF(G6L!C59="","",G6L!C59) -> 58752 | AG59: =IF(G6L!H59="","",G6L!H59) -> 13219.2 | AH59: - | AI59: =IF(C59="","",H9) ->  | AM59: =IF(H59="","",C55) ->  | AO59: =IF(W59="","",IF(W59=AC59,1,IF(W59=AI59,0.5,0))) ->  | AP59: =IF(X59="","",IF(X59=AD59,1,IF(X59=AJ59,0.5,0))) ->  | AQ59: =IF(Y59="","",IF(Y59=AE59,1,IF(Y59=AK59,0.5,0))) ->  | AR59: =IF(Z59="","",IF(Z59=AF59,1,IF(Z59=AL59,0.5,0))) ->  | AS59: =IF(AA59="","",IF(AA59=AG59,1,IF(AA59=AM59,0.5,0))) -> 
B61: ZW1.1. = | F61: € | H61: =IF(C41="","",IF(C28>=H11,"Erinnerungswert!",IF(C61=C41,"ACHTUNG: Zeitwert 1.1. bleibt leer! "&DOLLAR(C41,2)&" kommt in die Spalte 'Zugang'",""))) ->  | R61: =IF(AND(C61=""),"",SUM(AO61:AS61)) ->  | S61: / | T61: =COUNTA(AC61:AG61) -> 1 | W61: =IF(C61="","",C61) ->  | AB61: / | AC61: =IF(G6L!C61="","",G6L!C61) -> 45532.8 | AH61: - | AI61: =IF(C61="","",C59-H59) ->  | AO61: =IF(W61="","",IF(W61=AC61,1,IF(W61=AI61,0.5,0))) ->  | AP61: =IF(X61="","",IF(X61=AD61,1,IF(X61=AJ61,0.5,0))) ->  | AQ61: =IF(Y61="","",IF(Y61=AE61,1,IF(Y61=AK61,0.5,0))) ->  | AR61: =IF(Z61="","",IF(Z61=AF61,1,IF(Z61=AL61,0.5,0))) ->  | AS61: =IF(AA61="","",IF(AA61=AG61,1,IF(AA61=AM61,0.5,0))) -> 
A63: 7. | B63: ZW31.12. = | R63: =IF(AND(C63="",F63="",H63=""),"",SUM(AO63:AS63)) ->  | S63: / | T63: =COUNTA(AC63:AG63) -> 3 | W63: =IF(C63="","",C63) ->  | Y63: =IF(F63="","",F63) ->  | AA63: =IF(H63="","",H63) ->  | AB63: / | AC63: =IF(G6L!C63="","",G6L!C63) -> Zeitwert 1.1. | AE63: =IF(G6L!F63="","",G6L!F63) -> – | AG63: =IF(G6L!H63="","",G6L!H63) -> Jährliche Afa | AO63: =IF(W63="","",IF(W63=AC63,1,IF(W63=AI63,0.5,0))) ->  | AP63: =IF(X63="","",IF(X63=AD63,1,IF(X63=AJ63,0.5,0))) ->  | AQ63: =IF(Y63="","",IF(Y63=AE63,1,IF(Y63=AK63,0.5,0))) ->  | AR63: =IF(Z63="","",IF(Z63=AF63,1,IF(Z63=AL63,0.5,0))) ->  | AS63: =IF(AA63="","",IF(AA63=AG63,1,IF(AA63=AM63,0.5,0))) -> 
B65: ZW31.12. = | F65: =IF(F63="","",F63) ->  | R65: =IF(AND(C65="",F65="",H65=""),"",SUM(AO65:AS65)) ->  | S65: / | T65: =COUNTA(AC65:AG65) -> 2 | W65: =IF(C65="","",C65) ->  | AA65: =IF(H65="","",H65) ->  | AB65: / | AC65: =IF(G6L!C65="","",G6L!C65) -> 45532.8 | AG65: =IF(G6L!H65="","",G6L!H65) -> 1468.8 | AH65: - | AI65: =IF(C65="","",C61) ->  | AM65: =IF(AND(H65="",C49=""),"",W49) ->  | AO65: =IF(W65="","",IF(W65=AC65,1,IF(W65=AI65,0.5,0))) ->  | AP65: =IF(X65="","",IF(X65=AD65,1,IF(X65=AJ65,0.5,0))) ->  | AQ65: =IF(Y65="","",IF(Y65=AE65,1,IF(Y65=AK65,0.5,0))) ->  | AR65: =IF(Z65="","",IF(Z65=AF65,1,IF(Z65=AL65,0.5,0))) ->  | AS65: =IF(AA65="","",IF(AA65=AG65,1,IF(AA65=AM65,0.5,0))) -> 
B67: ZW31.12. = | F67: € | H67: =IF(C67="","",IF(C61<=C49,"Erinnerungswert!","")) ->  | R67: =IF(AND(C67=""),"",SUM(AO67:AS67)) ->  | S67: / | T67: =COUNTA(AC67:AG67) -> 1 | W67: =IF(C67="","",C67) ->  | AB67: / | AC67: =IF(G6L!C67="","",G6L!C67) -> 44064 | AH67: - | AI67: =IF(C67="","",C65-H65) ->  | AO67: =IF(W67="","",IF(W67=AC67,1,IF(W67=AI67,0.5,0))) ->  | AP67: =IF(X67="","",IF(X67=AD67,1,IF(X67=AJ67,0.5,0))) ->  | AQ67: =IF(Y67="","",IF(Y67=AE67,1,IF(Y67=AK67,0.5,0))) ->  | AR67: =IF(Z67="","",IF(Z67=AF67,1,IF(Z67=AL67,0.5,0))) ->  | AS67: =IF(AA67="","",IF(AA67=AG67,1,IF(AA67=AM67,0.5,0))) -> 
A69: Bezeichnung | C69: Baujahr | D69: Größe | E69: reduzierter | H69: Neuwert | I69: ND | J69: AfA | K69: Wert am | L69: Zugang | M69: Abgang | N69: AfA | O69: Wert am
D70: ha, lfm, m² | E70: Richtsatz | H70: in | I70: in | J70: in | K70: ="1.1."&Jahr!F4 -> 1.1. | L70: in | M70: in | N70: in | O70: ="31.12."&Jahr!F4 -> 31.12.
D71: m³, … | E71: je ha, … | H71: € | I71: Jahren | J71: €/Jahr | K71: € | L71: € | M71: € | N71: € | O71: €
A72: =IF(D1="","",D1) -> Silo | C72: =IF(C11="","",C11) -> 2012 | D72: =IF(L9="","",L9) -> 640 | E72: =IF(J34="","",C34*H34/C35) ->  | H72: =IF(C41="","",C41) ->  | I72: =IF(H11="","",H11) -> 40 | J72: =IF(C49="","",C49) ->  | R72: =IF(AND(C72="",F72="",H72=""),"",SUM(AO72:AS72)) -> 0 | S72: / | T72: =COUNT(AC72:AG72) -> 3 | W72: =IF(AND(K72="",L72="",M72="",N72="",O72=""),"",IF(K72="","",K72)) ->  | X72: =IF(AND(K72="",L72="",M72="",N72="",O72=""),"",IF(L72="","",L72)) ->  | Y72: =IF(AND(K72="",L72="",M72="",N72="",O72=""),"",IF(M72="","",M72)) ->  | Z72: =IF(AND(K72="",L72="",M72="",N72="",O72=""),"",IF(N72="","",N72)) ->  | AA72: =IF(AND(K72="",L72="",M72="",N72="",O72=""),"",IF(O72="","",O72)) ->  | AB72: / | AC72: =IF(G6L!K72="","-",G6L!K72) -> 45532.8 | AD72: =IF(G6L!L72="","-",G6L!L72) -> - | AE72: =IF(G6L!M72="","-",G6L!M72) -> - | AF72: =IF(G6L!N72="","-",G6L!N72) -> 1468.8 | AG72: =IF(G6L!O72="","-",G6L!O72) -> 44064 | AH72: - | AI72: =IF(C61="","",IF(W28=0,"",C61)) ->  | AJ72: =IF(C61="","",IF(W28<>0,"",C61)) ->  | AK72: - | AL72: =IF(C49="","",C49) ->  | AM72: =IF(C67="","",C67) ->  | AO72: =IF(W72="","",IF(AND(W72<>"",OR(AC72="",AC72="-")),-1,IF(W72=AC72,1,IF(W72=AI72,0.5,0)))) ->  | AP72: =IF(X72="","",IF(AND(X72<>"",OR(AD72="",AD72="-")),-1,IF(X72=AD72,1,IF(X72=AJ72,0.5,0)))) -> 
A73: Summe | K73: =IF(SUM(K72)=0,"",SUM(K72)) ->  | L73: =IF(SUM(L72)=0,"",SUM(L72)) ->  | M73: =IF(SUM(M72)=0,"",SUM(M72)) ->  | N73: =IF(SUM(N72)=0,"",SUM(N72)) ->  | O73: =IF(SUM(O72)=0,"",SUM(O72)) ->  | W73: Korrektur trotz "Nicht anzeigen" anzeigen! | AF73: "Anschaffungswert": | AG73: =COUNTIF(AC25:AG72,"Anschaffungswert") -> 2
Q74: Gsamtpunkte: | R74: =SUM(R12:R73) -> 0 | S74: / | T74: =SUM(T12:T73) -> 39 | W74: =COUNTBLANK(W12:AA72) -> 304 | AC74: =SUM(COUNTBLANK(AC12:AG72),AG73:AG74) -> 265 | AF74: "-": | AG74: =COUNTIF(AC25:AG72,"-") -> 2

Sheet G6L
A1: Beispiel | C1: =IF('G6'!C1="","",'G6'!C1) -> 6 | D1: =IF('G6'!D1="","",'G6'!D1) -> Silo
A3: =IF('G6'!A3="","",'G6'!A3) -> ■ Herstellungswert unbekannt
A4: =IF('G6'!A4="","",'G6'!A4) -> ■ Errichtungsjahr bekannt
A5: =IF('G6'!A5="","",'G6'!A5) -> ■ kein Investitionszuschuss
A7: =IF('G6'!A7="","",'G6'!A7) -> Der Neuwert (Herstellungswert) für einen im ersten Halbjahr 2012 errichteten und in Betrieb genommenen 'SILO' ist unbekannt. Seine Größe beträgt: 640 m³. Der Baukostenrichtsatz liegt bei € 102,00. Die Nutzungsdauer wird mit 40 Jahren festgelegt. | B7: =IF('G6'!B7="","",'G6'!B7) ->  | C7: =IF('G6'!C7="","",'G6'!C7) ->  | D7: =IF('G6'!D7="","",'G6'!D7) ->  | E7: =IF('G6'!E7="","",'G6'!E7) ->  | F7: =IF('G6'!F7="","",'G6'!F7) ->  | G7: =IF('G6'!G7="","",'G6'!G7) ->  | H7: =IF('G6'!H7="","",'G6'!H7) ->  | I7: =IF('G6'!I7="","",'G6'!I7) ->  | J7: =IF('G6'!J7="","",'G6'!J7) ->  | K7: =IF('G6'!K7="","",'G6'!K7) ->  | L7: =IF('G6'!L7="","",'G6'!L7) ->  | M7: =IF('G6'!M7="","",'G6'!M7) ->  | N7: =IF('G6'!N7="","",'G6'!N7) ->  | O7: =IF('G6'!O7="","",'G6'!O7) -> 
B9: =IF('G6'!B9="","",'G6'!B9) -> Heuer = | C9: =IF('G6'!C9="","",'G6'!C9) -> 2021 | K9: =IF('G6'!K9="","",'G6'!K9) -> Größe = | L9: =IF('G6'!L9="","",'G6'!L9) -> 640 | M9: =IF('G6'!M9="","",'G6'!M9) -> m³
B11: =IF('G6'!B11="","",'G6'!B11) -> Anschaffungsjahr = | C11: =IF('G6'!C11="","",'G6'!C11) -> 2012 | G11: =IF('G6'!G11="","",'G6'!G11) -> Nutzungsdauer = | H11: =IF('G6'!H11="","",'G6'!H11) -> 40 | I11: =IF('G6'!I11="","",'G6'!I11) -> Jahre | K11: =IF('G6'!K11="","",'G6'!K11) -> Baukostenrichtsatz = | L11: =IF('G6'!L11="","",'G6'!L11) -> 102 | M11: =IF('G6'!M11="","",'G6'!M11) -> €
A24: 1. | B24: Alter = | C24: Heuer | F24: – | H24: Anschaffungsjahr | K24: Alter < ¼ der Nutzungsdauer → Reduktion um 10% (auf 90%)
B26: Alter = | C26: =IF(C9="","",C9) -> 2021 | F26: =IF(F24="","",F24) -> – | H26: =IF(C11="","",C11) -> 2012 | K26: Alter > ¼ und < ½ der Nutzungsdauer → Reduktion um 20% (auf 80%)
B28: Alter = | C28: =C26-H26 -> 9 | F28: Jahre | K28: Alter > ½ Nutzungsdauer → Reduktion um 33% (auf 67%)
A30: 2. | F30: ="Baukostenrichtsatz = "&DOLLAR(L11,2)&"/"&MID(M9,2,6) -> Baukostenrichtsatz = € 102,00/m³ | H30: …..…..… | I30: 1
F32: ="Reduzierter Baukostenrichtsatz = x €/"&MID(M9,2,6) -> Reduzierter Baukostenrichtsatz = x €/m³ | H32: …..…..… | I32: =IF(C28<(H11/4),90%,IF(AND(C28>=(H11/4),C28<(H11/2)),80%,IF(C28>=(H11/2),67%,""))) -> 0.9
B34: x = | C34: =IF(I32="","",DOLLAR(L11,2)) -> € 102,00 | E34: =IF(I32="",""," ") ->  | F34: =IF(I32="","","•") -> • | G34: =IF(I32="",""," ") ->  | H34: =IF(I32="","",FIXED(I32,2)*100) -> 90 | J34: =IF(I32="",""," = "&DOLLAR(C34*H34/C35,2)) -> = € 91,80
C35: =IF(I32="","",FIXED(I30,2)*100) -> 100
A37: 3. | B37: WW = | C37: Größe | F37: • | H37: Reduzierter Baukostenrichtsatz
B39: WW = | C39: =IF(L9="","",L9) -> 640 | F39: =IF(F37="","",F37) -> • | H39: =IF(J34="","",C34*H34/C35) -> 91.8
F40: ,
B41: WW = | C41: =C39*H39 -> 58752 | F41: €
A43: 4. | B43: jAfa = | C43: Wiederbeschaffungswert
C44: Nutzungsdauer
B46: jAfa = | C46: =IF(C41="","",C41) -> 58752
C47: =H11 -> 40
B49: jAfa = | C49: =C46/C47 -> 1468.8 | F49: € | H49: =IF(C28>=H11,"ACHTUNG: Keine Afa mehr!","") -> 
A51: 5. | B51: bAfa = | C51: Alter | F51: • | H51: Jährliche Afa
B53: bAfa = | C53: =C28 -> 9 | F53: =IF(F51="","",F51) -> • | H53: =C49 -> 1468.8
B55: bAfa = | C55: =C53*H53 -> 13219.2 | F55: €
A57: 6. | B57: ZW1.1. = | C57: Wiederbeschaffungswert | F57: – | H57: Bisherige Afa
B59: ZW1.1. = | C59: =IF(C41="","",C41) -> 58752 | F59: =IF(F57="","",F57) -> – | H59: =C55 -> 13219.2
B61: ZW1.1. = | C61: =IF(C28>=H11,Jahr!D8,C59-H59) -> 45532.8 | F61: € | H61: =IF(C28>=H11,"Erinnerungswert!",IF(C9=C11,"ACHTUNG: Zeitwert 1.1. bleibt leer! "&DOLLAR(C61,2)&" kommt in die Spalte 'Zugang'","")) -> 
A63: 7. | B63: ZW31.12. = | C63: Zeitwert 1.1. | F63: – | H63: Jährliche Afa
B65: ZW31.12. = | C65: =C61 -> 45532.8 | F65: =IF(F63="","",F63) -> – | H65: =IF(C28>=H11,0,C49) -> 1468.8
B67: ZW31.12. = | C67: =IF(C61<=C49,Jahr!D8,C65-H65) -> 44064 | F67: € | H67: =IF(C61<=C49,"Erinnerungswert!","") -> 
A69: Bezeichnung | C69: Baujahr | D69: Größe | E69: reduzierter | H69: Neuwert | I69: ND | J69: AfA | K69: Wert am | L69: Zugang | M69: Abgang | N69: AfA | O69: Wert am
D70: ha, lfm, m² | E70: Richtsatz | H70: in | I70: in | J70: in | K70: ="1.1."&Jahr!F4 -> 1.1. | L70: in | M70: in | N70: in | O70: ="31.12."&Jahr!F4 -> 31.12.
D71: m³, … | E71: je ha, … | H71: € | I71: Jahren | J71: €/Jahr | K71: € | L71: € | M71: € | N71: € | O71: €
A72: =IF(D1="","",D1) -> Silo | C72: =IF(C11="","",C11) -> 2012 | D72: =IF(L9="","",L9) -> 640 | E72: =IF(J34="","",C34*H34/C35) -> 91.8 | H72: =IF(C41="","",C41) -> 58752 | I72: =IF(H11="","",H11) -> 40 | J72: =IF(C49="","",C49) -> 1468.8 | K72: =IF(H61="ACHTUNG: Zeitwert 1.1. bleibt leer! "&DOLLAR(C61,2)&" kommt in die Spalte 'Zugang'","",IF(C61="","",C61)) -> 45532.8 | L72: =IF(H61="ACHTUNG: Zeitwert 1.1. bleibt leer! "&DOLLAR(C61,2)&" kommt in die Spalte 'Zugang'",C41,"") ->  | N72: =IF(K72=Jahr!D8,"",J72) -> 1468.8 | O72: =IF(C67="","",C67) -> 44064
A73: Summe | K73: =IF(SUM(K72)=0,"",SUM(K72)) -> 45532.8 | L73: =IF(SUM(L72)=0,"",SUM(L72)) ->  | M73: =IF(SUM(M72)=0,"",SUM(M72)) ->  | N73: =IF(SUM(N72)=0,"",SUM(N72)) -> 1468.8 | O73: =IF(SUM(O72)=0,"",SUM(O72)) -> 44064

Sheet G6.1
A1: Beispiel | C1: 6.1 | D1: Pferdestall
A3: ■ Herstellungswert unbekannt
A4: ■ Errichtungsjahr bekannt
A5: ■ kein Investitionszuschuss | W5: Punkte
A7: =IF(C11="","Ein Betriebsgebäude, dessen Errichtungsjahr unbekannt ist, das sich aber noch ","Ein "&C11&" errichtetes Betriebsgebäude, das sich noch")&" in einem sehr guten Bauzustand befindet, wird als "&UPPER(D1)&" genutzt. "&"Der Herstellungswert des Gebäudes ist nicht bekannt. Die betriebsgewöhnliche Nutzungsdauer wurde mit "&C13&" Jahren festgelegt. Die Länge beträgt "&I9&" m, die Breite "&I11&" m, "&IF(I15<>"","die Mauerhöhe "&I13&" m und die halbe Dachstuhlhöhe "&I15&" m.","und die Gebäudehöhe "&O15&" m.") -> Ein 1997 errichtetes Betriebsgebäude, das sich noch in einem sehr guten Bauzustand befindet, wird als PFERDESTALL genutzt. Der Herstellungswert des Gebäudes ist nicht bekannt. Die betriebsgewöhnliche Nutzungsdauer wurde mit 40 Jahren festgelegt. Die Länge beträgt 20 m, die Breite 8 m, und die Gebäudehöhe 4 m. | V7: Anzeigen!
B9: Heuer = | C9: =IF(Jahr!D4="","",Jahr!D4) -> 2021 | H9: Länge = | I9: 20 | J9: m | N9: Baukostenrichtsatz = | O9: 132 | P9: € | Q9: =IF(OR(O15=0,O15=""),"m²","m³") -> m³
B11: Anschaffungsjahr = | C11: =C9-C13+ROUND(C13/2.5,0) -> 1997 | H11: Breite = | I11: 8 | J11: m
B13: Betriebsgew. ND = | C13: 40 | D13: Jahre | H13: Setienwandhöhe1) = | I13: 4 | J13: m → (h od. hMAX)
H15: ½ Dachstuhlhöhe = | J15: m | N15: Gesamthöhe = | O15: =IF(AND(I13="",I15=""),"",SUM(I13,I15)) -> 4 | P15: m
A17: 1) Die Messung der Gebäudehöhe (= Geschoß- bzw. Seitenwandhöhe) erfolgt von der Fußbodenoberkante bis zur Deckenoberkante! ACHTUNG: Die in den Baukostenrichtsätzen angegebene Maximalhöhe (hMAX) ist zu beachten und Dachräume sind gesondert zu berechnen! | V17: PKT | W17: / | X17: GES | AA17: Ergebnisse | AG17: Hilfe | AM17: Formelprüfung | AS17: Punkte
A24: 1. | B24: Alter = | L24: Alter < ¼ der Nutzungsdauer → Reduktion um 10% (auf 90%) | V24: =IF(AND(C24="",F24="",H24=""),"",SUM(AS24:AW24)) ->  | W24: / | X24: =COUNTA(AG24:AK24) -> 3 | AA24: =IF(C24="","",C24) ->  | AC24: =IF(F24="","",F24) ->  | AE24: =IF(H24="","",H24) ->  | AF24: / | AG24: =IF('G6.1L'!C24="","",'G6.1L'!C24) -> Heuer | AI24: =IF('G6.1L'!F24="","",'G6.1L'!F24) -> – | AK24: =IF('G6.1L'!H24="","",'G6.1L'!H24) -> Anschaffungsjahr | AS24: =IF(AA24="","",IF(AA24=AG24,1,IF(AA24=AM24,0.5,0))) ->  | AT24: =IF(AB24="","",IF(AB24=AH24,1,IF(AB24=AN24,0.5,0))) -> 
B26: Alter = | F26: =IF(F24="","",F24) ->  | L26: Alter > ¼ und < ½ der Nutzungsdauer → Reduktion um 20% (auf 80%) | V26: =IF(AND(C26="",F26="",H26=""),"",SUM(AS26:AW26)) ->  | W26: / | X26: =COUNTA(AG26:AK26) -> 2 | AA26: =IF(C26="","",C26) ->  | AE26: =IF(H26="","",H26) ->  | AF26: / | AG26: =IF('G6.1L'!C26="","",'G6.1L'!C26) -> 2021 | AK26: =IF('G6.1L'!H26="","",'G6.1L'!H26) -> 1997 | AS26: =IF(AA26="","",IF(AA26=AG26,1,IF(AA26=AM26,0.5,0))) ->  | AT26: =IF(AB26="","",IF(AB26=AH26,1,IF(AB26=AN26,0.5,0))) ->  | AU26: =IF(AC26="","",IF(AC26=AI26,1,IF(AC26=AO26,0.5,0))) ->  | AV26: =IF(AD26="","",IF(AD26=AJ26,1,IF(AD26=AP26,0.5,0))) ->  | AW26: =IF(AE26="","",IF(AE26=AK26,1,IF(AE26=AQ26,0.5,0))) -> 
F27: ,
B28: Alter = | F28: Jahre | L28: Alter > ½ Nutzungsdauer → Reduktion um 33% (auf 67%) | V28: =IF(AND(C28=""),"",SUM(AS28:AW28)) ->  | W28: / | X28: =COUNTA(AG28:AK28) -> 1 | AA28: =IF(C28="","",C28) ->  | AF28: / | AG28: =IF('G6.1L'!C28="","",'G6.1L'!C28) -> 24 | AL28: - | AM28: =IF(C28="","",C26-H26) ->  | AS28: =IF(AA28="","",IF(AA28=AG28,1,IF(AA28=AM28,0.5,0))) ->  | AT28: =IF(AB28="","",IF(AB28=AH28,1,IF(AB28=AN28,0.5,0))) ->  | AU28: =IF(AC28="","",IF(AC28=AI28,1,IF(AC28=AO28,0.5,0))) ->  | AV28: =IF(AD28="","",IF(AD28=AJ28,1,IF(AD28=AP28,0.5,0))) ->  | AW28: =IF(AE28="","",IF(AE28=AK28,1,IF(AE28=AQ28,0.5,0))) -> 
A30: 2. | F30: ="Baukostenrichtsatz = "&DOLLAR(O9,2)&P9&"/"&MID(Q9,1,6) -> Baukostenrichtsatz = € 132,00 €/m³ | H30: …..…..… | I30: 1
F32: ="Reduzierter Baukostenrichtsatz = x €/"&MID(Q9,1,6) -> Reduzierter Baukostenrichtsatz = x €/m³ | H32: …..…..… | V32: =IF(AND(I32=""),"",SUM(AS32:AW32)) ->  | W32: / | X32: =COUNTA(AG32:AK32) -> 1 | AA32: =IF(I32="","",I32) ->  | AF32: / | AG32: =IF('G6.1L'!I32="","",'G6.1L'!I32) -> 0.67 | AS32: =IF(AA32="","",IF(AA32=AG32,1,IF(AA32=AM32,0.5,0))) ->  | AT32: =IF(AB32="","",IF(AB32=AH32,1,IF(AB32=AN32,0.5,0))) ->  | AU32: =IF(AC32="","",IF(AC32=AI32,1,IF(AC32=AO32,0.5,0))) ->  | AV32: =IF(AD32="","",IF(AD32=AJ32,1,IF(AD32=AP32,0.5,0))) ->  | AW32: =IF(AE32="","",IF(AE32=AK32,1,IF(AE32=AQ32,0.5,0))) -> 
B34: x = | C34: =IF(I32="","",DOLLAR(O9,2)) ->  | E34: =IF(I32="",""," ") ->  | F34: =IF(I32="","","•") ->  | G34: =IF(I32="",""," ") ->  | H34: =IF(I32="","",FIXED(I32,2)*100) ->  | K34: =IF(I32="","",C34*H34/C35) -> 
C35: =IF(I32="","",FIXED(I30,2)*100) -> 
A37: 3. | B37: Größe = | V37: =IF(AND(C37="",F37="",H37=""),"",SUM(AS37:AW37)) ->  | W37: / | X37: =COUNTA(AG37:AK37) -> 5 | AA37: =IF(C37="","",C37) ->  | AB37: =IF(F37="","",F37) ->  | AC37: =IF(H37="","",H37) ->  | AD37: =IF(K37="","",K37) ->  | AE37: =IF(M37="","",M37) ->  | AF37: / | AG37: =IF('G6.1L'!C37="","",'G6.1L'!C37) -> Länge | AH37: =IF('G6.1L'!F37="","",'G6.1L'!F37) -> • | AI37: =IF('G6.1L'!H37="","",'G6.1L'!H37) -> Breite | AJ37: =IF('G6.1L'!K37="","",'G6.1L'!K37) -> • | AK37: =IF('G6.1L'!M37="","",'G6.1L'!M37) -> Höhe | AS37: =IF(AA37="","",IF(COUNTIF($AG37:$AK37,AA37)>0,1/COUNTIF($AA37:$AE37,AA37),IF(COUNTIF($AM37:$AQ37,AA37)>0,0.5/COUNTIF($AA37:$AE37,AA37),0))) ->  | AT37: =IF(AB37="","",IF(AB37=AH37,1,IF(AB37=AN37,0.5,0))) ->  | AU37: =IF(AC37="","",IF(COUNTIF($AG37:$AK37,AC37)>0,1/COUNTIF($AA37:$AE37,AC37),IF(COUNTIF($AM37:$AQ37,AC37)>0,0.5/COUNTIF($AA37:$AE37,AC37),0))) ->  | AV37: =IF(AD37="","",IF(AD37=AJ37,1,IF(AD37=AP37,0.5,0))) ->  | AW37: =IF(AE37="","",IF(COUNTIF($AG37:$AK37,AE37)>0,1/COUNTIF($AA37:$AE37,AE37),IF(COUNTIF($AM37:$AQ37,AE37)>0,0.5/COUNTIF($AA37:$AE37,AE37),0))) -> 
B39: Größe = | F39: =IF(F37="","",F37) ->  | K39: =IF(K37="","",K37) ->  | V39: =IF(AND(C39="",F39="",H39=""),"",SUM(AS39:AW39)) ->  | W39: / | X39: =COUNTA(AG39:AK39) -> 3 | AA39: =IF(C39="","",C39) ->  | AC39: =IF(H39="","",H39) ->  | AE39: =IF(M39="","",M39) ->  | AF39: / | AG39: =IF('G6.1L'!C39="","",'G6.1L'!C39) -> 20 | AI39: =IF('G6.1L'!H39="","",'G6.1L'!H39) -> 8 | AK39: =IF('G6.1L'!M39="","",'G6.1L'!M39) -> 4 | AS39: =IF(AA39="","",IF(COUNTIF($AG39:$AK39,AA39)>0,1/COUNTIF($AA39:$AE39,AA39),IF(COUNTIF($AM39:$AQ39,AA39)>0,0.5/COUNTIF($AA39:$AE39,AA39),0))) ->  | AT39: =IF(AB39="","",IF(AB39=AH39,1,IF(AB39=AN39,0.5,0))) ->  | AU39: =IF(AC39="","",IF(COUNTIF($AG39:$AK39,AC39)>0,1/COUNTIF($AA39:$AE39,AC39),IF(COUNTIF($AM39:$AQ39,AC39)>0,0.5/COUNTIF($AA39:$AE39,AC39),0))) ->  | AV39: =IF(AD39="","",IF(AD39=AJ39,1,IF(AD39=AP39,0.5,0))) ->  | AW39: =IF(AE39="","",IF(COUNTIF($AG39:$AK39,AE39)>0,1/COUNTIF($AA39:$AE39,AE39),IF(COUNTIF($AM39:$AQ39,AE39)>0,0.5/COUNTIF($AA39:$AE39,AE39),0))) -> 
F40: ,
B41: Größe = | F41: m³ | V41: =IF(AND(C41=""),"",SUM(AS41:AW41)) ->  | W41: / | X41: =COUNTA(AG41:AK41) -> 1 | AA41: =IF(C41="","",C41) ->  | AF41: / | AG41: =IF('G6.1L'!C41="","",'G6.1L'!C41) -> 640 | AL41: - | AM41: =IF(C41="","",C39*H39*M39) ->  | AS41: =IF(AA41="","",IF(COUNTIF($AG41:$AK41,AA41)>0,1/COUNTIF($AA41:$AE41,AA41),IF(COUNTIF($AM41:$AQ41,AA41)>0,0.5/COUNTIF($AA41:$AE41,AA41),0))) ->  | AT41: =IF(AB41="","",IF(AB41=AH41,1,IF(AB41=AN41,0.5,0))) ->  | AU41: =IF(AC41="","",IF(COUNTIF($AG41:$AK41,AC41)>0,1/COUNTIF($AA41:$AE41,AC41),IF(COUNTIF($AM41:$AQ41,AC41)>0,0.5/COUNTIF($AA41:$AE41,AC41),0))) ->  | AV41: =IF(AD41="","",IF(AD41=AJ41,1,IF(AD41=AP41,0.5,0))) ->  | AW41: =IF(AE41="","",IF(COUNTIF($AG41:$AK41,AE41)>0,1/COUNTIF($AA41:$AE41,AE41),IF(COUNTIF($AM41:$AQ41,AE41)>0,0.5/COUNTIF($AA41:$AE41,AE41),0))) -> 
A43: 4. | B43: WW = | V43: =IF(AND(C43="",F43="",H43=""),"",SUM(AS43:AW43)) ->  | W43: / | X43: =COUNTA(AG43:AK43) -> 3 | AA43: =IF(C43="","",C43) ->  | AC43: =IF(F43="","",F43) ->  | AE43: =IF(H43="","",H43) ->  | AF43: / | AG43: =IF('G6.1L'!C43="","",'G6.1L'!C43) -> Größe | AI43: =IF('G6.1L'!F43="","",'G6.1L'!F43) -> • | AK43: =IF('G6.1L'!H43="","",'G6.1L'!H43) -> Reduzierter Baukostenrichtsatz | AS43: =IF(AA43="","",IF(COUNTIF($AG43:$AK43,AA43)>0,1/COUNTIF($AA43:$AE43,AA43),IF(COUNTIF($AM43:$AQ43,AA43)>0,0.5/COUNTIF($AA43:$AE43,AA43),0))) ->  | AT43: =IF(AB43="","",IF(COUNTIF($AG43:$AK43,AB43)>0,1/COUNTIF($AA43:$AE43,AB43),IF(COUNTIF($AM43:$AQ43,AB43)>0,0.5/COUNTIF($AA43:$AE43,AB43),0))) -> 
B45: WW = | F45: =IF(F43="","",F43) ->  | V45: =IF(AND(C45="",F45="",H45=""),"",SUM(AS45:AW45)) ->  | W45: / | X45: =COUNTA(AG45:AK45) -> 2 | AA45: =IF(C45="","",C45) ->  | AE45: =IF(H45="","",H45) ->  | AF45: / | AG45: =IF('G6.1L'!C45="","",'G6.1L'!C45) -> 640 | AK45: =IF('G6.1L'!H45="","",'G6.1L'!H45) -> 88.44 | AL45: - | AM45: =IF(C45="","",C41) ->  | AQ45: =IF(H45="","",K34) ->  | AS45: =IF(AA45="","",IF(COUNTIF($AG45:$AK45,AA45)>0,1/COUNTIF($AA45:$AE45,AA45),IF(COUNTIF($AM45:$AQ45,AA45)>0,0.5/COUNTIF($AA45:$AE45,AA45),0))) ->  | AT45: =IF(AB45="","",IF(COUNTIF($AG45:$AK45,AB45)>0,1/COUNTIF($AA45:$AE45,AB45),IF(COUNTIF($AM45:$AQ45,AB45)>0,0.5/COUNTIF($AA45:$AE45,AB45),0))) ->  | AU45: =IF(AC45="","",IF(COUNTIF($AG45:$AK45,AC45)>0,1/COUNTIF($AA45:$AE45,AC45),IF(COUNTIF($AM45:$AQ45,AC45)>0,0.5/COUNTIF($AA45:$AE45,AC45),0))) ->  | AV45: =IF(AD45="","",IF(COUNTIF($AG45:$AK45,AD45)>0,1/COUNTIF($AA45:$AE45,AD45),IF(COUNTIF($AM45:$AQ45,AD45)>0,0.5/COUNTIF($AA45:$AE45,AD45),0))) ->  | AW45: =IF(AE45="","",IF(COUNTIF($AG45:$AK45,AE45)>0,1/COUNTIF($AA45:$AE45,AE45),IF(COUNTIF($AM45:$AQ45,AE45)>0,0.5/COUNTIF($AA45:$AE45,AE45),0))) -> 
F46: ,
B47: WW = | F47: € | V47: =IF(AND(C47=""),"",SUM(AS47:AW47)) ->  | W47: / | X47: =COUNTA(AG47:AK47) -> 1 | AA47: =IF(C47="","",C47) ->  | AF47: / | AG47: =IF('G6.1L'!C47="","",'G6.1L'!C47) -> 56601.6 | AL47: - | AM47: =IF(C47="","",C45*H45) ->  | AS47: =IF(AA47="","",IF(COUNTIF($AG47:$AK47,AA47)>0,1/COUNTIF($AA47:$AE47,AA47),IF(COUNTIF($AM47:$AQ47,AA47)>0,0.5/COUNTIF($AA47:$AE47,AA47),0))) ->  | AT47: =IF(AB47="","",IF(COUNTIF($AG47:$AK47,AB47)>0,1/COUNTIF($AA47:$AE47,AB47),IF(COUNTIF($AM47:$AQ47,AB47)>0,0.5/COUNTIF($AA47:$AE47,AB47),0))) ->  | AU47: =IF(AC47="","",IF(COUNTIF($AG47:$AK47,AC47)>0,1/COUNTIF($AA47:$AE47,AC47),IF(COUNTIF($AM47:$AQ47,AC47)>0,0.5/COUNTIF($AA47:$AE47,AC47),0))) ->  | AV47: =IF(AD47="","",IF(COUNTIF($AG47:$AK47,AD47)>0,1/COUNTIF($AA47:$AE47,AD47),IF(COUNTIF($AM47:$AQ47,AD47)>0,0.5/COUNTIF($AA47:$AE47,AD47),0))) ->  | AW47: =IF(AE47="","",IF(COUNTIF($AG47:$AK47,AE47)>0,1/COUNTIF($AA47:$AE47,AE47),IF(COUNTIF($AM47:$AQ47,AE47)>0,0.5/COUNTIF($AA47:$AE47,AE47),0))) -> 
AG48: Anschaffungswert
A49: 5. | B49: jAfa = | V49: =IF(AND(C49="",F49="",H49=""),"",SUM(AS49:AW49)) ->  | W49: / | X49: =COUNTA(AG49:AK49) -> 1 | AA49: =IF(C49="","",C49) ->  | AF49: / | AG49: =IF('G6.1L'!C49="","",'G6.1L'!C49) -> Wiederbeschaffungswert | AS49: =IF(AA49="","",IF(COUNTIF($AG48:$AG49,AA49)>0,1/COUNTIF($AA49,AA49),IF(COUNTIF($AM49,AA49)>0,0.5/COUNTIF($AA49,AA49),0))) ->  | AT49: =IF(AB49="","",IF(AB49=AH49,1,IF(AB49=AN49,0.5,0))) ->  | AU49: =IF(AC49="","",IF(AC49=AI49,1,IF(AC49=AO49,0.5,0))) ->  | AV49: =IF(AD49="","",IF(AD49=AJ49,1,IF(AD49=AP49,0.5,0))) ->  | AW49: =IF(AE49="","",IF(AE49=AK49,1,IF(AE49=AQ49,0.5,0))) -> 
V50: =IF(AND(C50="",F50="",H50=""),"",SUM(AS50:AW50)) ->  | W50: / | X50: =COUNTA(AG50:AK50) -> 1 | AA50: =IF(C50="","",C50) ->  | AF50: / | AG50: =IF('G6.1L'!C50="","",'G6.1L'!C50) -> Nutzungsdauer | AS50: =IF(AA50="","",IF(AA50=AG50,1,IF(AA50=AM50,0.5,0))) -> 
AS51: =IF(AA51="","",IF(AA51=AG51,1,IF(AA51=#REF!,1,IF(AA51=AM51,0.5,IF(AA51=#REF!,0.5,0))))) ->  | AT51: =IF(AB51="","",IF(AB51=AH51,1,IF(AB51=#REF!,1,IF(AB51=AN51,0.5,IF(AB51=#REF!,0.5,0))))) ->  | AU51: =IF(AC51="","",IF(AC51=AI51,1,IF(AC51=#REF!,1,IF(AC51=AO51,0.5,IF(AC51=#REF!,0.5,0))))) ->  | AV51: =IF(AD51="","",IF(AD51=AJ51,1,IF(AD51=#REF!,1,IF(AD51=AP51,0.5,IF(AD51=#REF!,0.5,0))))) ->  | AW51: =IF(AE51="","",IF(AE51=AK51,1,IF(AE51=#REF!,1,IF(AE51=AQ51,0.5,IF(AE51=#REF!,0.5,0))))) -> 
B52: jAfa = | V52: =IF(AND(C52="",F52="",H52=""),"",SUM(AS52:AW52)) ->  | W52: / | X52: =COUNTA(AG52:AK52) -> 1 | AA52: =IF(C52="","",C52) ->  | AF52: / | AG52: =IF('G6.1L'!C52="","",'G6.1L'!C52) -> 56601.6 | AS52: =IF(AA52="","",IF(AA52=AG52,1,IF(AA52=AM52,0.5,0))) ->  | AT52: =IF(AB52="","",IF(AB52=AH52,1,IF(AB52=AN52,0.5,0))) ->  | AU52: =IF(AC52="","",IF(AC52=AI52,1,IF(AC52=AO52,0.5,0))) ->  | AV52: =IF(AD52="","",IF(AD52=AJ52,1,IF(AD52=AP52,0.5,0))) ->  | AW52: =IF(AE52="","",IF(AE52=AK52,1,IF(AE52=AQ52,0.5,0))) -> 
V53: =IF(AND(C53="",F53="",H53=""),"",SUM(AS53:AW53)) ->  | W53: / | X53: =COUNTA(AG53:AK53) -> 1 | AA53: =IF(C53="","",C53) ->  | AF53: / | AG53: =IF('G6.1L'!C53="","",'G6.1L'!C53) -> 40 | AS53: =IF(AA53="","",IF(AA53=AG53,1,IF(AA53=AM53,0.5,0))) -> 
B55: jAfa = | F55: € | H55: =IF(C55="","",IF(C28>=C13,"ACHTUNG: Keine Afa mehr!","")) ->  | V55: =IF(AND(C55=""),"",SUM(AS55:AW55)) ->  | W55: / | X55: =COUNTA(AG55:AK55) -> 1 | AA55: =IF(C55="","",C55) ->  | AF55: / | AG55: =IF('G6.1L'!C55="","",'G6.1L'!C55) -> 1415.04 | AL55: - | AM55: =IF(C55="","",C52/C53) ->  | AS55: =IF(AA55="","",IF(AA55=AG55,1,IF(AA55=AM55,0.5,0))) ->  | AT55: =IF(AB55="","",IF(AB55=AH55,1,IF(AB55=AN55,0.5,0))) ->  | AU55: =IF(AC55="","",IF(AC55=AI55,1,IF(AC55=AO55,0.5,0))) ->  | AV55: =IF(AD55="","",IF(AD55=AJ55,1,IF(AD55=AP55,0.5,0))) ->  | AW55: =IF(AE55="","",IF(AE55=AK55,1,IF(AE55=AQ55,0.5,0))) -> 
B57: bAfa = | V57: =IF(AND(C57="",F57="",H57=""),"",SUM(AS57:AW57)) ->  | W57: / | X57: =COUNTA(AG57:AK57) -> 3 | AA57: =IF(C57="","",C57) ->  | AC57: =IF(F57="","",F57) ->  | AE57: =IF(H57="","",H57) ->  | AF57: / | AG57: =IF('G6.1L'!C57="","",'G6.1L'!C57) -> Alter | AI57: =IF('G6.1L'!F57="","",'G6.1L'!F57) -> • | AK57: =IF('G6.1L'!H57="","",'G6.1L'!H57) -> Jährliche Afa | AS57: =IF(AA57="","",IF(COUNTIF($AG57:$AK57,AA57)>0,1/COUNTIF($AA57:$AE57,AA57),IF(COUNTIF($AM57:$AQ57,AA57)>0,0.5/COUNTIF($AA57:$AE57,AA57),0))) ->  | AT57: =IF(AB57="","",IF(COUNTIF($AG57:$AK57,AB57)>0,1/COUNTIF($AA57:$AE57,AB57),IF(COUNTIF($AM57:$AQ57,AB57)>0,0.5/COUNTIF($AA57:$AE57,AB57),0))) ->  | AU57: =IF(AC57="","",IF(COUNTIF($AG57:$AK57,AC57)>0,1/COUNTIF($AA57:$AE57,AC57),IF(COUNTIF($AM57:$AQ57,AC57)>0,0.5/COUNTIF($AA57:$AE57,AC57),0))) ->  | AV57: =IF(AD57="","",IF(COUNTIF($AG57:$AK57,AD57)>0,1/COUNTIF($AA57:$AE57,AD57),IF(COUNTIF($AM57:$AQ57,AD57)>0,0.5/COUNTIF($AA57:$AE57,AD57),0))) ->  | AW57: =IF(AE57="","",IF(COUNTIF($AG57:$AK57,AE57)>0,1/COUNTIF($AA57:$AE57,AE57),IF(COUNTIF($AM57:$AQ57,AE57)>0,0.5/COUNTIF($AA57:$AE57,AE57),0))) -> 
B59: bAfa = | F59: =IF(F57="","",F57) ->  | V59: =IF(AND(C59="",F59="",H59=""),"",SUM(AS59:AW59)) ->  | W59: / | X59: =COUNTA(AG59:AK59) -> 2 | AA59: =IF(C59="","",C59) ->  | AE59: =IF(H59="","",H59) ->  | AF59: / | AG59: =IF('G6.1L'!C59="","",'G6.1L'!C59) -> 24 | AK59: =IF('G6.1L'!H59="","",'G6.1L'!H59) -> 1415.04 | AL59: - | AM59: =IF(C59="","",C55) ->  | AQ59: =IF(H59="","",C28) ->  | AS59: =IF(AA59="","",IF(COUNTIF($AG59:$AK59,AA59)>0,1/COUNTIF($AA59:$AE59,AA59),IF(COUNTIF($AM59:$AQ59,AA59)>0,0.5/COUNTIF($AA59:$AE59,AA59),0))) ->  | AT59: =IF(AB59="","",IF(COUNTIF($AG59:$AK59,AB59)>0,1/COUNTIF($AA59:$AE59,AB59),IF(COUNTIF($AM59:$AQ59,AB59)>0,0.5/COUNTIF($AA59:$AE59,AB59),0))) ->  | AU59: =IF(AC59="","",IF(COUNTIF($AG59:$AK59,AC59)>0,1/COUNTIF($AA59:$AE59,AC59),IF(COUNTIF($AM59:$AQ59,AC59)>0,0.5/COUNTIF($AA59:$AE59,AC59),0))) ->  | AV59: =IF(AD59="","",IF(COUNTIF($AG59:$AK59,AD59)>0,1/COUNTIF($AA59:$AE59,AD59),IF(COUNTIF($AM59:$AQ59,AD59)>0,0.5/COUNTIF($AA59:$AE59,AD59),0))) ->  | AW59: =IF(AE59="","",IF(COUNTIF($AG59:$AK59,AE59)>0,1/COUNTIF($AA59:$AE59,AE59),IF(COUNTIF($AM59:$AQ59,AE59)>0,0.5/COUNTIF($AA59:$AE59,AE59),0))) -> 
B61: bAfa = | F61: € | V61: =IF(AND(C61=""),"",SUM(AS61:AW61)) ->  | W61: / | X61: =COUNTA(AG61:AK61) -> 1 | AA61: =IF(C61="","",C61) ->  | AF61: / | AG61: =IF('G6.1L'!C61="","",'G6.1L'!C61) -> 33960.96 | AL61: - | AM61: =IF(C61="","",C59*H59) ->  | AS61: =IF(AA61="","",IF(COUNTIF($AG61:$AK61,AA61)>0,1/COUNTIF($AA61:$AE61,AA61),IF(COUNTIF($AM61:$AQ61,AA61)>0,0.5/COUNTIF($AA61:$AE61,AA61),0))) ->  | AT61: =IF(AB61="","",IF(COUNTIF($AG61:$AK61,AB61)>0,1/COUNTIF($AA61:$AE61,AB61),IF(COUNTIF($AM61:$AQ61,AB61)>0,0.5/COUNTIF($AA61:$AE61,AB61),0))) ->  | AU61: =IF(AC61="","",IF(COUNTIF($AG61:$AK61,AC61)>0,1/COUNTIF($AA61:$AE61,AC61),IF(COUNTIF($AM61:$AQ61,AC61)>0,0.5/COUNTIF($AA61:$AE61,AC61),0))) ->  | AV61: =IF(AD61="","",IF(COUNTIF($AG61:$AK61,AD61)>0,1/COUNTIF($AA61:$AE61,AD61),IF(COUNTIF($AM61:$AQ61,AD61)>0,0.5/COUNTIF($AA61:$AE61,AD61),0))) ->  | AW61: =IF(AE61="","",IF(COUNTIF($AG61:$AK61,AE61)>0,1/COUNTIF($AA61:$AE61,AE61),IF(COUNTIF($AM61:$AQ61,AE61)>0,0.5/COUNTIF($AA61:$AE61,AE61),0))) -> 
AG62: Anschaffungswert
A63: 6. | B63: ZW1.1. = | V63: =IF(AND(C63="",F63="",H63=""),"",SUM(AS63:AW63)) ->  | W63: / | X63: =COUNTA(AG63:AK63) -> 3 | AA63: =IF(C63="","",C63) ->  | AC63: =IF(F63="","",F63) ->  | AE63: =IF(H63="","",H63) ->  | AF63: / | AG63: =IF('G6.1L'!C63="","",'G6.1L'!C63) -> Wiederbeschaffungswert | AI63: =IF('G6.1L'!F63="","",'G6.1L'!F63) -> – | AK63: =IF('G6.1L'!H63="","",'G6.1L'!H63) -> Bisherige Afa | AS63: =IF(AA63="","",IF(COUNTIF($AG62:$AG63,AA63)>0,1/COUNTIF($AA63,AA63),IF(COUNTIF($AM63,AA63)>0,0.5/COUNTIF($AA63,AA63),0))) ->  | AT63: =IF(AB63="","",IF(AB63=AH63,1,IF(AB63=AN63,0.5,0))) -> 
B65: ZW1.1. = | F65: =IF(F63="","",F63) ->  | V65: =IF(AND(C65="",F65="",H65=""),"",SUM(AS65:AW65)) ->  | W65: / | X65: =COUNTA(AG65:AK65) -> 2 | AA65: =IF(C65="","",C65) ->  | AE65: =IF(H65="","",H65) ->  | AF65: / | AG65: =IF('G6.1L'!C65="","",'G6.1L'!C65) -> 56601.6 | AK65: =IF('G6.1L'!H65="","",'G6.1L'!H65) -> 33960.96 | AL65: - | AM65: =IF(C65="","",H9) ->  | AQ65: =IF(H65="","",C61) ->  | AS65: =IF(AA65="","",IF(AA65=AG65,1,IF(AA65=AM65,0.5,0))) ->  | AT65: =IF(AB65="","",IF(AB65=AH65,1,IF(AB65=AN65,0.5,0))) -> 
B67: ZW1.1. = | F67: € | H67: =IF(C47="","",IF(C28>=C13,"Erinnerungswert!",IF(C67=C47,"ACHTUNG: Zeitwert 1.1. bleibt leer! "&DOLLAR(C47,2)&" kommt in die Spalte 'Zugang'",""))) ->  | V67: =IF(AND(C67=""),"",SUM(AS67:AW67)) ->  | W67: / | X67: =COUNTA(AG67:AK67) -> 1 | AA67: =IF(C67="","",C67) ->  | AF67: / | AG67: =IF('G6.1L'!C67="","",'G6.1L'!C67) -> 22640.64 | AL67: - | AM67: =IF(C67="","",C65-H65) ->  | AS67: =IF(AA67="","",IF(AA67=AG67,1,IF(AA67=AM67,0.5,0))) ->  | AT67: =IF(AB67="","",IF(AB67=AH67,1,IF(AB67=AN67,0.5,0))) -> 
A69: 7. | B69: ZW31.12. = | V69: =IF(AND(C69="",F69="",H69=""),"",SUM(AS69:AW69)) ->  | W69: / | X69: =COUNTA(AG69:AK69) -> 3 | AA69: =IF(C69="","",C69) ->  | AC69: =IF(F69="","",F69) ->  | AE69: =IF(H69="","",H69) ->  | AF69: / | AG69: =IF('G6.1L'!C69="","",'G6.1L'!C69) -> Zeitwert 1.1. | AI69: =IF('G6.1L'!F69="","",'G6.1L'!F69) -> – | AK69: =IF('G6.1L'!H69="","",'G6.1L'!H69) -> Jährliche Afa | AS69: =IF(AA69="","",IF(AA69=AG69,1,IF(AA69=AM69,0.5,0))) ->  | AT69: =IF(AB69="","",IF(AB69=AH69,1,IF(AB69=AN69,0.5,0))) -> 
B71: ZW31.12. = | F71: =IF(F69="","",F69) ->  | V71: =IF(AND(C71="",F71="",H71=""),"",SUM(AS71:AW71)) ->  | W71: / | X71: =COUNTA(AG71:AK71) -> 2 | AA71: =IF(C71="","",C71) ->  | AE71: =IF(H71="","",H71) ->  | AF71: / | AG71: =IF('G6.1L'!C71="","",'G6.1L'!C71) -> 22640.64 | AK71: =IF('G6.1L'!H71="","",'G6.1L'!H71) -> 1415.04 | AL71: - | AM71: =IF(C71="","",C67) ->  | AQ71: =IF(AND(H71="",C55=""),"",AA55) ->  | AS71: =IF(AA71="","",IF(AA71=AG71,1,IF(AA71=AM71,0.5,0))) ->  | AT71: =IF(AB71="","",IF(AB71=AH71,1,IF(AB71=AN71,0.5,0))) -> 
B73: ZW31.12. = | F73: € | H73: =IF(C73="","",IF(C67<=C55,"Erinnerungswert!","")) ->  | V73: =IF(AND(C73=""),"",SUM(AS73:AW73)) ->  | W73: / | X73: =COUNTA(AG73:AK73) -> 1 | AA73: =IF(C73="","",C73) ->  | AF73: / | AG73: =IF('G6.1L'!C73="","",'G6.1L'!C73) -> 21225.6 | AL73: - | AM73: =IF(C73="","",C71-H71) ->  | AS73: =IF(AA73="","",IF(AA73=AG73,1,IF(AA73=AM73,0.5,0))) ->  | AT73: =IF(AB73="","",IF(AB73=AH73,1,IF(AB73=AN73,0.5,0))) -> 
A75: Bezeichnung | C75: Baujahr | D75: Größe | E75: reduzierter | H75: Neuwert | I75: ND | J75: AfA | L75: Wert am | N75: Zugang | O75: Abgang | P75: AfA | Q75: Wert am
D76: ha, lfm, m² | E76: Richtsatz | H76: in | I76: in | J76: in | L76: ="1.1."&Jahr!F4 -> 1.1. | N76: in | O76: in | P76: in | Q76: ="31.12."&Jahr!F4 -> 31.12.
D77: m³, … | E77: je ha, … | H77: € | I77: Jahren | J77: €/Jahr | L77: € | N77: € | O77: € | P77: € | Q77: €
A78: =IF(D1="","",D1) -> Pferdestall | C78: =IF(C11="","",C11) -> 1997 | D78: =IF(C41="","",C41) ->  | E78: =IF(K34="","",C34*H34/C35) ->  | H78: =IF(C47="","",C47) ->  | I78: =IF(C13="","",C13) -> 40 | J78: =IF(C55="","",C55) ->  | V78: =IF(AND(C78="",F78="",H78=""),"",SUM(AS78:AW78)) -> 0 | W78: / | X78: =COUNT(AG78:AK78) -> 3 | AA78: =IF(AND($L78="",$N78="",$O78="",$P78="",$Q78=""),"",IF(L78="","",L78)) ->  | AB78: =IF(AND($L78="",$N78="",$O78="",$P78="",$Q78=""),"",IF(N78="","",N78)) ->  | AC78: =IF(AND($L78="",$N78="",$O78="",$P78="",$Q78=""),"",IF(O78="","",O78)) ->  | AD78: =IF(AND($L78="",$N78="",$O78="",$P78="",$Q78=""),"",IF(P78="","",P78)) ->  | AE78: =IF(AND($L78="",$N78="",$O78="",$P78="",$Q78=""),"",IF(Q78="","",Q78)) ->  | AF78: / | AG78: =IF('G6.1L'!L78="","-",'G6.1L'!L78) -> 22640.64 | AH78: =IF('G6.1L'!N78="","-",'G6.1L'!N78) -> - | AI78: =IF('G6.1L'!O78="","-",'G6.1L'!O78) -> - | AJ78: =IF('G6.1L'!P78="","-",'G6.1L'!P78) -> 1415.04 | AK78: =IF('G6.1L'!Q78="","-",'G6.1L'!Q78) -> 21225.6 | AL78: - | AM78: =IF(C67="","",IF(AA28=0,"",C67)) ->  | AN78: =IF(C67="","",IF(AA28<>0,"",C67)) ->  | AO78: - | AP78: =IF(C55="","",C55) ->  | AQ78: =IF(C73="","",C73) ->  | AS78: =IF(AA78="","",IF(AND(AA78<>"",OR(AG78="",AG78="-")),-1,IF(AA78=AG78,1,IF(AA78=AM78,0.5,0)))) ->  | AT78: =IF(AB78="","",IF(AND(AB78<>"",OR(AH78="",AH78="-")),-1,IF(AB78=AH78,1,IF(AB78=AN78,0.5,0)))) -> 
A79: Summe | L79: =IF(SUM(L78)=0,"",SUM(L78)) ->  | N79: =IF(SUM(N78)=0,"",SUM(N78)) ->  | O79: =IF(SUM(O78)=0,"",SUM(O78)) ->  | P79: =IF(SUM(P78)=0,"",SUM(P78)) ->  | Q79: =IF(SUM(Q78)=0,"",SUM(Q78)) ->  | AA79: Korrektur trotz "Nicht anzeigen" anzeigen! | AJ79: "Anschaffungswert": | AK79: =COUNTIF(AG31:AK78,"Anschaffungswert") -> 2
U80: Gsamtpunkte: | V80: =SUM(V17:V79) -> 0 | W80: / | X80: =SUM(X17:X79) -> 48 | AA80: =COUNTBLANK(AA17:AE78) -> 309 | AG80: =SUM(COUNTBLANK(AG17:AK78),AK79:AK80) -> 261 | AJ80: "-": | AK80: =COUNTIF(AG31:AK78,"-") -> 2

Sheet G6.1L
A1: Beispiel | C1: =IF('G6.1'!C1="","",'G6.1'!C1) -> 6.1 | D1: =IF('G6.1'!D1="","",'G6.1'!D1) -> Pferdestall
A3: =IF('G6.1'!A3="","",'G6.1'!A3) -> ■ Herstellungswert unbekannt
A4: =IF('G6.1'!A4="","",'G6.1'!A4) -> ■ Errichtungsjahr bekannt
A5: =IF('G6.1'!A5="","",'G6.1'!A5) -> ■ kein Investitionszuschuss
A7: =IF('G6.1'!A7="","",'G6.1'!A7) -> Ein 1997 errichtetes Betriebsgebäude, das sich noch in einem sehr guten Bauzustand befindet, wird als PFERDESTALL genutzt. Der Herstellungswert des Gebäudes ist nicht bekannt. Die betriebsgewöhnliche Nutzungsdauer wurde mit 40 Jahren festgelegt. Die Länge beträgt 20 m, die Breite 8 m, und die Gebäudehöhe 4 m. | B7: =IF('G6.1'!B7="","",'G6.1'!B7) ->  | C7: =IF('G6.1'!C7="","",'G6.1'!C7) ->  | D7: =IF('G6.1'!D7="","",'G6.1'!D7) ->  | E7: =IF('G6.1'!E7="","",'G6.1'!E7) ->  | F7: =IF('G6.1'!F7="","",'G6.1'!F7) ->  | G7: =IF('G6.1'!G7="","",'G6.1'!G7) ->  | H7: =IF('G6.1'!H7="","",'G6.1'!H7) ->  | I7: =IF('G6.1'!I7="","",'G6.1'!I7) ->  | K7: =IF('G6.1'!K7="","",'G6.1'!K7) ->  | L7: =IF('G6.1'!L7="","",'G6.1'!L7) ->  | N7: =IF('G6.1'!N7="","",'G6.1'!N7) ->  | O7: =IF('G6.1'!O7="","",'G6.1'!O7) ->  | P7: =IF('G6.1'!P7="","",'G6.1'!P7) ->  | Q7: =IF('G6.1'!Q7="","",'G6.1'!Q7) -> 
B9: =IF('G6.1'!B9="","",'G6.1'!B9) -> Heuer = | C9: =IF('G6.1'!C9="","",'G6.1'!C9) -> 2021 | H9: =IF('G6.1'!H9="","",'G6.1'!H9) -> Länge = | I9: =IF('G6.1'!I9="","",'G6.1'!I9) -> 20 | J9: =IF('G6.1'!J9="","",'G6.1'!J9) -> m | N9: =IF('G6.1'!N9="","",'G6.1'!N9) -> Baukostenrichtsatz = | O9: =IF('G6.1'!O9="","",'G6.1'!O9) -> 132 | P9: =IF('G6.1'!P9="","",'G6.1'!P9) -> € | Q9: =IF('G6.1'!Q9="","",'G6.1'!Q9) -> m³
B11: =IF('G6.1'!B11="","",'G6.1'!B11) -> Anschaffungsjahr = | C11: =IF('G6.1'!C11="","",'G6.1'!C11) -> 1997 | H11: =IF('G6.1'!H11="","",'G6.1'!H11) -> Breite = | I11: =IF('G6.1'!I11="","",'G6.1'!I11) -> 8 | J11: =IF('G6.1'!J11="","",'G6.1'!J11) -> m
B13: =IF('G6.1'!B13="","",'G6.1'!B13) -> Betriebsgew. ND = | C13: =IF('G6.1'!C13="","",'G6.1'!C13) -> 40 | D13: =IF('G6.1'!D13="","",'G6.1'!D13) -> Jahre | H13: =IF('G6.1'!H13="","",'G6.1'!H13) -> Setienwandhöhe1) = | I13: =IF('G6.1'!I13="","",'G6.1'!I13) -> 4 | J13: =IF('G6.1'!J13="","",'G6.1'!J13) -> m → (h od. hMAX)
H15: =IF('G6.1'!H15="","",'G6.1'!H15) -> ½ Dachstuhlhöhe = | I15: =IF('G6.1'!I15="","",'G6.1'!I15) ->  | J15: =IF('G6.1'!J15="","",'G6.1'!J15) -> m | N15: =IF('G6.1'!N15="","",'G6.1'!N15) -> Gesamthöhe = | O15: =IF('G6.1'!O15="","",'G6.1'!O15) -> 4 | P15: =IF('G6.1'!P15="","",'G6.1'!P15) -> m
A24: 1. | B24: Alter = | C24: Heuer | F24: – | H24: Anschaffungsjahr | L24: Alter < ¼ der Nutzungsdauer → Reduktion um 10% (auf 90%)
B26: Alter = | C26: =IF(C9="","",C9) -> 2021 | F26: =IF(F24="","",F24) -> – | H26: =IF(C11="","Nicht bekannt!",C11) -> 1997 | L26: Alter > ¼ und < ½ der Nutzungsdauer → Reduktion um 20% (auf 80%)
F27: ,
B28: Alter = | C28: =IF(C11="","> betirebsgewöhnl. ND",C26-H26) -> 24 | F28: Jahre | L28: Alter > ½ Nutzungsdauer → Reduktion um 33% (auf 67%)
A30: 2. | F30: ="Baukostenrichtsatz = "&DOLLAR(O9,2)&P9&"/"&MID(Q9,1,6) -> Baukostenrichtsatz = € 132,00 €/m³ | H30: …..…..… | I30: 1
F32: ="Reduzierter Baukostenrichtsatz = x €/"&MID(Q9,1,6) -> Reduzierter Baukostenrichtsatz = x €/m³ | H32: …..…..… | I32: =IF(C28<(C13/4),90%,IF(AND(C28>=(C13/4),C28<(C13/2)),80%,IF(C28>=(C13/2),67%,""))) -> 0.67
B34: x = | C34: =IF(I32="","",DOLLAR(O9,2)) -> € 132,00 | E34: =IF(I32="",""," ") ->  | F34: =IF(I32="","","•") -> • | G34: =IF(I32="",""," ") ->  | H34: =IF(I32="","",FIXED(I32,2)*100) -> 67 | K34: =IF(I32="",""," = "&DOLLAR(C34*H34/C35,2)) -> = € 88,44
C35: =IF(I32="","",FIXED(I30,2)*100) -> 100
A37: 3. | B37: Größe = | C37: Länge | F37: • | H37: Breite | K37: • | M37: Höhe
B39: Größe = | C39: =I9 -> 20 | F39: =IF(F37="","",F37) -> • | H39: =I11 -> 8 | K39: =IF(K37="","",K37) -> • | M39: =O15 -> 4
F40: ,
B41: Größe = | C41: =C39*H39*M39 -> 640 | F41: m³
A43: 4. | B43: WW = | C43: Größe | F43: • | H43: Reduzierter Baukostenrichtsatz
B45: WW = | C45: =C41 -> 640 | F45: =IF(F43="","",F43) -> • | H45: =IF(K34="","",C34*H34/C35) -> 88.44
F46: ,
B47: WW = | C47: =C45*H45 -> 56601.6 | F47: €
A49: 5. | B49: jAfa = | C49: Wiederbeschaffungswert
C50: Nutzungsdauer
B52: jAfa = | C52: =IF(C47="","",C47) -> 56601.6
C53: =C13 -> 40
B55: jAfa = | C55: =C52/C53 -> 1415.04 | F55: € | H55: =IF(C28>=C13,"ACHTUNG: Keine Afa mehr!","") -> 
B57: bAfa = | C57: Alter | F57: • | H57: Jährliche Afa
B59: bAfa = | C59: =C28 -> 24 | F59: =IF(F57="","",F57) -> • | H59: =C55 -> 1415.04
B61: bAfa = | C61: =C59*H59 -> 33960.96 | F61: €
A63: 6. | B63: ZW1.1. = | C63: Wiederbeschaffungswert | F63: – | H63: Bisherige Afa
B65: ZW1.1. = | C65: =C47 -> 56601.6 | F65: =IF(F63="","",F63) -> – | H65: =C55*C28 -> 33960.96
B67: ZW1.1. = | C67: =IF(C28>=C13,Jahr!D8,C65-H65) -> 22640.64 | F67: € | H67: =IF(C28>=C13,"Erinnerungswert!",IF(C9=C11,"ACHTUNG: Zeitwert 1.1. bleibt leer! "&DOLLAR(C47,2)&" kommt in die Spalte 'Zugang'","")) -> 
A69: 7. | B69: ZW31.12. = | C69: Zeitwert 1.1. | F69: – | H69: Jährliche Afa
B71: ZW31.12. = | C71: =C67 -> 22640.64 | F71: =IF(F69="","",F69) -> – | H71: =C55 -> 1415.04
B73: ZW31.12. = | C73: =IF(C67<=C55,Jahr!D8,C71-H71) -> 21225.6 | F73: € | H73: =IF(C67<=C55,"Erinnerungswert!","") -> 
A75: Bezeichnung | C75: Baujahr | D75: Größe | E75: reduzierter | H75: Neuwert | I75: ND | J75: AfA | L75: Wert am | N75: Zugang | O75: Abgang | P75: AfA | Q75: Wert am
D76: ha, lfm, m² | E76: Richtsatz | H76: in | I76: in | J76: in | L76: ="1.1."&Jahr!F4 -> 1.1. | N76: in | O76: in | P76: in | Q76: ="31.12."&Jahr!F4 -> 31.12.
D77: m³, … | E77: je ha, … | H77: € | I77: Jahren | J77: €/Jahr | L77: € | N77: € | O77: € | P77: € | Q77: €
A78: =IF(D1="","",D1) -> Pferdestall | C78: =IF(C11="","",C11) -> 1997 | D78: =IF(C41="","",C41) -> 640 | E78: =IF(K34="","",C34*H34/C35) -> 88.44 | H78: =IF(C47="","",C47) -> 56601.6 | I78: =IF(C13="","",C13) -> 40 | J78: =IF(C55="","",C55) -> 1415.04 | L78: =IF(H67="ACHTUNG: Zeitwert 1.1. bleibt leer! "&DOLLAR(C67,2)&" kommt in die Spalte 'Zugang'","",IF(C67="","",C67)) -> 22640.64 | N78: =IF(H67="ACHTUNG: Zeitwert 1.1. bleibt leer! "&DOLLAR(C67,2)&" kommt in die Spalte 'Zugang'",C67,"") ->  | P78: =IF(L78=Jahr!D8,"",J78) -> 1415.04 | Q78: =IF(C73="","",C73) -> 21225.6
A79: Summe | L79: =IF(SUM(L78)=0,"",SUM(L78)) -> 22640.64 | N79: =IF(SUM(N78)=0,"",SUM(N78)) ->  | O79: =IF(SUM(O78)=0,"",SUM(O78)) ->  | P79: =IF(SUM(P78)=0,"",SUM(P78)) -> 1415.04 | Q79: =IF(SUM(Q78)=0,"",SUM(Q78)) -> 21225.6

Sheet G6.2
A1: Beispiel | C1: 6.2 | D1: Schankraum
A3: ■ Herstellungswert unbekannt
A4: ■ Errichtungsjahr bekannt
A5: ■ kein Investitionszuschuss | W5: Punkte
A7: =IF(C11="","Ein Betriebsgebäude, dessen Errichtungsjahr unbekannt ist, das sich aber noch ","Ein "&C11&" errichtetes Betriebsgebäude, das sich noch")&" in einem sehr guten Bauzustand befindet, wird als "&UPPER(D1)&" genutzt. "&"Der Herstellungswert des Gebäudes ist nicht bekannt. Die betriebsgewöhnliche Nutzungsdauer wurde mit "&C13&" Jahren festgelegt. Die Länge beträgt "&I9&" m, die Breite "&I11&" m, "&IF(I15<>"","die Mauerhöhe "&I13&" m und die halbe Dachstuhlhöhe "&I15&" m.","und die Gebäudehöhe "&O15&" m.") -> Ein 1983 errichtetes Betriebsgebäude, das sich noch in einem sehr guten Bauzustand befindet, wird als SCHANKRAUM genutzt. Der Herstellungswert des Gebäudes ist nicht bekannt. Die betriebsgewöhnliche Nutzungsdauer wurde mit 40 Jahren festgelegt. Die Länge beträgt 22 m, die Breite 13 m, die Mauerhöhe 3,2 m und die halbe Dachstuhlhöhe 1,8 m. | V7: Anzeigen!
B9: Heuer = | C9: =IF(Jahr!D4="","",Jahr!D4) -> 2021 | H9: Länge = | I9: 22 | J9: m | N9: Baukostenrichtsatz = | O9: 130 | P9: € | Q9: =IF(OR(O15=0,O15=""),"m²","m³") -> m³
B11: Anschaffungsjahr = | C11: =C9-C13+ROUND(C13/20,0) -> 1983 | H11: Breite = | I11: 13 | J11: m
B13: Betriebsgew. ND = | C13: 40 | D13: Jahre | H13: Setienwandhöhe1) = | I13: 3.2 | J13: m → (h od. hMAX)
H15: ½ Dachstuhlhöhe = | I15: =3.6/2 -> 1.8 | J15: m | N15: Gesamthöhe = | O15: =IF(AND(I13="",I15=""),"",SUM(I13,I15)) -> 5 | P15: m
A17: 1) Die Messung der Gebäudehöhe (= Geschoß- bzw. Seitenwandhöhe) erfolgt von der Fußbodenoberkante bis zur Deckenoberkante! ACHTUNG: Die in den Baukostenrichtsätzen angegebene Maximalhöhe (hMAX) ist zu beachten und Dachräume sind gesondert zu berechnen! | V17: PKT | W17: / | X17: GES | AA17: Ergebnisse | AG17: Hilfe | AM17: Formelprüfung | AS17: Punkte
A24: 1. | B24: Alter = | L24: Alter < ¼ der Nutzungsdauer → Reduktion um 10% (auf 90%) | V24: =IF(AND(C24="",F24="",H24=""),"",SUM(AS24:AW24)) ->  | W24: / | X24: =COUNTA(AG24:AK24) -> 3 | AA24: =IF(C24="","",C24) ->  | AC24: =IF(F24="","",F24) ->  | AE24: =IF(H24="","",H24) ->  | AF24: / | AG24: =IF('G6.2L'!C24="","",'G6.2L'!C24) -> Heuer | AI24: =IF('G6.2L'!F24="","",'G6.2L'!F24) -> – | AK24: =IF('G6.2L'!H24="","",'G6.2L'!H24) -> Anschaffungsjahr | AS24: =IF(AA24="","",IF(AA24=AG24,1,IF(AA24=AM24,0.5,0))) ->  | AT24: =IF(AB24="","",IF(AB24=AH24,1,IF(AB24=AN24,0.5,0))) -> 
B26: Alter = | F26: =IF(F24="","",F24) ->  | L26: Alter > ¼ und < ½ der Nutzungsdauer → Reduktion um 20% (auf 80%) | V26: =IF(AND(C26="",F26="",H26=""),"",SUM(AS26:AW26)) ->  | W26: / | X26: =COUNTA(AG26:AK26) -> 2 | AA26: =IF(C26="","",C26) ->  | AE26: =IF(H26="","",H26) ->  | AF26: / | AG26: =IF('G6.2L'!C26="","",'G6.2L'!C26) -> 2021 | AK26: =IF('G6.2L'!H26="","",'G6.2L'!H26) -> 1983 | AS26: =IF(AA26="","",IF(AA26=AG26,1,IF(AA26=AM26,0.5,0))) ->  | AT26: =IF(AB26="","",IF(AB26=AH26,1,IF(AB26=AN26,0.5,0))) -> 
F27: ,
B28: Alter = | F28: Jahre | L28: Alter > ½ Nutzungsdauer → Reduktion um 33% (auf 67%) | V28: =IF(AND(C28=""),"",SUM(AS28:AW28)) ->  | W28: / | X28: =COUNTA(AG28:AK28) -> 1 | AA28: =IF(C28="","",C28) ->  | AF28: / | AG28: =IF('G6.2L'!C28="","",'G6.2L'!C28) -> 38 | AL28: - | AM28: =IF(G9L!L28="","",G9L!L28) ->  | AO28: =IF(G9L!Q28="","",G9L!Q28) ->  | AS28: =IF(AA28="","",IF(AA28=AG28,1,IF(AA28=AM28,0.5,0))) ->  | AT28: =IF(AB28="","",IF(AB28=AH28,1,IF(AB28=AN28,0.5,0))) -> 
A30: 2. | F30: ="Baukostenrichtsatz = "&DOLLAR(O9,2)&P9&"/"&MID(Q9,1,6) -> Baukostenrichtsatz = € 130,00 €/m³ | H30: …..…..… | I30: 1
F32: ="Reduzierter Baukostenrichtsatz = x €/"&MID(Q9,1,6) -> Reduzierter Baukostenrichtsatz = x €/m³ | H32: …..…..… | V32: =IF(AND(I32=""),"",SUM(AS32:AW32)) ->  | W32: / | X32: =COUNTA(AG32:AK32) -> 1 | AA32: =IF(I32="","",I32) ->  | AF32: / | AG32: =IF('G6.2L'!I32="","",'G6.2L'!I32) -> 0.67 | AS32: =IF(AA32="","",IF(AA32=AG32,1,IF(AA32=AM32,0.5,0))) ->  | AT32: =IF(AB32="","",IF(AB32=AH32,1,IF(AB32=AN32,0.5,0))) -> 
B34: x = | C34: =IF(I32="","",DOLLAR(O9,2)) ->  | E34: =IF(I32="",""," ") ->  | F34: =IF(I32="","","•") ->  | G34: =IF(I32="",""," ") ->  | H34: =IF(I32="","",FIXED(I32,2)*100) ->  | K34: =IF(I32="","",C34*H34/C35) -> 
C35: =IF(I32="","",FIXED(I30,2)*100) -> 
A37: 3. | B37: Größe = | V37: =IF(AND(C37="",F37="",H37=""),"",SUM(AS37:AW37)) ->  | W37: / | X37: =COUNTA(AG37:AK37) -> 5 | AA37: =IF(C37="","",C37) ->  | AB37: =IF(F37="","",F37) ->  | AC37: =IF(H37="","",H37) ->  | AD37: =IF(K37="","",K37) ->  | AE37: =IF(M37="","",M37) ->  | AF37: / | AG37: =IF('G6.2L'!C37="","",'G6.2L'!C37) -> Länge | AH37: =IF('G6.2L'!F37="","",'G6.2L'!F37) -> • | AI37: =IF('G6.2L'!H37="","",'G6.2L'!H37) -> Breite | AJ37: =IF('G6.2L'!K37="","",'G6.2L'!K37) -> • | AK37: =IF('G6.2L'!M37="","",'G6.2L'!M37) -> Höhe | AS37: =IF(AA37="","",IF(COUNTIF($AG37:$AK37,AA37)>0,1/COUNTIF($AA37:$AE37,AA37),IF(COUNTIF($AM37:$AQ37,AA37)>0,0.5/COUNTIF($AA37:$AE37,AA37),0))) ->  | AT37: =IF(AB37="","",IF(AB37=AH37,1,IF(AB37=AN37,0.5,0))) ->  | AU37: =IF(AC37="","",IF(COUNTIF($AG37:$AK37,AC37)>0,1/COUNTIF($AA37:$AE37,AC37),IF(COUNTIF($AM37:$AQ37,AC37)>0,0.5/COUNTIF($AA37:$AE37,AC37),0))) ->  | AV37: =IF(AD37="","",IF(AD37=AJ37,1,IF(AD37=AP37,0.5,0))) ->  | AW37: =IF(AE37="","",IF(COUNTIF($AG37:$AK37,AE37)>0,1/COUNTIF($AA37:$AE37,AE37),IF(COUNTIF($AM37:$AQ37,AE37)>0,0.5/COUNTIF($AA37:$AE37,AE37),0))) -> 
B39: Größe = | F39: =IF(F37="","",F37) ->  | K39: =IF(K37="","",K37) ->  | V39: =IF(AND(C39="",F39="",H39=""),"",SUM(AS39:AW39)) ->  | W39: / | X39: =COUNTA(AG39:AK39) -> 3 | AA39: =IF(C39="","",C39) ->  | AC39: =IF(H39="","",H39) ->  | AE39: =IF(M39="","",M39) ->  | AF39: / | AG39: =IF('G6.2L'!C39="","",'G6.2L'!C39) -> 22 | AI39: =IF('G6.2L'!H39="","",'G6.2L'!H39) -> 13 | AK39: =IF('G6.2L'!M39="","",'G6.2L'!M39) -> 5 | AS39: =IF(AA39="","",IF(COUNTIF($AG39:$AK39,AA39)>0,1/COUNTIF($AA39:$AE39,AA39),IF(COUNTIF($AM39:$AQ39,AA39)>0,0.5/COUNTIF($AA39:$AE39,AA39),0))) ->  | AT39: =IF(AB39="","",IF(AB39=AH39,1,IF(AB39=AN39,0.5,0))) ->  | AU39: =IF(AC39="","",IF(COUNTIF($AG39:$AK39,AC39)>0,1/COUNTIF($AA39:$AE39,AC39),IF(COUNTIF($AM39:$AQ39,AC39)>0,0.5/COUNTIF($AA39:$AE39,AC39),0))) ->  | AV39: =IF(AD39="","",IF(AD39=AJ39,1,IF(AD39=AP39,0.5,0))) ->  | AW39: =IF(AE39="","",IF(COUNTIF($AG39:$AK39,AE39)>0,1/COUNTIF($AA39:$AE39,AE39),IF(COUNTIF($AM39:$AQ39,AE39)>0,0.5/COUNTIF($AA39:$AE39,AE39),0))) -> 
F40: ,
B41: Größe = | F41: m³ | V41: =IF(AND(C41=""),"",SUM(AS41:AW41)) ->  | W41: / | X41: =COUNTA(AG41:AK41) -> 1 | AA41: =IF(C41="","",C41) ->  | AF41: / | AG41: =IF('G6.2L'!C41="","",'G6.2L'!C41) -> 1430 | AL41: - | AM41: =IF(C41="","",C39*H39) ->  | AS41: =IF(AA41="","",IF(COUNTIF($AG41:$AK41,AA41)>0,1/COUNTIF($AA41:$AE41,AA41),IF(COUNTIF($AM41:$AQ41,AA41)>0,0.5/COUNTIF($AA41:$AE41,AA41),0))) ->  | AT41: =IF(AB41="","",IF(AB41=AH41,1,IF(AB41=AN41,0.5,0))) ->  | AU41: =IF(AC41="","",IF(COUNTIF($AG41:$AK41,AC41)>0,1/COUNTIF($AA41:$AE41,AC41),IF(COUNTIF($AM41:$AQ41,AC41)>0,0.5/COUNTIF($AA41:$AE41,AC41),0))) ->  | AV41: =IF(AD41="","",IF(AD41=AJ41,1,IF(AD41=AP41,0.5,0))) ->  | AW41: =IF(AE41="","",IF(COUNTIF($AG41:$AK41,AE41)>0,1/COUNTIF($AA41:$AE41,AE41),IF(COUNTIF($AM41:$AQ41,AE41)>0,0.5/COUNTIF($AA41:$AE41,AE41),0))) -> 
A43: 4. | B43: WW = | V43: =IF(AND(C43="",F43="",H43=""),"",SUM(AS43:AW43)) ->  | W43: / | X43: =COUNTA(AG43:AK43) -> 3 | AA43: =IF(C43="","",C43) ->  | AC43: =IF(F43="","",F43) ->  | AE43: =IF(H43="","",H43) ->  | AF43: / | AG43: =IF('G6.2L'!C43="","",'G6.2L'!C43) -> Größe | AI43: =IF('G6.2L'!F43="","",'G6.2L'!F43) -> • | AK43: =IF('G6.2L'!H43="","",'G6.2L'!H43) -> Reduzierter Baukostenrichtsatz | AS43: =IF(AA43="","",IF(COUNTIF($AG43:$AK43,AA43)>0,1/COUNTIF($AA43:$AE43,AA43),IF(COUNTIF($AM43:$AQ43,AA43)>0,0.5/COUNTIF($AA43:$AE43,AA43),0))) ->  | AT43: =IF(AB43="","",IF(COUNTIF($AG43:$AK43,AB43)>0,1/COUNTIF($AA43:$AE43,AB43),IF(COUNTIF($AM43:$AQ43,AB43)>0,0.5/COUNTIF($AA43:$AE43,AB43),0))) -> 
B45: WW = | F45: =IF(F43="","",F43) ->  | V45: =IF(AND(C45="",F45="",H45=""),"",SUM(AS45:AW45)) ->  | W45: / | X45: =COUNTA(AG45:AK45) -> 2 | AA45: =IF(C45="","",C45) ->  | AE45: =IF(H45="","",H45) ->  | AF45: / | AG45: =IF('G6.2L'!C45="","",'G6.2L'!C45) -> 1430 | AK45: =IF('G6.2L'!H45="","",'G6.2L'!H45) -> 87.1 | AL45: - | AM45: =IF(C45="","",C41) ->  | AQ45: =IF(H45="","",K34) ->  | AS45: =IF(AA45="","",IF(COUNTIF($AG45:$AK45,AA45)>0,1/COUNTIF($AA45:$AE45,AA45),IF(COUNTIF($AM45:$AQ45,AA45)>0,0.5/COUNTIF($AA45:$AE45,AA45),0))) ->  | AT45: =IF(AB45="","",IF(COUNTIF($AG45:$AK45,AB45)>0,1/COUNTIF($AA45:$AE45,AB45),IF(COUNTIF($AM45:$AQ45,AB45)>0,0.5/COUNTIF($AA45:$AE45,AB45),0))) ->  | AU45: =IF(AC45="","",IF(COUNTIF($AG45:$AK45,AC45)>0,1/COUNTIF($AA45:$AE45,AC45),IF(COUNTIF($AM45:$AQ45,AC45)>0,0.5/COUNTIF($AA45:$AE45,AC45),0))) ->  | AV45: =IF(AD45="","",IF(COUNTIF($AG45:$AK45,AD45)>0,1/COUNTIF($AA45:$AE45,AD45),IF(COUNTIF($AM45:$AQ45,AD45)>0,0.5/COUNTIF($AA45:$AE45,AD45),0))) ->  | AW45: =IF(AE45="","",IF(COUNTIF($AG45:$AK45,AE45)>0,1/COUNTIF($AA45:$AE45,AE45),IF(COUNTIF($AM45:$AQ45,AE45)>0,0.5/COUNTIF($AA45:$AE45,AE45),0))) -> 
F46: ,
B47: WW = | F47: € | V47: =IF(AND(C47=""),"",SUM(AS47:AW47)) ->  | W47: / | X47: =COUNTA(AG47:AK47) -> 1 | AA47: =IF(C47="","",C47) ->  | AF47: / | AG47: =IF('G6.2L'!C47="","",'G6.2L'!C47) -> 124553 | AL47: - | AM47: =IF(C47="","",C45*H45) ->  | AS47: =IF(AA47="","",IF(COUNTIF($AG47:$AK47,AA47)>0,1/COUNTIF($AA47:$AE47,AA47),IF(COUNTIF($AM47:$AQ47,AA47)>0,0.5/COUNTIF($AA47:$AE47,AA47),0))) ->  | AT47: =IF(AB47="","",IF(COUNTIF($AG47:$AK47,AB47)>0,1/COUNTIF($AA47:$AE47,AB47),IF(COUNTIF($AM47:$AQ47,AB47)>0,0.5/COUNTIF($AA47:$AE47,AB47),0))) ->  | AU47: =IF(AC47="","",IF(COUNTIF($AG47:$AK47,AC47)>0,1/COUNTIF($AA47:$AE47,AC47),IF(COUNTIF($AM47:$AQ47,AC47)>0,0.5/COUNTIF($AA47:$AE47,AC47),0))) ->  | AV47: =IF(AD47="","",IF(COUNTIF($AG47:$AK47,AD47)>0,1/COUNTIF($AA47:$AE47,AD47),IF(COUNTIF($AM47:$AQ47,AD47)>0,0.5/COUNTIF($AA47:$AE47,AD47),0))) ->  | AW47: =IF(AE47="","",IF(COUNTIF($AG47:$AK47,AE47)>0,1/COUNTIF($AA47:$AE47,AE47),IF(COUNTIF($AM47:$AQ47,AE47)>0,0.5/COUNTIF($AA47:$AE47,AE47),0))) -> 
AG48: Anschaffungswert
A49: 5. | B49: jAfa = | V49: =IF(AND(C49="",F49="",H49=""),"",SUM(AS49:AW49)) ->  | W49: / | X49: =COUNTA(AG49:AK49) -> 1 | AA49: =IF(C49="","",C49) ->  | AF49: / | AG49: =IF('G6.2L'!C49="","",'G6.2L'!C49) -> Wiederbeschaffungswert | AS49: =IF(AA49="","",IF(COUNTIF($AG48:$AG49,AA49)>0,1/COUNTIF($AA49,AA49),IF(COUNTIF($AM49,AA49)>0,0.5/COUNTIF($AA49,AA49),0))) ->  | AT49: =IF(AB49="","",IF(AB49=AH49,1,IF(AB49=AN49,0.5,0))) -> 
V50: =IF(AND(C50="",F50="",H50=""),"",SUM(AS50:AW50)) ->  | W50: / | X50: =COUNTA(AG50:AK50) -> 1 | AA50: =IF(C50="","",C50) ->  | AF50: / | AG50: =IF('G6.2L'!C50="","",'G6.2L'!C50) -> Nutzungsdauer | AS50: =IF(AA50="","",IF(AA50=AG50,1,IF(AA50=AM50,0.5,0))) ->  | AT50: =IF(AB50="","",IF(AB50=AH50,1,IF(AB50=AN50,0.5,0))) ->  | AU50: =IF(AC50="","",IF(AC50=AI50,1,IF(AC50=AO50,0.5,0))) ->  | AV50: =IF(AD50="","",IF(AD50=AJ50,1,IF(AD50=AP50,0.5,0))) ->  | AW50: =IF(AE50="","",IF(AE50=AK50,1,IF(AE50=AQ50,0.5,0))) -> 
AS51: =IF(AA51="","",IF(AA51=AG51,1,IF(AA51=#REF!,1,IF(AA51=AM51,0.5,IF(AA51=#REF!,0.5,0))))) ->  | AT51: =IF(AB51="","",IF(AB51=AH51,1,IF(AB51=#REF!,1,IF(AB51=AN51,0.5,IF(AB51=#REF!,0.5,0))))) ->  | AU51: =IF(AC51="","",IF(AC51=AI51,1,IF(AC51=#REF!,1,IF(AC51=AO51,0.5,IF(AC51=#REF!,0.5,0))))) ->  | AV51: =IF(AD51="","",IF(AD51=AJ51,1,IF(AD51=#REF!,1,IF(AD51=AP51,0.5,IF(AD51=#REF!,0.5,0))))) ->  | AW51: =IF(AE51="","",IF(AE51=AK51,1,IF(AE51=#REF!,1,IF(AE51=AQ51,0.5,IF(AE51=#REF!,0.5,0))))) -> 
B52: jAfa = | V52: =IF(AND(C52="",F52="",H52=""),"",SUM(AS52:AW52)) ->  | W52: / | X52: =COUNTA(AG52:AK52) -> 1 | AA52: =IF(C52="","",C52) ->  | AF52: / | AG52: =IF('G6.2L'!C52="","",'G6.2L'!C52) -> 124553 | AS52: =IF(AA52="","",IF(AA52=AG52,1,IF(AA52=AM52,0.5,0))) ->  | AT52: =IF(AB52="","",IF(AB52=AH52,1,IF(AB52=AN52,0.5,0))) -> 
V53: =IF(AND(C53="",F53="",H53=""),"",SUM(AS53:AW53)) ->  | W53: / | X53: =COUNTA(AG53:AK53) -> 1 | AA53: =IF(C53="","",C53) ->  | AF53: / | AG53: =IF('G6.2L'!C53="","",'G6.2L'!C53) -> 40 | AS53: =IF(AA53="","",IF(AA53=AG53,1,IF(AA53=AM53,0.5,0))) -> 
B55: jAfa = | F55: € | H55: =IF(C55="","",IF(C28>=C13,"ACHTUNG: Keine Afa mehr!","")) ->  | V55: =IF(AND(C55=""),"",SUM(AS55:AW55)) ->  | W55: / | X55: =COUNTA(AG55:AK55) -> 1 | AA55: =IF(C55="","",C55) ->  | AF55: / | AG55: =IF('G6.2L'!C55="","",'G6.2L'!C55) -> 3113.825 | AL55: - | AM55: =IF(C55="","",C52/C53) ->  | AS55: =IF(AA55="","",IF(AA55=AG55,1,IF(AA55=AM55,0.5,0))) ->  | AT55: =IF(AB55="","",IF(AB55=AH55,1,IF(AB55=AN55,0.5,0))) -> 
B57: bAfa = | V57: =IF(AND(C57="",F57="",H57=""),"",SUM(AS57:AW57)) ->  | W57: / | X57: =COUNTA(AG57:AK57) -> 3 | AA57: =IF(C57="","",C57) ->  | AC57: =IF(F57="","",F57) ->  | AE57: =IF(H57="","",H57) ->  | AF57: / | AG57: =IF('G6.2L'!C57="","",'G6.2L'!C57) -> Alter | AI57: =IF('G6.2L'!F57="","",'G6.2L'!F57) -> • | AK57: =IF('G6.2L'!H57="","",'G6.2L'!H57) -> Jährliche Afa | AS57: =IF(AA57="","",IF(COUNTIF($AG57:$AK57,AA57)>0,1/COUNTIF($AA57:$AE57,AA57),IF(COUNTIF($AM57:$AQ57,AA57)>0,0.5/COUNTIF($AA57:$AE57,AA57),0))) ->  | AT57: =IF(AB57="","",IF(COUNTIF($AG57:$AK57,AB57)>0,1/COUNTIF($AA57:$AE57,AB57),IF(COUNTIF($AM57:$AQ57,AB57)>0,0.5/COUNTIF($AA57:$AE57,AB57),0))) ->  | AU57: =IF(AC57="","",IF(COUNTIF($AG57:$AK57,AC57)>0,1/COUNTIF($AA57:$AE57,AC57),IF(COUNTIF($AM57:$AQ57,AC57)>0,0.5/COUNTIF($AA57:$AE57,AC57),0))) ->  | AV57: =IF(AD57="","",IF(COUNTIF($AG57:$AK57,AD57)>0,1/COUNTIF($AA57:$AE57,AD57),IF(COUNTIF($AM57:$AQ57,AD57)>0,0.5/COUNTIF($AA57:$AE57,AD57),0))) ->  | AW57: =IF(AE57="","",IF(COUNTIF($AG57:$AK57,AE57)>0,1/COUNTIF($AA57:$AE57,AE57),IF(COUNTIF($AM57:$AQ57,AE57)>0,0.5/COUNTIF($AA57:$AE57,AE57),0))) -> 
B59: bAfa = | F59: =IF(F57="","",F57) ->  | V59: =IF(AND(C59="",F59="",H59=""),"",SUM(AS59:AW59)) ->  | W59: / | X59: =COUNTA(AG59:AK59) -> 2 | AA59: =IF(C59="","",C59) ->  | AE59: =IF(H59="","",H59) ->  | AF59: / | AG59: =IF('G6.2L'!C59="","",'G6.2L'!C59) -> 38 | AK59: =IF('G6.2L'!H59="","",'G6.2L'!H59) -> 3113.825 | AL59: - | AM59: =IF(C59="","",C55) ->  | AQ59: =IF(H59="","",C28) ->  | AS59: =IF(AA59="","",IF(COUNTIF($AG59:$AK59,AA59)>0,1/COUNTIF($AA59:$AE59,AA59),IF(COUNTIF($AM59:$AQ59,AA59)>0,0.5/COUNTIF($AA59:$AE59,AA59),0))) ->  | AT59: =IF(AB59="","",IF(COUNTIF($AG59:$AK59,AB59)>0,1/COUNTIF($AA59:$AE59,AB59),IF(COUNTIF($AM59:$AQ59,AB59)>0,0.5/COUNTIF($AA59:$AE59,AB59),0))) ->  | AU59: =IF(AC59="","",IF(COUNTIF($AG59:$AK59,AC59)>0,1/COUNTIF($AA59:$AE59,AC59),IF(COUNTIF($AM59:$AQ59,AC59)>0,0.5/COUNTIF($AA59:$AE59,AC59),0))) ->  | AV59: =IF(AD59="","",IF(COUNTIF($AG59:$AK59,AD59)>0,1/COUNTIF($AA59:$AE59,AD59),IF(COUNTIF($AM59:$AQ59,AD59)>0,0.5/COUNTIF($AA59:$AE59,AD59),0))) ->  | AW59: =IF(AE59="","",IF(COUNTIF($AG59:$AK59,AE59)>0,1/COUNTIF($AA59:$AE59,AE59),IF(COUNTIF($AM59:$AQ59,AE59)>0,0.5/COUNTIF($AA59:$AE59,AE59),0))) -> 
B61: bAfa = | F61: € | V61: =IF(AND(C61=""),"",SUM(AS61:AW61)) ->  | W61: / | X61: =COUNTA(AG61:AK61) -> 1 | AA61: =IF(C61="","",C61) ->  | AF61: / | AG61: =IF('G6.2L'!C61="","",'G6.2L'!C61) -> 118325.35 | AL61: - | AM61: =IF(C61="","",C59*H59) ->  | AS61: =IF(AA61="","",IF(COUNTIF($AG61:$AK61,AA61)>0,1/COUNTIF($AA61:$AE61,AA61),IF(COUNTIF($AM61:$AQ61,AA61)>0,0.5/COUNTIF($AA61:$AE61,AA61),0))) ->  | AT61: =IF(AB61="","",IF(COUNTIF($AG61:$AK61,AB61)>0,1/COUNTIF($AA61:$AE61,AB61),IF(COUNTIF($AM61:$AQ61,AB61)>0,0.5/COUNTIF($AA61:$AE61,AB61),0))) ->  | AU61: =IF(AC61="","",IF(COUNTIF($AG61:$AK61,AC61)>0,1/COUNTIF($AA61:$AE61,AC61),IF(COUNTIF($AM61:$AQ61,AC61)>0,0.5/COUNTIF($AA61:$AE61,AC61),0))) ->  | AV61: =IF(AD61="","",IF(COUNTIF($AG61:$AK61,AD61)>0,1/COUNTIF($AA61:$AE61,AD61),IF(COUNTIF($AM61:$AQ61,AD61)>0,0.5/COUNTIF($AA61:$AE61,AD61),0))) ->  | AW61: =IF(AE61="","",IF(COUNTIF($AG61:$AK61,AE61)>0,1/COUNTIF($AA61:$AE61,AE61),IF(COUNTIF($AM61:$AQ61,AE61)>0,0.5/COUNTIF($AA61:$AE61,AE61),0))) -> 
AG62: Anschaffungswert
A63: 6. | B63: ZW1.1. = | V63: =IF(AND(C63="",F63="",H63=""),"",SUM(AS63:AW63)) ->  | W63: / | X63: =COUNTA(AG63:AK63) -> 3 | AA63: =IF(C63="","",C63) ->  | AC63: =IF(F63="","",F63) ->  | AE63: =IF(H63="","",H63) ->  | AF63: / | AG63: =IF('G6.2L'!C63="","",'G6.2L'!C63) -> Wiederbeschaffungswert | AI63: =IF('G6.2L'!F63="","",'G6.2L'!F63) -> – | AK63: =IF('G6.2L'!H63="","",'G6.2L'!H63) -> Bisherige Afa | AS63: =IF(AA63="","",IF(COUNTIF($AG62:$AG63,AA63)>0,1/COUNTIF($AA63,AA63),IF(COUNTIF($AM63,AA63)>0,0.5/COUNTIF($AA63,AA63),0))) ->  | AT63: =IF(AB63="","",IF(AB63=AH63,1,IF(AB63=AN63,0.5,0))) -> 
B65: ZW1.1. = | F65: =IF(F63="","",F63) ->  | V65: =IF(AND(C65="",F65="",H65=""),"",SUM(AS65:AW65)) ->  | W65: / | X65: =COUNTA(AG65:AK65) -> 2 | AA65: =IF(C65="","",C65) ->  | AE65: =IF(H65="","",H65) ->  | AF65: / | AG65: =IF('G6.2L'!C65="","",'G6.2L'!C65) -> 124553 | AK65: =IF('G6.2L'!H65="","",'G6.2L'!H65) -> 118325.35 | AL65: - | AM65: =IF(C65="","",H9) ->  | AQ65: =IF(H65="","",C61) ->  | AS65: =IF(AA65="","",IF(AA65=AG65,1,IF(AA65=AM65,0.5,0))) ->  | AT65: =IF(AB65="","",IF(AB65=AH65,1,IF(AB65=AN65,0.5,0))) -> 
B67: ZW1.1. = | F67: € | H67: =IF(C47="","",IF(C28>=C13,"Erinnerungswert!",IF(C67=C47,"ACHTUNG: Zeitwert 1.1. bleibt leer! "&DOLLAR(C47,2)&" kommt in die Spalte 'Zugang'",""))) ->  | V67: =IF(AND(C67=""),"",SUM(AS67:AW67)) ->  | W67: / | X67: =COUNTA(AG67:AK67) -> 1 | AA67: =IF(C67="","",C67) ->  | AF67: / | AG67: =IF('G6.2L'!C67="","",'G6.2L'!C67) -> 6227.65 | AL67: - | AM67: =IF(C67="","",C65-H65) ->  | AS67: =IF(AA67="","",IF(AA67=AG67,1,IF(AA67=AM67,0.5,0))) ->  | AT67: =IF(AB67="","",IF(AB67=AH67,1,IF(AB67=AN67,0.5,0))) -> 
A69: 7. | B69: ZW31.12. = | V69: =IF(AND(C69="",F69="",H69=""),"",SUM(AS69:AW69)) ->  | W69: / | X69: =COUNTA(AG69:AK69) -> 3 | AA69: =IF(C69="","",C69) ->  | AC69: =IF(F69="","",F69) ->  | AE69: =IF(H69="","",H69) ->  | AF69: / | AG69: =IF('G6.2L'!C69="","",'G6.2L'!C69) -> Zeitwert 1.1. | AI69: =IF('G6.2L'!F69="","",'G6.2L'!F69) -> – | AK69: =IF('G6.2L'!H69="","",'G6.2L'!H69) -> Jährliche Afa | AS69: =IF(AA69="","",IF(AA69=AG69,1,IF(AA69=AM69,0.5,0))) ->  | AT69: =IF(AB69="","",IF(AB69=AH69,1,IF(AB69=AN69,0.5,0))) -> 
B71: ZW31.12. = | F71: =IF(F69="","",F69) ->  | V71: =IF(AND(C71="",F71="",H71=""),"",SUM(AS71:AW71)) ->  | W71: / | X71: =COUNTA(AG71:AK71) -> 2 | AA71: =IF(C71="","",C71) ->  | AE71: =IF(H71="","",H71) ->  | AF71: / | AG71: =IF('G6.2L'!C71="","",'G6.2L'!C71) -> 6227.65 | AK71: =IF('G6.2L'!H71="","",'G6.2L'!H71) -> 3113.825 | AL71: - | AM71: =IF(C71="","",C67) ->  | AQ71: =IF(AND(H71="",C55=""),"",AA55) ->  | AS71: =IF(AA71="","",IF(AA71=AG71,1,IF(AA71=AM71,0.5,0))) ->  | AT71: =IF(AB71="","",IF(AB71=AH71,1,IF(AB71=AN71,0.5,0))) -> 
B73: ZW31.12. = | F73: € | H73: =IF(C73="","",IF(C67<=C55,"Erinnerungswert!","")) ->  | V73: =IF(AND(C73=""),"",SUM(AS73:AW73)) ->  | W73: / | X73: =COUNTA(AG73:AK73) -> 1 | AA73: =IF(C73="","",C73) ->  | AF73: / | AG73: =IF('G6.2L'!C73="","",'G6.2L'!C73) -> 3113.825 | AL73: - | AM73: =IF(C73="","",C71-H71) ->  | AS73: =IF(AA73="","",IF(AA73=AG73,1,IF(AA73=AM73,0.5,0))) ->  | AT73: =IF(AB73="","",IF(AB73=AH73,1,IF(AB73=AN73,0.5,0))) -> 
A75: Bezeichnung | C75: Baujahr | D75: Größe | E75: reduzierter | H75: Neuwert | I75: ND | J75: AfA | L75: Wert am | N75: Zugang | O75: Abgang | P75: AfA | Q75: Wert am
D76: ha, lfm, m² | E76: Richtsatz | H76: in | I76: in | J76: in | L76: ="1.1."&Jahr!F4 -> 1.1. | N76: in | O76: in | P76: in | Q76: ="31.12."&Jahr!F4 -> 31.12.
D77: m³, … | E77: je ha, … | H77: € | I77: Jahren | J77: €/Jahr | L77: € | N77: € | O77: € | P77: € | Q77: €
A78: =IF(D1="","",D1) -> Schankraum | C78: =IF(C11="","",C11) -> 1983 | D78: =IF(C41="","",C41) ->  | E78: =IF(K34="","",C34*H34/C35) ->  | H78: =IF(C47="","",C47) ->  | I78: =IF(C13="","",C13) -> 40 | J78: =IF(C55="","",C55) ->  | V78: =IF(AND(C78="",F78="",H78=""),"",SUM(AS78:AW78)) -> 0 | W78: / | X78: =COUNT(AG78:AK78) -> 3 | AA78: =IF(AND($L78="",$N78="",$O78="",$P78="",$Q78=""),"",IF(L78="","",L78)) ->  | AB78: =IF(AND($L78="",$N78="",$O78="",$P78="",$Q78=""),"",IF(N78="","",N78)) ->  | AC78: =IF(AND($L78="",$N78="",$O78="",$P78="",$Q78=""),"",IF(O78="","",O78)) ->  | AD78: =IF(AND($L78="",$N78="",$O78="",$P78="",$Q78=""),"",IF(P78="","",P78)) ->  | AE78: =IF(AND($L78="",$N78="",$O78="",$P78="",$Q78=""),"",IF(Q78="","",Q78)) ->  | AF78: / | AG78: =IF('G6.2L'!L78="","-",'G6.2L'!L78) -> 6227.65 | AH78: =IF('G6.2L'!N78="","-",'G6.2L'!N78) -> - | AI78: =IF('G6.2L'!O78="","-",'G6.2L'!O78) -> - | AJ78: =IF('G6.2L'!P78="","-",'G6.2L'!P78) -> 3113.825 | AK78: =IF('G6.2L'!Q78="","-",'G6.2L'!Q78) -> 3113.825 | AL78: - | AM78: =IF(C67="","",IF(AA28=0,"",C67)) ->  | AN78: =IF(C67="","",IF(AA28<>0,"",C67)) ->  | AO78: - | AP78: =IF(C55="","",C55) ->  | AQ78: =IF(C73="","",C73) ->  | AS78: =IF(AA78="","",IF(AND(AA78<>"",OR(AG78="",AG78="-")),-1,IF(AA78=AG78,1,IF(AA78=AM78,0.5,0)))) ->  | AT78: =IF(AB78="","",IF(AND(AB78<>"",OR(AH78="",AH78="-")),-1,IF(AB78=AH78,1,IF(AB78=AN78,0.5,0)))) -> 
A79: Summe | L79: =IF(SUM(L78)=0,"",SUM(L78)) ->  | N79: =IF(SUM(N78)=0,"",SUM(N78)) ->  | O79: =IF(SUM(O78)=0,"",SUM(O78)) ->  | P79: =IF(SUM(P78)=0,"",SUM(P78)) ->  | Q79: =IF(SUM(Q78)=0,"",SUM(Q78)) ->  | AA79: Korrektur trotz "Nicht anzeigen" anzeigen! | AJ79: "Anschaffungswert": | AK79: =COUNTIF(AG31:AK78,"Anschaffungswert") -> 2
U80: Gsamtpunkte: | V80: =SUM(V17:V79) -> 0 | W80: / | X80: =SUM(X17:X79) -> 48 | AA80: =COUNTBLANK(AA17:AE78) -> 309 | AG80: =SUM(COUNTBLANK(AG17:AK78),AK79:AK80) -> 261 | AJ80: "-": | AK80: =COUNTIF(AG31:AK78,"-") -> 2

Sheet G6.2L
A1: Beispiel | C1: =IF('G6.2'!C1="","",'G6.2'!C1) -> 6.2 | D1: =IF('G6.2'!D1="","",'G6.2'!D1) -> Schankraum
A3: =IF('G6.2'!A3="","",'G6.2'!A3) -> ■ Herstellungswert unbekannt
A4: =IF('G6.2'!A4="","",'G6.2'!A4) -> ■ Errichtungsjahr bekannt
A5: =IF('G6.2'!A5="","",'G6.2'!A5) -> ■ kein Investitionszuschuss
A7: =IF('G6.2'!A7="","",'G6.2'!A7) -> Ein 1983 errichtetes Betriebsgebäude, das sich noch in einem sehr guten Bauzustand befindet, wird als SCHANKRAUM genutzt. Der Herstellungswert des Gebäudes ist nicht bekannt. Die betriebsgewöhnliche Nutzungsdauer wurde mit 40 Jahren festgelegt. Die Länge beträgt 22 m, die Breite 13 m, die Mauerhöhe 3,2 m und die halbe Dachstuhlhöhe 1,8 m. | B7: =IF('G6.2'!B7="","",'G6.2'!B7) ->  | C7: =IF('G6.2'!C7="","",'G6.2'!C7) ->  | D7: =IF('G6.2'!D7="","",'G6.2'!D7) ->  | E7: =IF('G6.2'!E7="","",'G6.2'!E7) ->  | F7: =IF('G6.2'!F7="","",'G6.2'!F7) ->  | G7: =IF('G6.2'!G7="","",'G6.2'!G7) ->  | H7: =IF('G6.2'!H7="","",'G6.2'!H7) ->  | I7: =IF('G6.2'!I7="","",'G6.2'!I7) ->  | K7: =IF('G6.2'!K7="","",'G6.2'!K7) ->  | L7: =IF('G6.2'!L7="","",'G6.2'!L7) ->  | N7: =IF('G6.2'!N7="","",'G6.2'!N7) ->  | O7: =IF('G6.2'!O7="","",'G6.2'!O7) ->  | P7: =IF('G6.2'!P7="","",'G6.2'!P7) ->  | Q7: =IF('G6.2'!Q7="","",'G6.2'!Q7) -> 
B9: =IF('G6.2'!B9="","",'G6.2'!B9) -> Heuer = | C9: =IF('G6.2'!C9="","",'G6.2'!C9) -> 2021 | H9: =IF('G6.2'!H9="","",'G6.2'!H9) -> Länge = | I9: =IF('G6.2'!I9="","",'G6.2'!I9) -> 22 | J9: =IF('G6.2'!J9="","",'G6.2'!J9) -> m | N9: =IF('G6.2'!N9="","",'G6.2'!N9) -> Baukostenrichtsatz = | O9: =IF('G6.2'!O9="","",'G6.2'!O9) -> 130 | P9: =IF('G6.2'!P9="","",'G6.2'!P9) -> € | Q9: =IF('G6.2'!Q9="","",'G6.2'!Q9) -> m³
B11: =IF('G6.2'!B11="","",'G6.2'!B11) -> Anschaffungsjahr = | C11: =IF('G6.2'!C11="","",'G6.2'!C11) -> 1983 | H11: =IF('G6.2'!H11="","",'G6.2'!H11) -> Breite = | I11: =IF('G6.2'!I11="","",'G6.2'!I11) -> 13 | J11: =IF('G6.2'!J11="","",'G6.2'!J11) -> m
B13: =IF('G6.2'!B13="","",'G6.2'!B13) -> Betriebsgew. ND = | C13: =IF('G6.2'!C13="","",'G6.2'!C13) -> 40 | D13: =IF('G6.2'!D13="","",'G6.2'!D13) -> Jahre | H13: =IF('G6.2'!H13="","",'G6.2'!H13) -> Setienwandhöhe1) = | I13: =IF('G6.2'!I13="","",'G6.2'!I13) -> 3.2 | J13: =IF('G6.2'!J13="","",'G6.2'!J13) -> m → (h od. hMAX)
H15: =IF('G6.2'!H15="","",'G6.2'!H15) -> ½ Dachstuhlhöhe = | I15: =IF('G6.2'!I15="","",'G6.2'!I15) -> 1.8 | J15: =IF('G6.2'!J15="","",'G6.2'!J15) -> m | N15: =IF('G6.2'!N15="","",'G6.2'!N15) -> Gesamthöhe = | O15: =IF('G6.2'!O15="","",'G6.2'!O15) -> 5 | P15: =IF('G6.2'!P15="","",'G6.2'!P15) -> m
A24: 1. | B24: Alter = | C24: Heuer | F24: – | H24: Anschaffungsjahr | L24: Alter < ¼ der Nutzungsdauer → Reduktion um 10% (auf 90%)
B26: Alter = | C26: =IF(C9="","",C9) -> 2021 | F26: =IF(F24="","",F24) -> – | H26: =IF(C11="","Nicht bekannt!",C11) -> 1983 | L26: Alter > ¼ und < ½ der Nutzungsdauer → Reduktion um 20% (auf 80%)
F27: ,
B28: Alter = | C28: =IF(C11="","> betirebsgewöhnl. ND",C26-H26) -> 38 | F28: Jahre | L28: Alter > ½ Nutzungsdauer → Reduktion um 33% (auf 67%)
A30: 2. | F30: ="Baukostenrichtsatz = "&DOLLAR(O9,2)&P9&"/"&MID(Q9,1,6) -> Baukostenrichtsatz = € 130,00 €/m³ | H30: …..…..… | I30: 1
F32: ="Reduzierter Baukostenrichtsatz = x €/"&MID(Q9,1,6) -> Reduzierter Baukostenrichtsatz = x €/m³ | H32: …..…..… | I32: =IF(C28<(C13/4),90%,IF(AND(C28>=(C13/4),C28<(C13/2)),80%,IF(C28>=(C13/2),67%,""))) -> 0.67
B34: x = | C34: =IF(I32="","",DOLLAR(O9,2)) -> € 130,00 | E34: =IF(I32="",""," ") ->  | F34: =IF(I32="","","•") -> • | G34: =IF(I32="",""," ") ->  | H34: =IF(I32="","",FIXED(I32,2)*100) -> 67 | K34: =IF(I32="",""," = "&DOLLAR(C34*H34/C35,2)) -> = € 87,10
C35: =IF(I32="","",FIXED(I30,2)*100) -> 100
A37: 3. | B37: Größe = | C37: Länge | F37: • | H37: Breite | K37: • | M37: Höhe
B39: Größe = | C39: =I9 -> 22 | F39: =IF(F37="","",F37) -> • | H39: =I11 -> 13 | K39: =IF(K37="","",K37) -> • | M39: =O15 -> 5
F40: ,
B41: Größe = | C41: =C39*H39*M39 -> 1430 | F41: m³
A43: 4. | B43: WW = | C43: Größe | F43: • | H43: Reduzierter Baukostenrichtsatz
B45: WW = | C45: =C41 -> 1430 | F45: =IF(F43="","",F43) -> • | H45: =IF(K34="","",C34*H34/C35) -> 87.1
F46: ,
B47: WW = | C47: =C45*H45 -> 124553 | F47: €
A49: 5. | B49: jAfa = | C49: Wiederbeschaffungswert
C50: Nutzungsdauer
B52: jAfa = | C52: =IF(C47="","",C47) -> 124553
C53: =C13 -> 40
B55: jAfa = | C55: =C52/C53 -> 3113.825 | F55: € | H55: =IF(C28>=C13,"ACHTUNG: Keine Afa mehr!","") -> 
B57: bAfa = | C57: Alter | F57: • | H57: Jährliche Afa
B59: bAfa = | C59: =C28 -> 38 | F59: =IF(F57="","",F57) -> • | H59: =C55 -> 3113.825
B61: bAfa = | C61: =C59*H59 -> 118325.35 | F61: €
A63: 6. | B63: ZW1.1. = | C63: Wiederbeschaffungswert | F63: – | H63: Bisherige Afa
B65: ZW1.1. = | C65: =C47 -> 124553 | F65: =IF(F63="","",F63) -> – | H65: =C55*C28 -> 118325.35
B67: ZW1.1. = | C67: =IF(C28>=C13,Jahr!D8,C65-H65) -> 6227.65 | F67: € | H67: =IF(C28>=C13,"Erinnerungswert!",IF(C9=C11,"ACHTUNG: Zeitwert 1.1. bleibt leer! "&DOLLAR(C47,2)&" kommt in die Spalte 'Zugang'","")) -> 
A69: 7. | B69: ZW31.12. = | C69: Zeitwert 1.1. | F69: – | H69: Jährliche Afa
B71: ZW31.12. = | C71: =C67 -> 6227.65 | F71: =IF(F69="","",F69) -> – | H71: =C55 -> 3113.825
B73: ZW31.12. = | C73: =IF(C67<=C55,Jahr!D8,C71-H71) -> 3113.825 | F73: € | H73: =IF(C67<=C55,"Erinnerungswert!","") -> 
A75: Bezeichnung | C75: Baujahr | D75: Größe | E75: reduzierter | H75: Neuwert | I75: ND | J75: AfA | L75: Wert am | N75: Zugang | O75: Abgang | P75: AfA | Q75: Wert am
D76: ha, lfm, m² | E76: Richtsatz | H76: in | I76: in | J76: in | L76: ="1.1."&Jahr!F4 -> 1.1. | N76: in | O76: in | P76: in | Q76: ="31.12."&Jahr!F4 -> 31.12.
D77: m³, … | E77: je ha, … | H77: € | I77: Jahren | J77: €/Jahr | L77: € | N77: € | O77: € | P77: € | Q77: €
A78: =IF(D1="","",D1) -> Schankraum | C78: =IF(C11="","",C11) -> 1983 | D78: =IF(C41="","",C41) -> 1430 | E78: =IF(K34="","",C34*H34/C35) -> 87.1 | H78: =IF(C47="","",C47) -> 124553 | I78: =IF(C13="","",C13) -> 40 | J78: =IF(C55="","",C55) -> 3113.825 | L78: =IF(H67="ACHTUNG: Zeitwert 1.1. bleibt leer! "&DOLLAR(C67,2)&" kommt in die Spalte 'Zugang'","",IF(C67="","",C67)) -> 6227.65 | N78: =IF(H67="ACHTUNG: Zeitwert 1.1. bleibt leer! "&DOLLAR(C67,2)&" kommt in die Spalte 'Zugang'",C67,"") ->  | P78: =IF(L78=Jahr!D8,"",J78) -> 3113.825 | Q78: =IF(C73="","",C73) -> 3113.825
A79: Summe | L79: =IF(SUM(L78)=0,"",SUM(L78)) -> 6227.65 | N79: =IF(SUM(N78)=0,"",SUM(N78)) ->  | O79: =IF(SUM(O78)=0,"",SUM(O78)) ->  | P79: =IF(SUM(P78)=0,"",SUM(P78)) -> 3113.825 | Q79: =IF(SUM(Q78)=0,"",SUM(Q78)) -> 3113.825

Sheet G7
A1: Beispiel | C1: 7 | D1: Laufstall
A3: ■ Herstellungswert bekannt
A4: ■ Errichtung in mehreren Bauetappen
A5: ■ Investitionszuschuss gewährt | S5: Punkte
A7: =PROPER(VLOOKUP(D1,GL,3,0))&" "&UPPER(D1)&" wurde "&J9&" ("&I9&DOLLAR(M9,2)&") und "&J11&" ("&I11&DOLLAR(M11,2)&") errichtet. "&PROPER(VLOOKUP(D1,GL,5,0))&" "&D1&" wird "&C13&" voll in Betrieb genommen. "&J13&" wird der erste Teil des Investitionszuschusses ("&DOLLAR(M13,2)&") und "&J15&" der zweite Teil des Investitionszuschusses ("&DOLLAR(M15,2)&") ausbezahlt. Die Nutzungsdauer beträgt "&C11&D11&"." -> Ein LAUFSTALL wurde 2019 (1. Bauabschnitt: € 86 200,00) und 2020 (2. Bauabschnitt: € 62 000,00) errichtet. Der Laufstall wird 2020 voll in Betrieb genommen. 2020 wird der erste Teil des Investitionszuschusses (€ 17 240,00) und 2021 der zweite Teil des Investitionszuschusses (€ 12 400,00) ausbezahlt. Die Nutzungsdauer beträgt 40 Jahre. | R7: Anzeigen!
B9: Heuer = | C9: =IF(Jahr!D4="","",Jahr!D4) -> 2021 | I9: 1. Bauabschnitt: | J9: =IF(C9="","",C9-2) -> 2019 | L9: Bausumme: | M9: 86200 | N9: €
B11: Nutzungsdauer = | C11: 40 | D11: Jahre | I11: 2. Bauabschnitt: | J11: =IF(J9="","",J9+1) -> 2020 | L11: Bausumme: | M11: 62000 | N11: €
B13: Inbetriebnahme = | C13: =IF(J11="","",J11) -> 2020 | D13: und …………….…. | I13: 1. Investitionszuschuss: | J13: =IF(J11="","",J11) -> 2020 | L13: Betrag: | M13: =M9*20% -> 17240 | N13: €
I15: 2. Investitionszuschuss: | J15: =IF(J11="","",J11+1) -> 2021 | L15: Betrag: | M15: =M11*20% -> 12400 | N15: €
J16: Beginn der Abschreibung! | R16: PKT | S16: / | T16: GES | W16: Ergebnisse | AD16: Hilfe | AK16: Formelprüfung | AR16: Punkte
A18: ="Inventurverzeichnis "&IF(J9="","",J9) -> Inventurverzeichnis 2019
A19: =IF(I9="","",I9&IF(M9="","",DOLLAR(M9,2))) -> 1. Bauabschnitt: € 86 200,00
A20: Bezeichnung | C20: Baujahr | D20: Größe | E20: reduzierter | H20: Neuwert | I20: ND | J20: AfA | K20: Wert am | L20: Zugang | M20: Abgang | N20: AfA | O20: Wert am
D21: ha, lfm, m² | E21: Richtsatz | H21: in | I21: in | J21: in | K21: ="1.1."&IF(J9="","",J9) -> 1.1.2019 | L21: in | M21: in | N21: in | O21: ="31.12."&IF(J9="","",J9) -> 31.12.2019
D22: m³, … | E22: je ha, … | H22: € | I22: Jahren | J22: €/Jahr | K22: € | L22: € | M22: € | N22: € | O22: €
A23: =IF(D1="","",D1) -> Laufstall | C23: =IF(J9="","",J9) -> 2019 | I23: =IF(C11="","",C11) -> 40 | R23: =IF(AND(J23="",K23="",L23="",M23="",N23="",O23=""),"",SUM(AR23:AW23)) ->  | S23: / | T23: =COUNT(AD23:AI23) -> 2 | W23: =IF(AND($J23="",$K23="",$L23="",$M23="",$N23="",$O23=""),"",IF(J23="","",J23)) ->  | X23: =IF(AND($J23="",$K23="",$L23="",$M23="",$N23="",$O23=""),"",IF(K23="","",K23)) ->  | Y23: =IF(AND($J23="",$K23="",$L23="",$M23="",$N23="",$O23=""),"",IF(L23="","",L23)) ->  | Z23: =IF(AND($J23="",$K23="",$L23="",$M23="",$N23="",$O23=""),"",IF(M23="","",M23)) ->  | AA23: =IF(AND($J23="",$K23="",$L23="",$M23="",$N23="",$O23=""),"",IF(N23="","",N23)) ->  | AB23: =IF(AND($J23="",$K23="",$L23="",$M23="",$N23="",$O23=""),"",IF(O23="","",O23)) ->  | AC23: / | AD23: =IF(G7L!J23="","-",G7L!J23) -> - | AE23: =IF(G7L!K23="","-",G7L!K23) -> - | AF23: =IF(G7L!L23="","-",G7L!L23) -> 86200 | AG23: =IF(G7L!M23="","-",G7L!M23) -> - | AH23: =IF(G7L!N23="","-",G7L!N23) -> - | AI23: =IF(G7L!O23="","-",G7L!O23) -> 86200 | AR23: =IF(W23="","",IF(W23=AD23,1,IF(W23=AK23,0.5,0))) -> 
A24: Summe | K24: =IF(SUM(K23)=0,"",SUM(K23)) ->  | L24: =IF(SUM(L23)=0,"",SUM(L23)) ->  | M24: =IF(SUM(M23)=0,"",SUM(M23)) ->  | N24: =IF(SUM(N23)=0,"",SUM(N23)) ->  | O24: =IF(SUM(O23)=0,"",SUM(O23)) -> 
A26: ="Inventurverzeichnis "&IF(J11="","",J11) -> Inventurverzeichnis 2020
A27: =IF(I11="","",I11&IF(M11="","",DOLLAR(M11,2))) -> 2. Bauabschnitt: € 62 000,00
A28: =IF(I13="","",I13&IF(M13="","",DOLLAR(M13,2)&" — "&IF(B13="","",MID(B13,1,14)))) -> 1. Investitionszuschuss: € 17 240,00 — Inbetriebnahme
A29: Bezeichnung | C29: Baujahr | D29: Größe | E29: reduzierter | H29: Neuwert | I29: ND | J29: AfA | K29: Wert am | L29: Zugang | M29: Abgang | N29: AfA | O29: Wert am
D30: ha, lfm, m² | E30: Richtsatz | H30: in | I30: in | J30: in | K30: ="1.1."&IF(J11="","",J11) -> 1.1.2020 | L30: in | M30: in | N30: in | O30: ="31.12."&IF(J11="","",J11) -> 31.12.2020
D31: m³, … | E31: je ha, … | H31: ……..… | I31: Jahren | J31: €/Jahr | K31: € | L31: € | M31: € | N31: € | O31: €
A32: =IF(D1="","",D1) -> Laufstall | C32: =IF(J11="","",J11) -> 2020 | I32: =IF(C11="","",C11) -> 40 | R32: =IF(AND(J32="",K32="",L32="",M32="",N32="",O32=""),"",SUM(AR32:AW32)) ->  | S32: / | T32: =COUNT(AD32:AI32) -> 3 | W32: =IF(AND($J32="",$K32="",$L32="",$M32="",$N32="",$O32=""),"",IF(J32="","",J32)) ->  | X32: =IF(AND($J32="",$K32="",$L32="",$M32="",$N32="",$O32=""),"",IF(K32="","",K32)) ->  | Y32: =IF(AND($J32="",$K32="",$L32="",$M32="",$N32="",$O32=""),"",IF(L32="","",L32)) ->  | Z32: =IF(AND($J32="",$K32="",$L32="",$M32="",$N32="",$O32=""),"",IF(M32="","",M32)) ->  | AA32: =IF(AND($J32="",$K32="",$L32="",$M32="",$N32="",$O32=""),"",IF(N32="","",N32)) ->  | AB32: =IF(AND($J32="",$K32="",$L32="",$M32="",$N32="",$O32=""),"",IF(O32="","",O32)) ->  | AC32: / | AD32: =IF(G7L!J32="","-",G7L!J32) -> - | AE32: =IF(G7L!K32="","-",G7L!K32) -> 86200 | AF32: =IF(G7L!L32="","-",G7L!L32) -> 44760 | AG32: =IF(G7L!M32="","-",G7L!M32) -> - | AH32: =IF(G7L!N32="","-",G7L!N32) -> - | AI32: =IF(G7L!O32="","-",G7L!O32) -> 130960 | AJ32: - | AL32: =IF(K32="","",IF(O23="","",O23)) ->  | AR32: =IF(W32="","",IF(W32=AD32,1,IF(W32=AK32,0.5,0))) -> 
A33: Summe | K33: =IF(SUM(K32)=0,"",SUM(K32)) ->  | L33: =IF(SUM(L32)=0,"",SUM(L32)) ->  | M33: =IF(SUM(M32)=0,"",SUM(M32)) ->  | N33: =IF(SUM(N32)=0,"",SUM(N32)) ->  | O33: =IF(SUM(O32)=0,"",SUM(O32)) -> 
A35: ="Inventurverzeichnis "&IF(J15="","",J15) -> Inventurverzeichnis 2021
A36: =IF(I15="","",I15&IF(M15="","",DOLLAR(M15,2)&" — "&J16)) -> 2. Investitionszuschuss: € 12 400,00 — Beginn der Abschreibung!
A37: ="Abschreibungsbasis: "&DOLLAR(SUM(M9,M11,-M13,-M15),2) -> Abschreibungsbasis: € 118 560,00
A38: Bezeichnung | C38: Baujahr | D38: Größe | E38: reduzierter | H38: Neuwert | I38: ND | J38: AfA | K38: Wert am | L38: Zugang | M38: Abgang | N38: AfA | O38: Wert am
D39: ha, lfm, m² | E39: Richtsatz | H39: in | I39: in | J39: in | K39: ="1.1."&IF(J15="","",J15) -> 1.1.2021 | L39: in | M39: in | N39: in | O39: ="31.12."&IF(J15="","",J15) -> 31.12.2021
D40: m³, … | E40: je ha, … | H40: € | I40: Jahren | J40: €/Jahr | K40: € | L40: € | M40: € | N40: € | O40: €
A41: =IF(D1="","",D1) -> Laufstall | C41: =IF(J11="","",J11) -> 2020 | I41: =IF(C11="","",C11) -> 40 | R41: =IF(AND(J41="",K41="",L41="",M41="",N41="",O41=""),"",SUM(AR41:AW41)) ->  | S41: / | T41: =COUNT(AD41:AI41) -> 5 | W41: =IF(AND($J41="",$K41="",$L41="",$M41="",$N41="",$O41=""),"",IF(J41="","",J41)) ->  | X41: =IF(AND($J41="",$K41="",$L41="",$M41="",$N41="",$O41=""),"",IF(K41="","",K41)) ->  | AC41: / | AD41: =IF(G7L!J41="","-",G7L!J41) -> 2964 | AE41: =IF(G7L!K41="","-",G7L!K41) -> 130960 | AF41: =IF(G7L!L41="","-",G7L!L41) -> -12400 | AG41: =IF(G7L!M41="","-",G7L!M41) -> - | AH41: =IF(G7L!N41="","-",G7L!N41) -> 2964 | AI41: =IF(G7L!O41="","-",G7L!O41) -> 115596 | AJ41: - | AK41: =IF(J41="","",IF(AND($K$41="",$L$41=""),"",SUM($K$41:$L$41)/$C$11)) ->  | AL41: =IF(K41="","",IF(O32="","",O32)) ->  | AM41: =IF(L41="","",L41) ->  | AN41: - | AO41: =IF(N41="","",IF(AND($K$41="",$L$41=""),"",SUM($K$41:$L$41)/$C$11)) ->  | AP41: =IF(O41="","",IF(OR(K41="",L41="",N41=""),"",SUM(K41:L41)-N41)) ->  | AR41: =IF(W41="","",IF(AND(W41<>"",OR(AD41="",AD41="-")),-1,IF(W41=AD41,1,IF(W41=AK41,0.5,0)))) ->  | AS41: =IF(X41="","",IF(AND(X41<>"",OR(AE41="",AE41="-")),-1,IF(X41=AE41,1,IF(X41=AL41,0.5,0)))) -> 
A42: Summe | K42: =IF(SUM(K41)=0,"",SUM(K41)) ->  | L42: =IF(SUM(L41)=0,"",SUM(L41)) ->  | M42: =IF(SUM(M41)=0,"",SUM(M41)) ->  | N42: =IF(SUM(N41)=0,"",SUM(N41)) ->  | O42: =IF(SUM(O41)=0,"",SUM(O41)) ->  | W42: Korrektur trotz "Nicht anzeigen" anzeigen! | AH42: "Anschaffungswert": | AI42: =COUNTIF(AD16:AI41,"Anschaffungswert") -> 0
Q43: Gsamtpunkte: | R43: =SUM(R16:R42) -> 0 | S43: / | T43: =SUM(T16:T42) -> 10 | W43: =COUNTBLANK(W16:AB41) -> 155 | AD43: =SUM(COUNTBLANK(AD16:AI41),AI42:AI43) -> 145 | AH43: "-": | AI43: =COUNTIF(AD16:AI41,"-") -> 8

Sheet G7L
A1: =IF('G7'!A1="","",'G7'!A1) -> Beispiel | C1: =IF('G7'!C1="","",'G7'!C1) -> 7 | D1: =IF('G7'!D1="","",'G7'!D1) -> Laufstall | E1: =IF('G7'!E1="","",'G7'!E1) ->  | F1: =IF('G7'!F1="","",'G7'!F1) ->  | G1: =IF('G7'!G1="","",'G7'!G1) ->  | H1: =IF('G7'!H1="","",'G7'!H1) ->  | I1: =IF('G7'!I1="","",'G7'!I1) ->  | J1: =IF('G7'!J1="","",'G7'!J1) ->  | K1: =IF('G7'!K1="","",'G7'!K1) ->  | L1: =IF('G7'!L1="","",'G7'!L1) ->  | M1: =IF('G7'!M1="","",'G7'!M1) ->  | N1: =IF('G7'!N1="","",'G7'!N1) ->  | O1: =IF('G7'!O1="","",'G7'!O1) -> 
A3: =IF('G7'!A3="","",'G7'!A3) -> ■ Herstellungswert bekannt
A4: =IF('G7'!A4="","",'G7'!A4) -> ■ Errichtung in mehreren Bauetappen
A5: =IF('G7'!A5="","",'G7'!A5) -> ■ Investitionszuschuss gewährt
A7: =IF('G7'!A7="","",'G7'!A7) -> Ein LAUFSTALL wurde 2019 (1. Bauabschnitt: € 86 200,00) und 2020 (2. Bauabschnitt: € 62 000,00) errichtet. Der Laufstall wird 2020 voll in Betrieb genommen. 2020 wird der erste Teil des Investitionszuschusses (€ 17 240,00) und 2021 der zweite Teil des Investitionszuschusses (€ 12 400,00) ausbezahlt. Die Nutzungsdauer beträgt 40 Jahre. | B7: =IF('G7'!B7="","",'G7'!B7) ->  | C7: =IF('G7'!C7="","",'G7'!C7) ->  | D7: =IF('G7'!D7="","",'G7'!D7) ->  | E7: =IF('G7'!E7="","",'G7'!E7) ->  | F7: =IF('G7'!F7="","",'G7'!F7) ->  | G7: =IF('G7'!G7="","",'G7'!G7) ->  | H7: =IF('G7'!H7="","",'G7'!H7) ->  | I7: =IF('G7'!I7="","",'G7'!I7) ->  | J7: =IF('G7'!J7="","",'G7'!J7) ->  | K7: =IF('G7'!K7="","",'G7'!K7) ->  | L7: =IF('G7'!L7="","",'G7'!L7) ->  | M7: =IF('G7'!M7="","",'G7'!M7) ->  | N7: =IF('G7'!N7="","",'G7'!N7) ->  | O7: =IF('G7'!O7="","",'G7'!O7) -> 
B9: =IF('G7'!B9="","",'G7'!B9) -> Heuer = | C9: =IF('G7'!C9="","",'G7'!C9) -> 2021 | I9: =IF('G7'!I9="","",'G7'!I9) -> 1. Bauabschnitt: | J9: =IF('G7'!J9="","",'G7'!J9) -> 2019 | L9: =IF('G7'!L9="","",'G7'!L9) -> Bausumme: | M9: =IF('G7'!M9="","",'G7'!M9) -> 86200 | N9: =IF('G7'!N9="","",'G7'!N9) -> €
B11: =IF('G7'!B11="","",'G7'!B11) -> Nutzungsdauer = | C11: =IF('G7'!C11="","",'G7'!C11) -> 40 | D11: =IF('G7'!D11="","",'G7'!D11) -> Jahre | I11: =IF('G7'!I11="","",'G7'!I11) -> 2. Bauabschnitt: | J11: =IF('G7'!J11="","",'G7'!J11) -> 2020 | L11: =IF('G7'!L11="","",'G7'!L11) -> Bausumme: | M11: =IF('G7'!M11="","",'G7'!M11) -> 62000 | N11: =IF('G7'!N11="","",'G7'!N11) -> €
C12: =IF('G7'!C12="","",'G7'!C12) -> 
B13: =IF('G7'!B13="","",'G7'!B13) -> Inbetriebnahme = | C13: =IF('G7'!C13="","",'G7'!C13) -> 2020 | D13: =IF('G7'!D13="","",'G7'!D13) -> und …………….…. | I13: =IF('G7'!I13="","",'G7'!I13) -> 1. Investitionszuschuss: | J13: =IF('G7'!J13="","",'G7'!J13) -> 2020 | L13: =IF('G7'!L13="","",'G7'!L13) -> Betrag: | M13: =IF('G7'!M13="","",'G7'!M13) -> 17240 | N13: =IF('G7'!N13="","",'G7'!N13) -> €
D15: =IF('G7'!D15="","",'G7'!D15) ->  | I15: =IF('G7'!I15="","",'G7'!I15) -> 2. Investitionszuschuss: | J15: =IF('G7'!J15="","",'G7'!J15) -> 2021 | L15: =IF('G7'!L15="","",'G7'!L15) -> Betrag: | M15: =IF('G7'!M15="","",'G7'!M15) -> 12400 | N15: =IF('G7'!N15="","",'G7'!N15) -> €
J16: =IF('G7'!J16="","",'G7'!J16) -> Beginn der Abschreibung!
A18: =IF('G7'!A18="","",'G7'!A18) -> Inventurverzeichnis 2019
A19: =IF('G7'!A19="","",'G7'!A19) -> 1. Bauabschnitt: € 86 200,00
A20: Bezeichnung | C20: Baujahr | D20: Größe | E20: reduzierter | H20: Neuwert | I20: ND | J20: AfA | K20: Wert am | L20: Zugang | M20: Abgang | N20: AfA | O20: Wert am
D21: ha, lfm, m² | E21: Richtsatz | H21: in | I21: in | J21: in | K21: ="1.1."&IF(J9="","",J9) -> 1.1.2019 | L21: in | M21: in | N21: in | O21: ="31.12."&IF(J9="","",J9) -> 31.12.2019
D22: m³, … | E22: je ha, … | H22: € | I22: Jahren | J22: €/Jahr | K22: € | L22: € | M22: € | N22: € | O22: €
A23: =IF(D1="","",D1) -> Laufstall | C23: =IF(J9="","",J9) -> 2019 | I23: =IF(C11="","",C11) -> 40 | L23: =IF(M9="","",M9) -> 86200 | O23: =IF(M9="","",M9) -> 86200
A24: Summe | K24: =IF(SUM(K23)=0,"",SUM(K23)) ->  | L24: =IF(SUM(L23)=0,"",SUM(L23)) -> 86200 | M24: =IF(SUM(M23)=0,"",SUM(M23)) ->  | N24: =IF(SUM(N23)=0,"",SUM(N23)) ->  | O24: =IF(SUM(O23)=0,"",SUM(O23)) -> 86200
A26: =IF('G7'!A26="","",'G7'!A26) -> Inventurverzeichnis 2020
A27: =IF('G7'!A27="","",'G7'!A27) -> 2. Bauabschnitt: € 62 000,00
A28: =IF('G7'!A28="","",'G7'!A28) -> 1. Investitionszuschuss: € 17 240,00 — Inbetriebnahme
A29: Bezeichnung | C29: Baujahr | D29: Größe | E29: reduzierter | H29: Neuwert | I29: ND | J29: AfA | K29: Wert am | L29: Zugang | M29: Abgang | N29: AfA | O29: Wert am
D30: ha, lfm, m² | E30: Richtsatz | H30: in | I30: in | J30: in | K30: ="1.1."&IF(J11="","",J11) -> 1.1.2020 | L30: in | M30: in | N30: in | O30: ="31.12."&IF(J11="","",J11) -> 31.12.2020
D31: m³, … | E31: je ha, … | H31: ……..… | I31: Jahren | J31: €/Jahr | K31: € | L31: € | M31: € | N31: € | O31: €
A32: =IF(D1="","",D1) -> Laufstall | C32: =IF(J11="","",J11) -> 2020 | I32: =IF(C11="","",C11) -> 40 | K32: =IF(M9="","",M9) -> 86200 | L32: =IF(M11="","",M11-IF(M13="","",M13)) -> 44760 | O32: =IF(AND(K32="",L32=""),"",SUM(K32:L32)) -> 130960
A33: Summe | K33: =IF(SUM(K32)=0,"",SUM(K32)) -> 86200 | L33: =IF(SUM(L32)=0,"",SUM(L32)) -> 44760 | M33: =IF(SUM(M32)=0,"",SUM(M32)) ->  | N33: =IF(SUM(N32)=0,"",SUM(N32)) ->  | O33: =IF(SUM(O32)=0,"",SUM(O32)) -> 130960
A35: =IF('G7'!A35="","",'G7'!A35) -> Inventurverzeichnis 2021
A36: =IF('G7'!A36="","",'G7'!A36) -> 2. Investitionszuschuss: € 12 400,00 — Beginn der Abschreibung!
A37: =IF('G7'!A37="","",'G7'!A37) -> Abschreibungsbasis: € 118 560,00
A38: Bezeichnung | C38: Baujahr | D38: Größe | E38: reduzierter | H38: Neuwert | I38: ND | J38: AfA | K38: Wert am | L38: Zugang | M38: Abgang | N38: AfA | O38: Wert am
D39: ha, lfm, m² | E39: Richtsatz | H39: in | I39: in | J39: in | K39: ="1.1."&IF(J15="","",J15) -> 1.1.2021 | L39: in | M39: in | N39: in | O39: ="31.12."&IF(J15="","",J15) -> 31.12.2021
D40: m³, … | E40: je ha, … | H40: € | I40: Jahren | J40: €/Jahr | K40: € | L40: € | M40: € | N40: € | O40: €
A41: =IF(D1="","",D1) -> Laufstall | C41: =IF(J11="","",J11) -> 2020 | I41: =IF(C11="","",C11) -> 40 | J41: =IF(N41="","",N41) -> 2964 | K41: =IF(O32="","",O32) -> 130960 | L41: =IF(M15="","",-M15) -> -12400 | N41: =IF(AND(K41="",L41="",C11=""),"",SUM(K41:L41)/C11) -> 2964 | O41: =IF(AND(K41="",L41="",N41=""),"",SUM(K41:L41,-N41)) -> 115596
A42: Summe | K42: =IF(SUM(K41)=0,"",SUM(K41)) -> 130960 | L42: =IF(SUM(L41)=0,"",SUM(L41)) -> -12400 | M42: =IF(SUM(M41)=0,"",SUM(M41)) ->  | N42: =IF(SUM(N41)=0,"",SUM(N41)) -> 2964 | O42: =IF(SUM(O41)=0,"",SUM(O41)) -> 115596

Sheet G8
A1: Beispiel | C1: 8 | D1: Kälberstall
A3: ■ Herstellungswert unbekannt
A4: ■ Errichtungsjahr nicht bekannt (bzw. betriebsgewöhnliche Nutzungsdauer überschritten!)
A5: ■ kein Investitionszuschuss | W5: Punkte
A7: =IF(C11="","Ein Gebäude, dessen Errichtungsjahr unbekannt ist, das sich aber noch ","Ein "&C11&" errichtetes Gebäude, das sich noch")&" in einem sehr guten Bauzustand befindet, wird als "&UPPER(D1)&" genutzt. "&IF(C11="","Das Alter des Gebäudes ist nicht bekannt,","Das Gebäude ist älter als die wirtschaftliche Nutzungsdauer,")&" der Herstellungswert ist unbekannt. Mit einer Restnutzungsdauer von "&C15&" Jahren kann noch gerechnet werden. Die Länge beträgt "&I9&" m, die Breite "&I11&" m, die Mauerhöhe "&I13&" m und die halbe Dachstuhlhöhe "&I15&" m." -> Ein Nicht bekannt! errichtetes Gebäude, das sich noch in einem sehr guten Bauzustand befindet, wird als KÄLBERSTALL genutzt. Das Gebäude ist älter als die wirtschaftliche Nutzungsdauer, der Herstellungswert ist unbekannt. Mit einer Restnutzungsdauer von 10 Jahren kann noch gerechnet werden. Die Länge beträgt 9 m, die Breite 6 m, die Mauerhöhe 3,2 m und die halbe Dachstuhlhöhe m. | V7: Anzeigen!
B9: Heuer = | C9: =IF(Jahr!D4="","",Jahr!D4) -> 2021 | H9: Länge = | I9: 9 | J9: m | N9: Baukostenrichtsatz = | O9: 94 | P9: €
B11: Anschaffungsjahr = | C11: Nicht bekannt! | H11: Breite = | I11: 6 | J11: m
B13: Betriebsgew. ND = | C13: 40 | D13: Jahre | H13: Setienwandhöhe1) = | I13: 3.2 | J13: m → (h od. hMAX)
B15: Restnutzungsdauer = | C15: 10 | D15: Jahre | H15: ½ Dachstuhlhöhe = | J15: m | N15: Gesamthöhe = | O15: =IF(AND(I13="",I15=""),"",SUM(I13,I15)) -> 3.2 | P15: m
A17: 1) Die Messung der Gebäudehöhe (= Geschoß- bzw. Seitenwandhöhe) erfolgt von der Fußbodenoberkante bis zur Deckenoberkante! ACHTUNG: Die in den Baukostenrichtsätzen angegebene Maximalhöhe (hMAX) ist zu beachten und Dachräume sind gesondert zu berechnen! | V17: PKT | W17: / | X17: GES | AA17: Ergebnisse | AG17: Hilfe | AM17: Formelprüfung | AS17: Punkte
A24: 1. | B24: Alter = | L24: Alter < ¼ der Nutzungsdauer → Reduktion um 10% (auf 90%) | V24: =IF(AND(C24="",F24="",H24=""),"",SUM(AS24:AW24)) ->  | W24: / | X24: =COUNTA(AG24:AK24) -> 3 | AA24: =IF(C24="","",C24) ->  | AC24: =IF(F24="","",F24) ->  | AE24: =IF(H24="","",H24) ->  | AF24: / | AG24: =IF(G8L!C24="","",G8L!C24) -> Heuer | AI24: =IF(G8L!F24="","",G8L!F24) -> – | AK24: =IF(G8L!H24="","",G8L!H24) -> Anschaffungsjahr | AS24: =IF(AA24="","",IF(AA24=AG24,1,IF(AA24=AM24,0.5,0))) ->  | AT24: =IF(AB24="","",IF(AB24=AH24,1,IF(AB24=AN24,0.5,0))) -> 
B26: Alter = | F26: =IF(F24="","",F24) ->  | L26: Alter > ¼ und < ½ der Nutzungsdauer → Reduktion um 20% (auf 80%) | V26: =IF(AND(C26="",F26="",H26=""),"",SUM(AS26:AW26)) ->  | W26: / | X26: =COUNTA(AG26:AK26) -> 2 | AA26: =IF(C26="","",C26) ->  | AE26: =IF(H26="","",H26) ->  | AF26: / | AG26: =IF(G8L!C26="","",G8L!C26) -> 2021 | AK26: =IF(G8L!H26="","",G8L!H26) -> Nicht bekannt! | AS26: =IF(AA26="","",IF(AA26=AG26,1,IF(AA26=AM26,0.5,0))) ->  | AT26: =IF(AB26="","",IF(AB26=AH26,1,IF(AB26=AN26,0.5,0))) -> 
F27: ,
B28: Alter = | C28: =IF(H26=C11,G8L!C28,"") ->  | F28: Jahre | L28: Alter > ½ Nutzungsdauer → Reduktion um 33% (auf 67%) | AA28: =IF(C28="","",C28) ->  | AF28: / | AG28: =IF(G8L!C28="","",G8L!C28) -> > betirebsgewöhnl. ND | AL28: - | AM28: =IF(C28="","",IF(TYPE(C26-H26)=16,C28,C26-H26)) ->  | AS28: =IF(AA28="","",IF(AA28=AG28,1,IF(AA28=AM28,0.5,0))) ->  | AT28: =IF(AB28="","",IF(AB28=AH28,1,IF(AB28=AN28,0.5,0))) -> 
A30: 2. | F30: ="Baukostenrichtsatz = "&DOLLAR(O9,2)&"/"&MID(J9,2,6) -> Baukostenrichtsatz = € 94,00/m | H30: …..…..… | I30: 1
F32: ="Reduzierter Baukostenrichtsatz = x €/"&MID(J9,2,6) -> Reduzierter Baukostenrichtsatz = x €/m | H32: …..…..… | V32: =IF(AND(I32=""),"",SUM(AS32:AW32)) ->  | W32: / | X32: =COUNTA(AG32:AK32) -> 1 | AA32: =IF(I32="","",I32) ->  | AF32: / | AG32: =IF(G8L!I32="","",G8L!I32) -> 0.67 | AS32: =IF(AA32="","",IF(AA32=AG32,1,IF(AA32=AM32,0.5,0))) ->  | AT32: =IF(AB32="","",IF(AB32=AH32,1,IF(AB32=AN32,0.5,0))) -> 
B34: x = | C34: =IF(I32="","",DOLLAR(O9,2)) ->  | E34: =IF(I32="",""," ") ->  | F34: =IF(I32="","","•") ->  | G34: =IF(I32="",""," ") ->  | H34: =IF(I32="","",FIXED(I32,2)*100) ->  | K34: =IF(I32="","",C34*H34/C35) -> 
C35: =IF(I32="","",FIXED(I30,2)*100) -> 
A37: 3. | B37: Größe = | V37: =IF(AND(C37="",F37="",H37=""),"",SUM(AS37:AW37)) ->  | W37: / | X37: =COUNTA(AG37:AK37) -> 5 | AA37: =IF(C37="","",C37) ->  | AB37: =IF(F37="","",F37) ->  | AC37: =IF(H37="","",H37) ->  | AD37: =IF(K37="","",K37) ->  | AE37: =IF(M37="","",M37) ->  | AF37: / | AG37: =IF(G8L!C37="","",G8L!C37) -> Länge | AH37: =IF(G8L!F37="","",G8L!F37) -> • | AI37: =IF(G8L!H37="","",G8L!H37) -> Breite | AJ37: =IF(G8L!K37="","",G8L!K37) -> • | AK37: =IF(G8L!M37="","",G8L!M37) -> Höhe | AS37: =IF(AA37="","",IF(COUNTIF($AG37:$AK37,AA37)>0,1/COUNTIF($AA37:$AE37,AA37),IF(COUNTIF($AM37:$AQ37,AA37)>0,0.5/COUNTIF($AA37:$AE37,AA37),0))) ->  | AT37: =IF(AB37="","",IF(AB37=AH37,1,IF(AB37=AN37,0.5,0))) ->  | AU37: =IF(AC37="","",IF(COUNTIF($AG37:$AK37,AC37)>0,1/COUNTIF($AA37:$AE37,AC37),IF(COUNTIF($AM37:$AQ37,AC37)>0,0.5/COUNTIF($AA37:$AE37,AC37),0))) ->  | AV37: =IF(AD37="","",IF(AD37=AJ37,1,IF(AD37=AP37,0.5,0))) ->  | AW37: =IF(AE37="","",IF(COUNTIF($AG37:$AK37,AE37)>0,1/COUNTIF($AA37:$AE37,AE37),IF(COUNTIF($AM37:$AQ37,AE37)>0,0.5/COUNTIF($AA37:$AE37,AE37),0))) -> 
B39: Größe = | F39: =IF(F37="","",F37) ->  | K39: =IF(K37="","",K37) ->  | V39: =IF(AND(C39="",F39="",H39=""),"",SUM(AS39:AW39)) ->  | W39: / | X39: =COUNTA(AG39:AK39) -> 3 | AA39: =IF(C39="","",C39) ->  | AC39: =IF(H39="","",H39) ->  | AE39: =IF(M39="","",M39) ->  | AF39: / | AG39: =IF(G8L!C39="","",G8L!C39) -> 9 | AI39: =IF(G8L!H39="","",G8L!H39) -> 6 | AK39: =IF(G8L!M39="","",G8L!M39) -> 3.2 | AS39: =IF(AA39="","",IF(COUNTIF($AG39:$AK39,AA39)>0,1/COUNTIF($AA39:$AE39,AA39),IF(COUNTIF($AM39:$AQ39,AA39)>0,0.5/COUNTIF($AA39:$AE39,AA39),0))) ->  | AT39: =IF(AB39="","",IF(AB39=AH39,1,IF(AB39=AN39,0.5,0))) ->  | AU39: =IF(AC39="","",IF(COUNTIF($AG39:$AK39,AC39)>0,1/COUNTIF($AA39:$AE39,AC39),IF(COUNTIF($AM39:$AQ39,AC39)>0,0.5/COUNTIF($AA39:$AE39,AC39),0))) ->  | AV39: =IF(AD39="","",IF(AD39=AJ39,1,IF(AD39=AP39,0.5,0))) ->  | AW39: =IF(AE39="","",IF(COUNTIF($AG39:$AK39,AE39)>0,1/COUNTIF($AA39:$AE39,AE39),IF(COUNTIF($AM39:$AQ39,AE39)>0,0.5/COUNTIF($AA39:$AE39,AE39),0))) -> 
F40: ,
B41: Größe = | F41: m³ | V41: =IF(AND(C41=""),"",SUM(AS41:AW41)) ->  | W41: / | X41: =COUNTA(AG41:AK41) -> 1 | AA41: =IF(C41="","",C41) ->  | AF41: / | AG41: =IF(G8L!C41="","",G8L!C41) -> 172.8 | AL41: - | AM41: =IF(C41="","",C39*H39*M39) ->  | AS41: =IF(AA41="","",IF(COUNTIF($AG41:$AK41,AA41)>0,1/COUNTIF($AA41:$AE41,AA41),IF(COUNTIF($AM41:$AQ41,AA41)>0,0.5/COUNTIF($AA41:$AE41,AA41),0))) ->  | AT41: =IF(AB41="","",IF(AB41=AH41,1,IF(AB41=AN41,0.5,0))) ->  | AU41: =IF(AC41="","",IF(COUNTIF($AG41:$AK41,AC41)>0,1/COUNTIF($AA41:$AE41,AC41),IF(COUNTIF($AM41:$AQ41,AC41)>0,0.5/COUNTIF($AA41:$AE41,AC41),0))) ->  | AV41: =IF(AD41="","",IF(AD41=AJ41,1,IF(AD41=AP41,0.5,0))) ->  | AW41: =IF(AE41="","",IF(COUNTIF($AG41:$AK41,AE41)>0,1/COUNTIF($AA41:$AE41,AE41),IF(COUNTIF($AM41:$AQ41,AE41)>0,0.5/COUNTIF($AA41:$AE41,AE41),0))) -> 
A43: 4. | B43: WW = | V43: =IF(AND(C43="",F43="",H43=""),"",SUM(AS43:AW43)) ->  | W43: / | X43: =COUNTA(AG43:AK43) -> 3 | AA43: =IF(C43="","",C43) ->  | AC43: =IF(F43="","",F43) ->  | AE43: =IF(H43="","",H43) ->  | AF43: / | AG43: =IF(G8L!C43="","",G8L!C43) -> Größe | AI43: =IF(G8L!F43="","",G8L!F43) -> • | AK43: =IF(G8L!H43="","",G8L!H43) -> Reduzierter Baukostenrichtsatz | AS43: =IF(AA43="","",IF(COUNTIF($AG43:$AK43,AA43)>0,1/COUNTIF($AA43:$AE43,AA43),IF(COUNTIF($AM43:$AQ43,AA43)>0,0.5/COUNTIF($AA43:$AE43,AA43),0))) ->  | AT43: =IF(AB43="","",IF(COUNTIF($AG43:$AK43,AB43)>0,1/COUNTIF($AA43:$AE43,AB43),IF(COUNTIF($AM43:$AQ43,AB43)>0,0.5/COUNTIF($AA43:$AE43,AB43),0))) -> 
B45: WW = | F45: =IF(F43="","",F43) ->  | V45: =IF(AND(C45="",F45="",H45=""),"",SUM(AS45:AW45)) ->  | W45: / | X45: =COUNTA(AG45:AK45) -> 2 | AA45: =IF(C45="","",C45) ->  | AE45: =IF(H45="","",H45) ->  | AF45: / | AG45: =IF(G8L!C45="","",G8L!C45) -> 172.8 | AK45: =IF(G8L!H45="","",G8L!H45) -> 62.98 | AL45: - | AM45: =IF(C45="","",C41) ->  | AQ45: =IF(H45="","",K34) ->  | AS45: =IF(AA45="","",IF(COUNTIF($AG45:$AK45,AA45)>0,1/COUNTIF($AA45:$AE45,AA45),IF(COUNTIF($AM45:$AQ45,AA45)>0,0.5/COUNTIF($AA45:$AE45,AA45),0))) ->  | AT45: =IF(AB45="","",IF(COUNTIF($AG45:$AK45,AB45)>0,1/COUNTIF($AA45:$AE45,AB45),IF(COUNTIF($AM45:$AQ45,AB45)>0,0.5/COUNTIF($AA45:$AE45,AB45),0))) ->  | AU45: =IF(AC45="","",IF(COUNTIF($AG45:$AK45,AC45)>0,1/COUNTIF($AA45:$AE45,AC45),IF(COUNTIF($AM45:$AQ45,AC45)>0,0.5/COUNTIF($AA45:$AE45,AC45),0))) ->  | AV45: =IF(AD45="","",IF(COUNTIF($AG45:$AK45,AD45)>0,1/COUNTIF($AA45:$AE45,AD45),IF(COUNTIF($AM45:$AQ45,AD45)>0,0.5/COUNTIF($AA45:$AE45,AD45),0))) ->  | AW45: =IF(AE45="","",IF(COUNTIF($AG45:$AK45,AE45)>0,1/COUNTIF($AA45:$AE45,AE45),IF(COUNTIF($AM45:$AQ45,AE45)>0,0.5/COUNTIF($AA45:$AE45,AE45),0))) -> 
F46: ,
B47: WW = | F47: € | V47: =IF(AND(C47=""),"",SUM(AS47:AW47)) ->  | W47: / | X47: =COUNTA(AG47:AK47) -> 1 | AA47: =IF(C47="","",C47) ->  | AF47: / | AG47: =IF(G8L!C47="","",G8L!C47) -> 10882.944 | AL47: - | AM47: =IF(C47="","",C45*H45) ->  | AS47: =IF(AA47="","",IF(COUNTIF($AG47:$AK47,AA47)>0,1/COUNTIF($AA47:$AE47,AA47),IF(COUNTIF($AM47:$AQ47,AA47)>0,0.5/COUNTIF($AA47:$AE47,AA47),0))) ->  | AT47: =IF(AB47="","",IF(COUNTIF($AG47:$AK47,AB47)>0,1/COUNTIF($AA47:$AE47,AB47),IF(COUNTIF($AM47:$AQ47,AB47)>0,0.5/COUNTIF($AA47:$AE47,AB47),0))) ->  | AU47: =IF(AC47="","",IF(COUNTIF($AG47:$AK47,AC47)>0,1/COUNTIF($AA47:$AE47,AC47),IF(COUNTIF($AM47:$AQ47,AC47)>0,0.5/COUNTIF($AA47:$AE47,AC47),0))) ->  | AV47: =IF(AD47="","",IF(COUNTIF($AG47:$AK47,AD47)>0,1/COUNTIF($AA47:$AE47,AD47),IF(COUNTIF($AM47:$AQ47,AD47)>0,0.5/COUNTIF($AA47:$AE47,AD47),0))) ->  | AW47: =IF(AE47="","",IF(COUNTIF($AG47:$AK47,AE47)>0,1/COUNTIF($AA47:$AE47,AE47),IF(COUNTIF($AM47:$AQ47,AE47)>0,0.5/COUNTIF($AA47:$AE47,AE47),0))) -> 
AG48: Anschaffungswert
A49: 5. | B49: jAfa = | V49: =IF(AND(C49="",F49="",H49=""),"",SUM(AS49:AW49)) ->  | W49: / | X49: =COUNTA(AG49:AK49) -> 1 | AA49: =IF(C49="","",C49) ->  | AF49: / | AG49: =IF(G8L!C49="","",G8L!C49) -> Wiederbeschaffungswert | AS49: =IF(AA49="","",IF(COUNTIF($AG48:$AG49,AA49)>0,1/COUNTIF($AA49,AA49),IF(COUNTIF($AM49,AA49)>0,0.5/COUNTIF($AA49,AA49),0))) ->  | AT49: =IF(AB49="","",IF(AB49=AH49,1,IF(AB49=AN49,0.5,0))) -> 
V50: =IF(AND(C50="",F50="",H50=""),"",SUM(AS50:AW50)) ->  | W50: / | X50: =COUNTA(AG50:AK50) -> 1 | AA50: =IF(C50="","",C50) ->  | AF50: / | AG50: =IF(G8L!C50="","",G8L!C50) -> Betriebsgewöhnliche ND | AS50: =IF(AA50="","",IF(AA50=AG50,1,IF(AA50=AM50,0.5,0))) -> 
AS51: =IF(AA51="","",IF(AA51=AG51,1,IF(AA51=#REF!,1,IF(AA51=AM51,0.5,IF(AA51=#REF!,0.5,0))))) ->  | AT51: =IF(AB51="","",IF(AB51=AH51,1,IF(AB51=#REF!,1,IF(AB51=AN51,0.5,IF(AB51=#REF!,0.5,0))))) ->  | AU51: =IF(AC51="","",IF(AC51=AI51,1,IF(AC51=#REF!,1,IF(AC51=AO51,0.5,IF(AC51=#REF!,0.5,0))))) ->  | AV51: =IF(AD51="","",IF(AD51=AJ51,1,IF(AD51=#REF!,1,IF(AD51=AP51,0.5,IF(AD51=#REF!,0.5,0))))) ->  | AW51: =IF(AE51="","",IF(AE51=AK51,1,IF(AE51=#REF!,1,IF(AE51=AQ51,0.5,IF(AE51=#REF!,0.5,0))))) -> 
B52: jAfa = | V52: =IF(AND(C52="",F52="",H52=""),"",SUM(AS52:AW52)) ->  | W52: / | X52: =COUNTA(AG52:AK52) -> 1 | AA52: =IF(C52="","",C52) ->  | AF52: / | AG52: =IF(G8L!C52="","",G8L!C52) -> 10882.944 | AS52: =IF(AA52="","",IF(AA52=AG52,1,IF(AA52=AM52,0.5,0))) ->  | AT52: =IF(AB52="","",IF(AB52=AH52,1,IF(AB52=AN52,0.5,0))) -> 
V53: =IF(AND(C53="",F53="",H53=""),"",SUM(AS53:AW53)) ->  | W53: / | X53: =COUNTA(AG53:AK53) -> 1 | AA53: =IF(C53="","",C53) ->  | AF53: / | AG53: =IF(G8L!C53="","",G8L!C53) -> 40 | AS53: =IF(AA53="","",IF(AA53=AG53,1,IF(AA53=AM53,0.5,0))) -> 
B55: jAfa = | F55: € | V55: =IF(AND(C55=""),"",SUM(AS55:AW55)) ->  | W55: / | X55: =COUNTA(AG55:AK55) -> 1 | AA55: =IF(C55="","",C55) ->  | AF55: / | AG55: =IF(G8L!C55="","",G8L!C55) -> 272.0736 | AL55: - | AM55: =IF(C55="","",C52/C53) ->  | AS55: =IF(AA55="","",IF(AA55=AG55,1,IF(AA55=AM55,0.5,0))) ->  | AT55: =IF(AB55="","",IF(AB55=AH55,1,IF(AB55=AN55,0.5,0))) -> 
A57: 6. | B57: ZW1.1. = | V57: =IF(AND(C57="",F57="",H57=""),"",SUM(AS57:AW57)) ->  | W57: / | X57: =COUNTA(AG57:AK57) -> 3 | AA57: =IF(C57="","",C57) ->  | AC57: =IF(F57="","",F57) ->  | AE57: =IF(H57="","",H57) ->  | AF57: / | AG57: =IF(G8L!C57="","",G8L!C57) -> Jährliche Afa | AI57: =IF(G8L!F57="","",G8L!F57) -> • | AK57: =IF(G8L!H57="","",G8L!H57) -> Restnutzungsdauer | AS57: =IF(AA57="","",IF(COUNTIF($AG57:$AK57,AA57)>0,1/COUNTIF($AA57:$AE57,AA57),IF(COUNTIF($AM57:$AQ57,AA57)>0,0.5/COUNTIF($AA57:$AE57,AA57),0))) ->  | AT57: =IF(AB57="","",IF(COUNTIF($AG57:$AK57,AB57)>0,1/COUNTIF($AA57:$AE57,AB57),IF(COUNTIF($AM57:$AQ57,AB57)>0,0.5/COUNTIF($AA57:$AE57,AB57),0))) ->  | AU57: =IF(AC57="","",IF(COUNTIF($AG57:$AK57,AC57)>0,1/COUNTIF($AA57:$AE57,AC57),IF(COUNTIF($AM57:$AQ57,AC57)>0,0.5/COUNTIF($AA57:$AE57,AC57),0))) ->  | AV57: =IF(AD57="","",IF(COUNTIF($AG57:$AK57,AD57)>0,1/COUNTIF($AA57:$AE57,AD57),IF(COUNTIF($AM57:$AQ57,AD57)>0,0.5/COUNTIF($AA57:$AE57,AD57),0))) ->  | AW57: =IF(AE57="","",IF(COUNTIF($AG57:$AK57,AE57)>0,1/COUNTIF($AA57:$AE57,AE57),IF(COUNTIF($AM57:$AQ57,AE57)>0,0.5/COUNTIF($AA57:$AE57,AE57),0))) -> 
B59: ZW1.1. = | F59: =IF(F57="","",F57) ->  | V59: =IF(AND(C59="",F59="",H59=""),"",SUM(AS59:AW59)) ->  | W59: / | X59: =COUNTA(AG59:AK59) -> 2 | AA59: =IF(C59="","",C59) ->  | AE59: =IF(H59="","",H59) ->  | AF59: / | AG59: =IF(G8L!C59="","",G8L!C59) -> 272.0736 | AK59: =IF(G8L!H59="","",G8L!H59) -> 10 | AL59: - | AM59: =IF(C59="","",H9) ->  | AQ59: =IF(H59="","",#REF!) ->  | AS59: =IF(AA59="","",IF(COUNTIF($AG59:$AK59,AA59)>0,1/COUNTIF($AA59:$AE59,AA59),IF(COUNTIF($AM59:$AQ59,AA59)>0,0.5/COUNTIF($AA59:$AE59,AA59),0))) ->  | AT59: =IF(AB59="","",IF(COUNTIF($AG59:$AK59,AB59)>0,1/COUNTIF($AA59:$AE59,AB59),IF(COUNTIF($AM59:$AQ59,AB59)>0,0.5/COUNTIF($AA59:$AE59,AB59),0))) ->  | AU59: =IF(AC59="","",IF(COUNTIF($AG59:$AK59,AC59)>0,1/COUNTIF($AA59:$AE59,AC59),IF(COUNTIF($AM59:$AQ59,AC59)>0,0.5/COUNTIF($AA59:$AE59,AC59),0))) ->  | AV59: =IF(AD59="","",IF(COUNTIF($AG59:$AK59,AD59)>0,1/COUNTIF($AA59:$AE59,AD59),IF(COUNTIF($AM59:$AQ59,AD59)>0,0.5/COUNTIF($AA59:$AE59,AD59),0))) ->  | AW59: =IF(AE59="","",IF(COUNTIF($AG59:$AK59,AE59)>0,1/COUNTIF($AA59:$AE59,AE59),IF(COUNTIF($AM59:$AQ59,AE59)>0,0.5/COUNTIF($AA59:$AE59,AE59),0))) -> 
B61: ZW1.1. = | F61: € | V61: =IF(AND(C61=""),"",SUM(AS61:AW61)) ->  | W61: / | X61: =COUNTA(AG61:AK61) -> 1 | AA61: =IF(C61="","",C61) ->  | AF61: / | AG61: =IF(G8L!C61="","",G8L!C61) -> 2720.736 | AL61: - | AM61: =IF(C61="","",C59-H59) ->  | AS61: =IF(AA61="","",IF(COUNTIF($AG61:$AK61,AA61)>0,1/COUNTIF($AA61:$AE61,AA61),IF(COUNTIF($AM61:$AQ61,AA61)>0,0.5/COUNTIF($AA61:$AE61,AA61),0))) ->  | AT61: =IF(AB61="","",IF(COUNTIF($AG61:$AK61,AB61)>0,1/COUNTIF($AA61:$AE61,AB61),IF(COUNTIF($AM61:$AQ61,AB61)>0,0.5/COUNTIF($AA61:$AE61,AB61),0))) ->  | AU61: =IF(AC61="","",IF(COUNTIF($AG61:$AK61,AC61)>0,1/COUNTIF($AA61:$AE61,AC61),IF(COUNTIF($AM61:$AQ61,AC61)>0,0.5/COUNTIF($AA61:$AE61,AC61),0))) ->  | AV61: =IF(AD61="","",IF(COUNTIF($AG61:$AK61,AD61)>0,1/COUNTIF($AA61:$AE61,AD61),IF(COUNTIF($AM61:$AQ61,AD61)>0,0.5/COUNTIF($AA61:$AE61,AD61),0))) ->  | AW61: =IF(AE61="","",IF(COUNTIF($AG61:$AK61,AE61)>0,1/COUNTIF($AA61:$AE61,AE61),IF(COUNTIF($AM61:$AQ61,AE61)>0,0.5/COUNTIF($AA61:$AE61,AE61),0))) -> 
A63: 7. | B63: ZW31.12. = | V63: =IF(AND(C63="",F63="",H63=""),"",SUM(AS63:AW63)) ->  | W63: / | X63: =COUNTA(AG63:AK63) -> 3 | AA63: =IF(C63="","",C63) ->  | AC63: =IF(F63="","",F63) ->  | AE63: =IF(H63="","",H63) ->  | AF63: / | AG63: =IF(G8L!C63="","",G8L!C63) -> Zeitwert 1.1. | AI63: =IF(G8L!F63="","",G8L!F63) -> – | AK63: =IF(G8L!H63="","",G8L!H63) -> Jährliche Afa | AS63: =IF(AA63="","",IF(AA63=AG63,1,IF(AA63=AM63,0.5,0))) ->  | AT63: =IF(AB63="","",IF(AB63=AH63,1,IF(AB63=AN63,0.5,0))) -> 
B65: ZW31.12. = | F65: =IF(F63="","",F63) ->  | V65: =IF(AND(C65="",F65="",H65=""),"",SUM(AS65:AW65)) ->  | W65: / | X65: =COUNTA(AG65:AK65) -> 2 | AA65: =IF(C65="","",C65) ->  | AE65: =IF(H65="","",H65) ->  | AF65: / | AG65: =IF(G8L!C65="","",G8L!C65) -> 2720.736 | AK65: =IF(G8L!H65="","",G8L!H65) -> 272.0736 | AL65: - | AM65: =IF(C65="","",C61) ->  | AQ65: =IF(AND(H65="",C55=""),"",AA55) ->  | AS65: =IF(AA65="","",IF(AA65=AG65,1,IF(AA65=AM65,0.5,0))) ->  | AT65: =IF(AB65="","",IF(AB65=AH65,1,IF(AB65=AN65,0.5,0))) -> 
B67: ZW31.12. = | F67: € | H67: =IF(C67="","",IF(C61<=C55,"Erinnerungswert!","")) ->  | V67: =IF(AND(C67=""),"",SUM(AS67:AW67)) ->  | W67: / | X67: =COUNTA(AG67:AK67) -> 1 | AA67: =IF(C67="","",C67) ->  | AF67: / | AG67: =IF(G8L!C67="","",G8L!C67) -> 2448.6624 | AL67: - | AM67: =IF(C67="","",C65-H65) ->  | AS67: =IF(AA67="","",IF(AA67=AG67,1,IF(AA67=AM67,0.5,0))) ->  | AT67: =IF(AB67="","",IF(AB67=AH67,1,IF(AB67=AN67,0.5,0))) -> 
A69: Bezeichnung | C69: Baujahr | D69: Größe | E69: reduzierter | H69: Neuwert | I69: ND | J69: AfA | L69: Wert am | N69: Zugang | O69: Abgang | P69: AfA | Q69: Wert am
D70: ha, lfm, m² | E70: Richtsatz | H70: in | I70: in | J70: in | L70: ="1.1."&Jahr!F4 -> 1.1. | N70: in | O70: in | P70: in | Q70: ="31.12."&Jahr!F4 -> 31.12.
D71: m³, … | E71: je ha, … | H71: € | I71: Jahren | J71: €/Jahr | L71: € | N71: € | O71: € | P71: € | Q71: €
A72: =IF(D1="","",D1) -> Kälberstall | C72: =IF(C11="","",C11) -> Nicht bekannt! | D72: =IF(C41="","",C41) ->  | E72: =IF(K34="","",C34*H34/C35) ->  | H72: =IF(C47="","",C47) ->  | I72: =IF(C13="","",C13) -> 40 | J72: =IF(C55="","",C55) ->  | V72: =IF(AND(C72="",F72="",H72=""),"",SUM(AS72:AW72)) -> 0 | W72: / | X72: =COUNT(AG72:AK72) -> 3 | AA72: =IF(AND($L$72="",$N$72="",$O$72="",$P$72="",$Q$72=""),"",IF(L72="","",L72)) ->  | AB72: =IF(AND($L$72="",$N$72="",$O$72="",$P$72="",$Q$72=""),"",IF(N72="","",N72)) ->  | AC72: =IF(AND($L$72="",$N$72="",$O$72="",$P$72="",$Q$72=""),"",IF(O72="","",O72)) ->  | AD72: =IF(AND($L$72="",$N$72="",$O$72="",$P$72="",$Q$72=""),"",IF(P72="","",P72)) ->  | AE72: =IF(AND($L$72="",$N$72="",$O$72="",$P$72="",$Q$72=""),"",IF(Q72="","",Q72)) ->  | AF72: / | AG72: =IF(G8L!L72="","-",G8L!L72) -> 2720.736 | AH72: =IF(G8L!N72="","-",G8L!N72) -> - | AI72: =IF(G8L!O72="","-",G8L!O72) -> - | AJ72: =IF(G8L!P72="","-",G8L!P72) -> 272.0736 | AK72: =IF(G8L!Q72="","-",G8L!Q72) -> 2448.6624 | AL72: - | AM72: =IF(C61="","",IF(AA28=0,"",C61)) ->  | AN72: =IF(C61="","",IF(AA28<>0,"",C61)) ->  | AO72: - | AP72: =IF(C55="","",C55) ->  | AQ72: =IF(C67="","",C67) ->  | AS72: =IF(AA72="","",IF(AND(AA72<>"",OR(AG72="",AG72="-")),-1,IF(AA72=AG72,1,IF(AA72=AM72,0.5,0)))) ->  | AT72: =IF(AB72="","",IF(AND(AB72<>"",OR(AH72="",AH72="-")),-1,IF(AB72=AH72,1,IF(AB72=AN72,0.5,0)))) ->  | AU72: =IF(AC72="","",IF(AND(AC72<>"",OR(AI72="",AI72="-")),-1,IF(AC72=AI72,1,IF(AC72=AO72,0.5,0)))) ->  | AW72: =IF(AE72="","",IF(AND(AE72<>"",OR(AK72="",AK72="-")),-1,IF(AE72=AK72,1,IF(AE72=AQ72,0.5,0)))) -> 
A73: Summe | L73: =IF(SUM(L72)=0,"",SUM(L72)) ->  | N73: =IF(SUM(N72)=0,"",SUM(N72)) ->  | O73: =IF(SUM(O72)=0,"",SUM(O72)) ->  | P73: =IF(SUM(P72)=0,"",SUM(P72)) ->  | Q73: =IF(SUM(Q72)=0,"",SUM(Q72)) ->  | AA73: Korrektur trotz "Nicht anzeigen" anzeigen! | AJ73: "Anschaffungswert": | AK73: =COUNTIF(AG17:AK72,"Anschaffungswert") -> 1
U74: Gsamtpunkte: | V74: =SUM(V17:V73) -> 0 | W74: / | X74: =SUM(X17:X73) -> 41 | AA74: =COUNTBLANK(AA17:AE72) -> 279 | AG74: =SUM(COUNTBLANK(AG17:AK72),AK73:AK74) -> 237 | AJ74: "-": | AK74: =COUNTIF(AG17:AK72,"-") -> 2

Sheet G8L
A1: Beispiel | C1: =IF('G8'!C1="","",'G8'!C1) -> 8 | D1: =IF('G8'!D1="","",'G8'!D1) -> Kälberstall
A3: =IF('G8'!A3="","",'G8'!A3) -> ■ Herstellungswert unbekannt
A4: =IF('G8'!A4="","",'G8'!A4) -> ■ Errichtungsjahr nicht bekannt (bzw. betriebsgewöhnliche Nutzungsdauer überschritten!)
A5: =IF('G8'!A5="","",'G8'!A5) -> ■ kein Investitionszuschuss
A7: =IF('G8'!A7="","",'G8'!A7) -> Ein Nicht bekannt! errichtetes Gebäude, das sich noch in einem sehr guten Bauzustand befindet, wird als KÄLBERSTALL genutzt. Das Gebäude ist älter als die wirtschaftliche Nutzungsdauer, der Herstellungswert ist unbekannt. Mit einer Restnutzungsdauer von 10 Jahren kann noch gerechnet werden. Die Länge beträgt 9 m, die Breite 6 m, die Mauerhöhe 3,2 m und die halbe Dachstuhlhöhe m. | B7: =IF('G8'!B7="","",'G8'!B7) ->  | C7: =IF('G8'!C7="","",'G8'!C7) ->  | D7: =IF('G8'!D7="","",'G8'!D7) ->  | E7: =IF('G8'!E7="","",'G8'!E7) ->  | F7: =IF('G8'!F7="","",'G8'!F7) ->  | G7: =IF('G8'!G7="","",'G8'!G7) ->  | H7: =IF('G8'!H7="","",'G8'!H7) ->  | I7: =IF('G8'!I7="","",'G8'!I7) ->  | K7: =IF('G8'!K7="","",'G8'!K7) ->  | L7: =IF('G8'!L7="","",'G8'!L7) ->  | N7: =IF('G8'!N7="","",'G8'!N7) ->  | O7: =IF('G8'!O7="","",'G8'!O7) ->  | P7: =IF('G8'!P7="","",'G8'!P7) ->  | Q7: =IF('G8'!Q7="","",'G8'!Q7) -> 
B9: =IF('G8'!B9="","",'G8'!B9) -> Heuer = | C9: =IF('G8'!C9="","",'G8'!C9) -> 2021 | H9: =IF('G8'!H9="","",'G8'!H9) -> Länge = | I9: =IF('G8'!I9="","",'G8'!I9) -> 9 | J9: =IF('G8'!J9="","",'G8'!J9) -> m | N9: =IF('G8'!N9="","",'G8'!N9) -> Baukostenrichtsatz = | O9: =IF('G8'!O9="","",'G8'!O9) -> 94 | P9: =IF('G8'!P9="","",'G8'!P9) -> €
B11: =IF('G8'!B11="","",'G8'!B11) -> Anschaffungsjahr = | C11: =IF('G8'!C11="","",'G8'!C11) -> Nicht bekannt! | H11: =IF('G8'!H11="","",'G8'!H11) -> Breite = | I11: =IF('G8'!I11="","",'G8'!I11) -> 6 | J11: =IF('G8'!J11="","",'G8'!J11) -> m
B13: =IF('G8'!B13="","",'G8'!B13) -> Betriebsgew. ND = | C13: =IF('G8'!C13="","",'G8'!C13) -> 40 | D13: =IF('G8'!D13="","",'G8'!D13) -> Jahre | H13: =IF('G8'!H13="","",'G8'!H13) -> Setienwandhöhe1) = | I13: =IF('G8'!I13="","",'G8'!I13) -> 3.2 | J13: =IF('G8'!J13="","",'G8'!J13) -> m → (h od. hMAX)
B15: =IF('G8'!B15="","",'G8'!B15) -> Restnutzungsdauer = | C15: =IF('G8'!C15="","",'G8'!C15) -> 10 | D15: =IF('G8'!D15="","",'G8'!D15) -> Jahre | H15: =IF('G8'!H15="","",'G8'!H15) -> ½ Dachstuhlhöhe = | I15: =IF('G8'!I15="","",'G8'!I15) ->  | J15: =IF('G8'!J15="","",'G8'!J15) -> m | N15: =IF('G8'!N15="","",'G8'!N15) -> Gesamthöhe = | O15: =IF('G8'!O15="","",'G8'!O15) -> 3.2 | P15: =IF('G8'!P15="","",'G8'!P15) -> m
A24: 1. | B24: Alter = | C24: Heuer | F24: – | H24: Anschaffungsjahr | L24: Alter < ¼ der Nutzungsdauer → Reduktion um 10% (auf 90%)
B26: Alter = | C26: =IF(C9="","",C9) -> 2021 | F26: =IF(F24="","",F24) -> – | H26: =IF(C11="","Nicht bekannt!",C11) -> Nicht bekannt! | L26: Alter > ¼ und < ½ der Nutzungsdauer → Reduktion um 20% (auf 80%)
F27: ,
B28: Alter = | C28: =IF(C11="Nicht bekannt!","> betirebsgewöhnl. ND",C26-H26) -> > betirebsgewöhnl. ND | F28: Jahre | L28: Alter > ½ Nutzungsdauer → Reduktion um 33% (auf 67%)
A30: 2. | F30: ="Baukostenrichtsatz = "&DOLLAR(O9,2)&"/"&MID(J9,2,6) -> Baukostenrichtsatz = € 94,00/m | H30: …..…..… | I30: 1
F32: ="Reduzierter Baukostenrichtsatz = x €/"&MID(J9,2,6) -> Reduzierter Baukostenrichtsatz = x €/m | H32: …..…..… | I32: =IF(C28<(C15/4),90%,IF(AND(C28>=(C15/4),C28<(C15/2)),80%,IF(C28>=(C15/2),67%,""))) -> 0.67
B34: x = | C34: =IF(I32="","",DOLLAR(O9,2)) -> € 94,00 | E34: =IF(I32="",""," ") ->  | F34: =IF(I32="","","•") -> • | G34: =IF(I32="",""," ") ->  | H34: =IF(I32="","",FIXED(I32,2)*100) -> 67 | K34: =IF(I32="",""," = "&DOLLAR(C34*H34/C35,2)) -> = € 62,98
C35: =IF(I32="","",FIXED(I30,2)*100) -> 100
A37: 3. | B37: Größe = | C37: Länge | F37: • | H37: Breite | K37: • | M37: Höhe
B39: Größe = | C39: =I9 -> 9 | F39: =IF(F37="","",F37) -> • | H39: =I11 -> 6 | K39: =IF(K37="","",K37) -> • | M39: =O15 -> 3.2
F40: ,
B41: Größe = | C41: =C39*H39*M39 -> 172.8 | F41: m³
A43: 4. | B43: WW = | C43: Größe | F43: • | H43: Reduzierter Baukostenrichtsatz
B45: WW = | C45: =C41 -> 172.8 | F45: =IF(F43="","",F43) -> • | H45: =IF(K34="","",C34*H34/C35) -> 62.98
F46: ,
B47: WW = | C47: =C45*H45 -> 10882.944 | F47: €
A49: 5. | B49: jAfa = | C49: Wiederbeschaffungswert
C50: Betriebsgewöhnliche ND
B52: jAfa = | C52: =IF(C47="","",C47) -> 10882.944
C53: =C13 -> 40
B55: jAfa = | C55: =C52/C53 -> 272.0736 | F55: €
A57: 6. | B57: ZW1.1. = | C57: Jährliche Afa | F57: • | H57: Restnutzungsdauer
B59: ZW1.1. = | C59: =C55 -> 272.0736 | F59: =IF(F57="","",F57) -> • | H59: =C15 -> 10
B61: ZW1.1. = | C61: =C59*H59 -> 2720.736 | F61: €
A63: 7. | B63: ZW31.12. = | C63: Zeitwert 1.1. | F63: – | H63: Jährliche Afa
B65: ZW31.12. = | C65: =C61 -> 2720.736 | F65: =IF(F63="","",F63) -> – | H65: =C55 -> 272.0736
B67: ZW31.12. = | C67: =IF(C61<=C55,Jahr!D8,C65-H65) -> 2448.6624 | F67: € | H67: =IF(C61<=C55,"Erinnerungswert!","") -> 
A69: Bezeichnung | C69: Baujahr | D69: Größe | E69: reduzierter | H69: Neuwert | I69: ND | J69: AfA | L69: Wert am | N69: Zugang | O69: Abgang | P69: AfA | Q69: Wert am
D70: ha, lfm, m² | E70: Richtsatz | H70: in | I70: in | J70: in | L70: ="1.1."&Jahr!F4 -> 1.1. | N70: in | O70: in | P70: in | Q70: ="31.12."&Jahr!F4 -> 31.12.
D71: m³, … | E71: je ha, … | H71: € | I71: Jahren | J71: €/Jahr | L71: € | N71: € | O71: € | P71: € | Q71: €
A72: =IF(D1="","",D1) -> Kälberstall | C72: =IF(C11="","",C11) -> Nicht bekannt! | D72: =IF(C41="","",C41) -> 172.8 | E72: =IF(K34="","",C34*H34/C35) -> 62.98 | H72: =IF(C47="","",C47) -> 10882.944 | I72: =IF(C13="","",C13) -> 40 | J72: =IF(C55="","",C55) -> 272.0736 | L72: =IF(C61="","",C61) -> 2720.736 | P72: =IF(L72=Jahr!D8,"",J72) -> 272.0736 | Q72: =IF(C67="","",C67) -> 2448.6624
A73: Summe | L73: =IF(SUM(L72)=0,"",SUM(L72)) -> 2720.736 | N73: =IF(SUM(N72)=0,"",SUM(N72)) ->  | O73: =IF(SUM(O72)=0,"",SUM(O72)) ->  | P73: =IF(SUM(P72)=0,"",SUM(P72)) -> 272.0736 | Q73: =IF(SUM(Q72)=0,"",SUM(Q72)) -> 2448.6624

Sheet G9
A1: Beispiel | D1: 9 | E1: Zweinutzungsgebäude | M1: ="("&IF(D11="","",D11)&", "&IF(P11="","",P11)&")" -> (Rinderstall, Schweinestall)
A3: ■ Herstellungswert unbekannt
A4: ■ Errichtungsjahr bekannt
A5: ■ kein Investitionszuschuss | AA5: Punkte
A7: Gesamtgebäude | Z7: Anzeigen!
C8: Länge = | D8: 26 | E8: m | H8: Breite = | I8: 10 | J8: m | M8: Höhe = | O8: 6 | P8: m | R8: Größe = | S8: =IF(D30="","",D30) ->  | T8: =IF(O8=""," m²"," m³") -> m³ | Z8: Nicht anzeigen!
A11: 1. Nutzung | D11: Rinderstall | M11: 2. Nutzung | P11: Schweinestall
C13: Heuer = | D13: =IF(Jahr!D4="","",Jahr!D4) -> 2021
C15: Anschaffungsjahr = | D15: =D13-I15+ROUND(I15/1.4,0) -> 2010 | H15: Nutzungsdauer = | I15: 40 | J15: Jahre | O15: Anschaffungsjahr = | P15: =D15+ROUND(I15/4.2,0) -> 2020 | R15: Nutzungsdauer = | S15: 40 | T15: Jahre
C17: Länge = | E17: m | H17: Größe = | I17: =IF(D44="","",D44) ->  | J17: m³ | O17: Länge = | P17: 8 | Q17: m | R17: Größe = | S17: =IF(D37="","",D37) ->  | T17: m³
C19: Breite = | E19: m | I19: Baukostenrichtsatz | O19: Breite = | P19: 5 | Q19: m | S19: Baukostenrichtsatz
C21: Höhe = | E21: m | I21: 130 | J21: € | O21: Seitenwandhöhe1) = | P21: 3.2 | Q21: m → (h od. hMAX) | S21: 81 | T21: €
P22: 1) Wenn keine Decke vorhanden ist, dann inklusive ½ Dachstuhlhöhe! | Z22: PKT | AA22: / | AB22: GES | AE22: Ergebnisse | AK22: Hilfe | AQ22: Formelprüfung | AW22: Punkte
A24: A. | B24: Ermittlung der Baumassen (Kubatur, Bauvolumen):
B25: 1. | C25: Gesamtgebäude
C26: Gesamt = | Z26: =IF(AND(G26="",J26="",L26=""),"",SUM(AW26:BA26)) ->  | AA26: / | AB26: =COUNTA(AK26:AO26) -> 5 | AE26: =IF(D26="","",D26) ->  | AF26: =IF(G26="","",G26) ->  | AG26: =IF(I26="","",I26) ->  | AH26: =IF(M26="","",M26) ->  | AI26: =IF(O26="","",O26) ->  | AJ26: / | AK26: =IF(G9L!D26="","",G9L!D26) -> Länge | AL26: =IF(G9L!G26="","",G9L!G26) -> • | AM26: =IF(G9L!I26="","",G9L!I26) -> Breite | AN26: =IF(G9L!M26="","",G9L!M26) -> • | AO26: =IF(G9L!O26="","",G9L!O26) -> Höhe | AP26: - | AW26: =IF(AE26="","",IF(COUNTIF($AK26:$AO26,AE26)>0,1/COUNTIF($AE26:$AI26,AE26),IF(COUNTIF($AQ26:$AU26,AE26)>0,0.5/COUNTIF($AE26:$AI26,AE26),0))) ->  | AX26: =IF(AF26="","",IF(AF26=AL26,1,IF(AF26=AR26,0.5,0))) ->  | AY26: =IF(AG26="","",IF(COUNTIF($AK26:$AO26,AG26)>0,1/COUNTIF($AE26:$AI26,AG26),IF(COUNTIF($AQ26:$AU26,AG26)>0,0.5/COUNTIF($AE26:$AI26,AG26),0))) ->  | AZ26: =IF(AH26="","",IF(AH26=AN26,1,IF(AH26=AT26,0.5,0))) ->  | BA26: =IF(AI26="","",IF(COUNTIF($AK26:$AO26,AI26)>0,1/COUNTIF($AE26:$AI26,AI26),IF(COUNTIF($AQ26:$AU26,AI26)>0,0.5/COUNTIF($AE26:$AI26,AI26),0))) -> 
C28: Gesamt = | G28: =IF(G26="","",G26) ->  | M28: =IF(M26="","",M26) ->  | Z28: =IF(AND(G28="",J28="",L28=""),"",SUM(AW28:BA28)) ->  | AA28: / | AB28: =COUNTA(AK28:AO28) -> 3 | AE28: =IF(D28="","",D28) ->  | AG28: =IF(I28="","",I28) ->  | AI28: =IF(O28="","",O28) ->  | AJ28: / | AK28: =IF(G9L!D28="","",G9L!D28) -> 26 | AM28: =IF(G9L!I28="","",G9L!I28) -> 10 | AO28: =IF(G9L!O28="","",G9L!O28) -> 6 | AP28: - | AW28: =IF(AE28="","",IF(COUNTIF($AK28:$AO28,AE28)>0,1/COUNTIF($AE28:$AI28,AE28),IF(COUNTIF($AQ28:$AU28,AE28)>0,0.5/COUNTIF($AE28:$AI28,AE28),0))) ->  | AX28: =IF(AF28="","",IF(AF28=AL28,1,IF(AF28=AR28,0.5,0))) ->  | AY28: =IF(AG28="","",IF(COUNTIF($AK28:$AO28,AG28)>0,1/COUNTIF($AE28:$AI28,AG28),IF(COUNTIF($AQ28:$AU28,AG28)>0,0.5/COUNTIF($AE28:$AI28,AG28),0))) ->  | AZ28: =IF(AH28="","",IF(AH28=AN28,1,IF(AH28=AT28,0.5,0))) ->  | BA28: =IF(AI28="","",IF(COUNTIF($AK28:$AO28,AI28)>0,1/COUNTIF($AE28:$AI28,AI28),IF(COUNTIF($AQ28:$AU28,AI28)>0,0.5/COUNTIF($AE28:$AI28,AI28),0))) -> 
C30: Gesamt = | G30: m³ | Z30: =IF(AND(D30=""),"",SUM(AW30:BA30)) ->  | AA30: / | AB30: =COUNTA(AK30:AO30) -> 1 | AE30: =IF(D30="","",D30) ->  | AG30: =IF(I30="","",I30) ->  | AH30: =IF(M30="","",M30) ->  | AI30: =IF(O30="","",O30) ->  | AJ30: / | AK30: =IF(G9L!D30="","",G9L!D30) -> 1560 | AP30: - | AQ30: =IF(D30="","",D28*I28*O28) ->  | AW30: =IF(AE30="","",IF(COUNTIF($AK30:$AO30,AE30)>0,1/COUNTIF($AE30:$AI30,AE30),IF(COUNTIF($AQ30:$AU30,AE30)>0,0.5/COUNTIF($AE30:$AI30,AE30),0))) ->  | AX30: =IF(AF30="","",IF(AF30=AL30,1,IF(AF30=AR30,0.5,0))) ->  | AY30: =IF(AG30="","",IF(COUNTIF($AK30:$AO30,AG30)>0,1/COUNTIF($AE30:$AI30,AG30),IF(COUNTIF($AQ30:$AU30,AG30)>0,0.5/COUNTIF($AE30:$AI30,AG30),0))) ->  | AZ30: =IF(AH30="","",IF(AH30=AN30,1,IF(AH30=AT30,0.5,0))) ->  | BA30: =IF(AI30="","",IF(COUNTIF($AK30:$AO30,AI30)>0,1/COUNTIF($AE30:$AI30,AI30),IF(COUNTIF($AQ30:$AU30,AI30)>0,0.5/COUNTIF($AE30:$AI30,AI30),0))) -> 
B32: 2. | C32: =IF(P11="","",P11&" ("&M11&")") -> Schweinestall (2. Nutzung)
C33: =$P$11&" =" -> Schweinestall = | Z33: =IF(AND(G33="",J33="",L33=""),"",SUM(AW33:BA33)) ->  | AA33: / | AB33: =COUNTA(AK33:AO33) -> 5 | AE33: =IF(D33="","",D33) ->  | AF33: =IF(G33="","",G33) ->  | AG33: =IF(I33="","",I33) ->  | AH33: =IF(M33="","",M33) ->  | AI33: =IF(O33="","",O33) ->  | AJ33: / | AK33: =IF(G9L!D33="","",G9L!D33) -> Länge | AL33: =IF(G9L!G33="","",G9L!G33) -> • | AM33: =IF(G9L!I33="","",G9L!I33) -> Breite | AN33: =IF(G9L!M33="","",G9L!M33) -> • | AO33: =IF(G9L!O33="","",G9L!O33) -> Höhe | AP33: - | AW33: =IF(AE33="","",IF(COUNTIF($AK33:$AO33,AE33)>0,1/COUNTIF($AE33:$AI33,AE33),IF(COUNTIF($AQ33:$AU33,AE33)>0,0.5/COUNTIF($AE33:$AI33,AE33),0))) ->  | AX33: =IF(AF33="","",IF(AF33=AL33,1,IF(AF33=AR33,0.5,0))) ->  | AY33: =IF(AG33="","",IF(COUNTIF($AK33:$AO33,AG33)>0,1/COUNTIF($AE33:$AI33,AG33),IF(COUNTIF($AQ33:$AU33,AG33)>0,0.5/COUNTIF($AE33:$AI33,AG33),0))) ->  | AZ33: =IF(AH33="","",IF(AH33=AN33,1,IF(AH33=AT33,0.5,0))) ->  | BA33: =IF(AI33="","",IF(COUNTIF($AK33:$AO33,AI33)>0,1/COUNTIF($AE33:$AI33,AI33),IF(COUNTIF($AQ33:$AU33,AI33)>0,0.5/COUNTIF($AE33:$AI33,AI33),0))) -> 
C35: =$P$11&" =" -> Schweinestall = | G35: =IF(G33="","",G33) ->  | M35: =IF(M33="","",M33) ->  | Z35: =IF(AND(G35="",J35="",L35=""),"",SUM(AW35:BA35)) ->  | AA35: / | AB35: =COUNTA(AK35:AO35) -> 3 | AE35: =IF(D35="","",D35) ->  | AG35: =IF(I35="","",I35) ->  | AI35: =IF(O35="","",O35) ->  | AJ35: / | AK35: =IF(G9L!D35="","",G9L!D35) -> 8 | AM35: =IF(G9L!I35="","",G9L!I35) -> 5 | AO35: =IF(G9L!O35="","",G9L!O35) -> 3.2 | AP35: - | AW35: =IF(AE35="","",IF(COUNTIF($AK35:$AO35,AE35)>0,1/COUNTIF($AE35:$AI35,AE35),IF(COUNTIF($AQ35:$AU35,AE35)>0,0.5/COUNTIF($AE35:$AI35,AE35),0))) ->  | AX35: =IF(AF35="","",IF(AF35=AL35,1,IF(AF35=AR35,0.5,0))) ->  | AY35: =IF(AG35="","",IF(COUNTIF($AK35:$AO35,AG35)>0,1/COUNTIF($AE35:$AI35,AG35),IF(COUNTIF($AQ35:$AU35,AG35)>0,0.5/COUNTIF($AE35:$AI35,AG35),0))) ->  | AZ35: =IF(AH35="","",IF(AH35=AN35,1,IF(AH35=AT35,0.5,0))) ->  | BA35: =IF(AI35="","",IF(COUNTIF($AK35:$AO35,AI35)>0,1/COUNTIF($AE35:$AI35,AI35),IF(COUNTIF($AQ35:$AU35,AI35)>0,0.5/COUNTIF($AE35:$AI35,AI35),0))) -> 
C37: =$P$11&" =" -> Schweinestall = | G37: m³ | Z37: =IF(AND(D37=""),"",SUM(AW37:BA37)) ->  | AA37: / | AB37: =COUNTA(AK37:AO37) -> 1 | AE37: =IF(D37="","",D37) ->  | AG37: =IF(I37="","",I37) ->  | AH37: =IF(M37="","",M37) ->  | AI37: =IF(O37="","",O37) ->  | AJ37: / | AK37: =IF(G9L!D37="","",G9L!D37) -> 128 | AP37: - | AQ37: =IF(D37="","",D35*I35*O35) ->  | AW37: =IF(AE37="","",IF(COUNTIF($AK37:$AO37,AE37)>0,1/COUNTIF($AE37:$AI37,AE37),IF(COUNTIF($AQ37:$AU37,AE37)>0,0.5/COUNTIF($AE37:$AI37,AE37),0))) ->  | AX37: =IF(AF37="","",IF(AF37=AL37,1,IF(AF37=AR37,0.5,0))) ->  | AY37: =IF(AG37="","",IF(COUNTIF($AK37:$AO37,AG37)>0,1/COUNTIF($AE37:$AI37,AG37),IF(COUNTIF($AQ37:$AU37,AG37)>0,0.5/COUNTIF($AE37:$AI37,AG37),0))) ->  | AZ37: =IF(AH37="","",IF(AH37=AN37,1,IF(AH37=AT37,0.5,0))) ->  | BA37: =IF(AI37="","",IF(COUNTIF($AK37:$AO37,AI37)>0,1/COUNTIF($AE37:$AI37,AI37),IF(COUNTIF($AQ37:$AU37,AI37)>0,0.5/COUNTIF($AE37:$AI37,AI37),0))) -> 
B39: 3. | C39: =IF(D11="","",D11&" ("&A11&")") -> Rinderstall (1. Nutzung)
C40: =$D$11&" =" -> Rinderstall = | Z40: =IF(AND(G40="",J40="",L40=""),"",SUM(AW40:BA40)) ->  | AA40: / | AB40: =COUNTA(AK40:AO40) -> 3 | AE40: =IF(D40="","",D40) ->  | AG40: =IF(G40="","",G40) ->  | AI40: =IF(I40="","",I40) ->  | AJ40: / | AK40: =IF(G9L!D40="","",G9L!D40) -> Gesamt | AM40: =IF(G9L!G40="","",G9L!G40) -> – | AO40: =IF(G9L!I40="","",G9L!I40) -> Schweinestall | AP40: - | AW40: =IF(AE40="","",IF(AE40=AK40,1,IF(AE40=AQ40,0.5,0))) ->  | AX40: =IF(AF40="","",IF(AF40=AL40,1,IF(AF40=AR40,0.5,0))) ->  | AY40: =IF(AG40="","",IF(AG40=AM40,1,IF(AG40=AS40,0.5,0))) ->  | AZ40: =IF(AH40="","",IF(AH40=AN40,1,IF(AH40=AT40,0.5,0))) ->  | BA40: =IF(AI40="","",IF(AI40=AO40,1,IF(AI40=AU40,0.5,0))) -> 
C42: =$D$11&" =" -> Rinderstall = | G42: =IF(G40="","",G40) ->  | Z42: =IF(AND(G42="",J42="",L42=""),"",SUM(AW42:BA42)) ->  | AA42: / | AB42: =COUNTA(AK42:AO42) -> 2 | AE42: =IF(D42="","",D42) ->  | AI42: =IF(I42="","",I42) ->  | AJ42: / | AK42: =IF(G9L!D42="","",G9L!D42) -> 1560 | AO42: =IF(G9L!I42="","",G9L!I42) -> 128 | AP42: - | AQ42: =IF(D42="","",D30) ->  | AU42: =IF(I42="","",D37) ->  | AW42: =IF(AE42="","",IF(AE42=AK42,1,IF(AE42=AQ42,0.5,0))) ->  | AX42: =IF(AF42="","",IF(AF42=AL42,1,IF(AF42=AR42,0.5,0))) ->  | AY42: =IF(AG42="","",IF(AG42=AM42,1,IF(AG42=AS42,0.5,0))) ->  | AZ42: =IF(AH42="","",IF(AH42=AN42,1,IF(AH42=AT42,0.5,0))) ->  | BA42: =IF(AI42="","",IF(AI42=AO42,1,IF(AI42=AU42,0.5,0))) -> 
C44: =$D$11&" =" -> Rinderstall = | G44: m³ | Z44: =IF(AND(D44=""),"",SUM(AW44:BA44)) ->  | AA44: / | AB44: =COUNTA(AK44:AO44) -> 1 | AE44: =IF(D44="","",D44) ->  | AG44: =IF(I44="","",I44) ->  | AH44: =IF(M44="","",M44) ->  | AI44: =IF(O44="","",O44) ->  | AJ44: / | AK44: =IF(G9L!D44="","",G9L!D44) -> 1432 | AP44: - | AQ44: =IF(D44="","",D42-I42) ->  | AW44: =IF(AE44="","",IF(AE44=AK44,1,IF(AE44=AQ44,0.5,0))) ->  | AX44: =IF(AF44="","",IF(AF44=AL44,1,IF(AF44=AR44,0.5,0))) ->  | AY44: =IF(AG44="","",IF(AG44=AM44,1,IF(AG44=AS44,0.5,0))) ->  | AZ44: =IF(AH44="","",IF(AH44=AN44,1,IF(AH44=AT44,0.5,0))) ->  | BA44: =IF(AI44="","",IF(AI44=AO44,1,IF(AI44=AU44,0.5,0))) -> 
A46: B. | B46: Bewertung der Gebäudeteile:
B47: =IF(D11="","",D11) -> Rinderstall | M47: =IF(P11="","",P11) -> Schweinestall
B49: 1. | C49: Alter = | Z49: =IF(AND(D49="",G49="",I49=""),"",SUM(AW49:BA49)) ->  | AA49: / | AB49: =COUNTA(AK49:AO49) -> 3 | AE49: =IF(D49="","",D49) ->  | AG49: =IF(G49="","",G49) ->  | AI49: =IF(I49="","",I49) ->  | AJ49: / | AK49: =IF(G9L!D49="","",G9L!D49) -> Heuer | AM49: =IF(G9L!G49="","",G9L!G49) -> – | AO49: =IF(G9L!I49="","",G9L!I49) -> Anschaffungsjahr | AW49: =IF(AE49="","",IF(AE49=AK49,1,IF(AE49=AQ49,0.5,0))) ->  | AX49: =IF(AF49="","",IF(AF49=AL49,1,IF(AF49=AR49,0.5,0))) -> 
C51: Alter = | G51: =IF(G49="","",G49) ->  | Z51: =IF(AND(D51="",G51="",I51=""),"",SUM(AW51:BA51)) ->  | AA51: / | AB51: =COUNTA(AK51:AO51) -> 2 | AE51: =IF(D51="","",D51) ->  | AI51: =IF(I51="","",I51) ->  | AJ51: / | AK51: =IF(G9L!D51="","",G9L!D51) -> 2021 | AO51: =IF(G9L!I51="","",G9L!I51) -> 2010 | AW51: =IF(AE51="","",IF(AE51=AK51,1,IF(AE51=AQ51,0.5,0))) ->  | AX51: =IF(AF51="","",IF(AF51=AL51,1,IF(AF51=AR51,0.5,0))) -> 
G52: ,
C53: Alter = | G53: Jahre | O53: Alter = | R53: Jahre | Z53: =IF(AND(D53=""),"",SUM(AW53:BA53)) ->  | AA53: / | AB53: =COUNTA(AK53:AO53) -> 2 | AE53: =IF(D53="","",D53) ->  | AF53: =IF(P53="","",P53) ->  | AJ53: / | AK53: =IF(G9L!D53="","",G9L!D53) -> 11 | AL53: =IF(G9L!P53="","",G9L!P53) -> 1 | AP53: - | AQ53: =IF(D53="","",D51-I51) ->  | AW53: =IF(AE53="","",IF(AE53=AK53,1,IF(AE53=AQ53,0.5,0))) ->  | AX53: =IF(AF53="","",IF(AF53=AL53,1,IF(AF53=AR53,0.5,0))) -> 
B55: 2. | G55: ="Baukostenrichtsatz = "&DOLLAR(I21,2)&"/"&MID(J17,2,6) -> Baukostenrichtsatz = € 130,00/m³ | I55: ……..… | J55: 1 | Q55: ="Baukostenrichtsatz = "&DOLLAR(S21,2)&"/"&MID(T17,2,6) -> Baukostenrichtsatz = € 81,00/m³ | R55: ……..… | S55: 1
G57: ="Reduzierter Baukostenrichtsatz = x €/"&MID(J17,2,6) -> Reduzierter Baukostenrichtsatz = x €/m³ | I57: ……..… | Q57: ="Reduzierter Baukostenrichtsatz = x €/"&MID(T17,2,6) -> Reduzierter Baukostenrichtsatz = x €/m³ | R57: ……..… | Z57: =IF(AND(J57=""),"",SUM(AW57:BA57)) ->  | AA57: / | AB57: =COUNTA(AK57:AO57) -> 2 | AE57: =IF(J57="","",J57) ->  | AF57: =IF(S57="","",S57) ->  | AJ57: / | AK57: =IF(G9L!J57="","",G9L!J57) -> 0.8 | AL57: =IF(G9L!S57="","",G9L!S57) -> 0.9 | AW57: =IF(AE57="","",IF(AE57=AK57,1,IF(AE57=AQ57,0.5,0))) ->  | AX57: =IF(AF57="","",IF(AF57=AL57,1,IF(AF57=AR57,0.5,0))) -> 
C59: x = | D59: =IF(J57="","",DOLLAR(I21,2)) ->  | F59: =IF(J57="",""," ") ->  | G59: =IF(J57="","","•") ->  | H59: =IF(J57="",""," ") ->  | I59: =IF(J57="","",FIXED(J57,2)*100) ->  | O59: x = | P59: =IF(S57="","",DOLLAR(S21,2)) ->  | R59: =IF(S57="","","•") ->  | S59: =IF(S57="","",FIXED(S57,2)*100) -> 
D60: =IF(J57="","",FIXED(J55,2)*100) ->  | P60: =IF(S57="","",FIXED(S55,2)*100) -> 
C62: x = | D62: =IF(J57="","",FIXED(D59*I59/D60,2)) ->  | E62: € | O62: x = | P62: =IF(S57="","",FIXED(P59*S59/P60,2)) ->  | Q62: €
B64: 3. | C64: WW = | Z64: =IF(AND(D64="",G64="",I64=""),"",SUM(AW64:BA64)) ->  | AA64: / | AB64: =COUNTA(AK64:AO64) -> 3 | AE64: =IF(D64="","",D64) ->  | AG64: =IF(G64="","",G64) ->  | AI64: =IF(I64="","",I64) ->  | AJ64: / | AK64: =IF(G9L!D64="","",G9L!D64) -> Größe | AM64: =IF(G9L!G64="","",G9L!G64) -> • | AO64: =IF(G9L!I64="","",G9L!I64) -> Reduzierter Baukostenrichtsatz | AW64: =IF(AE64="","",IF(COUNTIF($AK64:$AO64,AE64)>0,1/COUNTIF($AE64:$AI64,AE64),IF(COUNTIF($AQ64:$AU64,AE64)>0,0.5/COUNTIF($AE64:$AI64,AE64),0))) ->  | AX64: =IF(AF64="","",IF(COUNTIF($AK64:$AO64,AF64)>0,1/COUNTIF($AE64:$AI64,AF64),IF(COUNTIF($AQ64:$AU64,AF64)>0,0.5/COUNTIF($AE64:$AI64,AF64),0))) -> 
C66: WW = | G66: =IF(G64="","",G64) ->  | Z66: =IF(AND(D66="",G66="",I66=""),"",SUM(AW66:BA66)) ->  | AA66: / | AB66: =COUNTA(AK66:AO66) -> 2 | AE66: =IF(D66="","",D66) ->  | AI66: =IF(I66="","",I66) ->  | AJ66: / | AK66: =IF(G9L!D66="","",G9L!D66) -> 1432 | AO66: =IF(G9L!I66="","",G9L!I66) -> 104,00 | AP66: - | AQ66: =IF(D66="","",D61) ->  | AU66: =IF(I66="","",L54) ->  | AW66: =IF(AE66="","",IF(COUNTIF($AK66:$AO66,AE66)>0,1/COUNTIF($AE66:$AI66,AE66),IF(COUNTIF($AQ66:$AU66,AE66)>0,0.5/COUNTIF($AE66:$AI66,AE66),0))) ->  | AX66: =IF(AF66="","",IF(COUNTIF($AK66:$AO66,AF66)>0,1/COUNTIF($AE66:$AI66,AF66),IF(COUNTIF($AQ66:$AU66,AF66)>0,0.5/COUNTIF($AE66:$AI66,AF66),0))) ->  | AY66: =IF(AG66="","",IF(COUNTIF($AK66:$AO66,AG66)>0,1/COUNTIF($AE66:$AI66,AG66),IF(COUNTIF($AQ66:$AU66,AG66)>0,0.5/COUNTIF($AE66:$AI66,AG66),0))) ->  | AZ66: =IF(AH66="","",IF(COUNTIF($AK66:$AO66,AH66)>0,1/COUNTIF($AE66:$AI66,AH66),IF(COUNTIF($AQ66:$AU66,AH66)>0,0.5/COUNTIF($AE66:$AI66,AH66),0))) ->  | BA66: =IF(AI66="","",IF(COUNTIF($AK66:$AO66,AI66)>0,1/COUNTIF($AE66:$AI66,AI66),IF(COUNTIF($AQ66:$AU66,AI66)>0,0.5/COUNTIF($AE66:$AI66,AI66),0))) -> 
G67: ,
C68: WW = | G68: € | O68: WW = | R68: € | Z68: =IF(AND(D68=""),"",SUM(AW68:BA68)) ->  | AA68: / | AB68: =COUNTA(AK68:AO68) -> 2 | AE68: =IF(D68="","",D68) ->  | AF68: =IF(P68="","",P68) ->  | AJ68: / | AK68: =IF(G9L!D68="","",G9L!D68) -> 148928 | AL68: =IF(G9L!P68="","",G9L!P68) -> 9331.2 | AP68: - | AQ68: =IF(D68="","",D66*I66) ->  | AW68: =IF(AE68="","",IF(COUNTIF($AK68:$AO68,AE68)>0,1/COUNTIF($AE68:$AI68,AE68),IF(COUNTIF($AQ68:$AU68,AE68)>0,0.5/COUNTIF($AE68:$AI68,AE68),0))) ->  | AX68: =IF(AF68="","",IF(COUNTIF($AK68:$AO68,AF68)>0,1/COUNTIF($AE68:$AI68,AF68),IF(COUNTIF($AQ68:$AU68,AF68)>0,0.5/COUNTIF($AE68:$AI68,AF68),0))) ->  | AY68: =IF(AG68="","",IF(COUNTIF($AK68:$AO68,AG68)>0,1/COUNTIF($AE68:$AI68,AG68),IF(COUNTIF($AQ68:$AU68,AG68)>0,0.5/COUNTIF($AE68:$AI68,AG68),0))) ->  | AZ68: =IF(AH68="","",IF(COUNTIF($AK68:$AO68,AH68)>0,1/COUNTIF($AE68:$AI68,AH68),IF(COUNTIF($AQ68:$AU68,AH68)>0,0.5/COUNTIF($AE68:$AI68,AH68),0))) ->  | BA68: =IF(AI68="","",IF(COUNTIF($AK68:$AO68,AI68)>0,1/COUNTIF($AE68:$AI68,AI68),IF(COUNTIF($AQ68:$AU68,AI68)>0,0.5/COUNTIF($AE68:$AI68,AI68),0))) -> 
AK69: Anschaffungswert
B70: 4. | C70: jAfa = | Z70: =IF(AND(D70="",G70="",I70=""),"",SUM(AW70:BA70)) ->  | AA70: / | AB70: =COUNTA(AK70:AO70) -> 1 | AE70: =IF(D70="","",D70) ->  | AJ70: / | AK70: =IF(G9L!D70="","",G9L!D70) -> Wiederbeschaffungswert | AW70: =IF(AE70="","",IF(COUNTIF($AK69:$AK70,AE70)>0,1/COUNTIF($AE70,AE70),IF(COUNTIF($AQ70,AE70)>0,0.5/COUNTIF($AE70,AE70),0))) ->  | AX70: =IF(AF70="","",IF(AF70=AL70,1,IF(AF70=AR70,0.5,0))) -> 
Z71: =IF(AND(D71="",G71="",I71=""),"",SUM(AW71:BA71)) ->  | AA71: / | AB71: =COUNTA(AK71:AO71) -> 1 | AE71: =IF(D71="","",D71) ->  | AJ71: / | AK71: =IF(G9L!D71="","",G9L!D71) -> Nutzungsdauer | AW71: =IF(AE71="","",IF(AE71=AK71,1,IF(AE71=AQ71,0.5,0))) -> 
AW72: =IF(AE72="","",IF(AE72=AK72,1,IF(AE72=#REF!,1,IF(AE72=AQ72,0.5,IF(AE72=#REF!,0.5,0))))) ->  | AX72: =IF(AF72="","",IF(AF72=AL72,1,IF(AF72=#REF!,1,IF(AF72=AR72,0.5,IF(AF72=#REF!,0.5,0))))) ->  | AY72: =IF(AG72="","",IF(AG72=AM72,1,IF(AG72=#REF!,1,IF(AG72=AS72,0.5,IF(AG72=#REF!,0.5,0))))) ->  | AZ72: =IF(AH72="","",IF(AH72=AN72,1,IF(AH72=#REF!,1,IF(AH72=AT72,0.5,IF(AH72=#REF!,0.5,0))))) ->  | BA72: =IF(AI72="","",IF(AI72=AO72,1,IF(AI72=#REF!,1,IF(AI72=AU72,0.5,IF(AI72=#REF!,0.5,0))))) -> 
C73: jAfa = | Z73: =IF(AND(D73="",G73="",I73=""),"",SUM(AW73:BA73)) ->  | AA73: / | AB73: =COUNTA(AK73:AO73) -> 1 | AE73: =IF(D73="","",D73) ->  | AJ73: / | AK73: =IF(G9L!D73="","",G9L!D73) -> 148928 | AW73: =IF(AE73="","",IF(AE73=AK73,1,IF(AE73=AQ73,0.5,0))) ->  | AX73: =IF(AF73="","",IF(AF73=AL73,1,IF(AF73=AR73,0.5,0))) -> 
Z74: =IF(AND(D74="",G74="",I74=""),"",SUM(AW74:BA74)) ->  | AA74: / | AB74: =COUNTA(AK74:AO74) -> 1 | AE74: =IF(D74="","",D74) ->  | AJ74: / | AK74: =IF(G9L!D74="","",G9L!D74) -> 40 | AW74: =IF(AE74="","",IF(AE74=AK74,1,IF(AE74=AQ74,0.5,0))) -> 
C76: jAfa = | G76: € | I76: =IF(D76="","",IF(D53>=I15,"ACHTUNG: Keine Afa mehr!","")) ->  | O76: jAfa = | R76: € | S76: =IF(P76="","",IF(P53>=S15,"ACHTUNG: Keine Afa mehr!","")) ->  | Z76: =IF(AND(D76=""),"",SUM(AW76:BA76)) ->  | AA76: / | AB76: =COUNTA(AK76:AO76) -> 2 | AE76: =IF(D76="","",D76) ->  | AF76: =IF(P76="","",P76) ->  | AJ76: / | AK76: =IF(G9L!D76="","",G9L!D76) -> 3723.2 | AL76: =IF(G9L!P76="","",G9L!P76) -> 233.28 | AP76: - | AQ76: =IF(D76="","",D73/D74) ->  | AW76: =IF(AE76="","",IF(AE76=AK76,1,IF(AE76=AQ76,0.5,0))) ->  | AX76: =IF(AF76="","",IF(AF76=AL76,1,IF(AF76=AR76,0.5,0))) -> 
B78: 5. | C78: bAfa = | Z78: =IF(AND(D78="",G78="",I78=""),"",SUM(AW78:BA78)) ->  | AA78: / | AB78: =COUNTA(AK78:AO78) -> 3 | AE78: =IF(D78="","",D78) ->  | AG78: =IF(G78="","",G78) ->  | AI78: =IF(I78="","",I78) ->  | AJ78: / | AK78: =IF(G9L!D78="","",G9L!D78) -> Jährliche Afa | AM78: =IF(G9L!G78="","",G9L!G78) -> • | AO78: =IF(G9L!I78="","",G9L!I78) -> Alter | AW78: =IF(AE78="","",IF(COUNTIF($AK78:$AO78,AE78)>0,1/COUNTIF($AE78:$AI78,AE78),IF(COUNTIF($AQ78:$AU78,AE78)>0,0.5/COUNTIF($AE78:$AI78,AE78),0))) ->  | AX78: =IF(AF78="","",IF(COUNTIF($AK78:$AO78,AF78)>0,1/COUNTIF($AE78:$AI78,AF78),IF(COUNTIF($AQ78:$AU78,AF78)>0,0.5/COUNTIF($AE78:$AI78,AF78),0))) ->  | AY78: =IF(AG78="","",IF(COUNTIF($AK78:$AO78,AG78)>0,1/COUNTIF($AE78:$AI78,AG78),IF(COUNTIF($AQ78:$AU78,AG78)>0,0.5/COUNTIF($AE78:$AI78,AG78),0))) ->  | AZ78: =IF(AH78="","",IF(COUNTIF($AK78:$AO78,AH78)>0,1/COUNTIF($AE78:$AI78,AH78),IF(COUNTIF($AQ78:$AU78,AH78)>0,0.5/COUNTIF($AE78:$AI78,AH78),0))) ->  | BA78: =IF(AI78="","",IF(COUNTIF($AK78:$AO78,AI78)>0,1/COUNTIF($AE78:$AI78,AI78),IF(COUNTIF($AQ78:$AU78,AI78)>0,0.5/COUNTIF($AE78:$AI78,AI78),0))) -> 
C80: bAfa = | G80: =IF(G78="","",G78) ->  | Z80: =IF(AND(D80="",G80="",I80=""),"",SUM(AW80:BA80)) ->  | AA80: / | AB80: =COUNTA(AK80:AO80) -> 2 | AE80: =IF(D80="","",D80) ->  | AI80: =IF(I80="","",I80) ->  | AJ80: / | AK80: =IF(G9L!D80="","",G9L!D80) -> 3723.2 | AO80: =IF(G9L!I80="","",G9L!I80) -> 11 | AP80: - | AQ80: =IF(D80="","",D76) ->  | AU80: =IF(I80="","",D23) ->  | AW80: =IF(AE80="","",IF(COUNTIF($AK80:$AO80,AE80)>0,1/COUNTIF($AE80:$AI80,AE80),IF(COUNTIF($AQ80:$AU80,AE80)>0,0.5/COUNTIF($AE80:$AI80,AE80),0))) ->  | AX80: =IF(AF80="","",IF(COUNTIF($AK80:$AO80,AF80)>0,1/COUNTIF($AE80:$AI80,AF80),IF(COUNTIF($AQ80:$AU80,AF80)>0,0.5/COUNTIF($AE80:$AI80,AF80),0))) ->  | AY80: =IF(AG80="","",IF(COUNTIF($AK80:$AO80,AG80)>0,1/COUNTIF($AE80:$AI80,AG80),IF(COUNTIF($AQ80:$AU80,AG80)>0,0.5/COUNTIF($AE80:$AI80,AG80),0))) ->  | AZ80: =IF(AH80="","",IF(COUNTIF($AK80:$AO80,AH80)>0,1/COUNTIF($AE80:$AI80,AH80),IF(COUNTIF($AQ80:$AU80,AH80)>0,0.5/COUNTIF($AE80:$AI80,AH80),0))) ->  | BA80: =IF(AI80="","",IF(COUNTIF($AK80:$AO80,AI80)>0,1/COUNTIF($AE80:$AI80,AI80),IF(COUNTIF($AQ80:$AU80,AI80)>0,0.5/COUNTIF($AE80:$AI80,AI80),0))) -> 
C82: bAfa = | G82: € | O82: bAfa = | R82: € | Z82: =IF(AND(D82=""),"",SUM(AW82:BA82)) ->  | AA82: / | AB82: =COUNTA(AK82:AO82) -> 2 | AE82: =IF(D82="","",D82) ->  | AF82: =IF(P82="","",P82) ->  | AJ82: / | AK82: =IF(G9L!D82="","",G9L!D82) -> 40955.2 | AL82: =IF(G9L!P82="","",G9L!P82) -> 233.28 | AP82: - | AQ82: =IF(D82="","",D80*I80) ->  | AW82: =IF(AE82="","",IF(COUNTIF($AK82:$AO82,AE82)>0,1/COUNTIF($AE82:$AI82,AE82),IF(COUNTIF($AQ82:$AU82,AE82)>0,0.5/COUNTIF($AE82:$AI82,AE82),0))) ->  | AX82: =IF(AF82="","",IF(COUNTIF($AK82:$AO82,AF82)>0,1/COUNTIF($AE82:$AI82,AF82),IF(COUNTIF($AQ82:$AU82,AF82)>0,0.5/COUNTIF($AE82:$AI82,AF82),0))) ->  | AY82: =IF(AG82="","",IF(COUNTIF($AK82:$AO82,AG82)>0,1/COUNTIF($AE82:$AI82,AG82),IF(COUNTIF($AQ82:$AU82,AG82)>0,0.5/COUNTIF($AE82:$AI82,AG82),0))) ->  | AZ82: =IF(AH82="","",IF(COUNTIF($AK82:$AO82,AH82)>0,1/COUNTIF($AE82:$AI82,AH82),IF(COUNTIF($AQ82:$AU82,AH82)>0,0.5/COUNTIF($AE82:$AI82,AH82),0))) ->  | BA82: =IF(AI82="","",IF(COUNTIF($AK82:$AO82,AI82)>0,1/COUNTIF($AE82:$AI82,AI82),IF(COUNTIF($AQ82:$AU82,AI82)>0,0.5/COUNTIF($AE82:$AI82,AI82),0))) -> 
AK83: Anschaffungswert
B84: 6. | C84: ZW1.1. = | Z84: =IF(AND(D84="",G84="",I84=""),"",SUM(AW84:BA84)) ->  | AA84: / | AB84: =COUNTA(AK84:AO84) -> 3 | AE84: =IF(D84="","",D84) ->  | AG84: =IF(G84="","",G84) ->  | AI84: =IF(I84="","",I84) ->  | AJ84: / | AK84: =IF(G9L!D84="","",G9L!D84) -> Wiederbeschaffungswert | AM84: =IF(G9L!G84="","",G9L!G84) -> – | AO84: =IF(G9L!I84="","",G9L!I84) -> Bisherige Afa | AW84: =IF(AE84="","",IF(COUNTIF($AK83:$AK84,AE84)>0,1/COUNTIF($AE84,AE84),IF(COUNTIF($AQ84,AE84)>0,0.5/COUNTIF($AE84,AE84),0))) ->  | AX84: =IF(AF84="","",IF(AF84=AL84,1,IF(AF84=AR84,0.5,0))) -> 
C86: ZW1.1. = | G86: =IF(G84="","",G84) ->  | Z86: =IF(AND(D86="",G86="",I86=""),"",SUM(AW86:BA86)) ->  | AA86: / | AB86: =COUNTA(AK86:AO86) -> 2 | AE86: =IF(D86="","",D86) ->  | AI86: =IF(I86="","",I86) ->  | AJ86: / | AK86: =IF(G9L!D86="","",G9L!D86) -> 148928 | AO86: =IF(G9L!I86="","",G9L!I86) -> 40955.2 | AP86: - | AQ86: =IF(D86="","",I9) ->  | AU86: =IF(I86="","",D82) ->  | AW86: =IF(AE86="","",IF(AE86=AK86,1,IF(AE86=AQ86,0.5,0))) ->  | AX86: =IF(AF86="","",IF(AF86=AL86,1,IF(AF86=AR86,0.5,0))) -> 
C88: ZW1.1. = | G88: € | I88: =IF(D68="","",IF(D53>=I15,"Erinnerungswert!",IF(D88=D68,"ACHTUNG: Zeitwert 1.1. bleibt leer! "&DOLLAR(D88,2)&" kommt in die Spalte 'Zugang'",""))) ->  | O88: ZW1.1. = | R88: € | S88: =IF(P68="","",IF(P53>=S15,"Erinnerungswert!",IF(P88=P68,"ACHTUNG: Zeitwert 1.1. bleibt leer! "&DOLLAR(P88,2)&" kommt in die Spalte 'Zugang'",""))) ->  | U88: =IF(P68="","",IF(P53>=#REF!,"Erinnerungswert!",IF(P88=P68,"ACHTUNG: Zeitwert 1.1. bleibt leer! "&DOLLAR(#REF!,2)&" kommt in die Spalte 'Zugang'",""))) ->  | Z88: =IF(AND(D88=""),"",SUM(AW88:BA88)) ->  | AA88: / | AB88: =COUNTA(AK88:AO88) -> 2 | AE88: =IF(D88="","",D88) ->  | AF88: =IF(P88="","",P88) ->  | AJ88: / | AK88: =IF(G9L!D88="","",G9L!D88) -> 107972.8 | AL88: =IF(G9L!P88="","",G9L!P88) -> 9097.92 | AP88: - | AQ88: =IF(D88="","",D86-I86) ->  | AW88: =IF(AE88="","",IF(AE88=AK88,1,IF(AE88=AQ88,0.5,0))) ->  | AX88: =IF(AF88="","",IF(AF88=AL88,1,IF(AF88=AR88,0.5,0))) -> 
B90: 7. | C90: ZW31.12. = | Z90: =IF(AND(D90="",G90="",I90=""),"",SUM(AW90:BA90)) ->  | AA90: / | AB90: =COUNTA(AK90:AO90) -> 3 | AE90: =IF(D90="","",D90) ->  | AG90: =IF(G90="","",G90) ->  | AI90: =IF(I90="","",I90) ->  | AJ90: / | AK90: =IF(G9L!D90="","",G9L!D90) -> Zeitwert 1.1. | AM90: =IF(G9L!G90="","",G9L!G90) -> – | AO90: =IF(G9L!I90="","",G9L!I90) -> Jährliche Afa | AW90: =IF(AE90="","",IF(AE90=AK90,1,IF(AE90=AQ90,0.5,0))) ->  | AX90: =IF(AF90="","",IF(AF90=AL90,1,IF(AF90=AR90,0.5,0))) -> 
C92: ZW31.12. = | G92: =IF(G90="","",G90) ->  | Z92: =IF(AND(D92="",G92="",I92=""),"",SUM(AW92:BA92)) ->  | AA92: / | AB92: =COUNTA(AK92:AO92) -> 2 | AE92: =IF(D92="","",D92) ->  | AI92: =IF(I92="","",I92) ->  | AJ92: / | AK92: =IF(G9L!D92="","",G9L!D92) -> 107972.8 | AO92: =IF(G9L!I92="","",G9L!I92) -> 3723.2 | AP92: - | AQ92: =IF(D92="","",D88) ->  | AU92: =IF(AND(I92="",D76=""),"",AE76) ->  | AW92: =IF(AE92="","",IF(AE92=AK92,1,IF(AE92=AQ92,0.5,0))) ->  | AX92: =IF(AF92="","",IF(AF92=AL92,1,IF(AF92=AR92,0.5,0))) -> 
C94: ZW31.12. = | G94: € | I94: =IF(D94="","",IF(D88<=D76,"Erinnerungswert!","")) ->  | O94: ZW31.12. = | R94: € | S94: =IF(P94="","",IF(P88<=P76,"Erinnerungswert!","")) ->  | U94: =IF(P94="","",IF(P88<=P76,"Erinnerungswert!","")) ->  | Z94: =IF(AND(D94=""),"",SUM(AW94:BA94)) ->  | AA94: / | AB94: =COUNTA(AK94:AO94) -> 2 | AE94: =IF(D94="","",D94) ->  | AF94: =IF(P94="","",P94) ->  | AJ94: / | AK94: =IF(G9L!D94="","",G9L!D94) -> 104249.6 | AL94: =IF(G9L!P94="","",G9L!P94) -> 8864.64 | AP94: - | AQ94: =IF(D94="","",D92-I92) ->  | AW94: =IF(AE94="","",IF(AE94=AK94,1,IF(AE94=AQ94,0.5,0))) ->  | AX94: =IF(AF94="","",IF(AF94=AL94,1,IF(AF94=AR94,0.5,0))) ->  | AY94: =IF(AG94="","",IF(AG94=AM94,1,IF(AG94=AS94,0.5,0))) -> 
A96: Bezeichnung | D96: Baujahr | E96: Größe | F96: reduzierter | I96: Neuwert | J96: ND | L96: AfA | O96: Wert am | P96: Zugang | Q96: Abgang | R96: AfA | S96: Wert am
E97: ha, lfm, m² | F97: Richtsatz | I97: in | J97: in | L97: in | O97: ="1.1."&Jahr!F4 -> 1.1. | P97: in | Q97: in | R97: in | S97: ="31.12."&Jahr!F4 -> 31.12.
E98: m³, … | F98: je ha, … | I98: € | J98: Jahren | L98: €/Jahr | O98: € | P98: € | Q98: € | R98: € | S98: €
A99: =IF(D11="","",D11) -> Rinderstall | D99: =IF(D15="","",D15) -> 2010 | E99: =IF(I17="","",I17) ->  | F99: =IF(D62="","",D62) ->  | I99: =IF(D68="","",D68) ->  | J99: =IF(I15="","",I15) -> 40 | L99: =IF(D76="","",D76) ->  | Z99: =IF(AND(D99="",G99="",I99=""),"",SUM(AW99:BA99)) -> 0 | AA99: / | AB99: =COUNT(AK99:AO99) -> 3 | AE99: =IF(AND($O99="",$P99="",$Q99="",$R99="",$S99=""),"",IF(O99="","",O99)) ->  | AF99: =IF(AND($O99="",$P99="",$Q99="",$R99="",$S99=""),"",IF(P99="","",P99)) ->  | AJ99: / | AK99: =IF(G9L!O99="","",G9L!O99) -> 107972.8 | AL99: =IF(G9L!P99="","",G9L!P99) ->  | AM99: =IF(G9L!Q99="","",G9L!Q99) ->  | AN99: =IF(G9L!R99="","",G9L!R99) -> 3723.2 | AO99: =IF(G9L!S99="","",G9L!S99) -> 104249.6 | AP99: - | AQ99: =IF(D88="","",IF(AE53=0,"",D88)) ->  | AR99: =IF(D88="","",IF(AE53<>0,"",D88)) ->  | AS99: - | AT99: =IF(D76="","",D76) ->  | AU99: =IF(D94="","",D94) ->  | AW99: =IF(AE99="","",IF(AND(AE99<>"",OR(AK99="",AK99="-")),-1,IF(AE99=AK99,1,IF(AE99=AQ99,0.5,0)))) ->  | AX99: =IF(AF99="","",IF(AND(AF99<>"",OR(AL99="",AL99="-")),-1,IF(AF99=AL99,1,IF(AF99=AR99,0.5,0)))) ->  | AY99: =IF(AG99="","",IF(AND(AG99<>"",OR(AM99="",AM99="-")),-1,IF(AG99=AM99,1,IF(AG99=AS99,0.5,0)))) ->  | BA99: =IF(AI99="","",IF(AND(AI99<>"",OR(AO99="",AO99="-")),-1,IF(AI99=AO99,1,IF(AI99=AU99,0.5,0)))) -> 
A100: =IF(P11="","",P11) -> Schweinestall | D100: =IF(P15="","",P15) -> 2020 | E100: =IF(S17="","",S17) ->  | F100: =IF(P62="","",P62) ->  | I100: =IF(P68="","",P68) ->  | J100: =IF(S15="","",S15) -> 40 | L100: =IF(P76="","",P76) ->  | Z100: =IF(AND(D100="",G100="",I100=""),"",SUM(AW100:BA100)) -> 0 | AA100: / | AB100: =COUNT(AK100:AO100) -> 3 | AE100: =IF(AND($O100="",$P100="",$Q100="",$R100="",$S100=""),"",IF(O100="","",O100)) ->  | AJ100: / | AK100: =IF(G9L!O100="","",G9L!O100) -> 9097.92 | AL100: =IF(G9L!P100="","",G9L!P100) ->  | AM100: =IF(G9L!Q100="","",G9L!Q100) ->  | AN100: =IF(G9L!R100="","",G9L!R100) -> 233.28 | AO100: =IF(G9L!S100="","",G9L!S100) -> 8864.64 | AP100: - | AQ100: =IF(P88="","",IF(AF53=0,"",P88)) ->  | AR100: =IF(P88="","",IF(AF53<>0,"",P88)) ->  | AS100: - | AT100: =IF(P76="","",P76) ->  | AU100: =IF(P94="","",P94) ->  | AW100: =IF(AE100="","",IF(AND(AE100<>"",OR(AK100="",AK100="-")),-1,IF(AE100=AK100,1,IF(AE100=AQ100,0.5,0)))) ->  | AX100: =IF(AF100="","",IF(AND(AF100<>"",OR(AL100="",AL100="-")),-1,IF(AF100=AL100,1,IF(AF100=AR100,0.5,0)))) ->  | AY100: =IF(AG100="","",IF(AND(AG100<>"",OR(AM100="",AM100="-")),-1,IF(AG100=AM100,1,IF(AG100=AS100,0.5,0)))) ->  | AZ100: =IF(AH100="","",IF(AND(AH100<>"",OR(AN100="",AN100="-")),-1,IF(AH100=AN100,1,IF(AH100=AT100,0.5,0)))) ->  | BA100: =IF(AI100="","",IF(AND(AI100<>"",OR(AO100="",AO100="-")),-1,IF(AI100=AO100,1,IF(AI100=AU100,0.5,0)))) -> 
A101: Summe | O101: =IF(SUM(O99:O100)=0,"",SUM(O99:O100)) ->  | P101: =IF(SUM(P99:P100)=0,"",SUM(P99:P100)) ->  | Q101: =IF(SUM(Q99:Q100)=0,"",SUM(Q99:Q100)) ->  | R101: =IF(SUM(R99:R100)=0,"",SUM(R99:R100)) ->  | S101: =IF(SUM(S99:S100)=0,"",SUM(S99:S100)) ->  | AE101: Korrektur trotz "Nicht anzeigen" anzeigen! | AN101: "Anschaffungswert": | AO101: =COUNTIF(AK22:AO100,"Anschaffungswert") -> 2
Y102: Gsamtpunkte: | Z102: =SUM(Z22:Z101) -> 0 | AA102: / | AB102: =SUM(AB22:AB101) -> 73 | AE102: =COUNTBLANK(AE22:AI100) -> 394 | AK102: =SUM(COUNTBLANK(AK22:AO100),AO101:AO102) -> 321 | AN102: "-": | AO102: =COUNTIF(AK22:AO100,"-") -> 0

Sheet G9L
A1: Beispiel | D1: =IF('G9'!D1="","",'G9'!D1) -> 9 | E1: =IF('G9'!E1="","",'G9'!E1) -> Zweinutzungsgebäude | F1: =IF('G9'!F1="","",'G9'!F1) ->  | G1: =IF('G9'!G1="","",'G9'!G1) ->  | H1: =IF('G9'!H1="","",'G9'!H1) ->  | I1: =IF('G9'!I1="","",'G9'!I1) ->  | J1: =IF('G9'!J1="","",'G9'!J1) ->  | K1: =IF('G9'!K1="","",'G9'!K1) ->  | L1: =IF('G9'!L1="","",'G9'!L1) ->  | M1: =IF('G9'!M1="","",'G9'!M1) -> (Rinderstall, Schweinestall) | O1: =IF('G9'!O1="","",'G9'!O1) ->  | P1: =IF('G9'!P1="","",'G9'!P1) ->  | Q1: =IF('G9'!Q1="","",'G9'!Q1) ->  | R1: =IF('G9'!R1="","",'G9'!R1) ->  | S1: =IF('G9'!S1="","",'G9'!S1) ->  | T1: =IF('G9'!T1="","",'G9'!T1) ->  | U1: =IF('G9'!U1="","",'G9'!U1) -> 
A3: ■ Herstellungswert unbekannt
A4: ■ Errichtungsjahr bekannt
A5: ■ kein Investitionszuschuss
A7: Gesamtgebäude
C8: Länge = | D8: =IF('G9'!D8="","",'G9'!D8) -> 26 | E8: m | H8: Breite = | I8: =IF('G9'!I8="","",'G9'!I8) -> 10 | J8: m | M8: Höhe = | O8: =IF('G9'!O8="","",'G9'!O8) -> 6 | P8: m | R8: Größe = | S8: =IF(O8="",D8*I8,IF(AND(D8="",I8="",O8=""),"",D8*I8*O8)) -> 1560 | T8: =IF(O8=""," m²"," m³") -> m³
A11: 1. Nutzung | D11: =IF('G9'!D11="","",'G9'!D11) -> Rinderstall | E11: =IF('G9'!E11="","",'G9'!E11) ->  | F11: =IF('G9'!F11="","",'G9'!F11) ->  | G11: =IF('G9'!G11="","",'G9'!G11) ->  | H11: =IF('G9'!H11="","",'G9'!H11) ->  | M11: 2. Nutzung | P11: =IF('G9'!P11="","",'G9'!P11) -> Schweinestall | Q11: =IF('G9'!Q11="","",'G9'!Q11) ->  | R11: =IF('G9'!R11="","",'G9'!R11) -> 
C13: Heuer = | D13: =IF('G9'!D13="","",'G9'!D13) -> 2021
C15: Anschaffungsjahr = | D15: =IF('G9'!D15="","",'G9'!D15) -> 2010 | H15: Nutzungsdauer = | I15: =IF('G9'!I15="","",'G9'!I15) -> 40 | J15: Jahre | O15: Anschaffungsjahr = | P15: =IF('G9'!P15="","",'G9'!P15) -> 2020 | R15: Nutzungsdauer = | S15: =IF('G9'!S15="","",'G9'!S15) -> 40 | T15: Jahre
C17: Länge = | D17: =IF('G9'!D17="","",'G9'!D17) ->  | E17: m | H17: Größe = | I17: =IF(D44="","",D44) -> 1432 | J17: m³ | O17: Länge = | P17: =IF('G9'!P17="","",'G9'!P17) -> 8 | Q17: m | R17: Größe = | S17: =IF(D37="","",D37) -> 128 | T17: m³
C19: Breite = | D19: =IF('G9'!D19="","",'G9'!D19) ->  | E19: m | I19: Baukostenrichtsatz | O19: Breite = | P19: =IF('G9'!P19="","",'G9'!P19) -> 5 | Q19: m | S19: Baukostenrichtsatz
C21: Höhe = | D21: =IF('G9'!D21="","",'G9'!D21) ->  | E21: m | I21: =IF('G9'!I21="","",'G9'!I21) -> 130 | J21: € | O21: Höhe = | P21: =IF('G9'!P21="","",'G9'!P21) -> 3.2 | Q21: m | S21: =IF('G9'!S21="","",'G9'!S21) -> 81 | T21: €
P22: 1) Inklusive ½ Dachstuhlhöhe
A24: A. | B24: Ermittlung der Baumassen (Kubatur, Bauvolumen):
B25: 1. | C25: Gesamtgebäude
C26: Gesamt = | D26: Länge | G26: • | I26: Breite | M26: • | O26: =IF(O8="","","Höhe") -> Höhe
C28: Gesamt = | D28: =IF(D8="","",D8) -> 26 | G28: =IF(G26="","",G26) -> • | I28: =IF(I8="","",I8) -> 10 | M28: =IF(M26="","",M26) -> • | O28: =IF(O8="","",O8) -> 6
C30: Gesamt = | D30: =IF(O28="",D28*I28,IF(AND(D28="",I28="",O28=""),"",D28*I28*O28)) -> 1560 | G30: m³
B32: 2. | C32: =IF(P11="","",P11&" ("&M11&")") -> Schweinestall (2. Nutzung)
C33: =$P$11&" =" -> Schweinestall = | D33: Länge | G33: • | I33: Breite | M33: • | O33: =IF(O15="","","Höhe") -> Höhe
C35: =$P$11&" =" -> Schweinestall = | D35: =IF(P17="","",P17) -> 8 | G35: =IF(G33="","",G33) -> • | I35: =IF(P19="","",P19) -> 5 | M35: =IF(M33="","",M33) -> • | O35: =IF(P21="","",P21) -> 3.2
C37: =$P$11&" =" -> Schweinestall = | D37: =IF(O35="",D35*I35,IF(AND(D35="",I35="",O35=""),"",D35*I35*O35)) -> 128 | G37: m³
B39: 3. | C39: =IF(D11="","",D11&" ("&A11&")") -> Rinderstall (1. Nutzung)
C40: =$D$11&" =" -> Rinderstall = | D40: Gesamt | G40: – | I40: =IF(P11="","2. Nutzung",P11) -> Schweinestall
C42: =$D$11&" =" -> Rinderstall = | D42: =IF(D30="","",D30) -> 1560 | G42: =IF(G40="","",G40) -> – | I42: =IF(D37="","",D37) -> 128
C44: =$D$11&" =" -> Rinderstall = | D44: =IF(AND(D42="",I42=""),"",D42-I42) -> 1432 | G44: m³
A46: B. | B46: Bewertung der Gebäudeteile:
B47: =IF(D11="","",D11) -> Rinderstall | M47: =IF(P11="","",P11) -> Schweinestall
B49: 1. | C49: Alter = | D49: Heuer | G49: – | I49: Anschaffungsjahr
C51: Alter = | D51: =D13 -> 2021 | G51: =IF(G49="","",G49) -> – | I51: =D15 -> 2010
G52: ,
C53: Alter = | D53: =D51-I51 -> 11 | G53: Jahre | O53: Alter = | P53: =D13-P15 -> 1 | R53: Jahre
B55: 2. | G55: ="Baukostenrichtsatz = "&DOLLAR(I21,2)&"/"&MID(J17,2,6) -> Baukostenrichtsatz = € 130,00/m³ | I55: ……..… | J55: 1 | Q55: ="Baukostenrichtsatz = "&DOLLAR(S21,2)&"/"&MID(T17,2,6) -> Baukostenrichtsatz = € 81,00/m³ | R55: ……..… | S55: 1
G57: ="Reduzierter Baukostenrichtsatz = x €/"&MID(J17,2,6) -> Reduzierter Baukostenrichtsatz = x €/m³ | I57: ……..… | J57: =IF(D53<(I15/4),90%,IF(AND(D53>=(I15/4),D53<(I15/2)),80%,IF(D53>=(I15/2),67%,""))) -> 0.8 | Q57: ="Reduzierter Baukostenrichtsatz = x €/"&MID(T17,2,6) -> Reduzierter Baukostenrichtsatz = x €/m³ | R57: ……..… | S57: =IF(P53<(S15/4),90%,IF(AND(P53>=(S15/4),P53<(S15/2)),80%,IF(P53>=(S15/2),67%,""))) -> 0.9
C59: x = | D59: =IF(J57="","",DOLLAR(I21,2)) -> € 130,00 | F59: =IF(J57="",""," ") ->  | G59: =IF(J57="","","•") -> • | H59: =IF(J57="",""," ") ->  | I59: =IF(J57="","",FIXED(J57,2)*100) -> 80 | O59: x = | P59: =IF(S57="","",DOLLAR(S21,2)) -> € 81,00 | R59: =IF(S57="","","•") -> • | S59: =IF(S57="","",FIXED(S57,2)*100) -> 90
D60: =IF(J57="","",FIXED(J55,2)*100) -> 100 | P60: =IF(S57="","",FIXED(S55,2)*100) -> 100
C62: x = | D62: =IF(J57="","",FIXED(D59*I59/D60,2)) -> 104,00 | E62: € | O62: x = | P62: =IF(S57="","",FIXED(P59*S59/P60,2)) -> 72,90 | Q62: €
B64: 3. | C64: WW = | D64: Größe | G64: • | I64: Reduzierter Baukostenrichtsatz
C66: WW = | D66: =I17 -> 1432 | G66: =IF(G64="","",G64) -> • | I66: =D62 -> 104,00
G67: ,
C68: WW = | D68: =D66*I66 -> 148928 | G68: € | O68: WW = | P68: =S17*P62 -> 9331.2 | R68: €
B70: 4. | C70: jAfa = | D70: Wiederbeschaffungswert
D71: Nutzungsdauer
C73: jAfa = | D73: =D68 -> 148928
D74: =I15 -> 40
C76: jAfa = | D76: =D73/D74 -> 3723.2 | G76: € | I76: =IF(D53>=I15,"ACHTUNG: Keine Afa mehr!","") ->  | O76: jAfa = | P76: =P68/S15 -> 233.28 | R76: € | S76: =IF(P53>=S15,"ACHTUNG: Keine Afa mehr!","") -> 
B78: 5. | C78: bAfa = | D78: Jährliche Afa | G78: • | I78: Alter
C80: bAfa = | D80: =D76 -> 3723.2 | G80: =IF(G78="","",G78) -> • | I80: =D53 -> 11
C82: bAfa = | D82: =D80*I80 -> 40955.2 | G82: € | O82: bAfa = | P82: =P76*P53 -> 233.28 | R82: €
B84: 6. | C84: ZW1.1. = | D84: Wiederbeschaffungswert | G84: – | I84: Bisherige Afa
C86: ZW1.1. = | D86: =D68 -> 148928 | G86: =IF(G84="","",G84) -> – | I86: =D82 -> 40955.2
C88: ZW1.1. = | D88: =IF(D53>=I15,Jahr!D8,D86-I86) -> 107972.8 | G88: € | I88: =IF(D68="","",IF(D53>=I15,"Erinnerungswert!",IF(D88=D68,"ACHTUNG: Zeitwert 1.1. bleibt leer! "&DOLLAR(D88,2)&" kommt in die Spalte 'Zugang'",""))) ->  | O88: ZW1.1. = | P88: =IF(P53>=S15,Jahr!D8,P68-P82) -> 9097.92 | R88: € | U88: =IF(P68="","",IF(P53>=#REF!,"Erinnerungswert!",IF(P88=P68,"ACHTUNG: Zeitwert 1.1. bleibt leer! "&DOLLAR(#REF!,2)&" kommt in die Spalte 'Zugang'",""))) -> 
B90: 7. | C90: ZW31.12. = | D90: Zeitwert 1.1. | G90: – | I90: Jährliche Afa
C92: ZW31.12. = | D92: =D88 -> 107972.8 | G92: =IF(G90="","",G90) -> – | I92: =D76 -> 3723.2
C94: ZW31.12. = | D94: =IF(D88<=D76,Jahr!D8,D92-I92) -> 104249.6 | G94: € | I94: =IF(D94="","",IF(D88<=D76,"Erinnerungswert!","")) ->  | O94: ZW31.12. = | P94: =IF(P88<=P76,Jahr!D8,P88-P76) -> 8864.64 | R94: € | U94: =IF(P94="","",IF(P88<=P76,"Erinnerungswert!","")) -> 
A96: Bezeichnung | D96: Baujahr | E96: Größe | F96: reduzierter | I96: Neuwert | J96: ND | L96: AfA | O96: Wert am | P96: Zugang | Q96: Abgang | R96: AfA | S96: Wert am
E97: ha, lfm, m² | F97: Richtsatz | I97: in | J97: in | L97: in | O97: ="1.1."&Jahr!F4 -> 1.1. | P97: in | Q97: in | R97: in | S97: ="31.12."&Jahr!F4 -> 31.12.
E98: m³, … | F98: je ha, … | I98: € | J98: Jahren | L98: €/Jahr | O98: € | P98: € | Q98: € | R98: € | S98: €
A99: =IF(D11="","",D11) -> Rinderstall | D99: =IF(D15="","",D15) -> 2010 | E99: =IF(I17="","",I17) -> 1432 | F99: =IF(D62="","",D62) -> 104,00 | I99: =IF(D68="","",D68) -> 148928 | J99: =IF(I15="","",I15) -> 40 | L99: =IF(D76="","",D76) -> 3723.2 | O99: =IF(I88="ACHTUNG: Zeitwert 1.1. bleibt leer! "&DOLLAR(D68,2)&" kommt in die Spalte 'Zugang'","",IF(D88="","",D88)) -> 107972.8 | P99: =IF(I88="ACHTUNG: Zeitwert 1.1. bleibt leer! "&DOLLAR(D68,2)&" kommt in die Spalte 'Zugang'",D68,"") ->  | R99: =IF(O99=Jahr!D8,"",L99) -> 3723.2 | S99: =IF(D94="","",D94) -> 104249.6
A100: =IF(P11="","",P11) -> Schweinestall | D100: =IF(P15="","",P15) -> 2020 | E100: =IF(S17="","",S17) -> 128 | F100: =IF(P62="","",P62) -> 72,90 | I100: =IF(P68="","",P68) -> 9331.2 | J100: =IF(S15="","",S15) -> 40 | L100: =IF(P76="","",P76) -> 233.28 | O100: =IF(S88="ACHTUNG: Zeitwert 1.1. bleibt leer! "&DOLLAR(P68,2)&" kommt in die Spalte 'Zugang'","",IF(P88="","",P88)) -> 9097.92 | P100: =IF(S88="ACHTUNG: Zeitwert 1.1. bleibt leer! "&DOLLAR(P68,2)&" kommt in die Spalte 'Zugang'",P68,"") ->  | R100: =IF(O100=Jahr!D8,"",L100) -> 233.28 | S100: =IF(P94="","",P94) -> 8864.64
A101: Summe | O101: =IF(SUM(O99:O100)=0,"",SUM(O99:O100)) -> 117070.72 | P101: =IF(SUM(P99:P100)=0,"",SUM(P99:P100)) ->  | Q101: =IF(SUM(Q99:Q100)=0,"",SUM(Q99:Q100)) ->  | R101: =IF(SUM(R99:R100)=0,"",SUM(R99:R100)) -> 3956.48 | S101: =IF(SUM(S99:S100)=0,"",SUM(S99:S100)) -> 113114.24

Sheet G10
A1: Beispiel | C1: 10 | D1: Maschinenschuppen (Generalreparatur)
A3: ■ Herstellungswert bekannt
A4: ■ Errichtungsjahr bekannt
A5: ■ kein Investitionszuschuss
A6: ■ Generalreparatur bzw. Generalsanierung im Jahr der Erstbewertung | S6: Punkte
A8: =PROPER(VLOOKUP($D$1,GL_GR,3,0))&" "&C12&" errichteter "&MID(D1,1,FIND(" ",D1,1)-1)&" mit einem Herstellungswert von "&DOLLAR(H10)&" und einer voraussichtlichen Nutzungsdauer von "&H12&" Jahren wird "&C16&" generalsaniert. Die Kosten hierfür betragen "&DOLLAR(H16)&". Die Nutzungsdauer wird dadurch um "&H18&" Jahre verlängert." -> Ein 1986 errichteter Maschinenschuppen mit einem Herstellungswert von € 35 200,00 und einer voraussichtlichen Nutzungsdauer von 40 Jahren wird 2021 generalsaniert. Die Kosten hierfür betragen € 11 450,00. Die Nutzungsdauer wird dadurch um 7 Jahre verlängert. | R8: Anzeigen!
B10: Heuer = | C10: =IF(Jahr!D4="","",Jahr!D4) -> 2021 | G10: Anschaffungswert = | H10: 35200 | I10: €
B12: Anschaffungsjahr = | C12: =C10-H12+ROUND(H12/8,0) -> 1986 | G12: Nutzungsdauer = | H12: 40 | I12: Jahre
A14: Angaben zur Generalreparatur (GR)
B16: Jahr der GR = | C16: =C10 -> 2021 | G16: Wert der GR = | H16: 11450 | I16: €
G18: Verlängerung der ND = | H18: 7 | I18: Jahre
R19: PKT | S19: / | T19: GES | W19: Ergebnisse | AD19: Hilfe | AK19: Formelprüfung | AR19: Punkte
A24: 1. | B24: Alter = | R24: =IF(AND(C24="",F24="",H24=""),"",SUM(AR24:AV24)) ->  | S24: / | T24: =COUNTA(AD24:AH24) -> 3 | W24: =IF(C24="","",C24) ->  | Y24: =IF(F24="","",F24) ->  | AA24: =IF(H24="","",H24) ->  | AC24: / | AD24: =IF(G10L!C24="","",G10L!C24) -> Heuer | AF24: =IF(G10L!F24="","",G10L!F24) -> – | AH24: =IF(G10L!H24="","",G10L!H24) -> Anschaffungsjahr | AR24: =IF(W24="","",IF(W24=AD24,1,IF(W24=AK24,0.5,0))) ->  | AS24: =IF(X24="","",IF(X24=AE24,1,IF(X24=AL24,0.5,0))) ->  | AT24: =IF(Y24="","",IF(Y24=AF24,1,IF(Y24=AM24,0.5,0))) ->  | AU24: =IF(Z24="","",IF(Z24=AG24,1,IF(Z24=AN24,0.5,0))) ->  | AV24: =IF(AA24="","",IF(AA24=AH24,1,IF(AA24=AO24,0.5,0))) -> 
B26: Alter = | F26: =IF(F24="","",F24) ->  | R26: =IF(AND(C26="",F26="",H26=""),"",SUM(AR26:AV26)) ->  | S26: / | T26: =COUNTA(AD26:AH26) -> 2 | W26: =IF(C26="","",C26) ->  | AA26: =IF(H26="","",H26) ->  | AC26: / | AD26: =IF(G10L!C26="","",G10L!C26) -> 2021 | AH26: =IF(G10L!H26="","",G10L!H26) -> 1986 | AR26: =IF(W26="","",IF(W26=AD26,1,IF(W26=AK26,0.5,0))) ->  | AS26: =IF(X26="","",IF(X26=AE26,1,IF(X26=AL26,0.5,0))) ->  | AT26: =IF(Y26="","",IF(Y26=AF26,1,IF(Y26=AM26,0.5,0))) ->  | AU26: =IF(Z26="","",IF(Z26=AG26,1,IF(Z26=AN26,0.5,0))) ->  | AV26: =IF(AA26="","",IF(AA26=AH26,1,IF(AA26=AO26,0.5,0))) -> 
F27: ,
B28: Alter = | F28: Jahre | R28: =IF(AND(C28=""),"",SUM(AR28:AV28)) ->  | S28: / | T28: =COUNTA(AD28:AH28) -> 1 | W28: =IF(C28="","",C28) ->  | AC28: / | AD28: =IF(G10L!C28="","",G10L!C28) -> 35 | AJ28: - | AK28: =IF(C28="","",C26-H26) ->  | AR28: =IF(W28="","",IF(W28=AD28,1,IF(W28=AK28,0.5,0))) ->  | AS28: =IF(X28="","",IF(X28=AE28,1,IF(X28=AL28,0.5,0))) ->  | AT28: =IF(Y28="","",IF(Y28=AF28,1,IF(Y28=AM28,0.5,0))) ->  | AU28: =IF(Z28="","",IF(Z28=AG28,1,IF(Z28=AN28,0.5,0))) ->  | AV28: =IF(AA28="","",IF(AA28=AH28,1,IF(AA28=AO28,0.5,0))) -> 
AD29: Anschaffungswert
A30: 2. | B30: jAfa = | R30: =IF(AND(C30="",F30="",H30=""),"",SUM(AR30:AV30)) ->  | S30: / | T30: =COUNTA(AD30:AH30) -> 1 | W30: =IF(C30="","",C30) ->  | AC30: / | AD30: =IF(G10L!C30="","",G10L!C30) -> Herstellungswert | AR30: =IF(W30="","",IF(COUNTIF($AD29:$AD30,W30)>0,1/COUNTIF($W30,W30),IF(COUNTIF($AK30,W30)>0,0.5/COUNTIF($W30,W30),0))) ->  | AS30: =IF(X30="","",IF(X30=AE30,1,IF(X30=AL30,0.5,0))) ->  | AT30: =IF(Y30="","",IF(Y30=AF30,1,IF(Y30=AM30,0.5,0))) ->  | AU30: =IF(Z30="","",IF(Z30=AG30,1,IF(Z30=AN30,0.5,0))) ->  | AV30: =IF(AA30="","",IF(AA30=AH30,1,IF(AA30=AO30,0.5,0))) -> 
R31: =IF(AND(C31="",F31="",H31=""),"",SUM(AR31:AV31)) ->  | S31: / | T31: =COUNTA(AD31:AH31) -> 1 | W31: =IF(C31="","",C31) ->  | AC31: / | AD31: =IF(G10L!C31="","",G10L!C31) -> Nutzungsdauer | AR31: =IF(W31="","",IF(W31=AD31,1,IF(W31=AK31,0.5,0))) ->  | AS31: =IF(X31="","",IF(X31=AE31,1,IF(X31=AL31,0.5,0))) -> 
AR32: =IF(W32="","",IF(W32=AD32,1,IF(W32=#REF!,1,IF(W32=AK32,0.5,IF(W32=#REF!,0.5,0))))) ->  | AS32: =IF(X32="","",IF(X32=AE32,1,IF(X32=#REF!,1,IF(X32=AL32,0.5,IF(X32=#REF!,0.5,0))))) ->  | AT32: =IF(Y32="","",IF(Y32=AF32,1,IF(Y32=#REF!,1,IF(Y32=AM32,0.5,IF(Y32=#REF!,0.5,0))))) ->  | AU32: =IF(Z32="","",IF(Z32=AG32,1,IF(Z32=#REF!,1,IF(Z32=AN32,0.5,IF(Z32=#REF!,0.5,0))))) ->  | AV32: =IF(AA32="","",IF(AA32=AH32,1,IF(AA32=#REF!,1,IF(AA32=AO32,0.5,IF(AA32=#REF!,0.5,0))))) -> 
B33: jAfa = | R33: =IF(AND(C33="",F33="",H33=""),"",SUM(AR33:AV33)) ->  | S33: / | T33: =COUNTA(AD33:AH33) -> 1 | W33: =IF(C33="","",C33) ->  | AC33: / | AD33: =IF(G10L!C33="","",G10L!C33) -> 35200 | AR33: =IF(W33="","",IF(W33=AD33,1,IF(W33=AK33,0.5,0))) -> 
R34: =IF(AND(C34="",F34="",H34=""),"",SUM(AR34:AV34)) ->  | S34: / | T34: =COUNTA(AD34:AH34) -> 1 | W34: =IF(C34="","",C34) ->  | AC34: / | AD34: =IF(G10L!C34="","",G10L!C34) -> 40
B36: jAfa = | F36: € | H36: =IF(C36="","",IF(C28>=H12,"ACHTUNG: Keine Afa mehr!","")) ->  | R36: =IF(AND(C36=""),"",SUM(AR36:AV36)) ->  | S36: / | T36: =COUNTA(AD36:AH36) -> 1 | W36: =IF(C36="","",C36) ->  | AC36: / | AD36: =IF(G10L!C36="","",G10L!C36) -> 880 | AJ36: - | AK36: =IF(C36="","",C33/C34) ->  | AR36: =IF(W36="","",IF(W36=AD36,1,IF(W36=AK36,0.5,0))) ->  | AS36: =IF(X36="","",IF(X36=AE36,1,IF(X36=AL36,0.5,0))) ->  | AT36: =IF(Y36="","",IF(Y36=AF36,1,IF(Y36=AM36,0.5,0))) ->  | AU36: =IF(Z36="","",IF(Z36=AG36,1,IF(Z36=AN36,0.5,0))) ->  | AV36: =IF(AA36="","",IF(AA36=AH36,1,IF(AA36=AO36,0.5,0))) -> 
A38: 3. | B38: bAfa = | R38: =IF(AND(C38="",F38="",H38=""),"",SUM(AR38:AV38)) ->  | S38: / | T38: =COUNTA(AD38:AH38) -> 3 | W38: =IF(C38="","",C38) ->  | Y38: =IF(F38="","",F38) ->  | AA38: =IF(H38="","",H38) ->  | AC38: / | AD38: =IF(G10L!C38="","",G10L!C38) -> Alter | AF38: =IF(G10L!F38="","",G10L!F38) -> • | AH38: =IF(G10L!H38="","",G10L!H38) -> Jährliche Afa | AR38: =IF(W38="","",IF(COUNTIF($AD38:$AH38,W38)>0,1/COUNTIF($W38:$AA38,W38),IF(COUNTIF($AK38:$AO38,W38)>0,0.5/COUNTIF($W38:$AA38,W38),0))) ->  | AS38: =IF(X38="","",IF(COUNTIF($AD38:$AH38,X38)>0,1/COUNTIF($W38:$AA38,X38),IF(COUNTIF($AK38:$AO38,X38)>0,0.5/COUNTIF($W38:$AA38,X38),0))) -> 
B40: bAfa = | F40: =IF(F38="","",F38) ->  | R40: =IF(AND(C40="",F40="",H40=""),"",SUM(AR40:AV40)) ->  | S40: / | T40: =COUNTA(AD40:AH40) -> 2 | W40: =IF(C40="","",C40) ->  | AA40: =IF(H40="","",H40) ->  | AC40: / | AD40: =IF(G10L!C40="","",G10L!C40) -> 35 | AH40: =IF(G10L!H40="","",G10L!H40) -> 880 | AJ40: - | AK40: =IF(C40="","",C36) ->  | AO40: =IF(H40="","",C28) ->  | AR40: =IF(W40="","",IF(COUNTIF($AD40:$AH40,W40)>0,1/COUNTIF($W40:$AA40,W40),IF(COUNTIF($AK40:$AO40,W40)>0,0.5/COUNTIF($W40:$AA40,W40),0))) ->  | AS40: =IF(X40="","",IF(COUNTIF($AD40:$AH40,X40)>0,1/COUNTIF($W40:$AA40,X40),IF(COUNTIF($AK40:$AO40,X40)>0,0.5/COUNTIF($W40:$AA40,X40),0))) ->  | AT40: =IF(Y40="","",IF(COUNTIF($AD40:$AH40,Y40)>0,1/COUNTIF($W40:$AA40,Y40),IF(COUNTIF($AK40:$AO40,Y40)>0,0.5/COUNTIF($W40:$AA40,Y40),0))) ->  | AU40: =IF(Z40="","",IF(COUNTIF($AD40:$AH40,Z40)>0,1/COUNTIF($W40:$AA40,Z40),IF(COUNTIF($AK40:$AO40,Z40)>0,0.5/COUNTIF($W40:$AA40,Z40),0))) ->  | AV40: =IF(AA40="","",IF(COUNTIF($AD40:$AH40,AA40)>0,1/COUNTIF($W40:$AA40,AA40),IF(COUNTIF($AK40:$AO40,AA40)>0,0.5/COUNTIF($W40:$AA40,AA40),0))) -> 
H41: ……..…
B42: bAfa = | F42: € | R42: =IF(AND(C42=""),"",SUM(AR42:AV42)) ->  | S42: / | T42: =COUNTA(AD42:AH42) -> 1 | W42: =IF(C42="","",C42) ->  | AC42: / | AD42: =IF(G10L!C42="","",G10L!C42) -> 30800 | AJ42: - | AK42: =IF(C42="","",C40*H40) ->  | AR42: =IF(W42="","",IF(COUNTIF($AD42:$AH42,W42)>0,1/COUNTIF($W42:$AA42,W42),IF(COUNTIF($AK42:$AO42,W42)>0,0.5/COUNTIF($W42:$AA42,W42),0))) ->  | AS42: =IF(X42="","",IF(COUNTIF($AD42:$AH42,X42)>0,1/COUNTIF($W42:$AA42,X42),IF(COUNTIF($AK42:$AO42,X42)>0,0.5/COUNTIF($W42:$AA42,X42),0))) ->  | AT42: =IF(Y42="","",IF(COUNTIF($AD42:$AH42,Y42)>0,1/COUNTIF($W42:$AA42,Y42),IF(COUNTIF($AK42:$AO42,Y42)>0,0.5/COUNTIF($W42:$AA42,Y42),0))) ->  | AU42: =IF(Z42="","",IF(COUNTIF($AD42:$AH42,Z42)>0,1/COUNTIF($W42:$AA42,Z42),IF(COUNTIF($AK42:$AO42,Z42)>0,0.5/COUNTIF($W42:$AA42,Z42),0))) ->  | AV42: =IF(AA42="","",IF(COUNTIF($AD42:$AH42,AA42)>0,1/COUNTIF($W42:$AA42,AA42),IF(COUNTIF($AK42:$AO42,AA42)>0,0.5/COUNTIF($W42:$AA42,AA42),0))) -> 
AD43: Anschaffungswert
A44: 4. | B44: ZW1.1. = | R44: =IF(AND(C44="",F44="",H44=""),"",SUM(AR44:AV44)) ->  | S44: / | T44: =COUNTA(AD44:AH44) -> 3 | W44: =IF(C44="","",C44) ->  | Y44: =IF(F44="","",F44) ->  | AA44: =IF(H44="","",H44) ->  | AC44: / | AD44: =IF(G10L!C44="","",G10L!C44) -> Herstellungswert | AF44: =IF(G10L!F44="","",G10L!F44) -> – | AH44: =IF(G10L!H44="","",G10L!H44) -> Bisherige Afa | AR44: =IF(W44="","",IF(COUNTIF($AD43:$AD44,W44)>0,1/COUNTIF($W44,W44),IF(COUNTIF($AK44,W44)>0,0.5/COUNTIF($W44,W44),0))) ->  | AS44: =IF(X44="","",IF(X44=AE44,1,IF(X44=AL44,0.5,0))) ->  | AT44: =IF(Y44="","",IF(Y44=AF44,1,IF(Y44=AM44,0.5,0))) ->  | AU44: =IF(Z44="","",IF(Z44=AG44,1,IF(Z44=AN44,0.5,0))) ->  | AV44: =IF(AA44="","",IF(AA44=AH44,1,IF(AA44=AO44,0.5,0))) -> 
B46: ZW1.1. = | F46: =IF(F44="","",F44) ->  | R46: =IF(AND(C46="",F46="",H46=""),"",SUM(AR46:AV46)) ->  | S46: / | T46: =COUNTA(AD46:AH46) -> 2 | W46: =IF(C46="","",C46) ->  | AA46: =IF(H46="","",H46) ->  | AC46: / | AD46: =IF(G10L!C46="","",G10L!C46) -> 35200 | AH46: =IF(G10L!H46="","",G10L!H46) -> 30800 | AJ46: - | AK46: =IF(C46="","",H9) ->  | AO46: =IF(H46="","",C42) ->  | AR46: =IF(W46="","",IF(W46=AD46,1,IF(W46=AK46,0.5,0))) ->  | AS46: =IF(X46="","",IF(X46=AE46,1,IF(X46=AL46,0.5,0))) ->  | AT46: =IF(Y46="","",IF(Y46=AF46,1,IF(Y46=AM46,0.5,0))) ->  | AU46: =IF(Z46="","",IF(Z46=AG46,1,IF(Z46=AN46,0.5,0))) ->  | AV46: =IF(AA46="","",IF(AA46=AH46,1,IF(AA46=AO46,0.5,0))) -> 
B48: ZW1.1. = | F48: € | H48: =IF(C48="","",IF(C28>=H12,"Erinnerungswert!",IF(C48=H10,"ACHTUNG: Zeitwert 1.1. bleibt leer! "&DOLLAR(H10,2)&" kommt in die Spalte 'Zugang'",""))) ->  | R48: =IF(AND(C48=""),"",SUM(AR48:AV48)) ->  | S48: / | T48: =COUNTA(AD48:AH48) -> 1 | W48: =IF(C48="","",C48) ->  | AC48: / | AD48: =IF(G10L!C48="","",G10L!C48) -> 4400 | AJ48: - | AK48: =IF(C48="","",C46-H46) ->  | AR48: =IF(W48="","",IF(W48=AD48,1,IF(W48=AK48,0.5,0))) ->  | AS48: =IF(X48="","",IF(X48=AE48,1,IF(X48=AL48,0.5,0))) ->  | AT48: =IF(Y48="","",IF(Y48=AF48,1,IF(Y48=AM48,0.5,0))) ->  | AU48: =IF(Z48="","",IF(Z48=AG48,1,IF(Z48=AN48,0.5,0))) ->  | AV48: =IF(AA48="","",IF(AA48=AH48,1,IF(AA48=AO48,0.5,0))) -> 
A50: Nach der Generalreparatur
